Workbook

Sheet Design Regulator
A1: LM(2)5148/-Q1 Synchronous Buck Controller Design Tool
N2: http://www.ti.com/product/lm5175
A3: About | C3: xx | F3: = Input Box | N3: TERMS OF USE
A5: Step 1: Operating Specifications
D6: Input Voltage – Min, VIN(min) | E6: 50 | F6: V
D7: Input Voltage – Nom, VIN(nom) | E7: 60 | F7: V
D8: Input Voltage – Max, VIN(max) | E8: 65 | F8: V
D9: Output Voltage, VOUT | E9: 3.301 | F9: V
D10: Full Load Output Current, IOUT | E10: 25 | F10: A
D11: Switching Frequency, FSW | E11: 300 | F11: kHz
D12: Frequency Set Resistor, RT | E12: ='Variable Management'!C442 -> 73.2 | F12: kΩ
D13: Ambient Temperature, TA | E13: 25 | F13: °C
A15: Step 2: Current Sense Resistor
D16: Required IOCP Setpoint at VIN(nom) | E16: 30 | F16: A
D17: Recommended Sense Resistance | E17: =Rs_ideal*1000 -> 1.89633086 | F17: mΩ
D18: Sense Resistance, RS | E18: 1.5 | F18: mΩ
D19: Min Inductor Sat Current, ILO(SAT) | E19: ='Variable Management'!B95 -> 40 | F19: A
D20: Max power loss in shunt | E20: ='Variable Management'!B105 -> 2.210763752 | F20: W
D21: VIN(min) | E21: ='Variable Management'!B97 -> 38.3792508 | F21: A
C22: IOUT(typ) at OCP Inception: | D22: VIN(nom) | E22: ='Variable Management'!B98 -> 38.3599517 | F22: A
D23: VIN(max) | E23: ='Variable Management'!B99 -> 38.35252769 | F23: A
A25: Step 3: Buck Inductance
D26: Recommended Inductance | E26: =Lopt*1000000 -> 0.6877083333 | F26: µH
D27: Inductance, LO | E27: 3.3 | F27: µH
D28: Inductor DCR | E28: 4 | F28: mΩ
D29: DIL as a % at VIN(nom) | E29: ='Variable Management'!B68*100 -> 13.12038639 | F29: %
A31: Step 4: Output Capacitors
D32: Output Voltage Ripple Spec | E32: 200 | F32: mVPK=PK
D33: Minimum Output Capacitance | E33: ='Variable Management'!B121 -> 6.833534579 | F33: µF
D34: Output Capacitance (derated), COUT | E34: 100 | F34: µF | K34: =CHOOSE(SCH_MODE, "", "** For Single-Output Operation in 2-Phase Mode, tie MODE to VDDA and use FB1 to set VOUT **", "** For Single-Output Operation in 3-Phase Mode, tie both MODE pins to VDDA. Use FB1 of master IC to set VOUT. Connect FB2 of master IC to AGND. Connect FB2 of slave IC to VDDA to configure it as a slave **", "** For Single-Output Operation in 4-Phase Mode, tie both MODE pins to VDDA. Use FB1 of master IC to set VOUT. Connect FB2 of master IC to AGND. Connect FB2 of slave IC to VDDA to configure it as a slave **") -> 
D35: Maximum Permitted ESR | E35: ='Variable Management'!B125 -> 60.83128215 | F35: mΩ
D36: Output Capacitor ESR | E36: 1 | F36: mΩ | K36: =CHOOSE(SCH_MODE, "", "** Tie VCCX to GND if not used **", "** Slave controller (CNTRL2) not shown **","** Slave controller (CNTRL2) not shown **") ->  | P36: =IF(SCH_MODE=1, "** Tie VCCX to GND if not used **", "") -> ** Tie VCCX to GND if not used **
D37: Resulting Output Voltage Ripple (max) | E37: ='Variable Management'!B127*1000 -> 14.05517033 | F37: mVPK-PK | K37: =IF(OR(SCH_MODE=3, SCH_MODE=4),"** Tie VCCX to GND if not used **", "") -> 
D38: Output Capacitor RMS Current (max) | E38: ='Variable Management'!B114 -> 0.9511685834 | F38: ARMS
A40: Step 5: Input Capacitors
D41: Input Voltage Ripple Spec | E41: 500 | F41: mVPK-PK
D42: Minimum Input Capacitance | E42: ='Variable Management'!B148 -> 10.27689327 | F42: µF
D43: Input Capacitance (derated), CIN | E43: 200 | F43: µF
D44: Maximum Permitted ESR | E44: ='Variable Management'!B154 -> 14.85444205 | F44: mΩ
D45: Input Capacitor ESR | E45: 1 | F45: mΩ
D46: Resulting Input Voltage Ripple (max) | E46: ='Variable Management'!B161*1000 -> 53.28584681 | F46: mVPK-PK
D47: Input Capacitor RMS Current (max) | E47: ='Variable Management'!B138 -> 6.3291245 | F47: ARMS
D48: AEF Filter Inductor | E48: 0.68 | F48: µH
A49: Step 6: Enable, CNFG, FPWM/PFM
D52: Input Voltage UVLO Turn On | E52: 35 | F52: V
D53: Input Voltage UVLO Turn Off | E53: 30 | F53: V
D54: Upper Enable Resistor, RUV1 | E54: =IF(UVLO_TYPE=1,'Variable Management'!B187,0) -> 499 | F54: kΩ
D55: Lower Enable Resistor, RUV2 | E55: =IF(UVLO_TYPE=1,'Variable Management'!B188,"DNP") -> 14.7 | F55: kΩ
D56: Configuration Resistor, RCNFG | E56: =IF(DITHER=1,"41.2","29.4") -> 41.2 | F56: kΩ
D57: =IF(DEMB=1, "* Tie PFM to GND", "* Tie PFM to VDDA") -> * Tie PFM to GND
A59: Step 7: Compensation Design
D60: Load Pole Frequency | E60: =Fp_dominant -> 13166.22711 | F60: Hz
D61: ESR Zero Frequency | E61: =Fesr/1000 -> 1591.549433 | F61: kHz
D62: Desired Crossover Frequency | E62: 60 | F62: =" kHz " -> kHz
D63: Error Amp Pole Frequency | E63: =Fp1_u -> 0.1657813222 | F63: Hz
D64: =CHOOSE(VOUT_setting, "Upper Feedback Resistor","","","") -> Upper Feedback Resistor | E64: 100 | F64: kΩ
D65: =CHOOSE(VOUT_setting, "Lower Feedback Resistor", "* Pullup FB to VDDA with "&'Variable Management'!D418,"* Tie FB TO VDDA","* Pullup FB to VDDA with"&'Variable Management'!D418) -> Lower Feedback Resistor | E65: =IF(Vout=Vref,"OPEN",Rfb2_u/1000) -> 31.6 | F65: =IF(Vout=Vref,"","kΩ") -> kΩ
A67: Compensation Components
B68: Calculated / | C68: Std Values | D68: =C68 -> Std Values | F68: Actual P/Z Frequencies
A69: RC1 | B69: =Rcea1/1000 -> 1.944449501 | C69: ='Standard Value Calculator'!S32 -> 1.96 | D69: =C69 -> 1.96 | E69: kΩ | F69: =Fp1_u -> 0.1657813222 | G69: Hz (FPEA)
A70: CC1 | B70: =Cc1ea*1000000000 -> 13.64181681 | C70: ='Standard Value Calculator'!S33 -> 15 | D70: =C70 -> 15 | E70: nF | F70: =Fz1_u/1000 -> 5.413433445 | G70: kHz (FZCOMP)
A71: CC2 | B71: =IF(Cc2ea<0, "N/A", Cc2ea*1000000000000) -> 513.8416836 | C71: ='Standard Value Calculator'!S34 -> 470 | D71: =C71 -> 470 | E71: pF | F71: =Fp2_u/1000 -> 161.8104571 | G71: kHz (FPCOMP)
M72: ** Specify Inductor Core Loss ** | N72: 0.2 | O72: W
A74: Efficiency / Power Loss Analyzer
A76: Step 8: Efficiency
F77: Power MOSFETs | G77: (Q1, Q2)
E78: '836, '818
E79: High-side | F79: Low-side
D80: On-State Resistance, RDS(on) | E80: 6.2 | F80: 3.3 | G80: mΩ
D81: Total Gate Charge, QG | E81: 16 | F81: 31 | G81: nC
D82: Gate-Drain Charge, QGD | E82: 5.5 | F82: 11.2 | G82: nC
D83: Gate-Source Charge, QGS | E83: 6.3 | F83: 11 | G83: nC
D84: Output Charge, QOSS | F84: 30 | G84: nC
D85: Output Capacitance, COSS | E85: 250 | F85: 484 | G85: pF
D86: Gate Resistance, RG | E86: 1.2 | F86: 1 | G86: Ω
D87: Transconductance, gFS | E87: 99 | F87: 200 | G87: S
D88: Gate-Source Threshold Voltage, VTH | E88: 3 | F88: 3 | G88: V
D89: Body Diode Forward Voltage, VBD | E89: 0.7 | F89: 0.7 | G89: V
D90: Body Diode Rev Recovery Charge, QRR | F90: 73 | G90: nC
D91: Thermal Resistance, θJA | E91: 42 | F91: 40.7 | G91: °C/W
A93: External Schottky Diode (if applicable)
D94: Schottky Fwd Voltage, VFWDsch | F94: 0 | G94: V
D95: Schottky Rev Recovery Charge, QRRsch | F95: 0 | G95: nC
A99: Step 9: IC Power Loss
D100: IC Power Dissipation | E100: ='Variable Management'!B361 -> 0.846 | F100: W
D101: IC Junction Temperature (estimate) | E101: ='Variable Management'!B363 -> 53.8486 | F101: °C
E102: =CHOOSE(Ext_VCC, "", "* Tie VCCX to PGND") -> * Tie VCCX to PGND

Sheet Input Filters (hidden)
A1: LM(2)5149-Q1 Synchronous Buck Controller Design Tool
O2: http://www.ti.com/product/lm5175
A3: About | C3: xx | F3: = Input Box | O3: TERMS OF USE
E7: AEF | M7: Passive
B9: Design tab - LAEF | C9: ='Design Regulator'!E48 & " µH" -> 0.68 µH | F9: LAEF | G9: 1 | H9: µH | J9: Suggested LIN Inductor | K9: 0.1-10 | L9: µH | N9: Chosen LIN | O9: 0.68 | P9: µH
B10: Design tab - CINJ | C10: ='Design Regulator'!#REF! & " µF" ->  | F10: CINJ | G10: 1 | H10: µF | J10: Suggested CF | K10: 0.1-10 | L10: µF | N10: Chosen CF | O10: 0.47 | P10: µF
B11: Design tab - CDAMP | C11: ='Design Regulator'!#REF! & " µF" ->  | F11: CDAMP | G11: 1 | H11: µF | J11: Suggested CDAMP | K11: 1-10 | L11: µF | N11: Chosen CDAMP | O11: 1 | P11: µF
B12: Design tab - RDAMP | C12: ='Design Regulator'!#REF! & " Ω" ->  | F12: RDAMP | G12: 10 | H12: Ω | J12: Suggested RDAMP | K12: =Rdamp_PassiveStd -> 0.0825 | L12: Ω | N12: Chosen RDAMP | O12: 0.35 | P12: Ω
C14: VIN Ripple at Fsw | F14: =VinRipple_dBuV -> 94.53223744 | G14: dBµV | H14: VIN Ripple | I14: =VinRipple_dBuV -> 94.53223744 | J14: dBµV
D16: AEF Attenuation at Fsw | E16: =-'Input Filter Calculations'!AM97 ->  | F16: dB | L16: Passive Attenuation at Fsw | M16: =-'Input Filter Calculations'!AA97 -> 6.57243309 | N16: dB
D17: AEF EMI at Fsw | E17: =VinRipple_dBuV-E16 ->  | F17: dB-µV | L17: Passive EMI at Fsw | M17: =VinRipple_dBuV-M16 -> 87.95980435 | N17: dB-µV

Sheet Design Input Filter (hidden)
A1: LM5149-Q1 Synchronous Buck Controller Design Tool
O2: http://www.ti.com/product/lm5175
A3: About | C3: xx | F3: = Input Box | O3: TERMS OF USE
B7: Choose Filter
B8: Suggested Inductor | C8: =CHOOSE(INFILTER_TYPE,"","0.01-1","0.1-10") ->  | D8: µH | F8: Chosen Inductor | G8: 1 | H8: µH
B9: =CHOOSE(INFILTER_TYPE,"","Suggested Cinj","Suggested Cf") ->  | C9: =CHOOSE(INFILTER_TYPE,"",'Standard Value Calculator'!S24,'Standard Value Calculator'!S23) ->  | D9: µF | F9: =CHOOSE(INFILTER_TYPE,"","Chosen Cinj","Chosen Cf") ->  | G9: 0.068 | H9: µF
B10: Suggested Cdamp | C10: =CHOOSE(INFILTER_TYPE,"",CHOOSE(OSC,"DNP",'Standard Value Calculator'!S25),'Standard Value Calculator'!S28) ->  | D10: µF | F10: Chosen Cdamp | G10: 0.033 | H10: µF
B11: Suggested Rdamp | C11: =CHOOSE(INFILTER_TYPE,"",'Standard Value Calculator'!S26,Rdamp_PassiveStd) ->  | D11: Ω | F11: Chosen Rdamp | G11: 43.2 | H11: Ω
F12: Filter Attenuation | G12: =-'Variable Management'!B302 -> 0 | H12: dB
F13: VIN Ripple | G13: =VinRipple_dBuV -> 94.53223744 | H13: dB-µV
F14: Fsw Conducted EMC | G14: ='Variable Management'!B303 -> 94.53223744 | H14: dB-µV

Sheet BOM & Schematic (hidden)
A36: ** Tie DEMB to VDDA for FPWM, AGND for DEM **
A37: ** Tie VCCX to GND if not used ** | I37: =IF(OR(SCH_MODE=3, SCH_MODE=4),"** Tie VCCX to GND if not used **", "") -> 
A38: ** Tie DITH to VDDA to disable spread spectrum **
A39: ** Tie OSC to VDDA for 2.2MHz, AGND for 440kHz **
A40: ="VIN = "&VIN_min&" V to "&VIN_max&" V, VOUT = "& Vout &" V, IOUT = " &Iout & " A, Fsw = " & Fsw/1000 &" kHz, Current Limit = "&ROUNDUP(Ilimit_DC,0)&" A" -> VIN = 50 V to 65 V, VOUT = 3.301 V, IOUT = 25 A, Fsw = 300 kHz, Current Limit = 30 A
A41: High Efficiency Synchronous Buck Regulator BOM
A42: Count | B42: Ref Des | C42: Value | D42: Description | H42: Size | I42: Part Number | J42: MFR
A43: 1 | B43: CBOOT | C43: 0.1 | D43: =C43 -> 0.1 | H43: 0603 | I43: Std | J43: Std
A44: 1 | B44: CC1 | C44: ='Design Regulator'!D70 -> 15 | D44: 15 | H44: 0603 | I44: Std | J44: Std
A45: 1 | B45: CC2 | C45: ='Design Regulator'!D71 -> 470 | D45: 470 | H45: 0603 | I45: Std | J45: Std
A46: 1 | B46: CRES | C46: =Cres_u*1000000000 -> 470 | D46: =C46 -> 470 | H46: 0603 | I46: Std | J46: Std
A47: 1 | B47: CDITH | C47: =Cdither*1000000000 -> 2.2 | D47: =C47 -> 2.2 | H47: 0603 | I47: Std | J47: Std
A48: =ROUNDUP('Design Regulator'!E43/10,0) -> 20 | B48: CIN | C48: 10 | D48: =C48 -> 10 | H48: 1210 | I48: Std | J48: Std
A49: =ROUNDUP('Design Regulator'!E34/47,0) -> 3 | B49: COUT | C49: 47 | D49: =C49 -> 47 | H49: 1210 | I49: Std | J49: Std
A50: 1 | B50: CSS | C50: ='Design Regulator'!#REF! ->  | D50: =C50 ->  | H50: 0603 | I50: Std | J50: Std
A51: 2 | B51: CVCC, CVCCX | C51: 2.2 | D51: 2.2 | H51: 0603 | I51: Std | J51: Std
A52: 1 | B52: CVDDA | C52: 0.47 | D52: 0.47 | H52: 0603 | I52: Std | J52: Std
A53: 1 | B53: DBOOT | C53: See description | D53: Schottky Diode, 60V, 200mA | H53: - | I53: - | J53: Various
A54: 1 | B54: LO | C54: ='Design Regulator'!E27 -> 3.3 | D54: ="Inductor, "&Lf*1000000&"µH, "&Rdcr*1000&"mΩ, >"&ROUNDUP(Ilimit_DC*1.1,0)&"A" -> Inductor, 3.3µH, 4mΩ, >33A | H54: - | I54: - | J54: Various
A55: 2 | B55: Q1, Q2 | C55: See description | D55: ='Design Regulator'!E80 -> 6.2 | H55: Std | I55: ='Design Regulator'!E78 -> '836, '818 | J55: -
A56: 1 | B56: RC1 | C56: ='Design Regulator'!D69 -> 1.96 | D56: =C56 -> 1.96 | H56: 0603 | I56: Std | J56: Std
A57: 1 | B57: RS | C57: =Rs*1000 -> 1.5 | D57: 1.5 | H57: 0508 | I57: Std | J57: Std
A58: 1 | B58: RT | C58: ='Design Regulator'!E12 -> 73.2 | D58: 73.2 | H58: 0603 | I58: Std | J58: Std
A59: 1 | B59: RFB1 | C59: ='Design Regulator'!E64 -> 100 | D59: 100 | H59: 0603 | I59: Std | J59: Std
A60: 1 | B60: RFB2 | C60: ='Design Regulator'!E65 -> 31.6 | D60: 31.6 | H60: 0603 | I60: Std | J60: Std
A61: 1 | B61: RPGOOD | C61: 100 | D61: 100 | H61: 0603 | I61: Std | J61: Std
A62: 1 | B62: RCS | C62: 100 | D62: 100 | H62: 0603 | I62: Std | J62: Std
A63: 1 | B63: RDEMB | C63: 100 | D63: 100 | H63: 0603 | I63: Std | J63: Std
A64: 1 | B64: RVIN | C64: 2.2 | D64: 2.2 | H64: 0603 | I64: Std | J64: Std
A65: 1 | B65: U1 | C65: LM5141-Q1 | D65: IC, LM5141-Q1, Synchronous Buck PWM Controller, 3.8V–65V Input | H65: VQFN-24 | I65: LM5141QRGEQ1 | J65: TI
A68: NOTES:
A69: ** For information on TI NexFETTM MOSFETs, see ** | D69: http://www.ti.com/nexfet | E69: **
A70: ** Inductor saturation current should be higher than the peak inductor current at the OCP setpoint for all input voltages and operating temperatures **
A71: ** Effective input and output capacitances should be appropriately derated for applied voltage and temperature, particularly with ceramics **

Sheet EVM
A1: LM25149-Q1 Quickstart Design Tool
B6: LM25149-Q1EVM-2100 PCB Layout

Sheet Variable Management (hidden)
A1: EXCEL Variables Names/Calculations
B2: Input from user =
B3: Output =
B4: Constant
A5: Variable Name | B5: Value | C5: STD Units | E5: Notes | I5: Iteration
A6: Step 1: Operational Specs
A7: VIN_min | B7: ='Design Regulator'!E6 -> 50 | C7: V | D7: Minimum input voltage | I7: 1
A8: VIN_nom | B8: ='Design Regulator'!E7 -> 60 | C8: V | D8: Nominal input voltage | K8: =CHOOSE(SCH_MODE, "Efficiency vs. IOUT (Ch1)", "Efficiency vs. IOUT - 2 Ph", "Efficiency vs. IOUT - 3 Ph", "Efficiency vs. IOUT - 4 Ph") -> Efficiency vs. IOUT (Ch1) | L8: 1 | N8: DITHER Enabled | O8: 1 | T8: Dual Outputs | U8: 1 | W8: FPWM | X8: 1 | Z8: =CHOOSE(SCH_MODE, "Bode Plot (Ch1)", "Bode Plot - 2 Ph", "Bode Plot - 3 Ph", "Bode Plot - 4 Ph") -> Bode Plot (Ch1) | AA8: 1
A9: VIN_max | B9: ='Design Regulator'!E8 -> 65 | C9: V | D9: Maximum input voltage | K9: =IF(MODE=1, "Efficiency vs. IOUT (Ch2)", "N/A - Do Not Use") -> Efficiency vs. IOUT (Ch2) | L9: 2 | N9: DITHER Disabled | O9: 2 | T9: Single Output – 2 Phases | U9: 2 | W9: PFM | X9: 2 | Z9: =IF(MODE=1, "AEF Gain", "N/A - Do Not Use") -> AEF Gain | AA9: 2
K10: PLOT_TYPE | L10: 1 | N10: DITHER Yes/No | O10: 1 | P10: 1 = Yes, 2 = No | T10: Single Output – 3 Phases | U10: 3 | W10: FPWM/PFM | X10: 1 | Z10: BODE_PLOT_TYPE | AA10: 1
A11: Vout | B11: ='Design Regulator'!E9 -> 3.301 | C11: V | D11: Output voltage - channel 1 | T11: Single Output – 4 Phases | U11: 4
A12: Iout | B12: ='Design Regulator'!E10 -> 25 | C12: A | D12: Output current - channel 1 | I12: 1 | T12: Single/Dual Yes/No | U12: 1
I13: 1 | K13: Adjustable | L13: 1 | N13: 3.3V | O13: 1 | T13: MODE (Single/Dual), DUAL = 1, SINGLE = 2 | U13: =IF(U12=1, 1, 2) -> 1 | W13: VCCX Connected | X13: 1
A14: Rout | B14: =Vout/Iout -> 0.13204 | C14: W | D14: Load resistance - Channel 1 | K14: 5V | L14: 2 | N14: 5V | O14: 2 | T14: SINGLE OUTPUT (1 = YES) | U14: =IF(U12=1, 2, 1) -> 2 | W14: No External VCC | X14: 2
K15: 3.3V | L15: 3 | N15: Adjustable | O15: 3 | T15: Number of Phases | U15: =SCH_MODE -> 1 | W15: Ext_VCC | X15: 2
A16: Pout | B16: =Vout*Iout -> 82.525 | C16: W | D16: Output power | K16: 12V | L16: 4 | N16: Ch2 Output Setting | O16: =IF(Vout2=3.3, 1, IF(Vout2=5, 2, 3)) -> 3
K17: Output Voltage Setting | L17: =IF(Vout=3.3, 3, IF(Vout=5, 2, IF(Vout=12,4,1))) -> 1
A18: Efficiency | B18: 0.9 | D18: Estimate of efficiency
A19: Pin | B19: =Pout/Efficiency -> 91.69444444 | C19: W | D19: Calculate input power assuming finite efficiency | W19: 2.2 MHz Fsw Setting | X19: 1 | Z19: Internal Compensation | AA19: 1
W20: 440 kHz Fsw Setting | X20: 2 | Z20: External Compensation | AA20: 2
A21: Iin_Vinmin | B21: =Pin/VIN_min -> 1.833888889 | C21: A | L21: =Vout -> 3.301 | W21: OSC | X21: =IF(Fsw>1000000,1,2) -> 2 | Z21: COMP_TYPE | AA21: 2
A22: Iin_Vinnom | B22: =Pin/VIN_nom -> 1.528240741 | C22: A | D22: Input currents at min, nom, max Vin | H22: =AND(OSC=1, OR(Fsw/1000>2530, Fsw/1000<1800)) -> FALSE
A23: Iin_Vinmax | B23: =Pin/VIN_max -> 1.410683761 | C23: A | H23: =AND(OSC=2, OR(Fsw/1000>500, Fsw/1000<300)) -> FALSE
H24: =OR(H22,H23) -> FALSE
A25: OSC setting | B25: =CHOOSE(OSC, 2200, 440) -> 440 | C25: kHz | K25: SetVout_IntComp_nAEF | L25: 1 | W25: No Input Filter | X25: 1 | Z25: UVLO Divider | AA25: 1
A26: Fsw | B26: ='Design Regulator'!E11*1000 -> 300000 | C26: Hz | D26: Nominal switching frequency - determines RT resistor (SYNCIN must be 80-120% of this) | K26: SetVout_IntComp_AEF | L26: 2 | W26: AEF Input Filter | X26: 2 | Z26: No UVLO Divider | AA26: 2
A27: RT resistor to AGND | B27: =((1000000000/Fsw)-53)/45+0.1 -> 72.9962963 | C27: kΩ | K27: SetVout_ExtComp_nAEF | L27: 3 | W27: Passive LC Filter | X27: 3 | Z27: UVLO_TYPE | AA27: 1
C28: kΩ | I28: 1 | K28: SetVout_ExtComp_AEF | L28: 4 | W28: INFILTER_TYPE | X28: 1
A29: Tsw | B29: =1/Fsw -> 3.333333333e-06 | C29: sec | D29: Switching period | K29: AdjVout_IntComp_nAEF | L29: 5
A30: Vref | B30: 0.8 | C30: V | D30: Reference voltage | K30: AdjVout_IntComp_AEF | L30: 6
A31: Rt | B31: ='Standard Value Calculator'!S12/1000 -> 73.2 | C31: kΩ | D31: Frequency set resistor | F31: =IF(OR((Fsw=440000),(Fsw=2200000)),"N/A",Rfadj/1000) -> 0.0732 | K31: AdjVout_ExtComp_nAEF | L31: 7
K32: AdjVout_ExtComp_AEF | L32: 8
A33: Step 2: Buck Inductor | B33: Channel 1 | K33: Schematic setting | L33: =(IF(OR(Vout=3.3,Vout=5,Vout=12),CHOOSE(COMP_TYPE,IF(INFILTER_TYPE=1,1,2),IF(INFILTER_TYPE=1,3,4)),CHOOSE(COMP_TYPE,IF(INFILTER_TYPE=1,5,6),IF(INFILTER_TYPE=1,7,8)))) -> 7
A34: Don1 | B34: =Vout/VIN_nom -> 0.05501666667 | F34: Ideal Duty Cycle at VIN(nom)
A35: Doff1 | B35: =1-34:34 -> 0.9449833333 | F35: Ideal 1- Duty Cycle at VIN(nom)
A37: D_Vinmin | B37: =Vout/VIN_min -> 0.06602
A38: D_Vinnom | B38: =Vout/VIN_nom -> 0.05501666667
A39: D_Vinmax | B39: =Vout/VIN_max -> 0.05078461538
A41: L_Vinnom | B41: =(VIN_nom-Vout)*D1_Vinnom/(Fsw*(Iout/Number_of_Phases)*0.3) -> 1.386395548e-06 | C41: H | F41: Calculated inductance for 35% ripple at VIN(nom)
A42: L_slopecomp | B42: =1000*Vout*Rs/24/Fsw -> 6.877083333e-07 | C42: H | F42: Calculated inductance based on one times inductor downslope
A44: Lopt | B44: =B42 -> 6.877083333e-07 | C44: H | F44: Slope comp
A46: Lo | B46: ='Design Regulator'!E27/1000000 -> 3.3e-06 | C46: H | F46: Chosen inductance
A47: Rdcr | B47: ='Design Regulator'!E28/1000 -> 0.004 | C47: W | F47: Chosen inductor DCR
A49: Don2 | B49: =(Vout+Iout*(Rdcr+Rs))/(Vin+Iout*Rs) -> 0.057272538
A50: Doff2 | B50: =1-_Don2 -> 0.942727462
A52: D_Vinmin_2 | B52: =CHOOSE(MODE, (Vout+Iout*(Rdcr+Rs))/(VIN_min+Iout*Rs), (Vout+Iout/Number_of_Phases*(Rdcr+Rs))/(VIN_min+Iout/Number_of_Phases*Rs)) -> 0.06871846115 | F52: Duty cycles adjusted for DCR/shunt voltage drops
A53: D_Vinnom_2 | B53: =CHOOSE(MODE, (Vout+Iout*(Rdcr+Rs))/(VIN_nom+Iout*Rs), (Vout+Iout/Number_of_Phases*(Rdcr+Rs))/(VIN_nom+Iout/Number_of_Phases*Rs)) -> 0.057272538 | F53: need to include RDS(on) later
A54: D_Vinmax_2 | B54: =CHOOSE(MODE, (Vout+Iout*(Rdcr+Rs))/(VIN_max+Iout*Rs), (Vout+Iout/Number_of_Phases*(Rdcr+Rs))/(VIN_max+Iout/Number_of_Phases*Rs)) -> 0.05286949837
A56: Iripple_Vinmin | B56: =(VIN_min-Vout)*D1_Vinmin_2/(Fsw*Lf) -> 3.241498401 | C56: A
A57: Iripple_Vinnom | B57: =(VIN_nom-Vout)*D1_Vinnom_2/(Fsw*Lf) -> 3.280096598 | C57: A
A58: Iripple_Vinmax | B58: =(VIN_max-Vout)*D1_Vinmax_2/(Fsw*Lf) -> 3.294944626 | C58: A
A60: Ishunt_rms_Vinmin | B60: =SQRT((Iout/Number_of_Phases)^2+(Iripple_Vinmin^2)/12) -> 25.01750606 | C60: A
A61: Ishunt_rms_Vinnom | B61: =SQRT((Iout/Number_of_Phases)^2+(Iripple_Vinnom^2)/12) -> 25.0179253 | C61: A
A62: Ishunt_rms_Vinmax | B62: =SQRT((Iout/Number_of_Phases)^2+(Iripple_Vinmax^2)/12) -> 25.01808789 | C62: A
A63: Max shunt power loss at full load | B63: =B61^2*Rs -> 0.9388448792 | C63: W | F63: Note this is power loss at full load - not loss near OCP!
A65: Max inductor ripple current | B65: =MAX(B56:B58) -> 3.294944626 | C65: A | F65: Ripple current at Vin(max)
B67: =B56/(Iout/Number_of_Phases) -> 0.1296599361
A68: % ripple current | B68: =B57/(Iout/Number_of_Phases) -> 0.1312038639
B69: =B58/(Iout/Number_of_Phases) -> 0.131797785
A71: Inductor copper temerature | B71: 100 | C71: °C
A72: DCR at hot | B72: =Rdcr*(1+0.0039*(B71-25)) -> 0.00517 | C72: W
A75: Step 3: Sense Resistors, Slope Comp, Current Limit
A77: Ilimit_DC | B77: ='Design Regulator'!E16 -> 30 | C77: A | F77: Chosen OCP level - based on output current
A79: Ilimit_inductor_Vinmin | B79: =CHOOSE(MODE, Ilimit_DC+Iripple_Vinmin/2, Ilimit_DC/Number_of_Phases+Iripple_Vinmin/2) -> 31.6207492 | C79: A | F79: Peak inductor current at current limit inception
A80: Ilimit_inductor_Vinnom | B80: =CHOOSE(MODE, Ilimit_DC+Iripple_Vinnom/2, Ilimit_DC/Number_of_Phases+Iripple_Vinnom/2) -> 31.6400483 | C80: A
A81: Ilimit_inductor_Vinmax | B81: =CHOOSE(MODE, Ilimit_DC+Iripple_Vinmax/2, Ilimit_DC/Number_of_Phases+Iripple_Vinmax/2) -> 31.64747231 | C81: A
A84: CS threshold_min | B84: 0.052 | C84: V
A85: CS threshold | B85: 0.06 | C85: V
A86: CS threshold_max | B86: 0.068 | C86: V
A88: Shunt required to get OCP at VIN(min) | B88: =Buck_CS_threshold/B79 -> 0.001897488248 | C88: W
A89: Shunt required to get OCP at VIN(nom) | B89: =Buck_CS_threshold/B80 -> 0.00189633086 | C89: W
A90: Shunt required to get OCP at VIN(max) | B90: =Buck_CS_threshold/B81 -> 0.00189588601 | C90: W
A92: Rs_ideal | B92: =B89 -> 0.00189633086 | C92: W | F92: Ideal Rs for the required OCP -- based on 73mV CL threshold
A93: Rs | B93: ='Design Regulator'!E18/1000 -> 0.0015 | C93: W | F93: Selected (starndard value) current limit sense resistor
A95: Current limit - peak | B95: =Buck_CS_threshold/Rs -> 40 | C95: A | F95: Peak inductor current limit = min sat current
A97: Iout_OCP_Vinmin | B97: =Number_of_Phases*(Buck_CS_threshold/Rs-Iripple_Vinmin/2) -> 38.3792508 | C97: A | F97: Current limit setpoints (i.e. IOUT) after standard components are selected
A98: Iout_OCP_Vinnom | B98: =Number_of_Phases*(Buck_CS_threshold/Rs-Iripple_Vinnom/2) -> 38.3599517 | C98: A
A99: Iout_OCP_Vinmax | B99: =Number_of_Phases*(Buck_CS_threshold/Rs-Iripple_Vinmax/2) -> 38.35252769 | C99: A
A101: Irms_OCP_Vinmin | B101: =SQRT((Iout_OCP_Vinmin/Number_of_Phases)^2+(Iripple_Vinmin^2)/12) -> 38.39065643 | C101: A
A102: Irms_OCP_Vinnom | B102: =SQRT((Iout_OCP_Vinnom/Number_of_Phases)^2+(Iripple_Vinnom^2)/12) -> 38.37163641 | C102: A
A103: Irms_OCP_Vinmax | B103: =SQRT((Iout_OCP_Vinmax/Number_of_Phases)^2+(Iripple_Vinmax^2)/12) -> 38.36432069 | C103: A
A105: Pshunt_Vinmin | B105: =B101^2*Rs -> 2.210763752 | C105: W | F105: Max power dissipations in shunt
A106: Pshunt_Vinnom | B106: =B102^2*Rs -> 2.208573721 | C106: W
A107: Pshunt_Vinmax | B107: =B103^2*Rs -> 2.207731652 | C107: W
A110: Step 4: Output Capacitor
A111: Icoutrms_VINmin | B111: =Iripple_Vinmin/SQRT(12) -> 0.9357399873 | C111: A | F111: Output Cap RMS current
A112: Icoutrms_VINnom | B112: =Iripple_Vinnom/SQRT(12) -> 0.9468823269 | C112: A
A113: Icoutrms_VINmax | B113: =Iripple_Vinmax/SQRT(12) -> 0.9511685834 | C113: A
A114: Max Cout rms current | B114: =MAX(B111:B113) -> 0.9511685834 | C114: A
A116: Vripple1 | B116: ='Design Regulator'!E32/1000 -> 0.2 | C116: V | F116: Output voltage ripple spec(pk-pk)
A118: Output Ripple Spec (pk-pk) | B118: =Vo1_ripple*1000 -> 200 | C118: mV | F118: Vout ripple spec at Vin(nom)
A120: Coutmin | B120: =Iripple_Vinnom/(Fsw*8*Vo1_ripple) -> 6.833534579e-06 | C120: F | F120: Minimum output capacitnace | H120: =Vo2_ripple -> 0 | I120: 1
A121: Reported Coutmin | B121: =IF(Cout_min*1000000<2, 2.2,Cout_min*1000000) -> 6.833534579 | C121: uF
A122: Cout | B122: ='Design Regulator'!E34/1000000 -> 0.0001 | C122: F | F122: Chosen output capacitance | I122: 1
A123: Resrmax | B123: =SQRT((Vo1_ripple/Iripple_Vinnom)^2-(1/(Fsw*Cout*8))^2) -> 0.06083128215 | C123: W | F123: Max ESR before ripple exceeds Vripple1 | I123: 1
A125: Reported Cout ESR max | B125: =IF(OR(CoutEsrMax>0.3, CoutEsrMax<0, (ISERROR(CoutEsrMax))), "N/A", CoutEsrMax*1000) -> 60.83128215 | C125: mΩ
A126: CoutEsr | B126: ='Design Regulator'!E36/1000 -> 0.001 | C126: W | F126: Chosen ESR | I126: 1 | K126: =ISERROR(CoutEsrMax) -> FALSE | L126: =ISERROR(B125) -> FALSE
A127: Vripple | B127: =Iripple_Vinnom*SQRT(Cout_ESR^2+(1/(8*Fsw*Cout))^2) -> 0.01405517033 | C127: Vp-p | L127: =OR(CoutEsrMax>0.3,CoutEsrMax<0) -> FALSE
K128: =OR(TRUE, FALSE, TRUE) -> TRUE
A129: Step 5: Input Capacitor
K130: Two channels operating at full load
A131: Icinrms_VINmin | B131: =SQRT(D1_Vinmin_2*(Iout^2*(1-D1_Vinmin_2)+Iripple_Vinmin^2/12)) -> 6.3291245 | C131: A | D131: =D1_Vinmax -> 0.05078461538 | F131: Calculate input cap rms current with one output unloaded | K131: =SQRT(Iout^2*D1_Vinmin*(1-D1_Vinmin)+Iout2^2*D2_Vinmin*(1-D2_Vinmin)-2*Iout*Iout2*D1_Vinmin*D2_Vinmin) ->  | L131: A | M131: =SQRT(Iout^2*D1_Vinmin*(1-D1_Vinmin)+Iout2^2*D2_Vinmin*(1-D2_Vinmin)-2*Iout*Iout2*(0.5-D2_Vinmin*(1-D1_Vinmin))) ->  | N131: A
A132: Icinrms_VINnom | B132: =SQRT(D1_Vinnom_2*(Iout^2*(1-D1_Vinnom_2)+Iripple_Vinnom^2/12)) -> 5.813484003 | C132: A | D132: =D1_Vinmin -> 0.06602 | K132: =SQRT(Iout^2*D1_Vinnom*(1-D1_Vinnom)+Iout2^2*D2_Vinnom*(1-D2_Vinnom)-2*Iout*Iout2*D1_Vinnom*D2_Vinnom) ->  | L132: A
A133: Icinrms_VINmax | B133: =SQRT(D1_Vinmax_2*(Iout^2*(1-D1_Vinmax_2)+Iripple_Vinmax^2/12)) -> 5.598596141 | C133: A | K133: =SQRT(Iout^2*D1_Vinmax*(1-D1_Vinmax)+Iout2^2*D2_Vinmax*(1-D2_Vinmax)-2*Iout*Iout2*D1_Vinmax*D2_Vinmax) ->  | L133: A
A134: Icinrms - multiphase | B134: =Iout*SQRT((D1_Vinmin-F136/Number_of_Phases)*((F136+1)/Number_of_Phases-D1_Vinmin)) -> 6.207926365 | C134: A | K134: =MAX(K131:K133) ->  | L134: A
A135: Max Cin rms current | B135: =MAX(B131:B133) -> 6.3291245 | C135: A | F135: =Number_of_Phases*D1_Vinnom -> 0.05501666667 | G135: N*D
F136: =FLOOR(Number_of_Phases*D1_Vinnom,1) -> 0 | G136: floor(N*D)
A137: Icinrms - multiphase - max | B137: =Iout/2/Number_of_Phases -> 12.5 | C137: A
A138: Final result | B138: =IF(D1_Vinmin<0.5, B135, B137) -> 6.3291245 | C138: A | D138: …report this
A140: Vinripple1 | B140: ='Design Regulator'!E41/1000 -> 0.5 | C140: Vp-p | F140: Input voltage ripple spec (pk-pk)
A142: Cinmin_Vinmin | B142: =Iout/Number_of_Phases*D1_Vinmin*(1-D1_Vinmin)/(Vinripple1*Fsw) -> 1.027689327e-05 | C142: F
A143: Cinmin_Vinnom | B143: =Iout/Number_of_Phases*D1_Vinnom*(1-D1_Vinnom)/(Vinripple1*Fsw) -> 8.664972176e-06 | C143: F
A144: Cinmin_Vinmax | B144: =Iout/Number_of_Phases*D1_Vinmax*(1-D1_Vinmax)/(Vinripple1*Fsw) -> 8.034256371e-06 | C144: F | F144: Calculate cap at Vinmax and 50% duty cycle (Vin = 2*Vout)
A146: Cinmin_50%D | B146: =Iout*0.5*(1-0.5)/(Vinripple1*Fsw) -> 4.166666667e-05 | C146: F | F146: Buck 50% typically worst case
A147: Cinmin | B147: =IF(D1_Vinmin<0.5, B142,B146) -> 1.027689327e-05 | C147: F | D147: =(VIN_min+VIN_max)/2 -> 57.5
A148: Reported Cinmin | B148: =IF(Cinmin*1000000<2.2, 2.2,Cinmin*1000000) -> 10.27689327 | C148: uF | D148: =2*Vout -> 6.602 | F148: …report this
A150: Cin | B150: ='Design Regulator'!E43/1000000 -> 0.0002 | C150: F | F150: Input capacitance
A151: CinEsrMax_Vinmax | B151: =-(Iout/Number_of_Phases*D1_Vinmax*(1-D1_Vinmax)/(Cin*Fsw)-Vinripple1)/(Iout/Number_of_Phases+Iripple_Vinmax/2) -> 0.01800975167 | C151: W
A152: CinEsrMax_50%D | B152: =-(Iout/Number_of_Phases*0.5*(1-0.5)/(Cin*Fsw)-Vinripple1)/(Iout/Number_of_Phases+Iripple_Vinmax/2) -> 0.01485444205 | C152: W | F152: Calculate ESR at Vinmax and 50% duty cycle (Vin = 2*Vout)
A153: CinEsrMax | B153: =IF(VIN_max<2*Vout, B151,B152) -> 0.01485444205 | C153: W
A154: Reported Cin ESR max | B154: =IF(OR(CinEsrMax>0.3, CinEsrMax<0), "N/A",CinEsrMax*1000) -> 14.85444205 | C154: mΩ | F154: …report this
A155: RCinEsr | B155: ='Design Regulator'!E45/1000 -> 0.001 | C155: W | F155: Input capacitance series resistance (ESR)
A157: Vinripple2_Vinmin | B157: =Iout/Number_of_Phases*D1_Vinmin_2*(1-D1_Vinmin_2)/(Cin*Fsw)+(Iout/Number_of_Phases +Iripple_Vinmin/2)*RCinEsr -> 0.05328584681 | C157: Vp-p
A158: Vinripple2_Vinnom | B158: =Iout/Number_of_Phases*D1_Vinnom_2*(1-D1_Vinnom_2)/(Cin*Fsw)+(Iout/Number_of_Phases +Iripple_Vinnom/2)*RCinEsr -> 0.04913687929 | C158: Vp-p
A159: Vinripple2_Vinmax | B159: =Iout/Number_of_Phases*D1_Vinmax_2*(1-D1_Vinmax_2)/(Cin*Fsw)+(Iout/Number_of_Phases +Iripple_Vinmax/2)*RCinEsr -> 0.04751177002 | C159: Vp-p
A160: Vinripple2_50%D | B160: =Iout/Number_of_Phases*0.5*(1-0.5)/(Cin*Fsw)+(Iout/Number_of_Phases +Iripple_Vinmax/2)*RCinEsr -> 0.130814139 | C160: Vp-p | F160: Calculate ripple at Vinmax and 50% duty cycle (Vin = 2*Vout)
A161: Vinripple2 | B161: =IF(D1_Vinmin<0.5, B157,B160) -> 0.05328584681 | C161: Vp-p | F161: …report highest of these
B163: =Iout*D1_Vinmax_2*(1-D1_Vinmax_2)/(Cin*Fsw) -> 0.02086429771 | C163: Vp-p
A165: Step 6a: Soft Start
A166: Tss | B166: ='Design Regulator'!E50/1000 -> 0 | C166: s | D166: Soft-start time
A167: Iss | B167: =Cout*Vout/Tss ->  | C167: A | D167: Load cap current during soft start
A168: Css | B168: =0.000022*Tss/1.2 -> 0 | C168: F
A169: Css_u | B169: ='Standard Value Calculator'!B4 -> 0 | C169: F
A171: Step 6b: Other Components - Dither, Hiccup, DEMB, MODE
A172: Tres | B172: ='Design Regulator'!E53/1000 -> 0.03 | C172: s | D172: Hiccup time
A173: Cres | B173: =0.00002*Tres/1.2 -> 5e-07 | C173: F
A174: Cres_u | B174: ='Standard Value Calculator'!G4 -> 4.7e-07 | C174: F
A176: RPG1/2 | B176: 100 | C176: kΩ
A177: RFB1/2 | C177: W | E177: Tie to VDDA or AGND for 3.3V/5V output, respectively.
A178: R_MODE | C178: W | E178: Tie to VDDA or AGND for Single/Dual operation, respectively.
A179: R_DEMB | C179: W | E179: Tie to VDDA or AGND for FPWM/DEM, respectively.
A181: Enable Hysteresis Current | B181: 1e-05 | C181: A | E181: 10 µA Hysteresis Current
A182: Turn ON Voltage | B182: ='Design Regulator'!E52 -> 35
A183: Hysteresis Voltage | B183: ='Design Regulator'!E52-'Design Regulator'!E53 -> 5
A185: Upper FB resistor | B185: =B183/B181 -> 500000 | C185: W
A186: Lower FB resister | B186: =B185/(B182-1) -> 14705.88235 | C186: W
A187: Standard upper FB resistor | B187: ='Standard Value Calculator'!S40 -> 499 | C187: kΩ
A188: Standard lower FB resistor | B188: ='Standard Value Calculator'!S41 -> 14.7 | C188: kΩ
A190: Dither Modulation Frequency | B190: ='Design Regulator'!E56*1000 -> 41200 | C190: Hz
A191: Cdither_calculated | B191: =10*10^-6/Fdither/0.12 -> 2.022653722e-09 | C191: F
A192: Cdither_stdvalue | B192: ='Standard Value Calculator'!S21 -> 2.2e-09 | C192: F
A195: Step 7: Compensation
A196: Pi | B196: 3.14159265 | D196: p
A197: CS Amp Gain | B197: 10
A198: Ri | B198: =Rs*CSAmp_gain -> 0.015 | C198: W | F198: Current Sense effective resistance = shunt resistor Rs * CS amp gain
A199: gm | B199: =IF(COMP_TYPE=1,0.00003,0.0012) -> 0.0012 | C199: S | F199: Error Amp Transconductance
A201: Se_ext | B201: =B205/Ri*1000 -> 4545454.545 | C201: A/s | F201: Slope Comp Slope - referred to inductor current
A202: Sn | B202: =(Vin-Vout)/Lf -> 17181515.15 | C202: A/s | F202: On-time Slope
A203: Sf | B203: =Vout/Lf -> 1000303.03 | C203: A/s | F203: Off-time Slope
A205: Se_int | B205: =Fsw*0.001*(5/22) -> 68.18181818 | C205: mV/μs | F205: Slope Comp Slope - referred to IC
A206: Sn_int | B206: =Sn*Ri/1000 -> 257.7227273 | C206: mV/μs | F206: etc
A207: Sf_int | B207: =Sf*Ri/1000 -> 15.00454545 | C207: mV/μs | F207: etc
A209: mc_buck | B209: =1+Se_ext/Sn -> 1.26455493 | F209: mc = 1 + Se/Sn for peak current-mode buck
A210: k_buck | B210: =mc_buck*(1-D1_Vinnom_2) -> 1.19213066 | F210: mc*(1-d)
A212: mc | B212: =1+Se_ext/Sn -> 1.26455493
A213: k | B213: =mc_buck*(1-D1_Vinnom_2) -> 1.19213066
A214: Q | B214: =1/Pi/(k-0.5) -> 0.4598985493 | F214: 1/(Pi*(k-0.5)) | H214: Q = 2/Pi = 0.636 gives ideal one-cycle damping
A216: Error Amp (EA)
A217: GBW | B217: 6 | C217: MHz | F217: EA gain-bandwidth product
A218: Cbw | B218: =gm/(2*Pi*GBW*1000000) -> 3.183098865e-11 | C218: F | F218: EA effective bandwidth limiting capacitance = gm/(2*Pi*GBW)
A219: RoEA | B219: 64000000 | C219: W | F219: EA output resistance
A220: AEA | B220: =gm*RoEA -> 76800 | C220: V/V | F220: EA DC gain = gm*RoEA
A221: Afb | B221: =IF(VOUT_setting=1,Vref/Vout,SQRT((1+(Fcross*zterm1)^2)/((1+Afbr-pterm4*(Fcross)^2)^2+(Fcross*pterm3)^2))) -> 0.2423508028 | C221: V/V | F221: Feedback gain from Vout to FB
A222: Acs | B222: =1/Ri -> 66.66666667 | F222: Acs = 1/Ri
A223: Am_buck | B223: =(Ro/Number_of_Phases)/Ri/((1+Ro/Number_of_Phases*(k-0.5)/(Fsw*Lf))) -> 8.058747172
A224: Am | B224: =(Ro*Number_of_Phases)/Ri/((1+Ro*Number_of_Phases*(k-0.5)/(Fsw*Lf))) -> 8.058747172 | F224: Buck modulator gain
A226: Scaling factor to calculate Rcomp - buck | B226: =2*Pi*Ri/gm -> 78.53981625 | F226: 2*Pi*Ri/gm -- scaling factor to calculate Rcomp given desired buck crossover frequency
A227: DC Gain is Adc = AEA*Afb*Am
A229: Ro | B229: =Rout -> 0.13204 | C229: W | F229: Output Resistance
A231: Fp_load_buck | B231: =1/(2*Pi*Ro*Cout)+(k-0.5)/(2*Pi*Fsw*Lf*Cout/Number_of_Phases) -> 13166.22711 | C231: Hz | F231: Buck dominant pole frequency -- note slope comp influence
A232: Fp_dominant | B232: =Fload_u -> 13166.22711 | C232: Hz
B233: =Cbw -> 3.183098865e-11
A234: Fp_EA | B234: =1/(2*Pi*(RoEA+Rcea1_u)*Cc1ea_u) -> 0.1657813222 | C234: Hz | F234: Error Amp LF pole -- related to amplifier ouptut resistance and comp cap
A235: Fp_HF | B235: =1/(2*Pi*Rcea1_u*(Cc2ea_u+Cbw)) -> 161810.4571 | C235: Hz | F235: Error Amp HF pole cancels zero related to Output Cap ESR
A236: Fesr | B236: =1/(2*Pi*Cout*Cout_ESR) -> 1591549.433 | C236: Hz | F236: Cout ESR zero frequency
A237: F_mod | B237: =Fsw/2 -> 150000 | C237: Hz | F237: Zero-order sample-and-hold effects of current-mode control modeled as pole at Fsw/2
D238: Internal Comp Crossover
A239: Desired Crossover Frequency | B239: =CHOOSE(COMP_TYPE,Fcross_Ch2,'Design Regulator'!E62*1000) -> 60000 | C239: Hz | D239: =Fsw/50 -> 6000
A240: Rcea1 | B240: =Fcross*Cout/Number_of_Phases*2*Pi*Ri/(gm*Afb) -> 1944.449501 | C240: W | F240: This component will largely determine the crossover frequency | K240: =Fcross/Fp_dominant/(gm*Afb*Am) -> 1944.449501
A241: Cc1ea, Cc3ea | B241: =10/(Rcea1*Fcross*2*Pi) -> 1.364181681e-08 | C241: F | F241: This along with Rcea1 will set a zero at Fcrossover/5 to optimize phase margin
A242: Cc2ea, Cc4ea | B242: =MAX(1/(Rcea1*2*Pi*Fesr)-Cbw, 1/(Rcea1*2*Pi*(Fsw/2))-Cbw) -> 5.138416836e-10 | C242: F | F242: This along with Rcea1 places a pole at the output cap ESR zero
A244: =CHOOSE(COMP_TYPE,"Internal Compensation","External Compensation") -> External Compensation
A245: Chosen Compensation Components from the standard value sheet | D245: Internal Values
A246: Rcea1_u | B246: =CHOOSE(COMP_TYPE,D246,'Design Regulator'!D69*1000) -> 1960 | C246: W | D246: 400000 | G246: =1/(Rcea1*2*Pi*(Fsw/2))-Cbw -> 5.138416836e-10
A247: Cc1ea_u | B247: =CHOOSE(COMP_TYPE,Cc3ea_u,'Design Regulator'!D70*0.000000001) -> 1.5e-08 | C247: F | D247: =50*0.000000000001 -> 5e-11
A248: Cc2ea_u | B248: =CHOOSE(COMP_TYPE,Cc4ea_u,'Design Regulator'!D71*0.000000000001) -> 4.7e-10 | C248: F | D248: =0.000000000001 -> 1e-12
A250: Resulting Pole/Zero Locations | F250: =Cout -> 0.0001 | G250: =Cout_ESR -> 0.001
A251: Fz1 | B251: =1/(2*Pi*Rcea1_u*Cc1ea_u) -> 5413.433445 | C251: Hz | F251: This zero is set at or close to the dominant load pole
A252: Fp2 | B252: =1/(2*Pi*Rcea1_u*(Cc1ea_u*(Cc2ea_u+Cbw)/(Cc1ea_u+Cc2ea_u+Cbw))) -> 167223.8906 | C252: Hz | F252: This pole cancels the zero from the Output Cap ESR
D253: Internal Values
... 154 more rows

Sheet Schematic Management (hidden)
N1: 3.3V or 5V fixed (FB1/2)
A2: =IF(MODE=1, CHOOSE(SCH_SETTING, "SCH_SetVout_IntComp_nAEF","SCH_SetVout_IntComp_AEF","SCH_SetVout_ExtComp_nAEF","SCH_SetVout_ExtComp_AEF","SCH_AdjVout_IntComp_nAEF","SCH_AdjVout_IntComp_AEF","SCH_AdjVout_ExtComp_nAEF","SCH_AdjVout_ExtComp_AEF")) -> SCH_AdjVout_ExtComp_nAEF | N2: With/without VOUT connected to VCCX

Sheet Stability Calculations (hidden)
A2: Divider Network & EA Poles/Zeros | E2: Modulator | J2: Power Stage Poles/Zeros | M2: Complex Pole Pair | P2: Feedback natural frequencies | T2: Total System
B3: Afb1 | C3: =Afb -> 0.2423508028 | D3: V/V | E3: Acs | F3: =Acs -> 66.66666667 | G3: A/V | H3: gm | I3: =gm -> 0.0012 | J3: z_ESR | K3: =Fesr -> 1591549.433 | L3: Hz | M3: p3 | N3: =Fsw/2 -> 150000 | O3: Hz | P3: zterm1 | Q3: =((1/wffHz)+(1/wfftHz)) -> 2.767114806e-07 | T3: Adc | U3: =IF(VOUT_setting=1,Am*Afb*AEA,Am*AEA) -> 149993.7674 | V3: V/V
B4: EA zero, z1 | C4: =Fz1_u -> 5413.433445 | D4: Hz | E4: Am | F4: =Am -> 8.058747172 | G4: V/V | J4: p_dom | K4: =Fp_dominant -> 13166.22711 | L4: Hz | M4: pterm1 | N4: =Q*pole3 -> 68984.7824 | P4: pterm3 | Q4: =((1/wfbtHz)+(1/wffHz)+(1/wfftHz)+(Afbr/wffHz)) -> 1.80495712e-06 | T4: Crossover | U4: =AI7 -> 48.978 | V4: kHz
B5: EA pole, p1 | C5: =Fp1_u -> 0.1657813222 | D5: Hz | E5: Q | F5: =Q -> 0.4598985493 | M5: pterm2 | N5: =pole3^2 -> 22500000000 | P5: pterm4 | Q5: =1/(wffHz*wfbtHz) -> 6.37497486e-14 | T5: Phase Margin | U5: =AI9 -> 45.18720495 | V5: °
B6: Aea | C6: =AEA -> 76800 | D6: V/V | E6: mc | F6: =mc -> 1.26455493 | P6: Afbr | Q6: =Rfb1_/Rfb2_u -> 3.164556962 | T6: radconv | U6: =180/Pi -> 57.29577958 | AH6: XOVER SEARCH
B7: EA pole, p2 | C7: =Fp2_u -> 161810.4571 | D7: Hz | E7: k | F7: =k -> 1.19213066 | AH7: xover | AI7: =SUM(AH12:AH613)/1000 -> 48.978
AH9: phase margin | AI9: =SUM(AI13:AI613) -> 45.18720495
A10: Freq (Hz) | C10: Power Stage | I10: Error Amplifier | O10: Feedback Gain | S10: Sampling Double Pole | U10: System Response | AB10: ERROR AMP Response | AE10: PLANT Response
C11: p_dom | E11: z_ESR | G11: z_RHP | I11: p1 | K11: z1 | M11: p2 | O11: z1 | Q11: p1p2 | S11: p3
C12: Gain(V/V) | D12: Phase(rad) | E12: Gain(V/V) | F12: Phase(rad) | G12: Gain(V/V) | H12: Phase(rad) | I12: Gain(V/V) | J12: Phase(rad) | K12: Gain(V/V) | L12: Phase(rad) | M12: Gain(V/V) | N12: Phase(rad) | O12: Gain(V/V) | P12: Phase(rad) | Q12: Gain(V/V) | R12: Phase(rad) | S12: Gain(V/V) | T12: Phase(rad) | U12: Gain (dB) | V12: Phase (°) | W12: Phase Margin (°) | Z12: Fsquare | AB12: Gain(dB) | AC12: Phase(Deg) | AE12: Gain(dB) | AF12: Phase(Deg)
A13: 1 | B13: =A13/1000 -> 0.001 | C13: =SQRT(1+(A13/pole1)^2) -> 1.000000003 | D13: =ATAN(A13/pole1) -> 7.59519025e-05 | E13: =SQRT(1+(A13/Zero1)^2) -> 1 | F13: =ATAN(A13/Zero1) -> 6.2831853e-07 | G13: =IF(VIN_nom>Vout, 1, SQRT(1+(A13/z_RHP)^2)) -> 1 | H13: =IF(VIN_nom>Vout, 0, -ATAN(A13/z_RHP)) -> 0 | I13: =SQRT(1+(A13/Pole2)^2) -> 6.114371439 | J13: =ATAN(A13/Pole2) -> 1.406509189 | K13: =SQRT(1+(A13/Zero2)^2) -> 1.000000017 | L13: =ATAN(A13/Zero2) -> 0.0001847256457 | M13: =SQRT(1+(A13/pole4)^2) -> 1 | N13: =ATAN(A13/pole4) -> 6.180070298e-06 | O13: =IF(VOUT_setting=1,1,SQRT(1+(A13*zterm1)^2)) -> 1 | P13: =IF(VOUT_setting=1,0,ATAN(((A13*zterm1)))) -> 0 | Q13: =IF(VOUT_setting=1,1,SQRT((1+Afbr-pterm4*(A13)^2)^2+(A13*$Q$4)^2)) -> 1 | R13: =IF(VOUT_setting=1,0,ATAN(A13*$Q$4/(1+Afbr-$Q$5*(A13)^2))) -> 0 | S13: =SQRT((1-(Z13/pterm2))^2+(A13/pterm1)^2) -> 1 | T13: =IF((ATAN((A13/pterm1)/(1-A13^2/pterm2))>0),ATAN((A13/pterm1)/(1-A13^2/pterm2)),PI()+ATAN((A13/pterm1)/(1-A13^2/pterm2))) -> 1.449595063e-05 | U13: =20*LOG10(((E13*K13*G13*O13)/(C13*I13*S13*M13*Q13))*Adc) -> 87.79442803 | V13: =((F13+L13+H13+P13)-(D13+J13+T13+N13+R13))*radconv -> -80.58195685 | W13: =IF(V13>0,V13,V13+180) -> 99.41804315 | Y13: =IF(U13<0,A13,1000000000) -> 1000000000 | Z13: =A13^2 -> 1 | AB13: =20*LOG10((K13/(I13*M13))*AEA) -> 81.98018819 | AC13: =(L13-(J13+N13))*radconv -> -80.57681057 | AE13: =20*LOG10((E13*G13/(C13*S13))*Acs*Am) -> 54.60352541 | AF13: =(F13+H13-(D13+T13))*radconv -> -0.005146280256 | AH13: =SUM((U14<0)*(U13>0))*A13 -> 0 | AI13: =IF(AH13>0,W11,0) -> 0
A14: 1.0965 | B14: =A14/1000 -> 0.0010965 | C14: 1.000000003 | D14: 8.328126106e-05 | E14: 1 | F14: 6.889512681e-07 | G14: 1 | H14: 0 | I14: 6.689303265 | J14: 1.420741443 | K14: 1.000000021 | L14: 0.0002025516701 | M14: 1 | N14: 6.776447082e-06 | O14: 1 | P14: 0 | Q14: =IF(VOUT_setting=1,1,SQRT((1+Afbr-pterm4*(A14)^2)^2+(A14*$Q$4)^2)) -> 1 | R14: 0 | S14: 1 | T14: 1.589480987e-05 | U14: 87.01384671 | V14: -81.39691434 | W14: 98.60308566 | Y14: 1000000000 | Z14: 1.20231225 | AB14: 81.19960687 | AC14: -81.39127144 | AE14: 54.6035254 | AF14: -0.005642896299 | AH14: 0 | AI14: 0
A15: 1.2023 | B15: 0.0012023 | C15: 1.000000004 | D15: 9.13169723e-05 | E15: 1 | F15: 7.554273686e-07 | G15: 1 | H15: 0 | I15: 7.320943621 | J15: 1.433773543 | K15: 1.000000025 | L15: 0.0002220956427 | M15: 1 | N15: 7.43029852e-06 | O15: 1 | P15: 0 | Q15: =IF(VOUT_setting=1,1,SQRT((1+Afbr-$Q$5*(A15)^2)^2+(A15*$Q$4)^2)) -> 1 | R15: 0 | S15: 1 | T15: 1.742848144e-05 | U15: 86.2301232 | V15: -82.14306084 | W15: 97.85693916 | Y15: 1000000000 | Z15: 1.44552529 | AB15: 80.41588337 | AC15: -82.13687347 | AE15: 54.6035254 | AF15: -0.006187372748 | AH15: 0 | AI15: 0
A16: 1.3183 | B16: 0.0013183 | C16: 1.000000005 | D16: 0.0001001273929 | E16: 1 | F16: 8.283123181e-07 | G16: 1 | H16: 0 | I16: 8.014672073 | J16: 1.445699133 | K16: 1.00000003 | L16: 0.0002435238167 | M16: 1 | N16: 8.147186674e-06 | O16: 1 | P16: 0 | Q16: 1 | R16: 0 | S16: 1 | T16: 1.911001172e-05 | U16: 85.44374933 | V16: -82.8257571 | W16: 97.1742429 | Y16: 1000000000 | Z16: 1.73791489 | AB16: 79.62950951 | AC16: -82.81897276 | AE16: 54.60352539 | AF16: -0.006784341254 | AH16: 0 | AI16: 0
A17: 1.4454 | B17: 0.0014454 | C17: 1.000000006 | D17: 0.0001097808796 | E17: 1 | F17: 9.081716033e-07 | G17: 1 | H17: 0 | I17: 8.775874924 | J17: 1.456599531 | K17: 1.000000036 | L17: 0.000267002445 | M17: 1 | N17: 8.932673609e-06 | O17: 1 | P17: 0 | Q17: 1 | R17: 0 | S17: 1 | T17: 2.095244704e-05 | U17: 84.65565603 | V17: -83.44965779 | W17: 96.55034221 | Y17: 1000000000 | Z17: 2.08918116 | AB17: 78.84141621 | AC17: -83.44221936 | AE17: 54.60352538 | AF17: -0.007438433469 | AH17: 0 | AI17: 0
A18: 1.5849 | B18: 0.0015849 | C18: 1.000000007 | D18: 0.0001203761699 | E18: 1 | F18: 9.958220382e-07 | G18: 1 | H18: 0 | I18: 9.612342305 | J18: 1.466574835 | K18: 1.000000043 | L18: 0.0002927716709 | M18: 1 | N18: 9.794793416e-06 | O18: 1 | P18: 0 | Q18: 1 | R18: 0 | S18: 1 | T18: 2.297463215e-05 | U18: 83.86488002 | V18: -84.02049147 | W18: 95.97950853 | Y18: 1000000000 | Z18: 2.51190801 | AB18: 78.05064021 | AC18: -84.01233513 | AE18: 54.60352537 | AF18: -0.008156339558 | AH18: 0 | AI18: 0
A19: 1.7378 | B19: 0.0017378 | C19: 1.000000009 | D19: 0.0001319892157 | E19: 1 | F19: 1.091891941e-06 | G19: 1 | H19: 0 | I19: 10.53007424 | J19: 1.475686909 | K19: 1.000000052 | L19: 0.0003210162198 | M19: 1 | N19: 1.073972616e-05 | O19: 1 | P19: 0 | Q19: 1 | R19: 0 | S19: 1 | T19: 2.5191063e-05 | U19: 83.07283598 | V19: -84.54179756 | W19: 95.45820244 | Y19: 1000000000 | Z19: 3.01994884 | AB19: 77.25859618 | AC19: -84.53285436 | AE19: 54.60352536 | AF19: -0.0089432058 | AH19: 0 | AI19: 0
A20: 1.9055 | B20: 0.0019055 | C20: 1.00000001 | D20: 0.0001447263495 | E20: 1 | F20: 1.197260959e-06 | G20: 1 | H20: 0 | I20: 11.53747593 | J20: 1.484013366 | K20: 1.000000062 | L20: 0.0003519947074 | M20: 1 | N20: 1.177612395e-05 | O20: 1 | P20: 0 | Q20: 1 | R20: 0 | S20: 1 | T20: 2.762203393e-05 | U20: 82.27924855 | V20: -85.01801588 | W20: 94.98198412 | Y20: 1000000000 | Z20: 3.63093025 | AB20: 76.46500878 | AC20: -85.00820964 | AE20: 54.60352534 | AF20: -0.009806236986 | AH20: 0 | AI20: 0
A21: 2.0893 | B21: 0.0020893 | C21: 1.000000013 | D21: 0.0001586863089 | E21: 1 | F21: 1.312745905e-06 | G21: 1 | H21: 0 | I21: 12.64235827 | J21: 1.491614444 | K21: 1.000000074 | L21: 0.0003859472768 | M21: 1 | N21: 1.291202087e-05 | O21: 1 | P21: 0 | Q21: 1 | R21: 0 | S21: 1 | T21: 3.028638965e-05 | U21: 81.48490293 | V21: -85.4525912 | W21: 94.5474088 | Y21: 1000000000 | Z21: 4.36517449 | AB21: 75.67066317 | AC21: -85.44183907 | AE21: 54.60352532 | AF21: -0.01075212328 | AH21: 0 | AI21: 0
A22: 2.2909 | B22: 0.0022909 | C22: 1.000000015 | D22: 0.000173998212 | E22: 1 | F22: 1.43941492e-06 | G22: 1 | H22: 0 | I22: 13.85494175 | J22: 1.4985571 | K22: 1.00000009 | L22: 0.0004231879613 | M22: 1 | N22: 1.415792305e-05 | O22: 1 | P22: 0 | Q22: 1 | R22: 0 | S22: 1 | T22: 3.32087733e-05 | U22: 80.68937083 | V22: -85.8493512 | W22: 94.1506488 | Y22: 1000000000 | Z22: 5.24822281 | AB22: 74.87513109 | AC22: -85.83756159 | AE22: 54.6035253 | AF22: -0.01178961336 | AH22: 0 | AI22: 0
A23: 2.5119 | B23: 0.0025119 | C23: 1.000000018 | D23: 0.0001907835819 | E23: 1 | F23: 1.578273316e-06 | G23: 1 | H23: 0 | I23: 15.18485117 | J23: 1.504893525 | K23: 1.000000108 | L23: 0.0004640123215 | M23: 1 | N23: 1.552371858e-05 | O23: 1 | P23: 0 | Q23: 1 | R23: 0 | S23: 1 | T23: 3.641237838e-05 | U23: 79.89325425 | V23: -86.21127816 | W23: 93.78872184 | Y23: 1000000000 | Z23: 6.30964161 | AB23: 74.07901454 | AC23: -86.19835122 | AE23: 54.60352527 | AF23: -0.01292694126 | AH23: 0 | AI23: 0
A24: 2.7542 | B24: 0.0027542 | C24: 1.000000022 | D24: 0.0002091867272 | E24: 1 | F24: 1.730514895e-06 | G24: 1 | H24: 0 | I24: 16.64352065 | J24: 1.510676676 | K24: 1.000000129 | L24: 0.0005087713353 | M24: 1 | N24: 1.702114961e-05 | O24: 1 | P24: 0 | Q24: 1 | R24: 0 | S24: 1 | T24: 3.992474722e-05 | U24: 79.09656122 | V24: -86.54139652 | W24: 93.45860348 | Y24: 1000000000 | Z24: 7.58561764 | AB24: 73.28232154 | AC24: -86.52722263 | AE24: 54.60352524 | AF24: -0.01417388493 | AH24: 0 | AI24: 0
A25: 3.02 | B25: 0.00302 | C25: 1.000000026 | D25: 0.000229374742 | E25: 1 | F25: 1.897521961e-06 | G25: 1 | H25: 0 | I25: 18.24419529 | J25: 1.51595689 | K25: 1.000000156 | L25: 0.0005578713985 | M25: 1 | N25: 1.86638123e-05 | O25: 1 | P25: 0 | Q25: 1 | R25: 0 | S25: 1.000000001 | T25: 4.37777709e-05 | U25: 78.29897114 | V25: -86.84257924 | W25: 93.15742076 | Y25: 1000000000 | Z25: 9.1204 | AB25: 72.48473151 | AC25: -86.82703747 | AE25: 54.6035252 | AF25: -0.01554176617 | AH25: 0 | AI25: 0
A26: 3.3113 | B26: 0.0033113 | C26: 1.000000032 | D26: 0.0002514995299 | E26: 1 | F26: 2.080551148e-06 | G26: 1 | H26: 0 | I26: 19.9989197 | J26: 1.520772766 | K26: 1.000000187 | L26: 0.0006116819613 | M26: 1 | N26: 2.046406678e-05 | O26: 1 | P26: 0 | Q26: 1 | R26: 0 | S26: 1.000000001 | T26: 4.800044131e-05 | U26: 77.50133488 | V26: -87.11702776 | W26: 92.88297224 | Y26: 1000000000 | Z26: 10.96470769 | AB26: 71.68709529 | AC26: -87.09998688 | AE26: 54.60352515 | AF26: -0.01704087754 | AH26: 0 | AI26: 0
A27: 3.6308 | B27: 0.0036308 | C27: 1.000000038 | D27: 0.0002757661611 | E27: 1 | F27: 2.281298919e-06 | G27: 1 | H27: 0 | I27: 21.9239583 | J27: 1.525168295 | K27: 1.000000225 | L27: 0.0006707017815 | M27: 1 | N27: 2.243859924e-05 | O27: 1 | P27: 0 | Q27: 1 | R27: 0 | S27: 1.000000001 | T27: 5.263189753e-05 | U27: 76.70308654 | V27: -87.36724881 | W27: 92.63275119 | Y27: 1000000000 | Z27: 13.18270864 | AB27: 70.88884701 | AC27: -87.34856369 | AE27: 54.6035251 | AF27: -0.01868511398 | AH27: 0 | AI27: 0
A28: 3.9811 | B28: 0.0039811 | C28: 1.000000046 | D28: 0.0003023721104 | E28: 1 | F28: 2.5013989e-06 | G28: 1 | H28: 0 | I28: 24.03497688 | J28: 1.529178282 | K28: 1.00000027 | L28: 0.000735411144 | M28: 1 | N28: 2.460347786e-05 | O28: 1 | P28: 0 | Q28: 1 | R28: 0 | S28: 1.000000001 | T28: 5.770982903e-05 | U28: 75.90459204 | V28: -87.59522338 | W28: 92.40477662 | Y28: 1000000000 | Z28: 15.84915721 | AB28: 70.09035257 | AC28: -87.57473552 | AE28: 54.60352503 | AF28: -0.02048785583 | AH28: 0 | AI28: 0
A29: 4.3652 | B29: 0.0043652 | C29: 1.000000055 | D29: 0.0003315452333 | E29: 1 | F29: 2.742736047e-06 | G29: 1 | H29: 0 | I29: 26.35005455 | J29: 1.532836626 | K29: 1.000000325 | L29: 0.0008063642231 | M29: 1 | N29: 2.697724286e-05 | O29: 1 | P29: 0 | Q29: 1 | R29: 0 | S29: 1.000000001 | T29: 6.327772366e-05 | U29: 75.10583623 | V29: -87.80287839 | W29: 92.19712161 | Y29: 1000000000 | Z29: 19.05497104 | AB29: 69.29159685 | AC29: -87.78041385 | AE29: 54.60352495 | AF29: -0.02246454191 | AH29: 0 | AI29: 0
A30: 4.7863 | B30: 0.0047863 | C30: 1.000000066 | D30: 0.0003635285756 | E30: 1 | F30: 3.00732098e-06 | G30: 1 | H30: 0 | I30: 28.88847869 | J30: 1.536173534 | K30: 1.000000391 | L30: 0.0008841521378 | M30: 1 | N30: 2.957967046e-05 | O30: 1 | P30: 0 | Q30: 1 | R30: 0 | S30: 1.000000001 | T30: 6.938196847e-05 | U30: 74.30697364 | V30: -87.99192843 | W30: 92.00807157 | Y30: 1000000000 | Z30: 22.90866769 | AB30: 68.49273436 | AC30: -87.96729679 | AE30: 54.60352485 | AF30: -0.02463164031 | AH30: 0 | AI30: 0
A31: 5.2481 | B31: 0.0052481 | C31: 1.000000079 | D31: 0.0003986031592 | E31: 1 | F31: 3.297478477e-06 | G31: 1 | H31: 0 | I31: 31.67255332 | J31: 1.539218001 | K31: 1.00000047 | L31: 0.0009694583686 | M31: 1.000000001 | N31: 3.243362692e-05 | O31: 1 | P31: 0 | Q31: 1 | R31: 0 | S31: 1.000000002 | T31: 7.607619845e-05 | U31: 73.50780612 | V31: -88.16401592 | W31: 91.83598408 | Y31: 1000000000 | Z31: 27.54255361 | AB31: 67.69356696 | AC31: -88.13700773 | AE31: 54.60352473 | AF31: -0.02700819224 | AH31: 0 | AI31: 0
A32: 5.7544 | B32: 0.0057544 | C32: 1.000000096 | D32: 0.0004370576008 | E32: 1 | F32: 3.615596149e-06 | G32: 1 | H32: 0 | I32: 34.72518777 | J32: 1.541994805 | K32: 1.000000565 | L32: 0.001062984867 | M32: 1.000000001 | N32: 3.556259651e-05 | O32: 1 | P32: 0 | Q32: 1 | R32: 0 | S32: 1.000000002 | T32: 8.341549824e-05 | U32: 72.70857627 | V32: -88.32054123 | W32: 91.67945877 | Y32: 1000000000 | Z32: 33.11311936 | AB32: 66.89433725 | AC32: -88.29092747 | AE32: 54.60352459 | AF32: -0.02961375356 | AH32: 0 | AI32: 0
A33: 6.3096 | B33: 0.0063096 | C33: 1.000000115 | D33: 0.0004792260883 | E33: 1 | F33: 3.964438597e-06 | G33: 1 | H33: 0 | I33: 38.07291104 | J33: 1.544527912 | K33: 1.000000679 | L33: 0.00116554442 | M33: 1.000000001 | N33: 3.899377153e-05 | O33: 1 | P33: 0 | Q33: 1 | R33: 0 | S33: 1.000000002 | T33: 9.146365001e-05 | U33: 71.90914746 | V33: -88.46285518 | W33: 91.53714482 | Y33: 1000000000 | Z33: 39.81105216 | AB33: 66.09490861 | AC33: -88.43038421 | AE33: 54.60352442 | AF33: -0.03247096785 | AH33: 0 | AI33: 0
A34: 6.9183 | B34: 0.0069183 | C34: 1.000000138 | D34: 0.0005254579997 | E34: 1 | F34: 4.346896086e-06 | G34: 1 | H34: 0 | I34: 41.74346006 | J34: 1.546838187 | K34: 1.000000817 | L34: 0.001277986754 | M34: 1.000000001 | N34: 4.275558032e-05 | O34: 1 | P34: 0 | Q34: 1 | R34: 0 | S34: 1.000000003 | T34: 0.0001002873351 | U34: 71.10970124 | V34: -88.59212975 | W34: 91.40787025 | Y34: 1000000000 | Z34: 47.86287489 | AB34: 65.2954626 | AC34: -88.55652625 | AE34: 54.60352421 | AF34: -0.03560350798 | AH34: 0 | AI34: 0
A35: 7.5858 | B35: 0.0075858 | C35: 1.000000166 | D35: 0.0005761558793 | E35: 1 | F35: 4.766298705e-06 | G35: 1 | H35: 0 | I35: 45.76879464 | J35: 1.54894564 | K35: 1.000000982 | L35: 0.001401290902 | M35: 1.000000001 | N35: 4.688077723e-05 | O35: 1 | P35: 0 | Q35: 1 | R35: 0 | S35: 1.000000003 | T35: 0.0001099633821 | U35: 70.31008182 | V35: -88.70948465 | W35: 91.29051535 | Y35: 1000000000 | Z35: 57.54436164 | AB35: 64.49584342 | AC35: -88.67044601 | AE35: 54.60352396 | AF35: -0.03903864917 | AH35: 0 | AI35: 0
A36: 8.3176 | B36: 0.0083176 | C36: 1.0000002 | D36: 0.0006317374614 | E36: 1 | F36: 5.226102205e-06 | G36: 1 | H36: 0 | I36: 50.18208235 | J36: 1.550867576 | K36: 1.00000118 | L36: 0.001536472839 | M36: 1.000000001 | N36: 5.140335267e-05 | O36: 1 | P36: 0 | Q36: 1 | R36: 0 | S36: 1.000000004 | T36: 0.0001205715188 | U36: 69.51049917 | V36: -88.81588329 | W36: 91.18411671 | Y36: 1000000000 | Z36: 69.18246976 | AB36: 63.69626107 | AC36: -88.7730786 | AE36: 54.60352367 | AF36: -0.0428046959 | AH36: 0 | AI36: 0
A37: 9.1201 | B37: 0.0091201 | C37: 1.00000024 | D37: 0.0006926888365 | E37: 1 | F37: 5.730327825e-06 | G37: 1 | H37: 0 | I37: 55.02191988 | J37: 1.552620751 | K37: 1.000001419 | L37: 0.001684714787 | M37: 1.000000002 | N37: 5.636285907e-05 | O37: 1 | P37: 0 | Q37: 1 | R37: 0 | S37: 1.000000005 | T37: 0.0001322045191 | U37: 68.71075965 | V37: -88.91225322 | W37: 91.08774678 | Y37: 1000000000 | Z37: 83.17622401 | AB37: 62.89652191 | AC37: -88.86531864 | AE37: 54.60352331 | AF37: -0.04693458428 | AH37: 0 | AI37: 0
A38: 10 | B38: 0.01 | C38: 1.000000288 | D38: 0.0007595188804 | E38: 1 | F38: 6.2831853e-06 | G38: 1 | H38: 0 | I38: 60.32871463 | J38: 1.554219713 | K38: 1.000001706 | L38: 0.001847254377 | M38: 1.000000002 | N38: 6.18007029e-05 | O38: 1 | P38: 0 | Q38: 1 | R38: 0 | S38: 1.000000006 | T38: 0.0001449595059 | U38: 67.91099507 | V38: -88.99939393 | W38: 91.00060607 | Y38: 1000000000 | Z38: 100 | AB38: 62.09675776 | AC38: -88.94793114 | AE38: 54.60352288 | AF38: -0.05146279426 | AH38: 0 | AI38: 0
A39: 10.965 | B39: 0.010965 | C39: 1.000000347 | D39: 0.00083281242 | E39: 1 | F39: 6.889512681e-06 | G39: 1 | H39: 0 | I39: 66.14890639 | J39: 1.555678343 | K39: 1.000002051 | L39: 0.002025513958 | M39: 1.000000002 | N39: 6.776447072e-05 | O39: 1 | P39: 0 | Q39: 1 | R39: 0 | S39: 1.000000007 | T39: 0.0001589480982 | U39: 67.11102562 | V39: -89.07806161 | W39: 90.92193839 | Y39: 1000000000 | Z39: 120.231225 | AB39: 61.29678883 | AC39: -89.02163265 | AE39: 54.60352236 | AF39: -0.05642895204 | AH39: 0 | AI39: 0
A40: 12.023 | B40: 0.012023 | C40: 1.000000417 | D40: 0.0009131694717 | E40: 1 | F40: 7.554273686e-06 | G40: 1 | H40: 0 | I40: 72.53014236 | J40: 1.557008519 | K40: 1.000002466 | L40: 0.002220952812 | M40: 1.000000003 | N40: 7.430298506e-05 | O40: 1 | P40: 0 | Q40: 1 | R40: 0 | S40: 1.000000009 | T40: 0.0001742848138 | U40: 66.31111137 | V40: -89.14889663 | W40: 90.85110337 | Y40: 1000000000 | Z40: 144.552529 | AB40: 60.4968752 | AC40: -89.08702291 | AE40: 54.60352174 | AF40: -0.06187371304 | AH40: 0 | AI40: 0
A41: 13.183 | B41: 0.013183 | C41: 1.000000501 | D41: 0.001001273598 | E41: 1 | F41: 8.283123181e-06 | G41: 1 | H41: 0 | I41: 79.52670522 | J41: 1.558221603 | K41: 1.000002965 | L41: 0.002435233401 | M41: 1.000000003 | N41: 8.147186656e-05 | O41: 1 | P41: 0 | Q41: 1 | R41: 0 | S41: 1.000000011 | T41: 0.0001911001163 | U41: 65.51122575 | V41: -89.21250429 | W41: 90.78749571 | Y41: 1000000000 | Z41: 173.791489 | AB41: 59.69699033 | AC41: -89.1446609 | AE41: 54.60352099 | AF41: -0.06784339351 | AH41: 0 | AI41: 0
A42: 14.454 | B42: 0.014454 | C42: 1.000000603 | D42: 0.00109780836 | E42: 1 | F42: 9.081716032e-06 | G42: 1 | H42: 0 | I42: 87.19287854 | J42: 1.559327249 | K42: 1.000003565 | L42: 0.002670018169 | M42: 1.000000004 | N42: 8.932673585e-05 | O42: 1 | P42: 0 | Q42: 1 | R42: 0 | S42: 1.000000013 | T42: 0.0002095244693 | U42: 64.71186954 | V42: -89.26939192 | W42: 90.73060808 | Y42: 1000000000 | Z42: 208.918116 | AB42: 58.89763502 | AC42: -89.19500761 | AE42: 54.60352009 | AF42: -0.07438430961 | AH42: 0 | AI42: 0
A43: 15.849 | B43: 0.015849 | C43: 1.000000725 | D43: 0.001203761124 | E43: 1 | F43: 9.958220382e-06 | G43: 1 | H43: 0 | I43: 95.60707327 | J43: 1.560336659 | K43: 1.000004286 | L43: 0.002927708427 | M43: 1.000000005 | N43: 9.794793385e-05 | O43: 1 | P43: 0 | Q43: 1 | R43: 0 | S43: 1.000000015 | T43: 0.0002297463201 | U43: 63.91169455 | V43: -89.32013531 | W43: 90.67986469 | Y43: 1000000000 | Z43: 251.190801 | AB43: 58.09746111 | AC43: -89.23857194 | AE43: 54.60351901 | AF43: -0.08156336252 | AH43: 0 | AI43: 0
A44: 17.378 | B44: 0.017378 | C44: 1.000000871 | D44: 0.001319891398 | E44: 1 | F44: 1.091891941e-05 | G44: 1 | H44: 0 | I44: 104.8296063 | J44: 1.561256892 | K44: 1.000005153 | L44: 0.003210151281 | M44: 1.000000006 | N44: 0.0001073972612 | O44: 1 | P44: 0 | Q44: 1 | R44: 0 | S44: 1.000000018 | T44: 0.0002519106281 | U44: 63.11182216 | V44: -89.36508807 | W44: 90.63491193 | Y44: 1000000000 | Z44: 301.994884 | AB44: 57.29759001 | AC44: -89.27565605 | AE44: 54.60351771 | AF44: -0.08943201441 | AH44: 0 | AI44: 0
A45: 19.055 | B45: 0.019055 | C45: 1.000001047 | D45: 0.001447262494 | E45: 1 | F45: 1.197260959e-05 | G45: 1 | H45: 0 | I45: 114.944922 | J45: 1.562096398 | K45: 1.000006195 | L45: 0.003519932682 | M45: 1.000000007 | N45: 0.000117761239 | O45: 1 | P45: 0 | Q45: 1 | R45: 0 | S45: 1.000000022 | T45: 0.0002762203367 | U45: 62.31171293 | V45: -89.40466316 | W45: 90.59533684 | Y45: 1000000000 | Z45: 363.093025 | AB45: 56.49748235 | AC45: -89.30660085 | AE45: 54.60351615 | AF45: -0.0980623124 | AH45: 0 | AI45: =IF(AH45>0,W43,0) -> 0
A46: 20.893 | B46: 0.020893 | C46: 1.000001259 | D46: 0.00158686177 | E46: 1 | F46: 1.312745905e-05 | G46: 1 | H46: 0 | I46: 126.0314337 | J46: 1.562861715 | K46: 1.000007448 | L46: 0.003859453797 | M46: 1.000000008 | N46: 0.000129120208 | O46: 1 | P46: 0 | Q46: 1 | R46: 0 | S46: 1.000000026 | T46: 0.0003028638932 | U46: 61.51194019 | V46: -89.43916912 | W46: 90.56083088 | Y46: 1000000000 | Z46: 436.517449 | AB46: 55.69771149 | AC46: -89.33164797 | AE46: 54.60351427 | AF46: -0.1075211571 | AH46: 0 | AI46: 0
A47: 22.909 | B47: 0.022909 | C47: 1.000001514 | D47: 0.001739980382 | E47: 1 | F47: 1.43941492e-05 | G47: 1 | H47: 0 | I47: 138.1916824 | J47: 1.563559938 | K47: 1.000008954 | L47: 0.004231854604 | M47: 1.00000001 | N47: 0.0001415792295 | O47: 1 | P47: 0 | Q47: 1 | R47: 0 | S47: 1.000000032 | T47: 0.0003320877285 | U47: 60.71189045 | V47: -89.46892609 | W47: 90.53107391 | Y47: 1000000000 | Z47: 524.822281 | AB47: 54.897664 | AC47: -89.35103006 | AE47: 54.60351201 | AF47: -0.1178960337 | AH47: 0 | AI47: 0
A48: 25.119 | B48: 0.025119 | C48: 1.00000182 | D48: 0.001907833528 | E48: 1 | F48: 1.578273315e-05 | G48: 1 | H48: 0 | I48: 151.5221783 | J48: 1.564196585 | K48: 1.000010765 | L48: 0.004640090246 | M48: 1.000000012 | N48: 0.0001552371846 | O48: 1 | P48: 0 | Q48: 1 | R48: 0 | S48: 1.000000038 | T48: 0.000364123778 | U48: 59.91201743 | V48: -89.49416888 | W48: 90.50583112 | Y48: 1000000000 | Z48: 630.964161 | AB48: 54.0977937 | AC48: -89.3648996 | AE48: 54.6035093 | AF48: -0.129269281 | AH48: 0 | AI48: 0
A49: 27.542 | B49: 0.027542 | C49: 1.000002188 | D49: 0.002091864251 | E49: 1 | F49: 1.730514895e-05 | G49: 1 | H49: 0 | I49: 166.1375272 | J49: 1.564777181 | K49: 1.000012942 | L49: 0.005087669895 | M49: 1.000000014 | N49: 0.0001702114945 | O49: 1 | P49: 0 | Q49: 1 | R49: 0 | S49: 1.000000046 | T49: 0.0003992474645 | U49: 59.11220231 | V49: -89.5151175 | W49: 90.4848825 | Y49: 1000000000 | Z49: 758.561764 | AB49: 53.29798184 | AC49: -89.37337883 | AE49: 54.60350603 | AF49: -0.1417386758 | AH49: 0 | AI49: 0
A50: 30.2 | B50: 0.0302 | C50: 1.000002631 | D50: 0.002293743437 | E50: 1 | F50: 1.89752196e-05 | G50: 1 | H50: 0 | I50: 182.1704316 | J50: 1.565306934 | K50: 1.000015561 | L50: 0.005578656692 | M50: 1.000000017 | N50: 0.0001866381208 | O50: 1 | P50: 0 | Q50: 1 | R50: 0 | S50: 1.000000055 | T50: 0.0004377776988 | U50: 58.3120182 | V50: -89.5319586 | W50: 90.4680414 | Y50: 1000000000 | Z50: 912.04 | AB50: 52.49780166 | AC50: -89.37654117 | AE50: 54.60350211 | AF50: -0.1554174329 | AH50: 0 | AI50: 0
A51: 33.113 | B51: 0.033113 | C51: 1.000003163 | D51: 0.00251499005 | E51: 1 | F51: 2.080551148e-05 | G51: 1 | H51: 0 | I51: 199.7415303 | J51: 1.565789836 | K51: 1.000018708 | L51: 0.00611674409 | M51: 1.000000021 | N51: 0.0002046406649 | O51: 1 | P51: 0 | Q51: 1 | R51: 0 | S51: 1.000000066 | T51: 0.0004800043998 | U51: 57.51223107 | V51: -89.5448192 | W51: 90.4551808 | Y51: 1000000000 | Z51: 1096.470769 | AB51: 51.69801925 | AC51: -89.37441072 | AE51: 54.60349739 | AF51: -0.1704084738 | AH51: 0 | AI51: 0
A52: 36.308 | B52: 0.036308 | C52: 1.000003802 | D52: 0.002757654691 | E52: 1 | F52: 2.281298918e-05 | G52: 1 | H52: 0 | I52: 219.0136862 | J52: 1.566230386 | K52: 1.000022492 | L52: 0.006706918254 | M52: 1.000000025 | N52: 0.0002243859886 | O52: 1 | P52: 0 | Q52: 1 | R52: 0 | S52: 1.00000008 | T52: 0.0005263189578 | U52: 56.7122006 | V52: -89.55381998 | W52: 90.44618002 | Y52: 1000000000 | Z52: 1318.270864 | AB52: 50.89799445 | AC52: -89.36696924 | AE52: 54.60349172 | AF52: -0.1868507423 | AH52: 0 | AI52: 0
A53: 39.811 | B53: 0.039811 | C53: 1.000004571 | D53: 0.003023711981 | E53: 1 | F53: 2.501398899e-05 | G53: 1 | H53: 0 | I53: 240.1437306 | J53: 1.566632142 | K53: 1.000027041 | L53: 0.007353980192 | M53: 1.00000003 | N53: 0.0002460347737 | O53: 1 | P53: 0 | Q53: 1 | R53: 0 | S53: 1.000000096 | T53: 0.0005770982672 | U53: 55.91223328 | V53: -89.55903264 | W53: 90.44096736 | Y53: 1000000000 | Z53: 1584.915721 | AB53: 50.09803395 | AC53: -89.35415461 | AE53: 54.6034849 | AF53: -0.2048780343 | AH53: 0 | AI53: 0
A54: 43.652 | B54: 0.043652 | C54: 1.000005496 | D54: 0.003315440306 | E54: 1 | F54: 2.742736046e-05 | G54: 1 | H54: 0 | I54: 263.3126231 | J54: 1.566998551 | K54: 1.000032511 | L54: 0.008063469213 | M54: 1.000000036 | N54: 0.0002697724221 | O54: 1 | P54: 0 | Q54: 1 | R54: 0 | S54: 1.000000116 | T54: 0.0006327772061 | U54: 55.11226401 | V54: -89.56050235 | W54: 90.43949765 | Y54: 1000000000 | Z54: 1905.497104 | AB54: 49.29807288 | AC54: -89.33585762 | AE54: 54.6034767 | AF54: -0.2246447283 | AH54: 0 | AI54: 0
A55: 47.863 | B55: 0.047863 | C55: 1.000006608 | D55: 0.003635269903 | E55: 1 | F55: 3.007320979e-05 | G55: 1 | H55: 0 | I55: 288.7133874 | J55: 1.567332677 | K55: 1.000039086 | L55: 0.008841293304 | M55: 1.000000044 | N55: 0.0002957966961 | O55: 1 | P55: 0 | Q55: 1 | R55: 0 | S55: 1.000000139 | T55: 0.0006938196444 | U55: 54.31240633 | V55: -89.5582422 | W55: 90.4417578 | Y55: 1000000000 | Z55: 2290.866769 | AB55: 48.49822506 | AC55: -89.31192671 | AE55: 54.60346684 | AF55: -0.2463154925 | AH55: 0 | AI55: 0
A56: 52.481 | B56: 0.052481 | C56: 1.000007944 | D56: 0.003986010692 | E56: 1.000000001 | F56: 3.297478476e-05 | G56: 1 | H56: 0 | I56: 316.5692078 | J56: 1.567637455 | K56: 1.000046991 | L56: 0.009694283025 | M56: 1.000000053 | N56: 0.000324336258 | O56: 1 | P56: 0 | Q56: 1 | R56: 0 | S56: 1.000000167 | T56: 0.0007607619314 | U56: 53.51242813 | V56: -89.55223238 | W56: 90.44776762 | Y56: 1000000000 | Z56: 2754.255361 | AB56: 47.69825871 | AC56: -89.28215165 | AE56: 54.60345499 | AF56: -0.270080722 | AH56: 0 | AI56: 0
A57: 57.544 | B57: 0.057544 | C57: 1.000009551 | D57: 0.004370548457 | E57: 1.000000001 | F57: 3.615596147e-05 | G57: 1 | H57: 0 | I57: 347.1093006 | J57: 1.567915386 | K57: 1.000056495 | L57: 0.01062945234 | M57: 1.000000063 | N57: 0.0003556259503 | O57: 1 | P57: 0 | Q57: 1 | R57: 0 | S57: 1.000000201 | T57: 0.0008341549124 | U57: 52.71254471 | V57: -89.54242341 | W57: 90.45757659 | Y57: 1000000000 | Z57: 3311.311936 | AB57: 46.89838954 | AC57: -89.24628746 | AE57: 54.60344074 | AF57: -0.296135953 | AH57: 0 | AI57: 0
A58: 63.096 | B58: 0.063096 | C58: 1.000011483 | D58: 0.004792224564 | E58: 1.000000001 | F58: 3.964438595e-05 | G58: 1 | H58: 0 | I58: 380.5990745 | J58: 1.568168887 | K58: 1.000067922 | L58: 0.01165492172 | M58: 1.000000076 | N58: 0.0003899376958 | O58: 1 | P58: 0 | Q58: 1 | R58: 0 | S58: 1.000000241 | T58: 0.0009146364078 | U58: 51.91259717 | V58: -89.52873044 | W58: 90.47126956 | Y58: 1000000000 | Z58: 3981.105216 | AB58: 46.09845913 | AC58: -89.20402285 | AE58: 54.60342361 | AF58: -0.3247075923 | AH58: 0 | AI58: 0
A59: 69.183 | B59: 0.069183 | C59: 1.000013805 | D59: 0.005254532121 | E59: 1.000000001 | F59: 4.346896083e-05 | G59: 1 | H59: 0 | I59: 417.3160023 | J59: 1.568400059 | K59: 1.000081659 | L59: 0.0127791788 | M59: 1.000000091 | N59: 0.0004275557774 | O59: 1 | P59: 0 | Q59: 1 | R59: 0 | S59: 1.00000029 | T59: 0.00100287323 | U59: 51.11274954 | V59: -89.51104052 | W59: 90.48895948 | Y59: 1000000000 | Z59: 4786.287489 | AB59: 45.29863209 | AC59: -89.15500819 | AE59: 54.60340301 | AF59: -0.3560323297 | AH59: 0 | AI59: 0
A60: 75.858 | B60: 0.075858 | C60: 1.000016598 | D60: 0.00576149568 | E60: 1.000000001 | F60: 4.766298701e-05 | G60: 1 | H60: 0 | I60: 457.5797813 | J60: 1.568610914 | K60: 1.000098176 | L60: 0.0140120011 | M60: 1.00000011 | N60: 0.0004688077383 | O60: 1 | P60: 0 | Q60: 1 | R60: 0 | S60: 1.000000349 | T60: 0.001099633661 | U60: 50.31283231 | V60: -89.48920021 | W60: 90.51079979 | Y60: 1000000000 | Z60: 5754.436164 | AB60: 44.49873962 | AC60: -89.09881734 | AE60: 54.60337825 | AF60: -0.3903828664 | AH60: 0 | AI60: 0
A61: 83.176 | B61: 0.083176 | C61: 1.000019954 | D61: 0.006317291416 | E61: 1.000000001 | F61: 5.2261022e-05 | G61: 1 | H61: 0 | I61: 501.722173 | J61: 1.568803191 | K61: 1.000118031 | L61: 0.01536353158 | M61: 1.000000132 | N61: 0.0005140334819 | O61: 1 | P61: 0 | Q61: 1 | R61: 0 | S61: 1.000000419 | T61: 0.001205714976 | U61: 49.51304542 | V61: -89.46303042 | W61: 90.53696958 | Y61: 1000000000 | Z61: 6918.246976 | AB61: 43.6989825 | AC61: -89.03498824 | AE61: 54.60334848 | AF61: -0.42804218 | AH61: 0 | AI61: 0
A62: 91.201 | B62: 0.091201 | C62: 1.000023991 | D62: 0.006926778688 | E62: 1.000000002 | F62: 5.730327819e-05 | G62: 1 | H62: 0 | I62: 550.1292273 | J62: 1.568978571 | K62: 1.000141903 | L62: 0.01684557019 | M62: 1.000000159 | N62: 0.0005636285316 | O62: 1 | P62: 0 | Q62: 1 | R62: 0 | S62: 1.000000504 | T62: 0.001322044912 | U62: 48.71318824 | V62: -89.43230337 | W62: 90.56769663 | Y62: 1000000000 | Z62: 8317.622401 | AB62: 42.89916112 | AC62: -88.96296383 | AE62: 54.60331269 | AF62: -0.4693395428 | AH62: 0 | AI62: 0
A63: 100 | B63: 0.1 | C63: 1.000028843 | D63: 0.007595044222 | E63: 1.000000002 | F63: 6.283185292e-05 | G63: 1 | H63: 0 | I63: 603.2050903 | J63: 1.569138515 | K63: 1.000170603 | L63: 0.01847046405 | M63: 1.000000191 | N63: 0.0006180069512 | O63: 1 | P63: 0 | Q63: 1 | R63: 0 | S63: 1.000000606 | T63: 0.001449594692 | U63: 47.9133886 | V63: -89.39676368 | W63: 90.60323632 | Y63: 1000000000 | Z63: 10000 | AB63: 42.0994045 | AC63: -88.88214404 | AE63: 54.60326966 | AF63: -0.5146196376 | AH63: 0 | AI63: 0
A64: 109.65 | B64: 0.10965 | C64: 1.000034678 | D64: 0.008327933593 | E64: 1.000000002 | F64: 6.889512671e-05 | G64: 1 | H64: 0 | I64: 661.4142285 | J64: 1.569284414 | K64: 1.000205115 | L64: 0.02025239792 | M64: 1.00000023 | N64: 0.0006776446045 | O64: 1 | P64: 0 | Q64: 1 | R64: 0 | S64: 1.000000729 | T64: 0.001589480497 | U64: 47.11346551 | V64: -89.35610172 | W64: 90.64389828 | Y64: 1000000000 | Z64: 12023.1225 | AB64: 41.29953316 | AC64: -88.79182315 | AE64: 54.60321792 | AF64: -0.5642785717 | AH64: 0 | AI64: 0
A65: 120.23 | B65: 0.12023 | C65: 1.000041693 | D65: 0.009131443444 | E65: 1.000000003 | F65: 7.554273672e-05 | G65: 1 | H65: 0 | I65: 725.2331729 | J65: 1.569417459 | K65: 1.000246602 | L65: 0.02220591399 | M65: 1.000000276 | N65: 0.0007430297152 | O65: 1 | P65: 0 | Q65: 1 | R65: 0 | S65: 1.000000876 | T65: 0.001742847499 | U65: 46.31368063 | V65: -89.30998684 | W65: 90.69001316 | Y65: 1000000000 | Z65: 14455.2529 | AB65: 40.49981048 | AC65: -88.69126414 | AE65: 54.60315571 | AF65: -0.618722697 | AH65: 0 | AI65: 0
A66: 131.83 | B66: 0.13183 | C66: 1.000050126 | D66: 0.01001240474 | E66: 1.000000003 | F66: 8.283123162e-05 | G66: 1 | H66: 0 | I66: 795.2048065 | J66: 1.569538789 | K66: 1.000296475 | L66: 0.0243475699 | M66: 1.000000332 | N66: 0.0008147184872 | O66: 1 | P66: 0 | Q66: 1 | R66: 0 | S66: 1.000001054 | T66: 0.001911000321 | U66: 45.51401173 | V66: -89.25803032 | W66: 90.74196968 | Y66: 1000000000 | Z66: 17379.1489 | AB66: 39.70021636 | AC66: -88.57961542 | AE66: 54.60308093 | AF66: -0.6784149081 | AH66: 0 | AI66: 0
A67: 144.54 | B67: 0.14454 | C67: 1.000060257 | D67: 0.01097764702 | E67: 1.000000004 | F67: 9.081716008e-05 | G67: 1 | H67: 0 | I67: 871.8720129 | J67: 1.569649369 | K67: 1.000356388 | L67: 0.02669390295 | M67: 1.000000399 | N67: 0.0008932671233 | O67: 1 | P67: 0 | Q67: 1 | R67: 0 | S67: 1.000001266 | T67: 0.002095243584 | U67: 44.71496672 | V67: -89.19983475 | W67: 90.80016525 | Y67: 1000000000 | Z67: 20891.8116 | AB67: 38.90126119 | AC67: -88.45601673 | AE67: 54.6029911 | AF67: -0.7438180185 | AH67: 0 | AI67: 0
A68: 158.49 | B68: 0.15849 | C68: 1.000072449 | D68: 0.01203703567 | E68: 1.000000005 | F68: 9.958220349e-05 | G68: 1 | H68: 0 | I68: 956.0189568 | J68: 1.569750322 | K68: 1.000428484 | L68: 0.02926880722 | M68: 1.00000048 | N68: 0.0009794790284 | O68: 1 | P68: 0 | Q68: 1 | R68: 0 | S68: 1.000001523 | T68: 0.002297461738 | U68: 43.91520855 | V68: -89.13480991 | W68: 90.86519009 | Y68: 1000000000 | Z68: 25119.0801 | AB68: 38.10161113 | AC68: -88.31920934 | AE68: 54.60288299 | AF68: -0.8156005637 | AH68: 0 | AI68: 0
A69: 173.78 | B69: 0.17378 | C69: 1.000087102 | D69: 0.01319815525 | E69: 1.000000006 | F69: 0.0001091891937 | G69: 1 | H69: 0 | I69: 1048.248842 | J69: 1.569842355 | K69: 1.000515124 | L69: 0.03209060283 | M69: 1.000000577 | N69: 0.001073972204 | O69: 1 | P69: 0 | Q69: 1 | R69: 0 | S69: 1.000001831 | T69: 0.002519104353 | U69: 43.11587222 | V69: -89.06249606 | W69: 90.93750394 | Y69: 1000000000 | Z69: 30199.4884 | AB69: 37.30240472 | AC69: -88.1682195 | AE69: 54.60275306 | AF69: -0.8942765621 | AH69: 0 | AI69: 0
A70: 190.55 | B70: 0.19055 | C70: 1.000104723 | D70: 0.01447162471 | E70: 1.000000007 | F70: 0.0001197260953 | G70: 1 | H70: 0 | I70: 1149.406155 | J70: 1.569926312 | K70: 1.00061931 | L70: 0.03518494557 | M70: 1.000000693 | N70: 0.001177611851 | O70: 1 | P70: 0 | Q70: 1 | R70: 0 | S70: 1.000002201 | T70: 0.002762200825 | U70: 42.31643685 | V70: -88.98224091 | W70: 91.01775909 | Y70: 1000000000 | Z70: 36309.3025 | AB70: 36.5031256 | AC70: -88.00167524 | AE70: 54.60259681 | AF70: -0.9805656692 | AH70: 0 | AI70: 0
A71: 208.93 | B71: 0.20893 | C71: 1.000125899 | D71: 0.01586729924 | E71: 1.000000009 | F71: 0.0001312745897 | G71: 1 | H71: 0 | I71: 1260.27506 | J71: 1.570002849 | K71: 1.000744499 | L71: 0.03857558374 | M71: 1.000000834 | N71: 0.00129120137 | O71: 1 | P71: 0 | Q71: 1 | R71: 0 | S71: 1.000002646 | T71: 0.003028635581 | U71: 41.51749804 | V71: -88.89343526 | W71: 91.10656474 | Y71: 1000000000 | Z71: 43651.7449 | AB71: 35.70437456 | AC71: -87.81829943 | AE71: 54.60240905 | AF71: -1.075135837 | AH71: 0 | AI71: 0
A72: 229.09 | B72: 0.22909 | C72: 1.000151365 | D72: 0.01739806574 | E72: 1.00000001 | F72: 0.000143941491 | G72: 1 | H72: 0 | I72: 1381.881004 | J72: 1.570072675 | K72: 1.00089504 | L72: 0.04229356313 | M72: 1.000001002 | N72: 0.001415791359 | O72: 1 | P72: 0 | Q72: 1 | R72: 0 | S72: 1.000003182 | T72: 0.003320872868 | U72: 40.71847118 | V72: -88.79527463 | W72: 91.20472537 | Y72: 1000000000 | Z72: 52482.2281 | AB72: 34.9055735 | AC72: -87.61641413 | AE72: 54.60218325 | AF72: -1.1788605 | AH72: 0 | AI72: 0
A73: 251.19 | B73: 0.25119 | C73: 1.000181975 | D73: 0.01907604419 | E73: 1.000000012 | F73: 0.0001578273302 | G73: 1 | H73: 0 | I73: 1515.189114 | J73: 1.570136343 | K73: 1.001075958 | L73: 0.04636797666 | M73: 1.000001205 | N73: 0.001552370611 | O73: 1 | P73: 0 | Q73: 1 | R73: 0 | S73: 1.000003825 | T73: 0.003641231958 | U73: 39.91984402 | V73: -88.68700195 | W73: 91.31299805 | Y73: 1000000000 | Z73: 63096.4161 | AB73: 34.10721774 | AC73: -87.39444074 | AE73: 54.60191185 | AF73: -1.292561207 | AH73: 0 | AI73: 0
A74: 275.42 | B74: 0.27542 | C74: 1.000218772 | D74: 0.02091562255 | E74: 1.000000015 | F74: 0.0001730514878 | G74: 1 | H74: 0 | I74: 1661.345478 | J74: 1.570194405 | K74: 1.001293405 | L74: 0.05083330777 | M74: 1.000001449 | N74: 0.001702113318 | O74: 1 | P74: 0 | Q74: 1 | R74: 0 | S74: 1.000004599 | T74: 0.00399246697 | U74: 39.1215399 | V74: -88.56771572 | W74: 91.43228428 | Y74: 1000000000 | Z74: 75856.1764 | AB74: 33.30923986 | AC74: -87.15050244 | AE74: 54.60158561 | AF74: -1.417213287 | AH74: 0 | AI74: 0
A75: 302 | B75: 0.302 | C75: 1.000263029 | D75: 0.02293345319 | E75: 1.000000018 | F75: 0.0001897521938 | G75: 1 | H75: 0 | I75: 1821.677144 | J75: 1.570247382 | K75: 1.001554894 | L75: 0.05572937978 | M75: 1.000001742 | N75: 0.001866379063 | O75: 1 | P75: 0 | Q75: 1 | R75: 0 | S75: 1.000005529 | T75: 0.004377766869 | U75: 38.32318389 | V75: -88.43637092 | W75: 91.56362908 | Y75: 1000000000 | Z75: 91204 | AB75: 32.51127623 | AC75: -86.88242527 | AE75: 54.60119322 | AF75: -1.553945645 | AH75: 0 | AI75: 0
A76: 331.13 | B76: 0.33113 | C76: 1.00031621 | D76: 0.02514465292 | E76: 1.000000022 | F76: 0.0002080551118 | G76: 1 | H76: 0 | I76: 1997.390521 | J76: 1.570295674 | K76: 1.001869028 | L76: 0.06109208662 | M76: 1.000002094 | N76: 0.002046403821 | O76: 1 | P76: 0 | Q76: 1 | R76: 0 | S76: 1.000006647 | T76: 0.004800030659 | U76: 37.52560173 | V76: -88.29202967 | W76: 91.70797033 | Y76: 1000000000 | Z76: 109647.0769 | AB76: 31.71416554 | AC76: -86.58824636 | AE76: 54.60072176 | AF76: -1.70378331 | AH76: 0 | AI76: 0
A77: 363.08 | B77: 0.36308 | C77: =SQRT(1+(A77/pole1)^2) -> 1.000380163 | D77: =ATAN(A77/pole1) -> 0.02756962961 | E77: =SQRT(1+(A77/Zero1)^2) -> 1.000000026 | F77: =ATAN(A77/Zero1) -> 0.0002281298879 | G77: =IF(VIN_nom>Vout, 1, SQRT(1+(A77/z_RHP)^2)) -> 1 | H77: =IF(VIN_nom>Vout, 0, -ATAN(A77/z_RHP)) -> 0 | I77: =SQRT(1+(A77/Pole2)^2) -> 2190.11426 | J77: =ATAN(A77/Pole2) -> 1.57033973 | K77: =SQRT(1+(A77/Zero2)^2) -> 1.002246681 | L77: =ATAN(A77/Zero2) -> 0.06696988905 | M77: =SQRT(1+(A77/pole4)^2) -> 1.000002517 | N77: =ATAN(A77/pole4) -> 0.002243856158 | O77: =IF(VOUT_setting=1,1,SQRT(1+(A77*zterm1)^2)) -> 1 | P77: =IF(VOUT_setting=1,0,ATAN(((A77*zterm1)))) -> 0 | Q77: 1 | R77: =IF(VOUT_setting=1,0,ATAN(A77*$Q$4/(1+Afbr-$Q$5*(A77)^2))) -> 0 | S77: =SQRT((1-(Z77/pterm2))^2+(A77/pterm1)^2) -> 1.000007992 | T77: =IF((ATAN((A77/pterm1)/(1-A77^2/pterm2))>0),ATAN((A77/pterm1)/(1-A77^2/pterm2)),PI()+ATAN((A77/pterm1)/(1-A77^2/pterm2))) -> 0.005263171993 | U77: =20*LOG10(((E77*K77*G77*O77)/(C77*I77*S77*M77*Q77))*Adc) -> 36.72822887 | V77: =((F77+L77+H77+P77)-(D77+J77+T77+N77+R77))*radconv -> -88.13342058 | W77: =IF(V77>0,V77,V77+180) -> 91.86657942 | Y77: =IF(U77<0,A77,1000000000) -> 1000000000 | Z77: =A77^2 -> 131827.0864 | AB77: =20*LOG10((K77/(I77*M77))*AEA) -> 30.91735961 | AC77: =(L77-(J77+N77))*radconv -> -86.2653105 | AE77: =20*LOG10((E77*G77/(C77*S77))*Acs*Am) -> 54.60015482 | AF77: =(F77+H77-(D77+T77))*radconv -> -1.868110084 | AH77: =SUM((U78<0)*(U77>0))*A77 -> 0 | AI77: =IF(AH77>0,W75,0) -> 0
A78: 398.11 | B78: =A78/1000 -> 0.39811 | C78: 1.00045704 | D78: 0.03022800183 | E78: 1.000000031 | F78: 0.0002501398848 | G78: 1 | H78: 0 | I78: 2401.416693 | J78: 1.570379906 | K78: 1.002700502 | L78: 0.07340897878 | M78: 1.000003027 | N78: 0.002460342822 | O78: 1 | P78: 0 | Q78: 1 | R78: 0 | S78: 1.000009608 | T78: 0.005770959491 | U78: 35.93146005 | V78: -87.95934013 | W78: 92.04065987 | Y78: 1000000000 | Z78: 158491.5721 | AB78: 30.12127226 | AC78: -85.91108354 | AE78: 54.59947336 | AF78: -2.048256593 | AH78: 0 | AI78: 0
A79: 436.52 | B79: 0.43652 | C79: 1.00054946 | D79: 0.03314238448 | E79: 1.000000038 | F79: 0.0002742735978 | G79: 1 | H79: 0 | I79: 2633.107432 | J79: 1.570416547 | K79: 1.00324585 | L79: 0.08046234611 | M79: 1.000003639 | N79: 0.002697717742 | O79: 1 | P79: 0 | Q79: =IF(VOUT_setting=1,1,SQRT((1+Afbr-$Q$5*(A79)^2)^2+(A79*$Q$4)^2)) -> 1 | R79: 0 | S79: 1.000011551 | T79: 0.006327741503 | U79: 35.13533728 | V79: -87.76841226 | W79: 92.23158774 | Y79: 1000000000 | Z79: 190549.7104 | AB79: 29.32596866 | AC79: -85.52265534 | AE79: 54.59865419 | AF79: -2.245756919 | AH79: 0 | AI79: 0
A80: 478.63 | B80: 0.47863 | C80: 1.000660547 | D80: 0.03633685805 | E80: 1.000000045 | F80: 0.0003007320889 | G80: 1 | H80: 0 | I80: 2887.116729 | J80: 1.57044996 | K80: 1.003901018 | L80: 0.0881859233 | M80: 1.000004375 | N80: 0.00295795842 | O80: 1 | P80: 0 | Q80: 1 | R80: 0 | S80: 1.000013888 | T80: 0.006938156162 | U80: 34.34010152 | V80: -87.55919708 | W80: 92.44080292 | Y80: 1000000000 | Z80: 229086.6769 | AB80: 28.53171743 | AC80: -85.09695208 | AE80: 54.59766966 | AF80: -2.462244996 | AH80: 0 | AI80: 0
A81: 524.81 | B81: 0.52481 | C81: 1.000794107 | D81: 0.03983922751 | E81: 1.000000054 | F81: 0.0003297478358 | G81: 1 | H81: 0 | I81: 3165.676442 | J81: 1.570480439 | K81: 1.004688261 | L81: 0.09664385322 | M81: 1.00000526 | N81: 0.003243351321 | O81: 1 | P81: 0 | Q81: 1 | R81: 0 | S81: 1.000016697 | T81: 0.007607566212 | U81: 33.54567531 | V81: -87.33005435 | W81: 92.66994565 | Y81: 1000000000 | Z81: 275425.5361 | AB81: 27.73847478 | AC81: -84.63044647 | AE81: 54.59648609 | AF81: -2.699607875 | AH81: 0 | AI81: 0
A82: 575.44 | B82: 0.57544 | C82: 1.000954641 | D82: 0.04367796589 | E82: 1.000000065 | F82: 0.0003615595991 | G82: 1 | H82: 0 | I82: 3471.078746 | J82: 1.570508232 | K82: 1.005633818 | L82: 0.1059008504 | M82: 1.000006323 | N82: 0.003556244661 | O82: 1 | P82: 0 | Q82: 1 | R82: 0 | S82: 1.000020074 | T82: 0.008341479122 | U82: 32.75245567 | V82: -87.07935833 | W82: 92.92064167 | Y82: 1000000000 | Z82: 331131.1936 | AB82: 26.94667755 | AC82: -84.11957951 | AE82: 54.59506369 | AF82: -2.959778816 | AH82: 0 | AI82: 0
A83: 630.96 | B83: 0.63096 | C83: 1.00114763 | D83: 0.04788597698 | E83: 1.000000079 | F83: 0.0003964438389 | G83: 1 | H83: 0 | I83: 3805.977739 | J83: 1.570533582 | K83: 1.006769562 | L83: 0.1160309598 | M83: 1.000007603 | N83: 0.003899357392 | O83: 1 | P83: 0 | Q83: 1 | R83: 0 | S83: 1.000024134 | T83: 0.009146271797 | U83: 31.96050348 | V83: -86.80527097 | W83: 93.19472903 | Y83: 1000000000 | Z83: 398110.5216 | AB83: 26.15643503 | AC83: -83.56027837 | AE83: 54.59335402 | AF83: -3.244992596 | AH83: 0 | AI83: 0
A84: 691.83 | B84: 0.69183 | C84: 1.001379579 | D84: 0.05249752403 | E84: 1.000000094 | F84: 0.0004346895812 | G84: 1 | H84: 0 | I84: 4173.148161 | J84: 1.5705567 | K84: 1.008133185 | L84: 0.127109726 | M84: 1.00000914 | N84: 0.004275531982 | O84: 1 | P84: 0 | Q84: 1 | R84: 0 | S84: 1.000029015 | T84: 0.01002861065 | U84: 31.17024121 | V84: -86.50596732 | W84: 93.49403268 | Y84: 1000000000 | Z84: 478628.7489 | AB84: 25.36822715 | AC84: -82.94838957 | AE84: 54.59129962 | AF84: -3.557577752 | AH84: 0 | AI84: 0
A85: 758.58 | B85: 0.75858 | C85: 1.001658403 | D85: 0.05755196824 | E85: 1.000000114 | F85: 0.0004766298344 | G85: 1 | H85: 0 | I85: 4575.786995 | J85: 1.570577785 | K85: 1.009770364 | L85: 0.1392226379 | M85: 1.000010989 | N85: 0.004688043382 | O85: 1 | P85: 0 | Q85: 1 | R85: 0 | S85: 1.000034884 | T85: 0.01099617625 | U85: 30.38181045 | V85: -86.17942462 | W85: 93.82057538 | Y85: 1000000000 | Z85: 575443.6164 | AB85: 24.58226536 | AC85: -82.27921412 | AE85: 54.58883065 | AF85: -3.900210499 | AH85: 0 | AI85: 0
A86: 831.76 | B86: 0.83176 | C86: 1.001993475 | D86: 0.06308991468 | E86: 1.000000137 | F86: 0.0005226101729 | G86: 1 | H86: 0 | I86: 5017.211864 | J86: 1.570597013 | K86: 1.011734908 | L86: 0.1524551689 | M86: 1.000013211 | N86: 0.005140289998 | O86: 1 | P86: 0 | Q86: 1 | R86: 0 | S86: 1.000041939 | T86: 0.01205693837 | U86: 29.59577445 | V86: -85.8237136 | W86: 94.1762864 | Y86: 1000000000 | Z86: 691824.6976 | AB86: 23.79919554 | AC86: -81.54805943 | AE86: 54.58586448 | AF86: -4.275654171 | AH86: 0 | AI86: 0
A87: 912.01 | B87: 0.91201 | C87: 1.002396219 | D87: 0.06915842439 | E87: 1.000000164 | F87: 0.0005730327198 | G87: 1 | H87: 0 | I87: 5501.283275 | J87: 1.570614551 | K87: 1.014092053 | L87: 0.1669043501 | M87: 1.000015884 | N87: 0.00563622623 | O87: 1 | P87: 0 | Q87: 1 | R87: 0 | S87: 1.000050422 | T87: 0.01322017045 | U87: 28.81236881 | V87: -85.43671569 | W87: 94.56328431 | Y87: 1000000000 | Z87: 831762.2401 | AB87: 23.01935386 | AC87: -80.74960224 | AE87: 54.58230051 | AF87: -4.687113455 | AH87: 0 | AI87: 0
A88: 1000 | B88: 1 | C88: 1.002880198 | D88: 0.07580635838 | E88: 1.000000197 | F88: 0.0006283184473 | G88: 1 | H88: 0 | I88: 6032.042697 | J88: 1.570630545 | K88: 1.016918662 | L88: 0.18266648 | M88: 1.000019096 | N88: 0.006179991621 | O88: 1 | P88: 0 | Q88: 1 | R88: 0 | S88: 1.000060621 | T88: 0.01449557956 | U88: 28.03222867 | V88: -85.01649053 | W88: 94.98350947 | Y88: 1000000000 | Z88: 1000000 | AB88: 22.24349474 | AC88: -79.8785706 | AE88: 54.57801949 | AF88: -5.137919936 | AH88: 0 | AI88: 0
A89: 1096.5 | B89: 1.0965 | C89: 1.003461892 | D89: 0.0830895187 | E89: 1.000000237 | F89: 0.0006889511591 | G89: 1 | H89: 0 | I89: 6614.134801 | J89: 1.570645135 | K89: 1.020307395 | L89: 0.1998478831 | M89: 1.00002296 | N89: 0.00677634336 | O89: 1 | P89: 0 | Q89: 1 | R89: 0 | S89: 1.000072885 | T89: 0.01589432068 | U89: 27.25577602 | V89: -84.56103534 | W89: 95.43896466 | Y89: 1000000000 | Z89: 1202312.25 | AB89: 21.47218482 | AC89: -78.92915309 | AE89: 54.57287676 | AF89: -5.631882249 | AH89: 0 | AI89: 0
A90: 1202.3 | B90: 1.2023 | C90: 1.004160739 | D90: 0.09106441065 | E90: 1.000000285 | F90: 0.0007554272249 | G90: 1 | H90: 0 | I90: 7252.324903 | J90: 1.57065844 | K90: 1.024366378 | L90: 0.2185483233 | M90: 1.000027604 | N90: 0.007430161784 | O90: 1 | P90: 0 | Q90: 1 | R90: 0 | S90: 1.000087629 | T90: 0.01742783655 | U90: 26.48396241 | V90: -84.06878521 | W90: 95.93121479 | Y90: 1000000000 | Z90: 1445525.29 | AB90: 20.7065459 | AC90: -77.89592012 | AE90: 54.56670207 | AF90: -6.17286509 | AH90: 0 | AI90: =IF(AH90>0,W90,0) -> 0
A91: 1318.3 | B91: 1.3183 | C91: 1.005000246 | D91: 0.09979478284 | E91: 1.000000343 | F91: 0.0008283121287 | G91: 1 | H91: 0 | I91: 7952.04184 | J91: 1.570670573 | K91: 1.029224879 | L91: 0.23887421 | M91: 1.000033188 | N91: 0.008147006421 | O91: 1 | P91: 0 | Q91: 1 | R91: 0 | S91: 1.000105353 | T91: 0.01910916159 | U91: 25.71757297 | V91: -83.53833534 | W91: 96.46166466 | Y91: 1000000000 | Z91: 1737914.89 | AB91: 19.94756852 | AC91: -76.77309994 | AE91: 54.55929001 | AF91: -6.765235402 | AH91: 0 | AI91: 0
A92: 1445.4 | B92: 1.4454 | C92: 1.006007874 | D92: 0.1093430214 | E92: 1.000000412 | F92: 0.0009081713536 | G92: 1 | H92: 0 | I92: 8718.714451 | J92: 1.570681631 | K92: 1.03503155 | L92: 0.2609158575 | M92: 1.000039896 | N92: 0.008932436033 | O92: 1 | P92: 0 | Q92: 1 | R92: 0 | S92: 1.000126646 | T92: 0.02095132659 | U92: 24.95801645 | V92: -82.9691238 | W92: 97.0308762 | Y92: 1000000000 | Z92: 2089181.16 | AB92: 19.19690056 | AC92: -75.55584195 | AE92: 54.55040146 | AF92: -7.413281855 | AH92: 0 | AI92: 0
A93: 1584.9 | B93: 1.5849 | C93: 1.007219153 | D93: 0.11979974 | E93: 1.000000496 | F93: 0.000995821709 | G93: 1 | H93: 0 | I93: 9560.184391 | J93: 1.570691726 | K93: 1.04197661 | L93: 0.284812186 | M93: 1.000047968 | N93: 0.009794480203 | O93: 1 | P93: 0 | Q93: 1 | R93: 0 | S93: 1.000152271 | T93: 0.022973155 | U93: 24.20508395 | V93: -82.35988103 | W93: 97.64011897 | Y93: 1000000000 | Z93: 2511908.01 | AB93: 18.4546418 | AC93: -74.23665308 | AE93: 54.53972772 | AF93: -8.123227943 | AH93: 0 | AI93: 0
A94: 1737.8 | B94: 1.7378 | C94: 1.008672966 | D94: 0.1312306616 | E94: 1.000000596 | F94: 0.001091891508 | G94: 1 | H94: 0 | I94: 10482.4837 | J94: 1.57070093 | K94: 1.050262548 | L94: 0.3106245073 | M94: 1.000057669 | N94: 0.01073931328 | O94: 1 | P94: 0 | Q94: 1 | R94: 0 | S94: 1.000183067 | T94: 0.02518911582 | U94: 23.46104464 | V94: -81.71201058 | W94: 98.28798942 | Y94: 1000000000 | Z94: 3019948.84 | AB94: 17.72339717 | AC94: -72.81237827 | AE94: 54.52693303 | AF94: -8.899632313 | AH94: 0 | AI94: 0
A95: 1905.5 | B95: 1.9055 | C95: 1.010418585 | D95: 0.1437283968 | E95: 1.000000717 | F95: 0.001197260387 | G95: 1 | H95: 0 | I95: 11494.05724 | J95: 1.570709325 | K95: 1.060141634 | L95: 0.3384507481 | M95: 1.000069336 | N95: 0.01177557964 | O95: 1 | P95: 0 | Q95: 1 | R95: 0 | S95: 1.000220102 | T95: 0.02761946697 | U95: 22.72674088 | V95: -81.02681831 | W95: 98.97318169 | Y95: 1000000000 | Z95: 3630930.25 | AB95: 17.00443287 | AC95: -71.27790684 | AE95: 54.51159357 | AF95: -9.748911466 | AH95: 0 | AI95: 0
A96: 2089.3 | B96: 2.0893 | C96: 1.012512393 | D96: 0.1573741015 | E96: 1.000000862 | F96: 0.001312745151 | G96: 1 | H96: 0 | I96: 12602.74667 | J96: 1.570716979 | K96: 1.071893332 | L96: 0.3683335891 | M96: 1.000083357 | N96: 0.01291130338 | O96: 1 | P96: 0 | Q96: 1 | R96: 0 | S96: 1.000264609 | T96: 0.03028300608 | U96: 22.00417 | V96: -80.30800239 | W96: 99.69199761 | Y96: 1000000000 | Z96: 4365174.49 | AB96: 16.30022766 | AC96: -69.63125687 | AE96: 54.49322791 | AF96: -10.67674552 | AH96: 0 | AI96: 0
A97: 2290.9 | B97: 2.2909 | C97: 1.015024817 | D97: 0.1722734832 | E97: 1.000001036 | F97: 0.001439413926 | G97: 1 | H97: 0 | I97: 13818.80646 | J97: 1.570723962 | K97: 1.085858219 | L97: 0.4003348552 | M97: 1.000100218 | N97: 0.01415697719 | O97: 1 | P97: 0 | Q97: 1 | R97: 0 | S97: 1.000318134 | T97: 0.03320431294 | U97: 21.29435855 | V97: -79.56002948 | W97: 100.4399705 | Y97: 1000000000 | Z97: 5248222.81 | AB97: 15.61240573 | AC97: -67.86949131 | AE97: 54.47123839 | AF97: -11.69053817 | AH97: 0 | AI97: 0
A98: 2511.9 | B98: 2.5119 | C98: 1.01803653 | D98: 0.1885181202 | E98: 1.000001245 | F98: 0.001578272005 | G98: 1 | H98: 0 | I98: 15151.88787 | J98: 1.570730328 | K98: 1.102409845 | L98: 0.4344453083 | M98: 1.000120486 | N98: 0.01552247176 | O98: 1 | P98: 0 | Q98: 1 | R98: 0 | S98: 1.000382468 | T98: 0.036406499 | U98: 20.59936665 | V98: -78.79051125 | W98: 101.2094888 | Y98: 1000000000 | Z98: 6309641.61 | AB98: 14.94370464 | AC98: -65.99370817 | AE98: 54.44494757 | AF98: -12.79680308 | AH98: 0 | AI98: 0
A99: 2754.2 | B99: 2.7542 | C99: 1.021645285 | D99: 0.2062131476 | E99: 1.000001497 | F99: 0.001730513168 | G99: 1 | H99: 0 | I99: 16613.4518 | J99: 1.570736135 | K99: 1.121984098 | L99: 0.4706400646 | M99: 1.000144849 | N99: 0.01701950611 | O99: 1 | P99: 0 | Q99: 1 | R99: 0 | S99: 1.000459805 | T99: 0.03991699761 | U99: 19.92076014 | V99: -78.00907526 | W99: 101.9909247 | Y99: 1000000000 | Z99: 7585617.64 | AB99: 14.29650287 | AC99: -64.00600781 | AE99: 54.41354284 | AF99: -14.00306744 | AH99: 0 | AI99: 0
A100: 3020 | B100: 3.02 | C100: 1.025969188 | D100: 0.2254744671 | E100: 1.0000018 | F100: 0.001897519683 | G100: 1 | H100: 0 | I100: 18216.76872 | J100: 1.570741432 | K100: 1.145085395 | L100: 0.5088664622 | M100: 1.000174154 | N100: 0.01866164565 | O100: 1 | P100: 0 | Q100: 1 | R100: 0 | S100: 1.000552825 | T100: 0.04376755501 | U100: 19.25981117 | V100: -77.22789945 | W100: 102.7721006 | Y100: 1000000000 | Z100: 9120400 | AB100: 13.67304247 | AC100: -61.91018776 | AE100: 54.37605426 | AF100: -15.31771168 | AH100: 0 | AI100: 0
A101: 3311.3 | B101: 3.3113 | C101: 1.031141123 | D101: 0.2463894917 | E101: 1.000002164 | F101: 0.002080548146 | G101: 1 | H101: 0 | I101: 19973.90273 | J101: 1.570746261 | K101: 1.172243539 | L101: 0.5489649827 | M101: 1.000209367 | N101: 0.02046121086 | O101: 1 | P101: 0 | Q101: 1 | R101: 0 | S101: 1.000664599 | T101: 0.04798697636 | U101: 18.6186302 | V101: -76.46341855 | W101: 103.5365814 | Y101: 1000000000 | Z101: 10964707.69 | AB101: 13.07650439 | AC101: -59.71609595 | AE101: 54.33141137 | AF101: -16.7473226 | AH101: 0 | AI101: 0
A102: 3630.8 | B102: 3.6308 | C102: 1.037326843 | D102: 0.2690783717 | E102: 1.000002602 | F102: 0.002281294961 | G102: 1 | H102: 0 | I102: 21901.14034 | J102: 1.570750667 | K102: 1.204093441 | L102: 0.5907910138 | M102: 1.000251714 | N102: 0.0224348345 | O102: 1 | P102: 0 | Q102: 1 | R102: 0 | S102: 1.000799013 | T102: 0.05261414906 | U102: 17.99792035 | V102: -75.73388881 | W102: 104.2661112 | Y102: 1000000000 | Z102: 13182708.64 | AB102: 12.50890757 | AC102: -57.43297362 | AE102: 54.27829835 | AF102: -18.30091519 | AH102: 0 | AI102: 0
A103: 3981.1 | B103: 3.9811 | C103: 1.044714745 | D103: 0.2936316277 | E103: 1.000003128 | F103: 0.002501393683 | G103: 1 | H103: 0 | I103: 24014.16487 | J103: 1.570754685 | K103: 1.241301634 | L103: 0.6340987601 | M103: 1.00030262 | N103: 0.02459851525 | O103: 1 | P103: 0 | Q103: 1 | R103: 0 | S103: 1.000960592 | T103: 0.05768643544 | U103: 17.39876602 | V103: -75.06154551 | W103: 104.9384545 | Y103: 1000000000 | Z103: 15849157.21 | AB103: 11.97279306 | AC103: -55.0758225 | AE103: 54.21525853 | AF103: -19.98572301 | AH103: 0 | AI103: 0
A104: 4365.2 | B104: 4.3652 | C104: 1.053528476 | D104: 0.320140413 | E104: 1.000003761 | F104: 0.00274272917 | G104: 1 | H104: 0 | I104: 26331.07244 | J104: 1.570758349 | K104: 1.284610269 | L104: 0.6786096426 | M104: 1.00036382 | N104: 0.0269707013 | O104: 1 | P104: 0 | Q104: 1 | R104: 0 | S104: 1.001154839 | T104: 0.06324689033 | U104: 16.82144365 | V104: -74.4709906 | W104: 105.5290094 | Y104: 1000000000 | Z104: 19054971.04 | AB104: 11.47012171 | AC104: -52.66166298 | AE104: 54.14060751 | AF104: -21.80932762 | AH104: 0 | AI104: 0
A105: 4786.3 | B105: 4.7863 | C105: 1.064026803 | D105: 0.3486758148 | E105: 1.000004522 | F105: 0.003007311914 | G105: 1 | H105: 0 | I105: 28871.16558 | J105: 1.57076169 | K105: 1.334812875 | L105: 0.7239901907 | M105: 1.000437383 | N105: 0.02957104802 | O105: 1 | P105: 0 | Q105: 1 | R105: 0 | S105: 1.00138832 | T105: 0.06934133236 | U105: 16.26572491 | V105: -73.98904148 | W105: 106.0109585 | Y105: 1000000000 | Z105: 22908667.69 | AB105: 11.00254756 | AC105: -50.21072943 | AE105: 54.05246292 | AF105: -23.77831204 | AH105: 0 | AI105: 0
A106: 5248.1 | B106: 5.2481 | C106: 1.076514977 | D106: 0.3793016425 | E106: 1.000005437 | F106: 0.003297466526 | G106: 1 | H106: 0 | I106: 31656.76286 | J106: 1.570764738 | K106: 1.392785022 | L106: 0.7698919331 | M106: 1.000525832 | N106: 0.03242226136 | O106: 1 | P106: 0 | Q106: 1 | R106: 0 | S106: 1.001669037 | T106: 0.07602264302 | U106: 15.73041056 | V106: -73.64351943 | W106: 106.3564806 | Y106: 1000000000 | Z106: 27542553.61 | AB106: 10.57100998 | AC106: -47.74429044 | AE106: 53.94868615 | AF106: -25.89922898 | AH106: 0 | AI106: 0
A107: 5370.3 | B107: 5.3703 | C107: 1.079986003 | D107: 0.387284829 | E107: 1.000005693 | F107: 0.003374246196 | G107: 1 | H107: 0 | I107: 32393.87846 | J107: 1.570765457 | K107: 1.408590707 | L107: 0.7813983228 | M107: 1.000550598 | N107: 0.03317665375 | O107: 1 | P107: 0 | Q107: 1 | R107: 0 | S107: 1.001747636 | T107: 0.0777902236 | U107: 15.59964094 | V107: -73.58179519 | W107: 106.4182048 | Y107: 1000000000 | Z107: 28840122.09 | AB107: 10.46888069 | AC107: -47.12828755 | AE107: 53.92004582 | AF107: -26.45350763 | AH107: 0 | AI107: 0
A108: 5432.85 | B108: 5.43285 | C108: 1.081789206 | D108: 0.3913511943 | E108: 1.000005826 | F108: 0.003413547067 | G108: 1 | H108: 0 | I108: 32771.18273 | J108: 1.570765812 | K108: 1.416752038 | L108: 0.787188319 | M108: 1.000563495 | N108: 0.03356278685 | O108: 1 | P108: 0 | Q108: 1 | R108: 0 | S108: 1.001788567 | T108: 0.07869491918 | U108: 15.53428211 | V108: -73.55476604 | W108: 106.445234 | Y108: 1000000000 | Z108: 29515859.12 | AB108: 10.41836593 | AC108: -46.81868937 | AE108: 53.90520175 | AF108: -26.73607667 | AH108: 0 | AI108: 0
A109: 5495.4 | B109: 5.4954 | C109: 1.083610236 | D109: 0.3954039593 | E109: 1.000005961 | F109: 0.003452847928 | G109: 1 | H109: 0 | I109: 33148.48699 | J109: 1.57076616 | K109: 1.424960319 | L109: 0.7929118002 | M109: 1.000576541 | N109: 0.03394890994 | O109: 1 | P109: 0 | Q109: 1 | R109: 0 | S109: 1.001829971 | T109: 0.0795995677 | U109: 15.46994854 | V109: -73.53076494 | W109: 106.4692351 | Y109: 1000000000 | Z109: 30199421.16 | AB109: 10.36899927 | AC109: -46.51290117 | AE109: 53.89023483 | AF109: -27.01786377 | AH109: 0 | AI109: 0
A110: 5559.4 | B110: 5.5594 | C110: 1.08549184 | D110: 0.3995365292 | E110: 1.000006101 | F110: 0.003493059829 | G110: 1 | H110: 0 | I110: 33534.53772 | J110: 1.570766507 | K110: 1.433406634 | L110: 0.7986999188 | M110: 1.000590044 | N110: 0.03434397344 | O110: 1 | P110: 0 | Q110: 1 | R110: 0 | S110: 1.001872825 | T110: 0.08052513801 | U110: 15.40515224 | V110: -73.50929166 | W110: 106.4907083 | Y110: 1000000000 | Z110: 30906928.36 | AB110: 10.31964258 | AC110: -46.20392178 | AE110: 53.87479523 | AF110: -27.30536988 | AH110: 0 | AI110: 0
A111: 5623.4 | B111: 5.6234 | C111: 1.087391918 | D111: 0.4036547269 | E111: 1.000006242 | F111: 0.003533271718 | G111: 1 | H111: 0 | I111: 33920.58845 | J111: 1.570766846 | K111: 1.441900408 | L111: 0.8044200352 | M111: 1.000603704 | N111: 0.03473902622 | O111: 1 | P111: 0 | Q111: 1 | R111: 0 | S111: 1.001916174 | T111: 0.08145065792 | U111: 15.34136434 | V111: -73.4908872 | W111: 106.5091128 | Y111: 1000000000 | Z111: 31622627.56 | AB111: 10.27142002 | AC111: -45.89883755 | AE111: 53.85922989 | AF111: -27.59204964 | AH111: 0 | AI111: 0
A112: 5688.9 | B112: 5.6889 | C112: 1.089355556 | D112: 0.4078544966 | E112: 1.000006388 | F112: 0.003574426062 | G112: 1 | H112: 0 | I112: 34315.68724 | J112: 1.570767186 | K112: 1.450641525 | L112: 0.8102046647 | M112: 1.000617845 | N112: 0.03514332681 | O112: 1 | P112: 0 | Q112: 1 | R112: 0 | S112: 1.001961052 | T112: 0.08239781692 | U112: 15.27709311 | V112: -73.47517583 | W112: 106.5248242 | Y112: 1000000000 | Z112: 32363583.21 | AB112: 10.22320761 | AC112: -45.59058686 | AE112: 53.84317107 | AF112: -27.88458897 | AH112: 0 | AI112: 0
A113: 5754.4 | B113: 5.7544 | C113: 1.091338339 | D113: 0.4120390794 | E113: 1.000006536 | F113: 0.003615580394 | G113: 1 | H113: 0 | I113: 34710.78603 | J113: 1.570767517 | K113: 1.459430601 | L113: 0.8159198104 | M113: 1.000632149 | N113: 0.03554761591 | O113: 1 | P113: 0 | Q113: 1 | R113: 0 | S113: 1.002006449 | T113: 0.08334492191 | U113: 15.21381342 | V113: -73.46257124 | W113: 106.5374288 | Y113: 1000000000 | Z113: 33113119.36 | AB113: 10.17611535 | AC113: -45.28631619 | AE113: 53.82698363 | AF113: -28.17625505 | AH113: 0 | AI113: 0
A114: 5821.4 | B114: 5.8214 | C114: 1.093386228 | D114: 0.4163037134 | E114: 1.000006689 | F114: 0.003657677179 | G114: 1 | H114: 0 | I114: 35114.93289 | J114: 1.570767849 | K114: 1.468469675 | L114: 0.8216948636 | M114: 1.000646951 | N114: 0.03596115151 | O114: 1 | P114: 0 | Q114: 1 | R114: 0 | S114: 1.002053421 | T114: 0.0843136598 | U114: 15.15007815 | V114: -73.45283607 | W114: 106.5471639 | Y114: 1000000000 | Z114: 33888697.96 | AB114: 10.12906967 | AC114: -44.97914286 | AE114: 53.81029404 | AF114: -28.4736932 | AH114: 0 | AI114: 0
A115: 5888.4 | B115: 5.8884 | C115: 1.095453928 | D115: 0.4205523252 | E115: 1.000006844 | F115: 0.003699773951 | G115: 1 | H115: 0 | I115: 35519.07974 | J115: 1.570768173 | K115: 1.477557124 | L115: 0.8273990682 | M115: 1.000661923 | N115: 0.0363746748 | O115: 1 | P115: 0 | Q115: 1 | R115: 0 | S115: 1.002100937 | T115: 0.08528233989 | U115: 15.08731602 | V115: -73.44623776 | W115: 106.5537622 | Y115: 1000000000 | Z115: 34673254.56 | AB115: 10.08312841 | AC115: -44.67602772 | AE115: 53.79347317 | AF115: -28.77021004 | AH115: 0 | AI115: 0
A116: 5957 | B116: 5.957 | C116: 1.097591416 | D116: 0.4248857305 | E116: 1.000007005 | F116: 0.003742876005 | G116: 1 | H116: 0 | I116: 35932.87786 | J116: 1.570768497 | K116: 1.486910782 | L116: 0.8331670586 | M116: 1.000677431 | N116: 0.03679806038 | O116: 1 | P116: 0 | Q116: 1 | R116: 0 | S116: 1.00215015 | T116: 0.08627409205 | U116: 15.02403125 | V116: -73.44267252 | W116: 106.5573275 | Y116: 1000000000 | Z116: 35485849 | AB116: 10.03720049 | AC116: -44.369823 | AE116: 53.77611632 | AF116: -29.07284952 | AH116: 0 | AI116: 0
A117: 6025.6 | B117: 6.0256 | C117: 1.099749434 | D117: 0.4292022099 | E117: 1.000007167 | F117: 0.003785978045 | G117: 1 | H117: 0 | I117: 36346.67599 | J117: 1.570768814 | K117: 1.49631329 | L117: 0.8388627469 | M117: 1.000693118 | N117: 0.03722143277 | O117: 1 | P117: 0 | Q117: 1 | R117: 0 | S117: 1.002199931 | T117: 0.08726578222 | U117: 14.96170262 | V117: -73.44227537 | W117: 106.5577246 | Y117: 1000000000 | Z117: 36307855.36 | AB117: 9.992362818 | AC117: -44.0677597 | AE117: 53.75862537 | AF117: -29.37451567 | AH117: 0 | AI117: 0
A118: 6095.8 | B118: 6.0958 | C118: 1.101978913 | D118: 0.433601779 | E118: 1.000007335 | F118: 0.003830085367 | G118: 1 | H118: 0 | I118: 36770.12538 | J118: 1.570769131 | K118: 1.505984715 | L118: 0.8446174592 | M118: 1.000709356 | N118: 0.0376546659 | O118: 1 | P118: 0 | Q118: 1 | R118: 0 | S118: 1.002251463 | T118: 0.08828053727 | U118: 14.89887818 | V118: -73.44508599 | W118: 106.554914 | Y118: 1000000000 | Z118: 37158777.64 | AB118: 9.947574265 | AC118: -43.76287956 | AE118: 53.74058948 | AF118: -29.68220643 | AH118: 0 | AI118: 0
A119: 6166 | B119: 6.166 | C119: 1.104229637 | D119: 0.4379834975 | E119: 1.000007505 | F119: 0.003874192673 | G119: 1 | H119: 0 | I119: 37193.57477 | J119: 1.57076944 | K119: 1.515705377 | L119: 0.8502985442 | M119: 1.000725782 | N119: 0.0380878849 | O119: 1 | P119: 0 | Q119: 1 | R119: 0 | S119: 1.00230359 | T119: 0.0892952259 | U119: 14.83699137 | V119: -73.45108734 | W119: 106.5489127 | Y119: 1000000000 | Z119: 38019556 | AB119: 9.903860017 | AC119: -43.46221672 | AE119: 53.72241692 | AF119: -29.98887062 | AH119: 0 | AI119: 0
A120: 6237.8 | B120: 6.2378 | C120: 1.106553499 | D120: 0.4424465576 | E120: 1.000007681 | F120: 0.003919305258 | G120: 1 | H120: 0 | I120: 37626.67543 | J120: 1.57076975 | K120: 1.525697543 | L120: 0.8560340376 | M120: 1.000742777 | N120: 0.03853096304 | O120: 1 | P120: 0 | Q120: 1 | R120: 0 | S120: 1.002357521 | T120: 0.09033297185 | U120: 14.7746323 | V120: -73.46046022 | W120: 106.5395398 | Y120: 1000000000 | Z120: 38910148.84 | AB120: 9.860227108 | AC120: -43.15900139 | AE120: 53.70369076 | AF120: -30.30145883 | AH120: 0 | AI120: 0
A121: 6309.6 | B121: 6.3096 | C121: 1.10889931 | D121: 0.4468908231 | E121: 1.000007858 | F121: 0.003964417828 | G121: 1 | H121: 0 | I121: 38059.77609 | J121: 1.570770052 | K121: 1.535739244 | L121: 0.8616947102 | M121: 1.000759968 | N121: 0.03897402604 | O121: 1 | P121: 0 | Q121: 1 | R121: 0 | S121: 1.002412076 | T121: 0.09137064673 | U121: 14.71319104 | V121: -73.47303784 | W121: 106.5269622 | Y121: 1000000000 | Z121: 39811052.16 | AB121: 9.817650972 | AC121: -42.86007171 | AE121: 53.68482563 | AF121: -30.61296612 | AH121: 0 | AI121: 0
A122: 6383.05 | B122: 6.38305 | C122: 1.111321595 | D122: 0.4514177145 | E122: 1.000008042 | F122: 0.00401056709 | G122: 1 | H122: 0 | I122: 38502.82962 | J122: 1.570770355 | K122: 1.546061957 | L122: 0.8674091937 | M122: 1.000777758 | N122: 0.03942725501 | O122: 1 | P122: 0 | Q122: 1 | R122: 0 | S122: 1.002468528 | T122: 0.09243209353 | U122: 14.65125615 | V122: -73.48915151 | W122: 106.5108485 | Y122: 1000000000 | Z122: 40743327.3 | AB122: 9.775156436 | AC122: -42.55864136 | AE122: 53.66538528 | AF122: -30.93051016 | AH122: 0 | AI122: 0
A123: 6456.5 | B123: 6.4565 | C123: 1.113766554 | D123: 0.4559248229 | E123: 1.000008229 | F123: 0.004056716335 | G123: 1 | H123: 0 | I123: 38945.88315 | J123: 1.57077065 | K123: 1.556434488 | L123: 0.8730476934 | M123: 1.000795753 | N123: 0.03988046777 | O123: 1 | P123: 0 | Q123: 1 | R123: 0 | S123: 1.002525633 | T123: 0.09349346424 | U123: 14.59021929 | V123: -73.50847958 | W123: 106.4915204 | Y123: 1000000000 | Z123: 41686392.25 | AB123: 9.733701103 | AC123: -42.26156323 | AE123: 53.64580375 | AF123: -31.24691635 | AH123: 0 | AI123: 0
A124: 6531.7 | B124: 6.5317 | C124: 1.116293103 | D124: 0.460518766 | E124: 1.000008421 | F124: 0.004103965102 | G124: 1 | H124: 0 | I124: 39399.49275 | J124: 1.570770946 | K124: 1.567104729 | L124: 0.8787430185 | M124: 1.00081439 | N124: 0.04034446168 | O124: 1 | P124: 0 | Q124: 1 | R124: 0 | S124: 1.002584773 | T124: 0.09458004316 | U124: 14.52862749 | V124: -73.5315261 | W124: 106.4684739 | Y124: 1000000000 | Z124: 42663104.89 | AB124: 9.692301389 | AC124: -41.96184697 | AE124: 53.62561166 | AF124: -31.56967913 | AH124: 0 | AI124: 0
A125: 6606.9 | B125: 6.6069 | C125: 1.118843103 | D125: 0.4650918648 | E125: 1.000008616 | F125: 0.00415121385 | G125: 1 | H125: 0 | I125: 39853.10236 | J125: 1.570771235 | K125: 1.577825113 | L125: 0.8843611311 | M125: 1.000833242 | N125: 0.0408084382 | O125: 1 | P125: 0 | Q125: 1 | R125: 0 | S125: 1.002644597 | T125: 0.09566654051 | U125: 14.46791512 | V125: -73.55779623 | W125: 106.4422038 | Y125: 1000000000 | Z125: 43651127.61 | AB125: 9.651924554 | AC125: -41.66655327 | AE125: 53.60527614 | AF125: -31.89124295 | AH125: 0 | AI125: 0
A126: 6683.85 | B126: 6.68385 | C126: 1.121476555 | D126: 0.4697497573 | E126: 1.000008818 | F126: 0.004199562118 | G126: 1 | H126: 0 | I126: 40317.26804 | J126: 1.570771524 | K126: 1.588845823 | L126: 0.89003132 | M126: 1.000852757 | N126: 0.04128319385 | O126: 1 | P126: 0 | Q126: 1 | R126: 0 | S126: 1.00270652 | T126: 0.09677823662 | U126: 14.40666953 | V126: -73.58793931 | W126: 106.4120607 | Y126: 1000000000 | Z126: 44673850.82 | AB126: 9.611633823 | AC126: -41.36889343 | AE126: 53.58432127 | AF126: -32.21904588 | AH126: 0 | AI126: 0
A127: 6760.8 | B127: 6.7608 | C127: 1.124134225 | D127: 0.4743857257 | E127: 1.000009022 | F127: 0.004247910367 | G127: 1 | H127: 0 | I127: 40781.43371 | J127: 1.570771806 | K127: 1.599916912 | L127: 0.8956232136 | M127: 1.000872496 | N127: 0.04175793089 | O127: 1 | P127: 0 | Q127: 1 | R127: 0 | S127: 1.002769158 | T127: 0.09788984537 | U127: 14.34628356 | V127: -73.62130577 | W127: 106.3786942 | Y127: 1000000000 | Z127: 45708416.64 | AB127: 9.572348084 | AC127: -41.07571813 | AE127: 53.56322104 | AF127: -32.54558764 | AH127: 0 | AI127: 0
A128: 6839.55 | B128: 6.83955 | C128: 1.126878957 | D128: 0.4791073932 | E128: 1.000009234 | F128: 0.004297389548 | G128: 1 | H128: 0 | I128: 41256.45707 | J128: 1.570772088 | K128: 1.611298049 | L128: 0.9012661708 | M128: 1.000892931 | N128: 0.04224375338 | O128: 1 | P128: 0 | Q128: 1 | R128: 0 | S128: 1.002834002 | T128: 0.09902736516 | U128: 14.28534467 | V128: -73.65871165 | W128: 106.3412884 | Y128: 1000000000 | Z128: 46779444.2 | AB128: 9.533150987 | AC128: -40.78025225 | AE128: 53.54147925 | AF128: -32.8784594 | AH128: 0 | AI128: 0
A129: 6918.3 | B129: 6.9183 | C129: 1.129648689 | D129: 0.4838060113 | E129: 1.000009448 | F129: 0.004346868707 | G129: 1 | H129: 0 | I129: 41731.48043 | J129: 1.570772364 | K129: 1.622729774 | L129: 0.9068297966 | M129: 1.000913602 | N129: 0.04272955592 | O129: 1 | P129: 0 | Q129: 1 | R129: 0 | S129: 1.002899595 | T129: 0.1001647914 | U129: 14.2252456 | V129: -73.69933537 | W129: 106.3006646 | Y129: 1000000000 | Z129: 47862874.89 | AB129: 9.494940837 | AC129: -40.48933021 | AE129: 53.51959033 | AF129: -33.21000515 | AH129: 0 | AI129: 0
A130: 6998.9 | B130: 6.9989 | C130: 1.132509185 | D130: 0.4885911025 | E130: 1.000009669 | F130: 0.004397510213 | G130: 1 | H130: 0 | I130: 42217.66306 | J130: 1.57077264 | K130: 1.634481331 | L130: 0.9124433564 | M130: 1.000935004 | N130: 0.04322675006 | O130: 1 | P130: 0 | Q130: 1 | R130: 0 | S130: 1.002967504 | T130: 0.10132884 | U130: 14.16457431 | V130: -73.74416408 | W130: 106.2558359 | Y130: 1000000000 | Z130: 48984601.21 | AB130: 9.456822354 | AC130: -40.19619987 | AE130: 53.49703752 | AF130: -33.54796422 | AH130: 0 | AI130: 0
A131: 7079.5 | B131: 7.0795 | C131: 1.135395481 | D131: 0.4933519738 | E131: 1.000009893 | F131: 0.004448151696 | G131: 1 | H131: 0 | I131: 42703.8457 | J131: 1.57077291 | K131: 1.646283657 | L131: 0.9179766005 | M131: 1.000956653 | N131: 0.04372392283 | O131: 1 | P131: 0 | Q131: 1 | R131: 0 | S131: 1.003036197 | T131: 0.1024927883 | U131: 14.10472304 | V131: -73.79219953 | W131: 106.2078005 | Y131: 1000000000 | Z131: 50119320.25 | AB131: 9.419672588 | AC131: -39.90766969 | AE131: 53.47433602 | AF131: -33.88452984 | AH131: 0 | AI131: 0
A132: 7161.95 | B132: 7.16195 | C132: 1.138374516 | D132: 0.4981970286 | E132: 1.000010125 | F132: 0.004499955522 | G132: 1 | H132: 0 | I132: 43201.18761 | J132: 1.570773179 | K132: 1.658408281 | L132: 0.9235551846 | M132: 1.000979054 | N132: 0.04423248474 | O132: 1 | P132: 0 | Q132: 1 | R132: 0 | S132: 1.003107279 | T132: 0.1036833477 | U132: 14.04431691 | V132: -73.84457117 | W132: 106.1554288 | Y132: 1000000000 | Z132: 51293527.8 | AB132: 9.382640041 | AC132: -39.61719426 | AE132: 53.45096244 | AF132: -34.22737691 | AH132: 0 | AI132: 0
A133: 7244.4 | B133: 7.2444 | C133: 1.141380134 | D133: 0.5030166789 | E133: 1.000010359 | F133: 0.004551759323 | G133: 1 | H133: 0 | I133: 43698.52952 | J133: 1.570773443 | K133: 1.670583766 | L133: 0.9290526225 | M133: 1.001001715 | N133: 0.04474102376 | O133: 1 | P133: 0 | Q133: 1 | R133: 0 | S133: 1.003179182 | T133: 0.1048737997 | U133: 13.98471009 | V133: -73.90012877 | W133: 106.0998712 | Y133: 1000000000 | Z133: 52481331.36 | AB133: 9.346556647 | AC133: -39.3313665 | AE133: 53.42743901 | AF133: -34.56876227 | AH133: 0 | AI133: 0
A134: 7328.75 | B134: 7.32875 | C134: 1.144482305 | D134: 0.5079210812 | E134: 1.000010602 | F134: 0.00460475688 | G134: 1 | H134: 0 | I134: 44207.33232 | J134: 1.570773706 | K134: 1.683091307 | L134: 0.9345942658 | M134: 1.001025166 | N134: 0.04526125773 | O134: 1 | P134: 0 | Q134: 1 | R134: 0 | S134: 1.003253591 | T134: 0.1060915724 | U134: 13.92452771 | V134: -73.96017655 | W134: 106.0398234 | Y134: 1000000000 | Z134: 53710576.56 | AB134: 9.310591859 | AC134: -39.04367603 | AE134: 53.40322142 | AF134: -34.91650052 | AH134: 0 | AI134: 0
A135: 7413.1 | B135: 7.4131 | C135: 1.147611856 | D135: 0.5127988517 | E135: 1.000010847 | F135: 0.004657754412 | G135: 1 | H135: 0 | I135: 44716.13511 | J135: 1.570773964 | K135: 1.695649772 | L135: 0.9400539888 | M135: 1.001048887 | N135: 0.04578146718 | O135: 1 | P135: 0 | Q135: 1 | R135: 0 | S135: 1.003328858 | T135: 0.1073092302 | U135: 13.86512407 | V135: -74.0233838 | W135: 105.9766162 | Y135: 1000000000 | Z135: 54954051.61 | AB135: 9.275556579 | AC135: -38.7606775 | AE135: 53.37885305 | AF135: -35.2627063 | AH135: 0 | AI135: 0
A136: 7499.45 | B136: 7.49945 | C136: 1.150843737 | D136: 0.5177646765 | E136: 1.000011102 | F136: 0.004712008526 | G136: 1 | H136: 0 | I136: 45237.00199 | J136: 1.570774221 | K136: 1.708557585 | L136: 0.9455598589 | M136: 1.001073452 | N136: 0.04631398549 | O136: 1 | P136: 0 | Q136: 1 | R136: 0 | S136: 1.0034068 | T136: 0.1085556392 | U136: 13.80508996 | V136: -74.09127274 | W136: 105.9087273 | Y136: 1000000000 | Z136: 56241750.3 | AB136: 9.240621629 | AC136: -38.47574018 | AE136: 53.35375389 | AF136: -35.61553255 | AH136: 0 | AI136: 0
A137: 7585.8 | B137: 7.5858 | C137: 1.154103839 | D137: 0.5227025678 | E137: 1.000011359 | F137: 0.004766262612 | G137: 1 | H137: 0 | I137: 45757.86887 | J137: 1.570774473 | K137: 1.721516414 | L137: 0.9509829997 | M137: 1.001098301 | N137: 0.04684647752 | O137: 1 | P137: 0 | Q137: 1 | R137: 0 | S137: 1.003485641 | T137: 0.109801925 | U137: 13.74581505 | V137: -74.16229233 | W137: 105.8377077 | Y137: 1000000000 | Z137: 57544361.64 | AB137: 9.206597487 | AC137: -38.19554107 | AE137: 53.32850313 | AF137: -35.96675127 | AH137: 0 | AI137: 0
A138: 7674.15 | B138: 7.67415 | C138: 1.157468408 | D138: 0.5277259128 | E138: 1.000011625 | F138: 0.004821773279 | G138: 1 | H138: 0 | I138: 46290.79983 | J138: 1.570774724 | K138: 1.734827 | L138: 0.956447728 | M138: 1.001124018 | N138: 0.04739127537 | O138: 1 | P138: 0 | Q138: 1 | R138: 0 | S138: 1.00356724 | T138: 0.1110769477 | U138: 13.68592494 | V138: -74.23810486 | W138: 105.7618951 | Y138: 1000000000 | Z138: 58892578.22 | AB138: 9.17269654 | AC138: -37.91366423 | AE138: 53.30251396 | AF138: -36.32444063 | AH138: 0 | AI138: 0
A139: 7762.5 | B139: 7.7625 | C139: 1.160862016 | D139: 0.5327200132 | E139: 1.000011894 | F139: 0.004877283915 | G139: 1 | H139: 0 | I139: 46823.7308 | J139: 1.57077497 | K139: 1.748188603 | L139: 0.9618290799 | M139: 1.001150033 | N139: 0.04793604507 | O139: 1 | P139: 0 | Q139: 1 | R139: 0 | S139: 1.00364978 | T139: 0.1123518386 | U139: 13.62677377 | V139: -74.31700942 | W139: 105.6829906 | Y139: 1000000000 | Z139: 60256406.25 | AB139: 9.139686487 | AC139: -37.63656257 | AE139: 53.27637285 | AF139: -36.68044685 | AH139: 0 | AI139: 0
A140: 7852.9 | B140: 7.8529 | C140: 1.164364157 | D140: 0.5377997303 | E140: 1.000012173 | F140: 0.004934082543 | G140: 1 | H140: 0 | I140: 47369.02745 | J140: 1.570775216 | K140: 1.761911835 | L140: 0.9672506527 | M140: 1.001176959 | N140: 0.04849342568 | O140: 1 | P140: 0 | Q140: 1 | R140: 0 | S140: 1.003735211 | T140: 0.1136561729 | U140: 13.56698742 | V140: -74.4008507 | W140: 105.5991493 | Y140: 1000000000 | Z140: 61668038.41 | AB140: 9.106801566 | AC140: -37.35787897 | AE140: 53.24947142 | AF140: -37.04297173 | AH140: 0 | AI140: 0
A141: 7943.3 | B141: 7.9433 | C141: =SQRT(1+(A141/pole1)^2) -> 1.167896162 | D141: =ATAN(A141/pole1) -> 0.5428488524 | E141: =SQRT(1+(A141/Zero1)^2) -> 1.000012455 | F141: =ATAN(A141/Zero1) -> 0.00499088114 | G141: =IF(VIN_nom>Vout, 1, SQRT(1+(A141/z_RHP)^2)) -> 1 | H141: =IF(VIN_nom>Vout, 0, -ATAN(A141/z_RHP)) -> 0 | I141: =SQRT(1+(A141/Pole2)^2) -> 47914.3241 | J141: =ATAN(A141/Pole2) -> 1.570775456 | K141: =SQRT(1+(A141/Zero2)^2) -> 1.775686054 | L141: =ATAN(A141/Zero2) -> 0.9725882688 | M141: =SQRT(1+(A141/pole4)^2) -> 1.001204196 | N141: =ATAN(A141/pole4) -> 0.04905077613 | O141: =IF(VOUT_setting=1,1,SQRT(1+(A141*zterm1)^2)) -> 1 | P141: =IF(VOUT_setting=1,0,ATAN(((A141*zterm1)))) -> 0 | Q141: 1 | R141: =IF(VOUT_setting=1,0,ATAN(A141*$Q$4/(1+Afbr-$Q$5*(A141)^2))) -> 0 | S141: =SQRT((1-(Z141/pterm2))^2+(A141/pterm1)^2) -> 1.003821627 | T141: =IF((ATAN((A141/pterm1)/(1-A141^2/pterm2))>0),ATAN((A141/pterm1)/(1-A141^2/pterm2)),PI()+ATAN((A141/pterm1)/(1-A141^2/pterm2))) -> 0.114960366 | U141: =20*LOG10(((E141*K141*G141*O141)/(C141*I141*S141*M141*Q141))*Adc) -> 13.50791999 | V141: =((F141+L141+H141+P141)-(D141+J141+T141+N141+R141))*radconv -> -74.48773925 | W141: =IF(V141>0,V141,V141+180) -> 105.5122607 | Y141: =IF(U141<0,A141,1000000000) -> 1000000000 | Z141: =A141^2 -> 63096014.89 | AB141: =20*LOG10((K141/(I141*M141))*AEA) -> 9.074787528 | AC141: =(L141-(J141+N141))*radconv -> -37.08400369 | AE141: =20*LOG10((E141*G141/(C141*S141))*Acs*Am) -> 53.22241803 | AF141: =(F141+H141-(D141+T141))*radconv -> -37.40373556 | AH141: =SUM((U142<0)*(U141>0))*A141 -> 0 | AI141: 0
A142: 8035.8 | B142: =A142/1000 -> 8.0358 | C142: 1.171540847 | D142: 0.5479836181 | E142: 1.000012746 | F142: 0.005048999139 | G142: 1 | H142: 0 | I142: 48472.28805 | J142: 1.570775696 | K142: 1.789831799 | L142: 0.9779646818 | M142: 1.001232388 | N142: 0.04962104232 | O142: 1 | P142: 0 | Q142: 1 | R142: 0 | S142: 1.00391107 | T142: 0.1162947078 | U142: 13.4481976 | V142: -74.57970373 | W142: 105.4202963 | Y142: 1000000000 | Z142: 64574081.64 | AB142: 9.042900593 | AC142: -36.80864553 | AE142: 53.19458257 | AF142: -37.7710582 | AH142: 0 | AI142: 0
A143: 8128.3 | B143: 8.1283 | C143: 1.175216229 | D143: 0.5530864006 | E143: 1.000013041 | F143: 0.005107117105 | G143: 1 | H143: 0 | I143: 49030.25199 | J143: 1.570775931 | K143: 1.804028469 | L143: 0.9832566272 | M143: 1.001260906 | N143: 0.0501912762 | O143: 1 | P143: 0 | Q143: =IF(VOUT_setting=1,1,SQRT((1+Afbr-$Q$5*(A143)^2)^2+(A143*$Q$4)^2)) -> 1 | R143: 0 | S143: 1.004001546 | T143: 0.1176288984 | U143: 13.38917436 | V143: -74.67466452 | W143: 105.3253355 | Y143: 1000000000 | Z143: 66069260.89 | AB143: 9.011864442 | AC143: -36.53812484 | AE143: 53.16659548 | AF143: -38.13653968 | AH143: 0 | AI143: 0
A144: 8222.95 | B144: 8.22295 | C144: 1.179008514 | D144: 0.5582747176 | E144: 1.000013347 | F144: 0.005166585884 | G144: 1 | H144: 0 | I144: 49601.18482 | J144: 1.570776166 | K144: 1.818606584 | L144: 0.9885858972 | M144: 1.001290423 | N144: 0.05077473036 | O144: 1 | P144: 0 | Q144: 1 | R144: 0 | S144: 1.004095192 | T144: 0.1189939416 | U144: 13.32947655 | V144: -74.77483532 | W144: 105.2251647 | Y144: 1000000000 | Z144: 67616906.7 | AB144: 8.980957328 | AC144: -36.26622307 | AE144: 53.13780479 | AF144: -38.50861225 | AH144: 0 | AI144: 0
A145: 8270.275 | B145: 8.270275 | C145: 1.180916501 | D145: 0.5608563455 | E145: 1.000013501 | F145: 0.00519632026 | G145: 1 | H145: 0 | I145: 49886.65124 | J145: 1.570776281 | K145: 1.825914779 | L145: 0.9912185832 | M145: 1.001305309 | N145: 0.05106644449 | O145: 1 | P145: 0 | Q145: 1 | R145: 0 | S145: 1.00414242 | T145: 0.1196764026 | U145: 13.29988409 | V145: -74.82602898 | W145: 105.173971 | Y145: 1000000000 | Z145: 68397448.58 | AB145: 8.965817062 | AC145: -36.13210188 | AE145: 53.1233526 | AF145: -38.69392711 | AH145: 0 | AI145: 0
A146: 8317.6 | B146: 8.3176 | C146: 1.182832332 | D146: 0.5634296275 | E146: 1.000013656 | F146: 0.005226054627 | G146: 1 | H146: 0 | I146: 50172.11765 | J146: 1.570776395 | K146: 1.833235528 | L146: 0.9938302607 | M146: 1.001320281 | N146: 0.05135814992 | O146: 1 | P146: 0 | Q146: 1 | R146: 0 | S146: 1.004189919 | T146: 0.1203588228 | U146: 13.27045841 | V146: -74.87794525 | W146: 105.1220547 | Y146: 1000000000 | Z146: 69182469.76 | AB146: 8.950880816 | AC146: -35.9991838 | AE146: 53.10886316 | AF146: -38.87876145 | AH146: 0 | AI146: 0
A147: 8366.05 | B147: 8.36605 | C147: 1.184801794 | D147: 0.566055442 | E147: 1.000013816 | F147: 0.005256495824 | G147: 1 | H147: 0 | I147: 50464.37012 | J147: 1.570776511 | K147: 1.840743154 | L147: 0.9964824836 | M147: 1.001335697 | N147: 0.05165678064 | O147: 1 | P147: 0 | Q147: 1 | R147: 0 | S147: 1.004238826 | T147: 0.121057423 | U147: 13.24050282 | V147: -74.93183175 | W147: 105.0681683 | Y147: 1000000000 | Z147: 69990792.6 | AB147: 8.935797169 | AC147: -35.86433951 | AE147: 53.09399121 | AF147: -39.06749223 | AH147: 0 | AI147: 0
A148: 8414.5 | B148: 8.4145 | C148: 1.186779398 | D148: 0.5686725234 | E148: 1.000013976 | F148: 0.005286937011 | G148: 1 | H148: 0 | I148: 50756.62258 | J148: 1.570776625 | K148: =SQRT(1+(A148/Zero2)^2) -> 1.848263623 | L148: =ATAN(A148/Zero2) -> 0.9991131415 | M148: 1.001351202 | N148: 0.05195540215 | O148: 1 | P148: 0 | Q148: 1 | R148: 0 | S148: 1.004288016 | T148: 0.1217559801 | U148: 13.21071562 | V148: -74.98645038 | W148: 105.0135496 | Y148: 1000000000 | Z148: 70803810.25 | AB148: 8.920919935 | AC148: -35.73073021 | AE148: 53.07908125 | AF148: -39.25572017 | AH148: 0 | AI148: 0
A149: 8462.95 | B149: 8.46295 | C149: 1.188765103 | D149: 0.5712808795 | E149: 1.000014137 | F149: 0.005317378187 | G149: 1 | H149: 0 | I149: 51048.87505 | J149: 1.570776738 | K149: 1.855796778 | L149: 1.00172246 | M149: 1.001366796 | N149: 0.05225401438 | O149: 1 | P149: 0 | Q149: 1 | R149: 0 | S149: 1.004337488 | T149: 0.1224544938 | U149: 13.18109371 | V149: -75.04178865 | W149: 104.9582114 | Y149: 1000000000 | Z149: 71621522.7 | AB149: 8.906245475 | AC149: -35.59834294 | AE149: 53.0641338 | AF149: -39.44344571 | AH149: 0 | AI149: 0
A150: 8511.4 | B150: 8.5114 | C150: 1.190758869 | D150: 0.5738805186 | E150: 1.0000143 | F150: 0.005347819355 | G150: 1 | H150: 0 | I150: 51341.12751 | J150: 1.570776849 | K150: 1.863342467 | L150: 1.004310663 | M150: 1.00138248 | N150: 0.05255261729 | O150: 1 | P150: 0 | Q150: 1 | R150: 0 | S150: 1.004387244 | T150: 0.1231529638 | U150: 13.15163403 | V150: -75.09783418 | W150: 104.9021658 | Y150: 1000000000 | Z150: 72443929.96 | AB150: 8.891770227 | AC150: -35.4671649 | AE150: 53.04914937 | AF150: -39.63066929 | AH150: 0 | AI150: 0
A151: 8560.95 | B151: 8.56095 | C151: 1.192806196 | D151: 0.5765301723 | E151: 1.000014467 | F151: 0.005378951642 | G151: 1 | H151: 0 | I151: 51640.01522 | J151: 1.570776962 | K151: 1.871072277 | L151: 1.006936019 | M151: 1.001398612 | N151: 0.05285798991 | O151: 1 | P151: 0 | Q151: 1 | R151: 0 | S151: 1.004438422 | T151: 0.1238672464 | U151: 13.1216702 | V151: -75.15587102 | W151: 104.844129 | Y151: 1000000000 | Z151: 73289864.9 | AB151: 8.87716875 | AC151: -35.33424613 | AE151: 53.03378702 | AF151: -39.82162489 | AH151: 0 | AI151: 0
A152: 8610.5 | B152: 8.6105 | C152: 1.194861869 | D152: 0.5791707274 | E152: 1.000014635 | F152: 0.005410083919 | G152: 1 | H152: 0 | I152: 51938.90293 | J152: 1.570777073 | K152: 1.878814877 | L152: 1.009539754 | M152: 1.001414837 | N152: 0.05316335268 | O152: 1 | P152: 0 | Q152: 1 | R152: 0 | S152: 1.004489896 | T152: 0.1245814829 | U152: 13.09186982 | V152: -75.21462202 | W152: 104.785378 | Y152: 1000000000 | Z152: 74140710.25 | AB152: 8.862768333 | AC152: -35.20256548 | AE152: 53.01838706 | AF152: -40.01205654 | AH152: 0 | AI152: 0
A153: 8660.05 | B153: 8.66005 | C153: 1.196925844 | D153: 0.581802194 | E153: 1.000014804 | F153: 0.005441216186 | G153: 1 | H153: 0 | I153: 52237.79065 | J153: 1.570777184 | K153: 1.88657011 | L153: 1.0121221 | M153: 1.001431156 | N153: 0.05346870551 | O153: 1 | P153: 0 | Q153: 1 | R153: 0 | S153: 1.004541666 | T153: 0.1252956729 | U153: 13.06222986 | V153: -75.27407451 | W153: 104.7259255 | Y153: 1000000000 | Z153: 74996466 | AB153: 8.848565401 | AC153: -35.07210971 | AE153: 53.00295003 | AF153: -40.2019648 | AH153: 0 | AI153: 0
A154: 8709.6 | B154: 8.7096 | C154: 1.19899808 | D154: 0.5844245828 | E154: 1.000014973 | F154: 0.005472348442 | G154: 1 | H154: 0 | I154: 52536.67836 | J154: 1.570777292 | K154: 1.89433782 | L154: 1.014683285 | M154: 1.001447568 | N154: 0.05377404837 | O154: 1 | P154: 0 | Q154: 1 | R154: 0 | S154: 1.004593732 | T154: 0.1260098163 | U154: 13.03274735 | V154: -75.33421598 | W154: 104.665784 | Y154: 1000000000 | Z154: 75857132.16 | AB154: 8.834556455 | AC154: -34.94286571 | AE154: 52.98747646 | AF154: -40.39135027 | AH154: 0 | AI154: =IF(AH154>0,W154,0) -> 0
A155: 8760.325 | B155: 8.760325 | C155: 1.201127966 | D155: 0.5870997656 | E155: 1.000015148 | F155: 0.00550421894 | G155: 1 | H155: 0 | I155: 52842.65372 | J155: 1.570777403 | K155: 1.902302495 | L155: 1.017283521 | M155: 1.001464466 | N155: 0.05408662155 | O155: 1 | P155: 0 | Q155: 1 | R155: 0 | S155: 1.004647338 | T155: 0.1267408458 | U155: 13.00272579 | V155: -75.39648443 | W155: 104.6035156 | Y155: 1000000000 | Z155: 76743294.11 | AB155: 8.820412674 | AC155: -34.81179861 | AE155: 52.97159868 | AF155: -40.58468581 | AH155: 0 | AI155: 0
A156: 8811.05 | B156: 8.81105 | C156: 1.203266417 | D156: 0.5897654588 | E156: 1.000015324 | F156: 0.005536089426 | G156: 1 | H156: 0 | I156: 53148.62908 | J156: 1.570777512 | K156: 1.910279924 | L156: 1.019862056 | M156: 1.001481462 | N156: 0.05439918416 | O156: 1 | P156: 0 | Q156: 1 | R156: 0 | S156: 1.004701255 | T156: 0.1274718259 | U156: 12.97286316 | V156: -75.45944897 | W156: 104.540551 | Y156: 1000000000 | Z156: 77634602.1 | AB156: 8.806465 | AC156: -34.68197416 | AE156: 52.95568373 | AF156: -40.77747481 | AH156: 0 | AI156: 0
A157: 8861.775 | B157: 8.861775 | C157: 1.205413389 | D157: 0.5924216749 | E157: 1.000015501 | F157: 0.005567959901 | G157: 1 | H157: 0 | I157: 53454.60444 | J157: 1.570777619 | K157: 1.918269949 | L157: 1.022419129 | M157: 1.001498556 | N157: 0.05471173613 | O157: 1 | P157: 0 | Q157: 1 | R157: 0 | S157: 1.004755481 | T157: 0.1282027562 | U157: 12.94315652 | V157: -75.52309676 | W157: 104.4769032 | Y157: 1000000000 | Z157: 78531056.15 | AB157: 8.792709913 | AC157: -34.55337879 | AE157: 52.93973218 | AF157: -40.96971796 | AH157: 0 | AI157: 0
A158: 8912.5 | B158: 8.9125 | C158: 1.207568835 | D158: 0.5950684273 | E158: 1.000015679 | F158: 0.005599830365 | G158: 1 | H158: 0 | I158: 53760.5798 | J158: 1.570777726 | K158: =SQRT(1+(A158/Zero2)^2) -> 1.926272412 | L158: =ATAN(A158/Zero2) -> 1.024954971 | M158: 1.001515748 | N158: 0.05502427739 | O158: 1 | P158: 0 | Q158: 1 | R158: 0 | S158: 1.004810018 | T158: 0.1289336365 | U158: 12.91360298 | V158: -75.58741513 | W158: 104.4125849 | Y158: 1000000000 | Z158: 79432656.25 | AB158: 8.779143969 | AC158: -34.42599911 | AE158: 52.92374457 | AF158: -41.16141602 | AH158: 0 | AI158: 0
A159: 8964.4 | B159: 8.9644 | C159: 1.209782934 | D159: 0.5977667084 | E159: 1.000015862 | F159: 0.005632439068 | G159: 1 | H159: 0 | I159: 54073.64282 | J159: 1.570777833 | K159: 1.934472959 | L159: 1.027527822 | M159: 1.001533439 | N159: 0.05534404727 | O159: 1 | P159: 0 | Q159: 1 | R159: 0 | S159: 1.004866138 | T159: 0.129681395 | U159: 12.88352037 | V159: -75.65390443 | W159: 104.3460956 | Y159: 1000000000 | Z159: 80360467.36 | AB159: 8.765456029 | AC159: -34.29691323 | AE159: 52.9073499 | AF159: -41.3569912 | AH159: 0 | AI159: 0
A160: 9016.3 | B160: 9.0163 | C160: 1.212005808 | D160: 0.6004551115 | E160: 1.000016047 | F160: 0.005665047759 | G160: 1 | H160: 0 | I160: 54386.70583 | J160: 1.57077794 | K160: 1.942686203 | L160: 1.030078935 | M160: 1.001551232 | N160: 0.05566380581 | O160: 1 | P160: 0 | Q160: 1 | R160: 0 | S160: 1.004922583 | T160: 0.1304291005 | U160: 12.85359213 | V160: -75.72106952 | W160: 104.2789305 | Y160: 1000000000 | Z160: 81293665.69 | AB160: 8.751959031 | AC160: -34.16907213 | AE160: 52.89091867 | AF160: -41.55199738 | AH160: 0 | AI160: 0
A161: 9068.2 | B161: 9.0682 | C161: 1.214237411 | D161: 0.6031336521 | E161: 1.000016232 | F161: 0.005697656438 | G161: 1 | H161: 0 | I161: 54699.76884 | J161: 1.570778045 | K161: 1.950911983 | L161: 1.032608552 | M161: 1.001569128 | N161: 0.05598355296 | O161: 1 | P161: 0 | Q161: 1 | R161: 0 | S161: 1.004979353 | T161: 0.1311767528 | U161: 12.8238154 | V161: -75.78889741 | W161: 104.2111026 | Y161: 1000000000 | Z161: 82232251.24 | AB161: 8.738649516 | AC161: -34.04246198 | AE161: 52.87445145 | AF161: -41.74643543 | AH161: 0 | AI161: 0
A162: 9120.1 | B162: 9.1201 | C162: 1.216477693 | D162: 0.605802346 | E162: 1.000016418 | F162: 0.005730265105 | G162: 1 | H162: 0 | I162: 55012.83185 | J162: 1.570778149 | K162: 1.959150143 | L162: 1.03511691 | M162: 1.001587126 | N162: 0.05630328865 | O162: 1 | P162: 0 | Q162: 1 | R162: 0 | S162: 1.005036446 | T162: 0.1319243515 | U162: 12.79418736 | V162: -75.85737533 | W162: 104.1426247 | Y162: 1000000000 | Z162: 83176224.01 | AB162: 8.725524102 | AC162: -33.91706908 | AE162: 52.85794883 | AF162: -41.94030624 | AH162: 0 | AI162: 0
A163: 9173.2 | B163: 9.1732 | C163: 1.218778707 | D163: 0.6085225703 | E163: 1.00001661 | F163: 0.005763627717 | G163: 1 | H163: 0 | I163: 55333.13331 | J163: 1.570778254 | K163: 1.96759143 | L163: 1.037661511 | M163: 1.001605647 | N163: 0.05663040515 | O163: 1 | P163: 0 | Q163: 1 | R163: 0 | S163: 1.005095196 | T163: 0.13268918 | U163: 12.76402533 | V163: -75.92809618 | W163: 104.0719038 | Y163: 1000000000 | Z163: 84147598.24 | AB163: 8.712282291 | AC163: -33.79002266 | AE163: 52.8410286 | AF163: -42.13807352 | AH163: 0 | AI163: 0
A164: 9226.3 | B164: 9.2263 | C164: 1.221088705 | D164: 0.6112325225 | E164: 1.000016803 | F164: 0.005796990316 | G164: 1 | H164: 0 | I164: 55653.43478 | J164: 1.570778358 | K164: 1.976045348 | L164: 1.040184354 | M164: 1.001624274 | N164: 0.05695750951 | O164: 1 | P164: 0 | Q164: 1 | R164: 0 | S164: 1.005154285 | T164: 0.1334539519 | U164: 12.73401323 | V164: -75.99947103 | W164: 104.000529 | Y164: 1000000000 | Z164: 85124611.69 | AB164: 8.699226257 | AC164: -33.66422202 | AE164: 52.82407253 | AF164: -42.33524901 | AH164: 0 | AI164: 0
A165: 9279.4 | B165: 9.2794 | C165: 1.223407637 | D165: 0.6139322213 | E165: 1.000016997 | F165: 0.005830352903 | G165: 1 | H165: 0 | I165: 55973.73624 | J165: 1.570778461 | K165: 1.984511736 | L165: 1.042685688 | M165: 1.001643009 | N165: 0.05728460167 | O165: 1 | P165: 0 | Q165: 1 | R165: 0 | S165: 1.005213713 | T165: 0.1342186667 | U165: 12.70414827 | V165: -76.07148681 | W165: 103.9285132 | Y165: 1000000000 | Z165: 86107264.36 | AB165: 8.686352606 | AC165: -33.53965306 | AE165: 52.80708123 | AF165: -42.53183375 | AH165: 0 | AI165: 0
A166: 9332.5 | B166: 9.3325 | C166: 1.225735451 | D166: 0.6166216855 | E166: 1.000017192 | F166: 0.005863715476 | G166: 1 | H166: 0 | I166: 56294.0377 | J166: 1.570778563 | K166: 1.992990434 | L166: 1.045165754 | M166: 1.001661851 | N166: 0.05761168157 | O166: 1 | P166: 0 | Q166: 1 | R166: 0 | S166: 1.005273481 | T166: 0.1349833243 | U166: 12.67442775 | V166: -76.14413067 | W166: 103.8558693 | Y166: 1000000000 | Z166: 87095556.25 | AB166: 8.673658019 | AC166: -33.41630185 | AE166: 52.7900553 | AF166: -42.72782882 | AH166: 0 | AI166: 0
A167: 9386.85 | B167: 9.38685 | C167: 1.22812721 | D167: 0.6193638824 | E167: 1.000017393 | F167: 0.005897863407 | G167: 1 | H167: 0 | I167: 56621.87922 | J167: 1.570778666 | K167: 2.001681312 | L167: 1.047682429 | M167: 1.001681248 | N167: 0.0579464483 | O167: 1 | P167: 0 | Q167: 1 | R167: 0 | S167: 1.005335007 | T167: 0.1357659225 | U167: 12.6441544 | V167: -76.21912182 | W167: 103.7808782 | Y167: 1000000000 | Z167: 88112952.92 | AB167: 8.660846641 | AC167: -33.29129364 | AE167: 52.77259332 | AF167: -42.92782818 | AH167: 0 | AI167: 0
A168: 9441.2 | B168: 9.4412 | C168: 1.230528168 | D168: 0.622095399 | E168: 1.000017595 | F168: 0.005932011324 | G168: 1 | H168: 0 | I168: 56949.72073 | J168: 1.570778767 | K168: 2.010384757 | L168: 1.050177328 | M168: 1.001700756 | N168: 0.05828120203 | O168: 1 | P168: 0 | Q168: 1 | R168: 0 | S168: 1.005396889 | T168: 0.1365484601 | U168: 12.61402681 | V168: -76.29474433 | W168: 103.7052557 | Y168: 1000000000 | Z168: 89136257.44 | AB168: 8.648216047 | AC168: -33.16753222 | AE168: 52.75509633 | AF168: -43.12721212 | AH168: 0 | AI168: 0
A169: 9495.55 | B169: 9.49555 | C169: 1.232938271 | D169: 0.6248162568 | E169: 1.000017798 | F169: 0.005966159228 | G169: 1 | H169: 0 | I169: 57277.56225 | J169: 1.570778868 | K169: 2.019100608 | L169: 1.052650704 | M169: 1.001720377 | N169: 0.05861594269 | O169: 1 | P169: 0 | Q169: 1 | R169: 0 | S169: 1.005459126 | T169: 0.1373309366 | U169: 12.58404229 | V169: -76.37098509 | W169: 103.6290149 | Y169: 1000000000 | Z169: 90165469.8 | AB169: 8.635762906 | AC169: -33.04500323 | AE169: 52.73756495 | AF169: -43.32598186 | AH169: 0 | AI169: 0
A170: 9549.9 | B170: 9.5499 | C170: 1.235357466 | D170: 0.6275264781 | E170: 1.000018002 | F170: 0.006000307118 | G170: 1 | H170: 0 | I170: 57605.40376 | J170: 1.570778967 | K170: 2.027828705 | L170: 1.055102802 | M170: 1.00174011 | N170: 0.05895067019 | O170: 1 | P170: 0 | Q170: 1 | R170: 0 | S170: 1.005521718 | T170: 0.1381133517 | U170: 12.55419819 | V170: -76.44783114 | W170: 103.5521689 | Y170: 1000000000 | Z170: 91200590.01 | AB170: 8.623483959 | AC170: -32.92369249 | AE170: 52.7199998 | AF170: -43.52413866 | AH170: 0 | AI170: 0
A171: 9605.525 | B171: 9.605525 | C171: 1.237842772 | D171: 0.6302892887 | E171: 1.000018212 | F171: 0.00603525607 | G171: 1 | H171: 0 | I171: 57940.93614 | J171: 1.570779068 | K171: 2.036774071 | L171: 1.057590649 | M171: 1.001760423 | N171: 0.05929323639 | O171: 1 | P171: 0 | Q171: 1 | R171: 0 | S171: 1.005586148 | T171: 0.1389140577 | U171: 12.52379672 | V171: -76.52709343 | W171: 103.4729066 | Y171: 1000000000 | Z171: 92266110.53 | AB171: 8.611094005 | AC171: -32.80078275 | AE171: 52.70198828 | AF171: -43.72631068 | AH171: 0 | AI171: 0
A172: 9661.15 | B172: 9.66115 | C172: 1.240337489 | D172: 0.6330410064 | E172: 1.000018424 | F172: 0.006070205008 | G172: 1 | H172: 0 | I172: 58276.46851 | J172: 1.570779167 | K172: 2.045731933 | L172: 1.060056723 | M172: 1.001780852 | N172: 0.05963578866 | O172: 1 | P172: 0 | Q172: 1 | R172: 0 | S172: 1.005650949 | T172: 0.1397146986 | U172: 12.49353697 | V172: -76.60696303 | W172: 103.393037 | Y172: 1000000000 | Z172: 93337819.32 | AB172: 8.598879834 | AC172: -32.67911962 | AE172: 52.6839427 | AF172: -43.92784341 | AH172: 0 | AI172: 0
A173: 9716.775 | B173: 9.716775 | C173: 1.24284156 | D173: 0.6357816564 | E173: 1.000018637 | F173: 0.006105153931 | G173: 1 | H173: 0 | I173: 58612.00088 | J173: 1.570779265 | K173: 2.054702127 | L173: 1.062501279 | M173: 1.0018014 | N173: 0.05997832692 | O173: 1 | P173: 0 | Q173: 1 | R173: 0 | S173: 1.005716122 | T173: 0.1405152741 | U173: 12.46341633 | V173: -76.68742674 | W173: 103.3125733 | Y173: 1000000000 | Z173: 94415716.4 | AB173: 8.586838179 | AC173: -32.55868848 | AE173: 52.66586372 | AF173: -44.12873826 | AH173: 0 | AI173: 0
A174: 9772.4 | B174: 9.7724 | C174: 1.245354928 | D174: 0.6385112646 | E174: 1.000018851 | F174: 0.006140102839 | G174: 1 | H174: 0 | I174: 58947.53325 | J174: 1.570779363 | K174: 2.063684494 | L174: 1.064924569 | M174: 1.001822065 | N174: 0.06032085109 | O174: 1 | P174: 0 | Q174: 1 | R174: 0 | S174: 1.005781668 | T174: 0.1413157838 | U174: 12.43343226 | V174: -76.76847161 | W174: 103.2315284 | Y174: 1000000000 | Z174: 95499801.76 | AB174: 8.574965844 | AC174: -32.43947492 | AE174: 52.64775198 | AF174: -44.3289967 | AH174: 0 | AI174: 0
A175: 9829.3 | B175: 9.8293 | C175: 1.247935467 | D175: 0.6412920419 | E175: 1.000019071 | F175: 0.006175852808 | G175: 1 | H175: 0 | I175: 59290.75647 | J175: 1.570779461 | K175: 2.072885176 | L175: 1.067381661 | M175: 1.001843325 | N175: 0.06067121172 | O175: 1 | P175: 0 | Q175: 1 | R175: 0 | S175: 1.005849101 | T175: 0.1421345739 | U175: 12.40289962 | V175: -76.85196214 | W175: 103.1480379 | Y175: 1000000000 | Z175: 96615138.49 | AB175: 8.56299331 | AC175: -32.31877375 | AE175: 52.62919188 | AF175: -44.5331884 | AH175: 0 | AI175: 0
A176: 9886.2 | B176: 9.8862 | C176: 1.250525616 | D176: 0.6440613212 | E176: 1.000019292 | F176: 0.006211602761 | G176: 1 | H176: 0 | I176: 59633.9797 | J176: 1.570779558 | K176: 2.082098263 | L176: 1.069817022 | M176: 1.001864708 | N176: 0.06102155742 | O176: 1 | P176: 0 | Q176: 1 | R176: 0 | S176: 1.005916924 | T176: 0.1429532945 | U176: 12.3725047 | V176: -76.93603403 | W176: 103.063966 | Y176: 1000000000 | Z176: 97736950.44 | AB176: 8.551191408 | AC176: -32.19931671 | AE176: 52.61059886 | AF176: -44.73671732 | AH176: 0 | AI176: 0
A177: 9943.1 | B177: 9.9431 | C177: 1.253125316 | D177: 0.6468191315 | E177: 1.000019515 | F177: 0.006247352698 | G177: 1 | H177: 0 | I177: 59977.20292 | J177: 1.570779654 | K177: 2.09132359 | L177: 1.072230912 | M177: 1.001886214 | N177: 0.06137188814 | O177: 1 | P177: 0 | Q177: 1 | R177: 0 | S177: 1.005985136 | T177: 0.1437719451 | U177: 12.34224496 | V177: -77.0206741 | W177: 102.9793259 | Y177: 1000000000 | Z177: 98865237.61 | AB177: 8.539556943 | AC177: -32.08108898 | AE177: 52.59197359 | AF177: -44.93958511 | AH177: 0 | AI177: 0
A178: 10000 | B178: 10 | C178: 1.255734507 | D178: 0.649565502 | E178: 1.000019739 | F178: 0.006283102619 | G178: 1 | H178: 0 | I178: 60320.42614 | J178: 1.570779749 | K178: 2.100560996 | L178: 1.074623585 | M178: 1.001907844 | N178: 0.06172220376 | O178: 1 | P178: 0 | Q178: 1 | R178: 0 | S178: 1.006053737 | T178: 0.1445905253 | U178: 12.31211796 | V178: -77.10586939 | W178: 102.8941306 | Y178: 1000000000 | Z178: 100000000 | AB178: 8.52808679 | AC178: -31.96407596 | AE178: 52.57331674 | AF178: -45.14179343 | AH178: 0 | AI178: 0
A179: 10058.25 | B179: 10.05825 | C179: 1.258415373 | D179: 0.6523652137 | E179: 1.00001997 | F179: 0.00631970072 | G179: 1 | H179: 0 | I179: 60671.79263 | J179: 1.570779845 | K179: 2.110029913 | L179: 1.077051311 | M179: 1.001930113 | N179: 0.06208081521 | O179: 1 | P179: 0 | Q179: 1 | R179: 0 | S179: 1.00612437 | T179: 0.1454284538 | U179: 12.28141117 | V179: -77.19364788 | W179: 102.8063521 | Y179: 1000000000 | Z179: 101168393.1 | AB179: 8.516511512 | AC179: -31.84552994 | AE179: 52.55418522 | AF179: -45.34811794 | AH179: 0 | AI179: 0
A180: 10116.5 | B180: 10.1165 | C180: 1.261106061 | D180: 0.6551530003 | E180: 1.000020202 | F180: 0.006356298804 | G180: 1 | H180: 0 | I180: 61023.15911 | J180: 1.57077994 | K180: 2.119511155 | L180: 1.079457331 | M180: 1.001952512 | N180: 0.06243941067 | O180: 1 | P180: 0 | Q180: 1 | R180: 0 | S180: 1.00619541 | T180: 0.1462663077 | U180: 12.25083847 | V180: -77.28198152 | W180: 102.7180185 | Y180: 1000000000 | Z180: 102343572.2 | AB180: 8.505102029 | AC180: -31.72822659 | AE180: 52.53502201 | AF180: -45.55375493 | AH180: 0 | AI180: 0
A181: 10174.75 | B181: 10.17475 | C181: 1.263806508 | D181: 0.6579288947 | E181: 1.000020435 | F181: 0.006392896871 | G181: 1 | H181: 0 | I181: 61374.52559 | J181: 1.570780033 | K181: 2.129004558 | L181: 1.081841907 | M181: 1.001975039 | N181: 0.06279799005 | O181: 1 | P181: 0 | Q181: 1 | R181: 0 | S181: 1.006266858 | T181: 0.1471040867 | U181: 12.22039744 | V181: -77.37085713 | W181: 102.6291429 | Y181: 1000000000 | Z181: 103525537.6 | AB181: 8.493855208 | AC181: -31.61215089 | AE181: 52.5158278 | AF181: -45.75870625 | AH181: 0 | AI181: 0
A182: 10233 | B182: 10.233 | C182: 1.266516652 | D182: 0.6606929304 | E182: 1.00002067 | F182: 0.006429494921 | G182: 1 | H182: 0 | I182: 61725.89207 | J182: 1.570780126 | K182: 2.138509959 | L182: 1.084205299 | M182: 1.001997695 | N182: 0.06315655326 | O182: 1 | P182: 0 | Q182: 1 | R182: 0 | S182: 1.006338714 | T182: 0.1479417903 | U182: 12.1900857 | V182: -77.4602618 | W182: 102.5397382 | Y182: 1000000000 | Z182: 104714289 | AB182: 8.482767988 | AC182: -31.497288 | AE182: 52.49660327 | AF182: -45.96297379 | AH182: 0 | AI182: 0
A183: 10292.5 | B183: 10.2925 | C183: 1.269294901 | D183: 0.6635040722 | E183: 1.000020911 | F183: 0.006466878319 | G183: 1 | H183: 0 | I183: 62084.79861 | J183: 1.57078022 | K183: 2.14823156 | L183: 1.0865978 | M183: 1.00202097 | N183: 0.06352279418 | O183: 1 | P183: 0 | Q183: 1 | R183: 0 | S183: 1.006412533 | T183: 0.1487973921 | U183: 12.15925457 | V183: -77.55211801 | W183: 102.447882 | Y183: 1000000000 | Z183: 105935556.2 | AB183: 8.471604507 | AC183: -31.38119719 | AE183: 52.47693563 | AF183: -46.17092082 | AH183: 0 | AI183: 0
A184: 10352 | B184: 10.352 | C184: 1.272083136 | D184: 0.6663029128 | E184: 1.000021153 | F184: 0.006504261699 | G184: 1 | H184: 0 | I184: 62443.70514 | J184: 1.570780312 | K184: 2.157965347 | L184: 1.088968732 | M184: 1.00204438 | N184: 0.06388901803 | O184: 1 | P184: 0 | Q184: 1 | R184: 0 | S184: 1.006486777 | T184: 0.1496529144 | U184: 12.12855354 | V184: -77.64449969 | W184: 102.3555003 | Y184: 1000000000 | Z184: 107163904 | AB184: 8.460601309 | AC184: -31.26634121 | AE184: 52.45723779 | AF184: -46.37815848 | AH184: 0 | AI184: 0
A185: 10411.5 | B185: 10.4115 | C185: 1.274881292 | D185: 0.6690894891 | E185: 1.000021397 | F185: 0.006541645061 | G185: 1 | H185: 0 | I185: 62802.61168 | J185: 1.570780404 | K185: 2.167711156 | L185: 1.091318358 | M185: 1.002067924 | N185: 0.06425522472 | O185: 1 | P185: 0 | Q185: 1 | R185: 0 | S185: 1.006561447 | T185: 0.1505083568 | U185: 12.09798026 | V185: -77.73739378 | W185: 102.2626062 | Y185: 1000000000 | Z185: 108399332.2 | AB185: 8.449755349 | AC185: -31.15270491 | AE185: 52.43751048 | AF185: -46.58468887 | AH185: 0 | AI185: 0
A186: 10471 | B186: 10.471 | C186: 1.277689304 | D186: 0.6718638387 | E186: 1.000021642 | F186: 0.006579028405 | G186: 1 | H186: 0 | I186: 63161.51822 | J186: 1.570780494 | K186: 2.177468825 | L186: 1.093646938 | M186: 1.002091603 | N186: 0.06462141415 | O186: 1 | P186: 0 | Q186: 1 | R186: 0 | S186: 1.006636542 | T186: 0.1513637188 | U186: 12.06753248 | V186: -77.8307875 | W186: 102.1692125 | Y186: 1000000000 | Z186: 109641841 | AB186: 8.439063649 | AC186: -31.04027339 | AE186: 52.4177544 | AF186: -46.79051411 | AH186: 0 | AI186: 0
A187: 10532 | B187: 10.532 | C187: 1.280578271 | D187: 0.6746954763 | E187: 1.000021895 | F187: 0.006617354166 | G187: 1 | H187: 0 | I187: 63529.47281 | J187: 1.570780586 | K187: 2.187484632 | L187: 1.096012642 | M187: 1.002116018 | N187: 0.06499681723 | O187: 1 | P187: 0 | Q187: 1 | R187: 0 | S187: 1.006713972 | T187: 0.1522405606 | U187: 12.03644506 | V187: -77.92704121 | W187: 102.0729588 | Y187: 1000000000 | Z187: 110923024 | AB187: 8.428259506 | AC187: -30.92624278 | AE187: 52.39747112 | AF187: -47.00079843 | AH187: 0 | AI187: 0
A188: 10593 | B188: 10.593 | C188: 1.283477459 | D188: 0.6775143441 | E188: 1.000022149 | F188: 0.006655679909 | G188: 1 | H188: 0 | I188: 63897.42741 | J188: 1.570780677 | K188: 2.19751257 | L188: 1.098356769 | M188: 1.002140574 | N188: 0.06537220197 | O188: 1 | P188: 0 | Q188: 1 | R188: 0 | S188: 1.006791849 | T188: 0.1531173169 | U188: 12.0054849 | V188: -78.02379356 | W188: 101.9762064 | Y188: 1000000000 | Z188: 112211649 | AB188: 8.417611376 | AC188: -30.81344737 | AE188: 52.37715909 | AF188: -47.21034619 | AH188: 0 | AI188: 0
A189: 10654 | B189: 10.654 | C189: 1.2863868 | D189: 0.6803204835 | E189: 1.000022405 | F189: 0.006694005631 | G189: 1 | H189: 0 | I189: 64265.38201 | J189: 1.570780766 | K189: 2.207552473 | L189: 1.100679586 | M189: 1.002165271 | N189: 0.06574756826 | O189: 1 | P189: 0 | Q189: 1 | R189: 0 | S189: 1.006870173 | T189: 0.1539939873 | U189: 11.97464973 | V189: -78.12103154 | W189: 101.8789685 | Y189: 1000000000 | Z189: 113507716 | AB189: 8.407116266 | AC189: -30.70187179 | AE189: 52.35681903 | AF189: -47.41915975 | AH189: 0 | AI189: 0
A190: 10715 | B190: 10.715 | C190: 1.289306224 | D190: 0.6831139367 | E190: 1.000022663 | F190: 0.006732331334 | G190: 1 | H190: 0 | I190: 64633.33661 | J190: 1.570780855 | K190: 2.217604179 | L190: 1.102981358 | M190: 1.00219011 | N190: 0.06612291599 | O190: 1 | P190: 0 | Q190: 1 | R190: 0 | S190: 1.006948944 | T190: 0.1548705714 | U190: 11.94393736 | V190: -78.21874237 | W190: 101.7812576 | Y190: 1000000000 | Z190: 114811225 | AB190: 8.396771249 | AC190: -30.59150087 | AE190: 52.33645168 | AF190: -47.62724149 | AH190: 0 | AI190: 0
A191: 10777.5 | B191: 10.7775 | C191: 1.292307825 | D191: 0.6859629679 | E191: 1.000022928 | F191: 0.006771599452 | G191: 1 | H191: 0 | I191: 65010.33928 | J191: 1.570780945 | K191: 2.227915133 | L191: 1.105318176 | M191: 1.002215705 | N191: 0.06650747423 | O191: 1 | P191: 0 | Q191: 1 | R191: 0 | S191: 1.007030115 | T191: 0.1557686207 | U191: 11.91259491 | V191: -78.31933325 | W191: 101.6806668 | Y191: 1000000000 | Z191: 116154506.2 | AB191: 8.386324535 | AC191: -30.47964976 | AE191: 52.31555594 | AF191: -47.83968349 | AH191: 0 | AI191: 0
A192: 10840 | B192: 10.84 | C192: 1.295319867 | D192: 0.6887987722 | E192: 1.000023194 | F192: 0.006810867549 | G192: 1 | H192: 0 | I192: 65387.34194 | J192: 1.570781033 | K192: 2.238238141 | L192: 1.107633452 | M192: 1.002241449 | N192: 0.06689201278 | O192: 1 | P192: 0 | Q192: 1 | R192: 0 | S192: 1.007111755 | T192: 0.1566665783 | U192: 11.88137688 | V192: -78.42039416 | W192: 101.5796058 | Y192: 1000000000 | Z192: 117505600 | AB192: 8.376029382 | AC192: -30.36903176 | AE192: 52.29463306 | AF192: -48.0513624 | AH192: 0 | AI192: 0
A193: 10902.5 | B193: 10.9025 | C193: 1.298342277 | D193: 0.6916213962 | E193: 1.000023463 | F193: 0.006850135625 | G193: 1 | H193: 0 | I193: 65764.3446 | J193: 1.570781121 | K193: 2.248573037 | L193: 1.109927457 | M193: 1.002267342 | N193: 0.06727653151 | O193: 1 | P193: 0 | Q193: 1 | R193: 0 | S193: 1.007193865 | T193: 0.1575644437 | U193: 11.85028111 | V193: -78.52191214 | W193: 101.4780879 | Y193: 1000000000 | Z193: 118864506.2 | AB193: 8.365882859 | AC193: -30.2596313 | AE193: 52.27368382 | AF193: -48.26228084 | AH193: 0 | AI193: 0
A194: 10965 | B194: 10.965 | C194: 1.301374983 | D194: 0.6944308868 | E194: 1.000023732 | F194: 0.00688940368 | G194: 1 | H194: 0 | I194: 66141.34727 | J194: 1.570781208 | K194: 2.258919657 | L194: 1.112200458 | M194: 1.002293382 | N194: 0.06766103033 | O194: 1 | P194: 0 | Q194: 1 | R194: 0 | S194: 1.007276443 | T194: 0.1584622164 | U194: 11.81930548 | V194: -78.62387449 | W194: 101.3761255 | Y194: 1000000000 | Z194: 120231225 | AB194: 8.355882098 | AC194: -30.151433 | AE194: 52.25270895 | AF194: -48.47244149 | AH194: 0 | AI194: 0
A195: 11028.75 | B195: 11.02875 | C195: 1.304478876 | D195: 0.6972830866 | E195: 1.000024009 | F195: 0.006929457074 | G195: 1 | H195: 0 | I195: 66525.88998 | J195: 1.570781295 | K195: 2.269485122 | L195: 1.114497557 | M195: 1.002320096 | N195: 0.06805319847 | O195: 1 | P195: 0 | Q195: 1 | R195: 0 | S195: 1.007361156 | T195: 0.1593778485 | U195: 11.78783197 | V195: -78.728321 | W195: 101.271679 | Y195: 1000000000 | Z195: 121633326.6 | AB195: 8.345828583 | AC195: -30.04229353 | AE195: 52.23128895 | AF195: -48.68602746 | AH195: 0 | AI195: 0
A196: 11092.5 | B196: 11.0925 | C196: 1.307593331 | D196: 0.7001217224 | E196: 1.000024288 | F196: 0.006969510446 | G196: 1 | H196: 0 | I196: 66910.4327 | J196: 1.570781381 | K196: 2.280062452 | L196: 1.116773355 | M196: 1.002346964 | N196: 0.06844534565 | O196: 1 | P196: 0 | Q196: 1 | R196: 0 | S196: 1.007446356 | T196: 0.1602933831 | U196: 11.75647918 | V196: -78.83320395 | W196: 101.1667961 | Y196: 1000000000 | Z196: 123043556.2 | AB196: 8.335920903 | AC196: -29.93437325 | AE196: 52.20984384 | AF196: -48.8988307 | AH196: 0 | AI196: 0
A197: 11156.25 | B197: 11.15625 | C197: 1.310718272 | D197: 0.7029468455 | E197: 1.000024567 | F197: 0.007009563795 | G197: 1 | H197: 0 | I197: 67294.97542 | J197: 1.570781467 | K197: 2.290651482 | L197: 1.119028124 | M197: 1.002373986 | N197: 0.06883747175 | O197: 1 | P197: 0 | Q197: 1 | R197: 0 | S197: 1.007532045 | T197: 0.1612088196 | U197: 11.72524505 | V197: -78.93851067 | W197: 101.0614893 | Y197: 1000000000 | Z197: 124461914.1 | AB197: 8.326156225 | AC197: -29.82765658 | AE197: 52.18837439 | AF197: -49.11085409 | AH197: 0 | AI197: 0
A198: 11220 | B198: 11.22 | C198: 1.313853624 | D198: 0.7057585073 | E198: 1.000024849 | F198: 0.007049617122 | G198: 1 | H198: 0 | I198: 67679.51813 | J198: 1.570781551 | K198: 2.30125205 | L198: 1.121262131 | M198: 1.002401162 | N198: 0.06922957665 | O198: 1 | P198: 0 | Q198: 1 | R198: 0 | S198: 1.007618221 | T198: 0.1621241576 | U198: 11.69412757 | V198: -79.04422876 | W198: 100.9557712 | Y198: 1000000000 | Z198: 125888400 | AB198: 8.31653178 | AC198: -29.7221282 | AE198: 52.16688136 | AF198: -49.32210056 | AH198: 0 | AI198: 0
A199: 11285.5 | B199: 11.2855 | C199: 1.317085811 | D199: 0.7086333858 | E199: 1.00002514 | F199: 0.007090769929 | G199: 1 | H199: 0 | I199: 68074.61692 | J199: 1.570781637 | K199: 2.312155465 | L199: 1.123536116 | M199: 1.002429245 | N199: 0.069632423 | O199: 1 | P199: 0 | Q199: 1 | R199: 0 | S199: 1.007707271 | T199: 0.1630645192 | U199: 11.66227532 | V199: -79.15326458 | W199: 100.8467354 | Y199: 1000000000 | Z199: 127362510.2 | AB199: 8.30678635 | AC199: -29.61492475 | AE199: 52.14477454 | AF199: -49.53833983 | AH199: 0 | AI199: 0
A200: 11351 | B200: 11.351 | C200: 1.320328829 | D200: 0.7114941653 | E200: 1.000025433 | F200: 0.007131922711 | G200: 1 | H200: 0 | I200: 68469.71571 | J200: 1.570781722 | K200: 2.323070724 | L200: 1.125788744 | M200: 1.00245749 | N200: 0.07003524672 | O200: 1 | P200: 0 | Q200: 1 | R200: 0 | S200: 1.007796835 | T200: 0.1640047755 | U200: 11.63054208 | V200: -79.26270891 | W200: 100.7372911 | Y200: 1000000000 | Z200: 128845201 | AB200: 8.297183238 | AC200: -29.50894365 | AE200: 52.12264441 | AF200: -49.75376526 | AH200: 0 | AI200: 0
A201: 11416.5 | B201: 11.4165 | C201: 1.323582601 | D201: 0.7143409025 | E201: 1.000025727 | F201: 0.00717307547 | G201: 1 | H201: 0 | I201: 68864.81451 | J201: 1.570781806 | K201: 2.33399766 | L201: 1.12802029 | M201: 1.002485898 | N201: 0.07043804768 | O201: 1 | P201: 0 | Q201: 1 | R201: 0 | S201: 1.007886914 | T201: 0.1649449261 | U201: 11.59892585 | V201: -79.3725491 | W201: 100.6274509 | Y201: 1000000000 | Z201: 130336472.2 | AB201: 8.287719644 | AC201: -29.40416903 | AE201: 52.10049177 | AF201: -49.96838007 | AH201: 0 | AI201: 0
A202: 11482 | B202: 11.482 | C202: 1.326847046 | D202: 0.717173655 | E202: 1.000026023 | F202: 0.007214228204 | G202: 1 | H202: 0 | I202: 69259.9133 | J202: 1.570781888 | K202: 2.344936111 | L202: 1.130231029 | M202: 1.002514469 | N202: 0.07084082574 | O202: 1 | P202: 0 | Q202: 1 | R202: 0 | S202: 1.007977508 | T202: 0.1658849703 | U202: 11.56742468 | V202: -79.48277278 | W202: 100.5172272 | Y202: 1000000000 | Z202: 131836324 | AB202: 8.278392838 | AC202: -29.30058526 | AE202: 52.0783174 | AF202: -50.18218752 | AH202: 0 | AI202: 0
... 433 more rows

Sheet Bode Plot Management (hidden)
J1: Single or dual output (MODE) | N1: 3.3V or 5V fixed (FB1/2)
A2: =CHOOSE(BODE_PLOT_TYPE, "BODE_PLOT_Ch1", "BODE_PLOT_Ch2") -> BODE_PLOT_Ch1 | J2: With/without dither (DITH) | N2: With/without VOUT connected to VCCX
J3: FPWM or DEM (DEMB)
J4: Shunt or inductor DCR current sensing
F6: =INDIRECT(A2) -> 0

Sheet Efficiency Calculations (hidden)
A1: BUCK CONTROLLER POWER DESIGN TOOL
H2: =AV19 -> 0.8023427113 | I2: 10% load
H3: =AV59 -> 0.8818430649 | I3: 50% load | AP3: =IF(MODE=1, (Qg_Q1+Qg_Q2)*Fsw*Vin, (Qg_Q1+Qg_Q2+Qg_Q3+Qg_Q4)*Fsw*Vin) -> 0.846
H4: =AV109 -> 0.855005076 | I4: 100% load | AO4: I_VCC | AP4: =(Qg_Q1+Qg_Q2)*Fsw*1000 -> 14.1 | AQ4: mA | AR4: =AP4*5/1000 -> 0.0705
A6: Enter the values of your design and MOSFET datasheet specifications below. Note that thermal resistance (θJA) will change when components are placed on the PCB
G7: Operating Point Condtions | R7: Filter Inductor | V7: Cout | Y7: Cin | AB7: High-side BUCK "Control" MOSFET Losses | AH7: Low-side BUCK "Sync" MOSFET Losses | AL7: External Diode | AM7: Diode/FET | AN7: Sense Rs | AO7: Controller IC Losses | AT7: RESULTS | AZ7: Consolidated Buck/Boost Efficiency & Losses
A8: Input Parameters | G8: Step | H8: Vin | I8: Mode | J8: Iout | K8: Iout/ phase | L8: Iin | M8: Duty Cycle BUCK Leg | N8: Ripple Current pk-pk | O8: Peak Inductor Current | P8: Valley Inductor Current | Q8: SW node voltage at Q1 turn-on | R8: Irms Lf | S8: DCR Loss | T8: Core Loss | U8: Total Inductor Loss | V8: Irms Cout | W8: Cout ESR Loss | X8: Total Cout Loss | Y8: Irms Cin | Z8: Cin ESR Loss | AA8: Total Cin Loss | AB8: Irms | AC8: RDS(on) Loss | AD8: Transition Loss (not including capacitive loss) | AE8: MOSFET Output Capacitance Loss | AF8: Dead Time Loss | AG8: Total Control MOSFET Loss | AH8: Irms | AI8: RDS(on) Loss | AJ8: Deadtime Loss | AK8: Total Sync MOSFET Loss | AL8: Deadtime Loss | AM8: Reverse Recovery Loss | AN8: Isense Shunt Loss | AO8: IQ Loss | AP8: Switching Current Loss | AQ8: Switching Current Diss | AR8: LDO Loss Saved from Gate Drive Current (ext VCC) | AS8: Total IC Loss | AT8: Total Loss | AU8: Pout | AV8: EFF, h | AW8: =IF(Vin>Vout, "Buck ''CONTROL'' MOSFET Temp Rise", "Boost ''CONTROL'' MOSFET Temp Rise") -> Buck ''CONTROL'' MOSFET Temp Rise | AX8: =IF(Vin>Vout, "Buck ''SYNC'' MOSFET Temp Rise", "Boost ''SYNC'' MOSFET Temp Rise") -> Buck ''SYNC'' MOSFET Temp Rise | AZ8: h | BA8: Inductor Cu & Core Loss | BB8: Total MOSFET Loss | BC8: Control MOSFET Loss | BD8: SYNC MOSFET Loss | BE8: Shunt Loss
A9: Design | B9: Input Value | C9: Units | D9: Description | G9: 0 | H9: =Vin -> 60 | I9: =MODE -> 1 | J9: 0 | K9: =Iout*G9/100/Number_of_Phases -> 0 | L9: =Vout*K9/(Vin*Efficiency) -> 0 | M9: =(Vout+(Rdson2+Rs+Rdcr)*K9)/(Vin+(Rs+Rdson2-Rdson1)*K9) -> 0.05501666667 | N9: =(Vin-(Rdson1+Rdcr)*K9-Vout)*M9/(Fsw*Lf) -> 3.150898973 | O9: =K9+N9/2 -> 1.575449487 | P9: =K9-N9/2 -> -1.575449487 | Q9: =IF(MIN(Vin, -P9/(Coss_Q1+Coss_Q2)*0.00000002)<0, 0, MIN(Vin, -P9/(Coss_Q1+Coss_Q2)*0.00000002)) -> 42.92777892 | R9: =SQRT(K9^2+(N9^2)/12) -> 0.9095861851 | S9: =R9^2*Rdcr -> 0.003309388113 | T9: =Core_Loss_Ch1 -> 0.2 | U9: =(T9+S9*(1+Ltc*(Ta-25)))/(1-S9*Ltc*ThetaCa) -> 0.2033632287 | V9: =N9/SQRT(12) -> 0.9095861851 | W9: =RCoutEsr*V9^2 -> 0.0008273470282 | X9: =W9 -> 0.0008273470282 | Y9: =SQRT(M9*(1-M9))*SQRT(K9^2+(N9^2)/12) -> 0.2073972851 | Z9: =RCinEsr*Y9^2 -> 4.301363388e-05 | AA9: =Z9 -> 4.301363388e-05 | AB9: =SQRT(M9)*SQRT(K9^2+(N9^2)/12) -> 0.2133491872 | AC9: =Rdson1*AB9^2 -> 0.0002822108291 | AD9: =(Vin*K9/2)*Fsw*(Tr_buck+Tf_buck) -> 0 | AE9: =(0.5*Coss_Q1*(Vin-Q9)^2-0.5*Coss_Q2*(Vin-Q9)^2+(Qoss_Q2*(Vin-Q9)/Vin)*Vin)*Fsw -> 0.143419718 | AF9: =IF(K9>N9/2,0,ABS(K9-N9/2)*Vsd_Q1*Deadtime*Fsw) -> 0.00463182149 | AG9: =(AF9+AE9+AD9+AC9*(1+RdsonTopTc*Ta-RdsonTopTc*25))/(1-AC9*RdsonTopTc*ThetaJA_Q1) -> 0.1483407833 | AH9: =SQRT((1-M9))*SQRT(K9^2+(N9^2)/12) -> 0.8842110339 | AI9: =Rdson2*AH9^2 -> 0.002580036203 | AJ9: =IF(K9<N9/2,Deadtime*Fsw*IF(VfdSky_Q2>0,0,Vsd_Q2)*(K9+N9/2),2*Deadtime*Fsw*IF(VfdSky_Q2>0,0,Vsd_Q2)*K9) -> 0.00463182149 | AK9: =(AJ9+AI9*(1+RdsonBotTc*Ta-RdsonBotTc*25))/(1-AI9*RdsonBotTc*ThetaJA_Q2) -> 0.007214888162 | AL9: =2*Deadtime*Fsw*IF(VfdSky_Q2>0,VfdSky_Q2,Vsd_Q2)*K9 -> 0 | AM9: =IF(QrrSky_Q2>0,QrrSky_Q2,Qrr_Q2*K9/(Iout/Number_of_Phases))*Fsw*Vin -> 0 | AN9: =Rs*R9^2 -> 0.001241020542 | AO9: =Iq*Vin -> 0.000132 | AP9: =IF(Ext_VCC=1, (Qg_Q1+Qg_Q2)*Fsw*VCC, (Qg_Q1+Qg_Q2)*Fsw*Vin) -> 0.846 | AQ9: =(Vin-VCC)*Fsw*(Qg_Q1+Qg_Q2)+(RdsonDRT+RdsonDRT2)*Fsw*Qg_Q1*VCC/(RdsonDRT+2*Rgate1+RdsonDRT2)+(RdsonDRB+RdsonDRB2)*Fsw*Qg_Q2*VCC/(RdsonDRB+2*Rgate2+RdsonDRB2) -> 0.8046593407 | AR9: =(Qg_Q1+Qg_Q2)*Fsw*(Vin-VCC) -> 0.7755 | AS9: =SUM(AO9:AP9) -> 0.846132 | AT9: =SUM(U9,X9,AA9,AG9,AK9,AL9,AM9,AS9,AN9) -> 1.207162281 | AU9: =Vout*K9 -> 0 | AV9: =AU9/(AU9+AT9) -> 0 | AW9: =ThetaJA_Q1*BC9 -> 6.2303129 | AX9: =ThetaJA_Q2*BD9 -> 0.2936459482 | AZ9: =AV9*100 -> 0 | BA9: =U9 -> 0.2033632287 | BB9: =AG9+AK9+AM9 -> 0.1555556715 | BC9: =AG9+AM9*0.66 -> 0.1483407833 | BD9: =AK9+AM9*0.33 -> 0.007214888162 | BE9: =AN9 -> 0.001241020542
G10: 1 | H10: 60 | I10: 1 | J10: =Iout*G10/100 -> 0.25 | K10: 0.25 | L10: 0.01528240741 | M10: 0.05505365448 | N10: 3.152875524 | O10: =K10+N10/2 -> 1.826437762 | P10: =K10-N10/2 -> -1.326437762 | Q10: 36.14271831 | R10: =SQRT(K10^2+(N10^2)/12) -> 0.9438672253 | S10: 0.003563541356 | T10: 0.2 | U10: 0.2036215905 | V10: =N10/SQRT(12) -> 0.9101567662 | W10: 0.000828385339 | X10: =W10 -> 0.000828385339 | Y10: =SQRT(M10*(1-M10))*SQRT(K10^2+(N10^2)/12) -> 0.2152819196 | Z10: 4.634630492e-05 | AA10: =Z10 -> 4.634630492e-05 | AB10: =SQRT(M10)*SQRT(K10^2+(N10^2)/12) -> 0.2214644297 | AC10: 0.0003040882605 | AD10: 0.03467498059 | AE10: 0.1947376721 | AF10: 0.00389972702 | AG10: 0.2336284033 | AH10: 0.917517763 | AI10: 0.00277806819 | AJ10: 0.00536972702 | AK10: 0.008151481876 | AL10: 0.00147 | AM10: 0.01314 | AN10: 0.001336328009 | AO10: 0.000132 | AP10: 0.846 | AQ10: 0.8046593407 | AR10: 0.7755 | AS10: 0.846132 | AT10: 1.308354535 | AU10: 0.82525 | AV10: =AU10/(AU10+AT10) -> 0.3867867669 | AW10: 10.17663374 | AX10: 0.5082486524 | AZ10: =AV10*100 -> 38.67867669 | BA10: 0.2036215905 | BB10: 0.2549198852 | BC10: 0.2423008033 | BD10: 0.01248768188 | BE10: 0.001336328009
A11: Vin | B11: =Vin -> 60 | C11: V | D11: Vin | G11: 2 | H11: 60 | I11: 1 | J11: 0.5 | K11: 0.5 | L11: 0.03056481481 | M11: 0.05509064272 | N11: 3.154851909 | O11: 2.077425954 | P11: -1.077425954 | Q11: 29.35765543 | R11: 1.038953422 | S11: 0.004317696855 | T11: 0.2 | U11: 0.2043882958 | V11: 0.9107272993 | W11: 0.0008294242138 | X11: 0.0008294242138 | Y11: 0.2370446034 | Z11: 5.619014398e-05 | AA11: 5.619014398e-05 | AB11: 0.2438568714 | AC11: 0.000368690277 | AD11: 0.06934996118 | AE11: 0.242823841 | AF11: 0.003167632306 | AG11: 0.315729681 | AH11: 1.00992972 | AI11: 0.003365861532 | AJ11: 0.006107632306 | AK11: 0.009478687801 | AL11: 0.00294 | AM11: 0.02628 | AN11: 0.001619136321 | AO11: 0.000132 | AP11: 0.846 | AQ11: 0.8046593407 | AR11: 0.7755 | AS11: 0.846132 | AT11: 1.407453415 | AU11: 1.6505 | AV11: 0.5397400731 | AW11: 13.9891282 | AX11: 0.7387492735 | AZ11: 53.97400731 | BA11: 0.2043882958 | BB11: 0.3514883688 | BC11: 0.333074481 | BD11: 0.0181510878 | BE11: 0.001619136321
A12: Vout | B12: =Vout -> 3.301 | C12: V | D12: Vout | G12: 3 | H12: 60 | I12: 1 | J12: 0.75 | K12: 0.75 | L12: 0.04584722222 | M12: 0.0551276314 | N12: 3.156828128 | O12: 2.328414064 | P12: -0.8284140638 | Q12: 22.5725903 | R12: 1.180238812 | S12: 0.005571854609 | T12: 0.2 | U12: 0.2056635288 | V12: 0.9112977846 | W12: 0.0008304636523 | X12: 0.0008304636523 | Y12: 0.2693649803 | Z12: 7.255749259e-05 | AA12: 7.255749259e-05 | AB12: 0.277111506 | AC12: 0.000476102878 | AD12: 0.1040249418 | AE12: 0.2876782213 | AF12: 0.002435537348 | AG12: 0.3946463692 | AH12: 1.147245774 | AI12: 0.004343370456 | AJ12: 0.006845537348 | AK12: 0.01119682509 | AL12: 0.00441 | AM12: 0.03942 | AN12: 0.002089445478 | AO12: 0.000132 | AP12: 0.846 | AQ12: 0.8046593407 | AR12: 0.7755 | AS12: 0.846132 | AT12: 1.50446119 | AU12: 2.47575 | AV12: 0.6220147329 | AW12: 17.66786991 | AX12: 0.985160801 | AZ12: 62.20147329 | BA12: 0.2056635288 | BB12: 0.4452631943 | BC12: 0.4206635692 | BD12: 0.02420542509 | BE12: 0.002089445478
A13: Fsw | B13: =Fsw/1000 -> 300 | C13: kHz | D13: Switching Frequency | G13: 4 | H13: 60 | I13: 1 | J13: 1 | K13: 1 | L13: 0.06112962963 | M13: 0.05516462051 | N13: 3.158804181 | O13: 2.57940209 | P13: -0.5794020904 | Q13: 15.7875229 | R13: 1.353330578 | S13: 0.007326014618 | T13: 0.2 | U13: 0.2074475957 | V13: 0.9118682221 | W13: 0.0008315036544 | X13: 0.0008315036544 | Y13: 0.308967135 | Z13: 9.546069053e-05 | AA13: 9.546069053e-05 | AB13: 0.31785878 | AC13: 0.0006264120651 | AD13: 0.1386999224 | AE13: 0.32930081 | AF13: 0.001703442146 | AG13: 0.4703800881 | AH13: 1.31547309 | AI13: 0.005710549186 | AJ13: 0.007583442146 | AK13: 0.01330636196 | AL13: 0.00588 | AM13: 0.05256 | AN13: 0.002747255482 | AO13: 0.000132 | AP13: 0.846 | AQ13: 0.8046593407 | AR13: 0.7755 | AS13: 0.846132 | AT13: 1.599380266 | AU13: 3.301 | AV13: 0.6736211929 | AW13: 21.2129269 | AX13: 1.247502292 | AZ13: 67.36211929 | BA13: 0.2074475957 | BB13: 0.53624645 | BC13: 0.5050696881 | BD13: 0.03065116196 | BE13: 0.002747255482
A14: Iout | B14: =Iout -> 25 | C14: A | D14: Max Output Current | G14: 5 | H14: 60 | I14: 1 | J14: 1.25 | K14: 1.25 | L14: 0.07641203704 | M14: 0.05520161005 | N14: 3.160780068 | O14: 2.830390034 | P14: -0.3303900341 | Q14: 9.002453245 | R14: 1.547593041 | S14: 0.00958017688 | T14: 0.2 | U14: 0.2097409253 | V14: 0.9124386116 | W14: 0.00083254422 | X14: 0.00083254422 | Y14: 0.3534290251 | Z14: 0.0001249120758 | AA14: 0.0001249120758 | AB14: 0.3636073391 | AC14: 0.0008197038419 | AD14: 0.173374903 | AE14: 0.3676916037 | AF14: 0.0009713467003 | AG14: 0.5429323245 | AH14: 1.504271891 | AI14: 0.007467351946 | AJ14: 0.0083213467 | AK14: 0.01580791609 | AL14: 0.00735 | AM14: 0.0657 | AN14: 0.00359256633 | AO14: 0.000132 | AP14: 0.846 | AQ14: 0.8046593407 | AR14: 0.7755 | AS14: 0.846132 | AT14: 1.692213189 | AU14: 4.12625 | AV14: 0.7091649232 | AW14: 24.62436163 | AX14: 1.525798885 | AZ14: 70.91649232 | BA14: 0.2097409253 | BB14: 0.6244402406 | BC14: 0.5862943245 | BD14: 0.03748891609 | BE14: 0.00359256633
A15: Ta | B15: =Ta -> 25 | C15: °C | D15: Ambient Temperature | G15: 6 | H15: 60 | I15: 1 | J15: 1.5 | K15: 1.5 | L15: 0.09169444444 | M15: 0.05523860002 | N15: 3.16275579 | O15: 3.081377895 | P15: -0.08137789486 | Q15: 2.217381331 | R15: 1.756014051 | S15: 0.0123343414 | T15: 0.2 | U15: 0.2125440687 | V15: 0.9130089533 | W15: 0.0008335853488 | X15: 0.0008335853488 | Y15: 0.4011533182 | Z15: 0.0001609239847 | AA15: 0.0001609239847 | AB15: 0.4127141113 | AC15: 0.001056064214 | AD15: 0.2080498835 | AE15: 0.4028505992 | AF15: 0.0002392510109 | AG15: 0.6123044323 | AH15: 1.706825243 | AI15: 0.009613732957 | AJ15: 0.009059251011 | AK15: 0.01870225516 | AL15: 0.00882 | AM15: 0.07884 | AN15: 0.004625378023 | AO15: 0.000132 | AP15: 0.846 | AQ15: 0.8046593407 | AR15: 0.7755 | AS15: 0.846132 | AT15: 1.782962643 | AU15: 4.9515 | AV15: 0.7352479718 | AW15: 27.90223096 | AX15: 1.820081825 | AZ15: 73.52479718 | BA15: 0.2125440687 | BB15: 0.7098466874 | BC15: 0.6643388323 | BD15: 0.04471945516 | BE15: 0.004625378023
A16: Vcc | B16: =VCC -> 5 | C16: V | D16: Subregulated VCC Voltage | G16: 7 | H16: 60 | I16: 1 | J16: 1.75 | K16: 1.75 | L16: 0.1069768519 | M16: 0.05527559042 | N16: 3.164731345 | O16: 3.332365673 | P16: 0.1676343273 | Q16: 0 | R16: 1.974114242 | S16: 0.01558850816 | T16: 0.2 | U16: 0.2158577001 | V16: 0.9135792471 | W16: 0.0008346270407 | X16: 0.0008346270407 | Y16: 0.4511194428 | Z16: 0.0002035087516 | AA16: 0.0002035087516 | AB16: 0.4641292903 | AC16: 0.001335579188 | AD16: 0.2427248641 | AE16: 0.41364 | AF16: 0 | AG16: 0.6578480495 | AH16: 1.918778529 | AI16: 0.01214964644 | AJ16: 0.01029 | AK16: 0.02248411918 | AL16: 0.01029 | AM16: 0.09198 | AN16: 0.005845690561 | AO16: 0.000132 | AP16: 0.846 | AQ16: 0.8046593407 | AR16: 0.7755 | AS16: 0.846132 | AT16: 1.851475695 | AU16: 5.77675 | AV16: 0.7572861935 | AW16: 30.17930368 | AX16: 2.150487031 | AZ16: 75.72861935 | BA16: 0.2158577001 | BB16: 0.7723121687 | BC16: 0.7185548495 | BD16: 0.05283751918 | BE16: 0.005845690561
A17: Components | B17: Input Value | C17: Units | D17: Description | G17: 8 | H17: 60 | I17: 1 | J17: 2 | K17: 2 | L17: 0.1222592593 | M17: 0.05531258125 | N17: 3.166706735 | O17: 3.583353368 | P17: 0.4166466324 | Q17: 0 | R17: 2.199015529 | S17: 0.01934267718 | T17: 0.2 | U17: 0.2196826172 | V17: 0.914149493 | W17: 0.0008356692956 | X17: 0.0008356692956 | Y17: 0.5026715721 | Z17: 0.0002526787094 | AA17: 0.0002526787094 | AB17: 0.5171782583 | AC17: 0.001658334775 | AD17: 0.2773998447 | AE17: 0.41364 | AF17: 0 | AG17: 0.6928912192 | AH17: 2.13733384 | AI17: 0.01507504662 | AJ17: 0.01176 | AK17: 0.02690106769 | AL17: 0.01176 | AM17: 0.10512 | AN17: 0.007253503943 | AO17: 0.000132 | AP17: 0.846 | AQ17: 0.8046593407 | AR17: 0.7755 | AS17: 0.846132 | AT17: 1.910828756 | AU17: 6.602 | AV17: 0.7755353936 | AW17: 32.0153576 | AX17: 2.506740175 | AZ17: 77.55353936 | BA17: 0.2196826172 | BB17: 0.8249122868 | BC17: 0.7622704192 | BD17: 0.06159066769 | BE17: 0.007253503943
A18: L | B18: =Lf*1000000 -> 3.3 | C18: uH | D18: Filter Inductance | G18: 9 | H18: 60 | I18: 1 | J18: 2.25 | K18: 2.25 | L18: 0.1375416667 | M18: 0.05534957252 | N18: 3.168681959 | O18: 3.83434098 | P18: 0.6656590204 | Q18: 0 | R18: 2.428829371 | S18: 0.02359684845 | T18: 0.2 | U18: 0.2240197412 | V18: 0.9147196911 | W18: 0.0008367121132 | X18: 0.0008367121132 | Y18: 0.5553793198 | Z18: 0.0003084461889 | AA18: 0.0003084461889 | AB18: 0.5714182957 | AC18: 0.002024416986 | AD18: 0.3120748253 | AE18: 0.41364 | AF18: 0 | AG18: 0.7279868321 | AH18: 2.360655257 | AI18: 0.01838988771 | AJ18: 0.01323 | AK18: 0.03171483793 | AL18: 0.01323 | AM18: 0.11826 | AN18: 0.00884881817 | AO18: 0.000132 | AP18: 0.846 | AQ18: 0.8046593407 | AR18: 0.7755 | AS18: 0.846132 | AT18: 1.971337388 | AU18: 7.42725 | AV18: 0.7902517361 | AW18: 33.85361415 | AX18: 2.879143964 | AZ18: 79.02517361 | BA18: 0.2240197412 | BB18: 0.87796167 | BC18: 0.8060384321 | BD18: 0.07074063793 | BE18: 0.00884881817
A19: Rdcr | B19: =Rdcr*1000 -> 4 | C19: mW | D19: Inductor DCR at 25°C | G19: 10 | H19: 60 | I19: 1 | J19: 2.5 | K19: 2.5 | L19: 0.1528240741 | M19: 0.05538656422 | N19: 3.170657017 | O19: 4.085328509 | P19: 0.9146714914 | Q19: 0 | R19: 2.662283887 | S19: 0.02835102197 | T19: 0.2 | U19: 0.2288701181 | V19: 0.9152898412 | W19: 0.0008377554934 | X19: 0.0008377554934 | Y19: 0.6089528055 | Z19: 0.0003708235193 | AA19: 0.0003708235193 | AB19: 0.6265512148 | AC19: 0.002433911834 | AD19: 0.3467498059 | AE19: 0.41364 | AF19: 0 | AG19: 0.7631357618 | AH19: 2.587506342 | AI19: 0.02209412393 | AJ19: 0.0147 | AK19: 0.03692694733 | AL19: 0.0147 | AM19: 0.1314 | AN19: 0.01063163324 | AO19: 0.000132 | AP19: 0.846 | AQ19: 0.8046593407 | AR19: 0.7755 | AS19: 0.846132 | AT19: 2.033005039 | AU19: 8.2525 | AV19: 0.8023427113 | AW19: 35.69411 | AX19: 3.267760156 | AZ19: 80.23427113 | BA19: 0.2288701181 | BB19: 0.9314627091 | BC19: 0.8498597618 | BD19: 0.08028894733 | BE19: 0.01063163324
A20: LTc | B20: =Ltc*1000000 -> 4000 | C20: ppm | D20: Inductor Series Resistance Temp Co | G20: 11 | H20: 60 | I20: 1 | J20: 2.75 | K20: 2.75 | L20: 0.1681064815 | M20: 0.05542355634 | N20: 3.17263191 | O20: 4.336315955 | P20: 1.163684045 | Q20: 0 | R20: 2.898499515 | S20: 0.03360519774 | T20: 0.2 | U20: 0.2342349186 | V20: 0.9158599435 | W20: 0.0008387994361 | X20: 0.0008387994361 | Y20: 0.663191547 | Z20: 0.0004398230281 | AA20: 0.0004398230281 | AB20: 0.6823707883 | AC20: 0.002886905335 | AD20: 0.3814247865 | AE20: 0.41364 | AF20: 0 | AG20: 0.7983388863 | AH20: 2.817032045 | AI20: 0.02618770949 | AJ20: 0.01617 | AK20: 0.04253906882 | AL20: 0.01617 | AM20: 0.14454 | AN20: 0.01260194915 | AO20: 0.000132 | AP20: 0.846 | AQ20: 0.8046593407 | AR20: 0.7755 | AS20: 0.846132 | AT20: 2.095835445 | AU20: 9.07775 | AV20: 0.8124294609 | AW20: 37.53688202 | AX20: 3.672656841 | AZ20: 81.24294609 | BA20: 0.2342349186 | BB20: 0.9854179551 | BC20: 0.8937352863 | BD20: 0.09023726882 | BE20: 0.01260194915
A21: ThetaCa | B21: =ThetaCa -> 20 | C21: °C/W | D21: Core to Ambient Thermal Resistance | G21: 12 | H21: 60 | I21: 1 | J21: 3 | K21: 3 | L21: 0.1833888889 | M21: 0.05546054891 | N21: 3.174606636 | O21: 4.587303318 | P21: 1.412696682 | Q21: 0 | R21: 3.136852553 | S21: 0.03935937576 | T21: 0.2 | U21: 0.2401154393 | V21: 0.9164299979 | W21: 0.0008398439411 | X21: 0.0008398439411 | Y21: 0.7179533696 | Z21: 0.0005154570409 | AA21: 0.0005154570409 | AB21: 0.738730767 | AC21: 0.003383483506 | AD21: 0.4160997671 | AE21: 0.41364 | AF21: 0 | AG21: 0.8335970882 | AH21: 3.04862605 | AI21: 0.03067059862 | AJ21: 0.01764 | AK21: 0.04855303234 | AL21: 0.01764 | AM21: 0.15768 | AN21: 0.01475976591 | AO21: 0.000132 | AP21: 0.846 | AQ21: 0.8046593407 | AR21: 0.7755 | AS21: 0.846132 | AT21: 2.159832627 | AU21: 9.903 | AV21: 0.8209514553 | AW21: 39.3819673 | AX21: 4.093908496 | AZ21: 82.09514553 | BA21: 0.2401154393 | BB21: 1.039830121 | BC21: 0.9376658882 | BD21: 0.1005874323 | BE21: 0.01475976591
A22: Cin | B22: =Cin*1000000 -> 200 | C22: μF | D22: Input Capacitance | G22: 13 | H22: 60 | I22: 1 | J22: 3.25 | K22: 3.25 | L22: 0.1986712963 | M22: 0.0554975419 | N22: 3.176581196 | O22: 4.838290598 | P22: 1.661709402 | Q22: 0 | R22: 3.376890435 | S22: 0.04561355603 | T22: 0.2 | U22: 0.2465131032 | V22: 0.9170000044 | W22: 0.0008408890081 | X22: 0.0008408890081 | Y22: 0.7731350992 | Z22: 0.0005977378816 | AA22: 0.0005977378816 | AB22: 0.7955250211 | AC22: 0.003923732367 | AD22: 0.4507747477 | AE22: 0.41364 | AF22: 0 | AG22: 0.8689112551 | AH22: 3.281848404 | AI22: 0.03554274553 | AJ22: 0.01911 | AK22: 0.05497082647 | AL22: 0.01911 | AM22: 0.17082 | AN22: 0.01710508351 | AO22: 0.000132 | AP22: 0.846 | AQ22: 0.8046593407 | AR22: 0.7755 | AS22: 0.846132 | AT22: 2.225000895 | AU22: 10.72825 | AV22: 0.8282283796 | AW22: 41.22940311 | AX22: 4.531596057 | AZ22: 82.82283796 | BA22: 0.2465131032 | BB22: 1.094702082 | BC22: 0.9816524551 | BD22: 0.1113414265 | BE22: 0.01710508351
A23: RCinEsr | B23: =RCinEsr*1000 -> 1 | C23: mW | D23: Input Capacitor ESR | G23: 14 | H23: 60 | I23: 1 | J23: 3.5 | K23: 3.5 | L23: 0.2139537037 | M23: 0.05553453532 | N23: 3.178555591 | O23: 5.089277796 | P23: 1.910722204 | Q23: 0 | R23: 3.618277855 | S23: 0.05236773855 | T23: 0.2 | U23: 0.2534294608 | V23: 0.9175699631 | W23: 0.0008419346372 | X23: 0.0008419346372 | Y23: 0.8286602877 | Z23: 0.0006866778723 | AA23: 0.0006866778723 | AB23: 0.8526749126 | AC23: 0.00450773794 | AD23: 0.4854497283 | AE23: 0.41364 | AF23: 0 | AG23: 0.9042822791 | AH23: 3.51637315 | AI23: 0.04080410443 | AJ23: 0.02058 | AK23: 0.06179460029 | AL23: 0.02058 | AM23: 0.18396 | AN23: 0.01963790196 | AO23: 0.000132 | AP23: 0.846 | AQ23: 0.8046593407 | AR23: 0.7755 | AS23: 0.846132 | AT23: 2.291344855 | AU23: 11.5535 | AV23: 0.8344983365 | AW23: 43.07922692 | AX23: 4.985806992 | AZ23: 83.44983365 | BA23: 0.2534294608 | BB23: 1.150036879 | BC23: 1.025695879 | BD23: 0.1225014003 | BE23: 0.01963790196
A24: Cout | B24: =Cout*1000000 -> 100 | C24: μF | D24: Output Capcitance | G24: 15 | H24: 60 | I24: 1 | J24: 3.75 | K24: 3.75 | L24: 0.2292361111 | M24: 0.05557152918 | N24: 3.18052982 | O24: 5.34026491 | P24: 2.15973509 | Q24: 0 | R24: 3.86076169 | S24: 0.05962192331 | T24: 0.2 | U24: 0.2608661908 | V24: 0.9181398739 | W24: 0.000842980828 | X24: 0.000842980828 | Y24: 0.8844712169 | Z24: 0.0007822893335 | AA24: 0.0007822893335 | AB24: 0.9101210704 | AC24: 0.005135586249 | AD24: 0.5201247089 | AE24: 0.41364 | AF24: 0 | AG24: 0.9397110576 | AH24: 3.75195422 | AI24: 0.04645462954 | AJ24: 0.02205 | AK24: 0.06902666534 | AL24: 0.02205 | AM24: 0.1971 | AN24: 0.02235822124 | AO24: 0.000132 | AP24: 0.846 | AQ24: 0.8046593407 | AR24: 0.7755 | AS24: 0.846132 | AT24: 2.358869405 | AU24: 12.37875 | AV24: 0.8399423041 | AW24: 44.93147642 | AX24: 5.45663538 | AZ24: 83.99423041 | BA24: 0.2608661908 | BB24: 1.205837723 | BC24: 1.069797058 | BD24: 0.1340696653 | BE24: 0.02235822124
A25: RCoutEsr | B25: =Cout_ESR*1000 -> 1 | C25: mW | D25: Output Capacitor ESR | G25: 16 | H25: 60 | I25: 1 | J25: 4 | K25: 4 | L25: 0.2445185185 | M25: 0.05560852346 | N25: 3.182503883 | O25: 5.591251941 | P25: 2.408748059 | Q25: 0 | R25: 4.104147607 | S25: 0.06737611032 | T25: 0.2 | U25: 0.2688251015 | V25: 0.9187097367 | W25: 0.0008440275804 | X25: 0.0008440275804 | Y25: 0.9405235689 | Z25: 0.0008845845837 | AA25: 0.0008845845837 | AB25: 0.9678179079 | AC25: 0.005807363318 | AD25: 0.5547996894 | AE25: 0.41364 | AF25: 0 | AG25: 0.9751984925 | AH25: 3.988402698 | AI25: 0.05249427506 | AJ25: 0.02352 | AK25: 0.0766694978 | AL25: 0.02352 | AM25: 0.21024 | AN25: 0.02526604137 | AO25: 0.000132 | AP25: 0.846 | AQ25: 0.8046593407 | AR25: 0.7755 | AS25: 0.846132 | AT25: 2.427579745 | AU25: 13.204 | AV25: 0.8447002936 | AW25: 46.78618949 | AX25: 5.944182 | AZ25: 84.47002936 | BA25: 0.2688251015 | BB25: 1.26210799 | BC25: 1.113956893 | BD25: 0.1460486978 | BE25: 0.02526604137
A26: Top Driver | B26: Input Value | C26: Units | D26: Description | G26: 17 | H26: 60 | I26: 1 | J26: 4.25 | K26: 4.25 | L26: 0.2598009259 | M26: 0.05564551818 | N26: 3.18447778 | O26: 5.84223889 | P26: 2.65776111 | Q26: 0 | R26: 4.348284132 | S26: 0.07563029958 | T26: 0.2 | U26: 0.2773081313 | V26: 0.9192795517 | W26: 0.0008450748942 | X26: 0.0008450748942 | Y26: 0.9967827946 | Z26: 0.0009935759396 | AA26: 0.0009935759396 | AB26: 1.025729888 | AC26: 0.006523155176 | AD26: 0.58947467 | AE26: 0.41364 | AF26: 0 | AG26: 1.010745491 | AH26: 4.225571333 | AI26: 0.0589229952 | AJ26: 0.02499 | AK26: 0.08472574073 | AL26: 0.02499 | AM26: 0.22338 | AN26: 0.02836136234 | AO26: 0.000132 | AP26: 0.846 | AQ26: 0.8046593407 | AR26: 0.7755 | AS26: 0.846132 | AT26: 2.497481376 | AU26: 14.02925 | AV26: 0.8488823156 | AW26: 48.64340423 | AX26: 6.448554428 | AZ26: 84.88823156 | BA26: 0.2773081313 | BB26: 1.318851232 | BC26: 1.158176291 | BD26: 0.1584411407 | BE26: 0.02836136234
A27: RdsonDRT | B27: 0.7 | C27: W | D27: Drain to Source Resistance of pullup Top FET Driver | G27: 18 | H27: 60 | I27: 1 | J27: 4.5 | K27: 4.5 | L27: 0.2750833333 | M27: 0.05568251333 | N27: 3.186451511 | O27: 6.093225756 | P27: 2.906774244 | Q27: 0 | R27: 4.593051575 | S27: 0.08438449108 | T27: 0.2 | U27: 0.2863173506 | V27: 0.9198493188 | W27: 0.0008461227694 | X27: 0.0008461227694 | Y27: 1.053221589 | Z27: 0.001109275717 | AA27: 0.001109275717 | AB27: 1.083828924 | AC27: 0.007283047851 | AD27: 0.6241496506 | AE27: 0.41364 | AF27: 0 | AG27: 1.046352966 | AH27: 4.463343773 | AI27: 0.06574074419 | AJ27: 0.02646 | AK27: 0.09319820667 | AL27: 0.02646 | AM27: 0.23652 | AN27: 0.03164418415 | AO27: 0.000132 | AP27: 0.846 | AQ27: 0.8046593407 | AR27: 0.7755 | AS27: 0.846132 | AT27: 2.568580106 | AU27: 14.8545 | AV27: 0.8525760032 | AW27: 50.50315896 | AX27: 6.969867132 | AZ27: 85.25760032 | BA27: 0.2863173506 | BB27: 1.376071172 | BC27: 1.202456166 | BD27: 0.1712498067 | BE27: 0.03164418415
A28: RdsonDRT2 | B28: =RdsonDRT2 -> 0.5 | C28: W | D28: Drain to Source Resistance of pulldown Top FET Driver | G28: 19 | H28: 60 | I28: 1 | J28: 4.75 | K28: 4.75 | L28: 0.2903657407 | M28: 0.05571950891 | N28: 3.188425076 | O28: 6.344212538 | P28: 3.155787462 | Q28: 0 | R28: 4.838354184 | S28: 0.09363868482 | T28: 0.2 | U28: 0.2958549624 | V28: 0.9204190381 | W28: 0.0008471712056 | X28: 0.0008471712056 | Y28: 1.109818106 | Z28: 0.001231696228 | AA28: 0.001231696228 | AB28: 1.142092546 | AC28: 0.008087127377 | AD28: 0.6588246312 | AE28: 0.41364 | AF28: 0 | AG28: 1.082021834 | AH28: 4.701626934 | AI28: 0.07294747621 | AJ28: 0.02793 | AK28: 0.1020898802 | AL28: 0.02793 | AM28: 0.24966 | AN28: 0.03511450681 | AO28: 0.000132 | AP28: 0.846 | AQ28: 0.8046593407 | AR28: 0.7755 | AS28: 0.846132 | AT28: 2.640882051 | AU28: 15.67975 | AV28: 0.8558520228 | AW28: 52.36549222 | AX28: 7.508241585 | AZ28: 85.58520228 | BA28: 0.2958549624 | BB28: 1.433771714 | BC28: 1.246797434 | BD28: 0.1844776802 | BE28: 0.03511450681
A29: Bottom Driver | B29: Input Value | C29: Units | D29: Description | G29: 20 | H29: 60 | I29: 1 | J29: 5 | K29: 5 | L29: 0.3056481481 | M29: 0.05575650493 | N29: 3.190398476 | O29: 6.595199238 | P29: 3.404800762 | Q29: 0 | R29: 5.084114495 | S29: 0.1033928808 | T29: 0.2 | U29: 0.3059233041 | V29: 0.9209887094 | W29: 0.0008482202029 | X29: 0.0008482202029 | Y29: 1.166554664 | Z29: 0.001360849784 | AA29: 0.001360849784 | AB29: 1.200502569 | AC29: 0.008935479786 | AD29: 0.6934996118 | AE29: 0.41364 | AF29: 0 | AG29: 1.117753018 | AH29: 4.940345513 | AI29: 0.08054314549 | AJ29: 0.0294 | AK29: 0.1114039209 | AL29: 0.0294 | AM29: 0.2628 | AN29: 0.0387723303 | AO29: 0.000132 | AP29: 0.846 | AQ29: 0.8046593407 | AR29: 0.7755 | AS29: 0.846132 | AT29: 2.714393644 | AU29: 16.505 | AV29: 0.8587679875 | AW29: 54.23044277 | AX29: 8.063806383 | AZ29: 85.87679875 | BA29: 0.3059233041 | BB29: 1.491956939 | BC29: 1.291201018 | BD29: 0.1981279209 | BE29: 0.0387723303
A30: RdsonDRB | B30: 0.7 | C30: W | D30: Drain to Source Resistance of pullup Bottom FET Driver | G30: 21 | H30: 60 | I30: 1 | J30: 5.25 | K30: 5.25 | L30: 0.3209305556 | M30: 0.05579350137 | N30: 3.192371709 | O30: 6.846185855 | P30: 3.653814145 | Q30: 0 | R30: 5.330269202 | S30: 0.113647079 | T30: 0.2 | U30: 0.316524849 | V30: 0.9215583329 | W30: 0.0008492697609 | X30: 0.0008492697609 | Y30: 1.223416812 | Z30: 0.001496748697 | AA30: 0.001496748697 | AB30: 1.259044128 | AC30: 0.009828191114 | AD30: 0.7281745924 | AE30: 0.41364 | AF30: 0 | AG30: 1.153547447 | AH30: 5.179437966 | AI30: 0.08852770623 | AJ30: 0.03087 | AK30: 0.1211436664 | AL30: 0.03087 | AM30: 0.27594 | AN30: 0.04261765464 | AO30: 0.000132 | AP30: 0.846 | AQ30: 0.8046593407 | AR30: 0.7755 | AS30: 0.846132 | AT30: 2.789121636 | AU30: 17.33025 | AV30: 0.8613713347 | AW30: 56.09804959 | AX30: 8.636697361 | AZ30: 86.13713347 | BA30: 0.316524849 | BB30: 1.550631114 | BC30: 1.335667847 | BD30: 0.2122038664 | BE30: 0.04261765464
A31: RdsonDRB2 | B31: 0.5 | C31: W | D31: Drain to Source Resistance of pulldown Bottom FET Driver | G31: 22 | H31: 60 | I31: 1 | J31: 5.5 | K31: 5.5 | L31: 0.336212963 | M31: 0.05583049825 | N31: 3.194344777 | O31: 7.097172388 | P31: 3.902827612 | Q31: 0 | R31: 5.576766077 | S31: 0.1244012795 | T31: 0.2 | U31: 0.3276622073 | V31: 0.9221279084 | W31: 0.0008503198795 | X31: 0.0008503198795 | Y31: 1.280392624 | Z31: 0.001639405272 | AA31: 0.001639405272 | AB31: 1.317704957 | AC31: 0.0107653474 | AD31: 0.762849573 | AE31: 0.41364 | AF31: 0 | AG31: 1.189406054 | AH31: 5.418853525 | AI31: 0.09690111263 | AJ31: 0.03234 | AK31: 0.1313126353 | AL31: 0.03234 | AM31: 0.28908 | AN31: 0.04665047982 | AO31: 0.000132 | AP31: 0.846 | AQ31: 0.8046593407 | AR31: 0.7755 | AS31: 0.846132 | AT31: 2.865073102 | AU31: 18.1555 | AV31: 0.8637014753 | AW31: 57.96835189 | AX31: 9.227057735 | AZ31: 86.37014753 | BA31: 0.3276622073 | BB31: 1.60979869 | BC31: 1.380198854 | BD31: 0.2267090353 | BE31: 0.04665047982
A32: Deadtime | B32: Input Value | C32: Units | D32: Description | G32: 23 | H32: 60 | I32: 1 | J32: 5.75 | K32: 5.75 | L32: 0.3514953704 | M32: 0.05586749556 | N32: 3.196317679 | O32: 7.348158839 | P32: 4.151841161 | Q32: 0 | R32: 5.823561673 | S32: 0.1356554822 | T32: 0.2 | U32: 0.3393381284 | V32: 0.9226974361 | W32: 0.0008513705586 | X32: 0.0008513705586 | Y32: 1.337472175 | Z32: 0.001788831818 | AA32: 0.001788831818 | AB32: 1.37647485 | AC32: 0.01174703468 | AD32: 0.7975245536 | AE32: 0.41364 | AF32: 0 | AG32: 1.225329779 | AH32: 5.658549951 | AI32: 0.1056633189 | AJ32: 0.03381 | AK32: 0.141914531 | AL32: 0.03381 | AM32: 0.30222 | AN32: 0.05087080584 | AO32: 0.000132 | AP32: 0.846 | AQ32: 0.8046593407 | AR32: 0.7755 | AS32: 0.846132 | AT32: 2.942255446 | AU32: 18.98075 | AV32: 0.8657914193 | AW32: 59.84138911 | AX32: 9.835038232 | AZ32: 86.57914193 | BA32: 0.3393381284 | BB32: 1.66946431 | BC32: 1.424794979 | BD32: 0.241647131 | BE32: 0.05087080584
A33: Deadtime | B33: =Deadtime*1000000000 -> 14 | C33: ns | D33: Total Deadtime | G33: 24 | H33: 60 | I33: 1 | J33: 6 | K33: 6 | L33: 0.3667777778 | M33: 0.0559044933 | N33: 3.198290415 | O33: 7.599145207 | P33: 4.400854793 | Q33: 0 | R33: 6.070619556 | S33: 0.1474096872 | T33: 0.2 | U33: 0.3515555021 | V33: 0.9232669159 | W33: 0.000852421798 | X33: 0.000852421798 | Y33: 1.394647137 | Z33: 0.001945040638 | AA33: 0.001945040638 | AB33: 1.435345243 | AC33: 0.012773339 | AD33: 0.8321995342 | AE33: 0.41364 | AF33: 0 | AG33: 1.261319565 | AH33: 5.898491827 | AI33: 0.1148142792 | AJ33: 0.03528 | AK33: 0.1529532453 | AL33: 0.03528 | AM33: 0.31536 | AN33: 0.0552786327 | AO33: 0.000132 | AP33: 0.846 | AQ33: 0.8046593407 | AR33: 0.7755 | AS33: 0.846132 | AT33: 3.020676408 | AU33: 19.806 | AV33: 0.8676690223 | AW33: 61.71720094 | AX33: 10.46079724 | AZ33: 86.76690223 | BA33: 0.3515555021 | BB33: 1.729632811 | BC33: 1.469457165 | BD33: 0.2570220453 | BE33: 0.0552786327
A34: IQ | B34: Input Value | C34: Units | D34: Description | G34: 25 | H34: 60 | I34: 1 | J34: 6.25 | K34: 6.25 | L34: 0.3820601852 | M34: 0.05594149147 | N34: 3.200262984 | O34: 7.850131492 | P34: 4.649868508 | Q34: 0 | R34: 6.317908958 | S34: 0.1596638944 | T34: 0.2 | U34: 0.3643173607 | V34: 0.9238363478 | W34: 0.0008534735975 | X34: 0.0008534735975 | Y34: 1.451910477 | Z34: 0.002108044034 | AA34: 0.002108044034 | AB34: 1.494308903 | AC34: 0.0138443464 | AD34: 0.8668745148 | AE34: 0.41364 | AF34: 0 | AG34: 1.297376364 | AH34: 6.138649241 | AI34: 0.1243539479 | AJ34: 0.03675 | AK34: 0.164432862 | AL34: 0.03675 | AM34: 0.3285 | AN34: 0.0598739604 | AO34: 0.000132 | AP34: 0.846 | AQ34: 0.8046593407 | AR34: 0.7755 | AS34: 0.846132 | AT34: 3.100344065 | AU34: 20.63125 | AV34: 0.8693579514 | AW34: 63.5958273 | AX34: 11.10450098 | AZ34: 86.93579514 | BA34: 0.3643173607 | BB34: 1.790309226 | BC34: 1.514186364 | BD34: 0.272837862 | BE34: 0.0598739604
A35: IQ | B35: =Iq*1000 -> 0.0022 | C35: mA | D35: Quiescent Current Of Controller (Not Switching!) | G35: 26 | H35: 60 | I35: 1 | J35: 6.5 | K35: 6.5 | L35: 0.3973425926 | M35: 0.05597849007 | N35: 3.202235389 | O35: 8.101117694 | P35: 4.898882306 | Q35: 0 | R35: 6.565403716 | S35: 0.1724181038 | T35: 0.2 | U35: 0.3776268807 | V35: 0.9244057318 | W35: 0.000854525957 | X35: 0.000854525957 | Y35: 1.50925621 | Z35: 0.002277854309 | AA35: 0.002277854309 | AB35: 1.553359674 | AC35: 0.01496014293 | AD35: 0.9015494953 | AE35: 0.41364 | AF35: 0 | AG35: 1.333501132 | AH35: 6.378996761 | AI35: 0.1342822789 | AJ35: 0.03822 | AK35: 0.1763576611 | AL35: 0.03822 | AM35: 0.34164 | AN35: 0.06465678894 | AO35: 0.000132 | AP35: 0.846 | AQ35: 0.8046593407 | AR35: 0.7755 | AS35: 0.846132 | AT35: 3.181266843 | AU35: 21.4565 | AV35: 0.8708784419 | AW35: 65.47730834 | AX35: 11.76632365 | AZ35: 87.08784419 | BA35: 0.3776268807 | BB35: 1.851498793 | BC35: 1.558983532 | BD35: 0.2890988611 | BE35: 0.06465678894
A36: High-side FET | B36: Input Value | C36: Units | D36: Description | G36: 27 | H36: 60 | I36: 1 | J36: 6.75 | K36: 6.75 | L36: 0.412625 | M36: 0.05601548911 | N36: 3.204207627 | O36: 8.352103813 | P36: 5.147896187 | Q36: 0 | R36: 6.813081452 | S36: 0.1856723155 | T36: 0.2 | U36: 0.391487385 | V36: 0.9249750679 | W36: 0.0008555788762 | X36: 0.0008555788762 | Y36: 1.566679214 | Z36: 0.00245448376 | AA36: 0.00245448376 | AB36: 1.612492292 | AC36: 0.01612081463 | AD36: 0.9362244759 | AE36: 0.41364 | AF36: 0 | AG36: 1.369694831 | AH36: 6.619512632 | AI36: 0.1445992267 | AJ36: 0.03969 | AK36: 0.1887321232 | AL36: 0.03969 | AM36: 0.35478 | AN36: 0.06962711831 | AO36: 0.000132 | AP36: 0.846 | AQ36: 0.8046593407 | AR36: 0.7755 | AS36: 0.846132 | AT36: 3.26345352 | AU36: 22.28175 | AV36: 0.8722478951 | AW36: 67.36168449 | AX36: 12.44644759 | AZ36: 87.22478951 | BA36: 0.391487385 | BB36: 1.913206954 | BC36: 1.603849631 | BD36: 0.3058095232 | BE36: 0.06962711831
A37: RdsonTop | B37: =Rdson1*1000 -> 6.2 | C37: mW | D37: Drain-Source Resistance of Top FET | G37: 28 | H37: 60 | I37: 1 | J37: 7 | K37: 7 | L37: 0.4279074074 | M37: 0.05605248857 | N37: 3.206179699 | O37: 8.603089849 | P37: 5.396910151 | Q37: 0 | R37: 7.060922911 | S37: 0.1994265294 | T37: 0.2 | U37: 0.4059023451 | V37: 0.9255443561 | W37: 0.0008566323551 | X37: 0.0008566323551 | Y37: 1.624175079 | Z37: 0.002637944686 | AA37: 0.002637944686 | AB37: 1.671702221 | AC37: 0.01732644756 | AD37: 0.9708994565 | AE37: 0.41364 | AF37: 0 | AG37: 1.405958429 | AH37: 6.860178135 | AI37: 0.1553047453 | AJ37: 0.04116 | AK37: 0.2015609339 | AL37: 0.04116 | AM37: 0.36792 | AN37: 0.07478494853 | AO37: 0.000132 | AP37: 0.846 | AQ37: 0.8046593407 | AR37: 0.7755 | AS37: 0.846132 | AT37: 3.346913233 | AU37: 23.107 | AV37: 0.8734813559 | AW37: 69.2489964 | AX37: 13.14506353 | AZ37: 87.34813559 | BA37: 0.4059023451 | BB37: 1.975439362 | BC37: 1.648785629 | BD37: 0.3229745339 | BE37: 0.07478494853
A38: RdsonTopTc | B38: =RdsonTopTc*1000000 -> 4000 | C38: ppm | D38: Drain to Source Resistance Temp Co | G38: 29 | H38: 60 | I38: 1 | J38: 7.25 | K38: 7.25 | L38: 0.4431898148 | M38: 0.05608948847 | N38: 3.208151605 | O38: 8.854075803 | P38: 5.645924197 | Q38: 0 | R38: 7.308911437 | S38: 0.2136807456 | T38: 0.2 | U38: 0.4208753828 | V38: 0.9261135964 | W38: 0.0008576863935 | X38: 0.0008576863935 | Y38: 1.681739986 | Z38: 0.002828249382 | AA38: 0.002828249382 | AB38: 1.730985537 | AC38: 0.01857712776 | AD38: 1.005574437 | AE38: 0.41364 | AF38: 0 | AG38: 1.4422929 | AH38: 7.100977078 | AI38: 0.166398789 | AJ38: 0.04263 | AK38: 0.2148489886 | AL38: 0.04263 | AM38: 0.38106 | AN38: 0.08013027959 | AO38: 0.000132 | AP38: 0.846 | AQ38: 0.8046593407 | AR38: 0.7755 | AS38: 0.846132 | AT38: 3.431655486 | AU38: 23.93225 | AV38: 0.8745918967 | AW38: 71.13928499 | AX38: 13.8623707 | AZ38: 87.45918967 | BA38: 0.4208753828 | BB38: 2.038201888 | BC38: 1.6937925 | BD38: 0.3405987886 | BE38: 0.08013027959
A39: QgTop | B39: =Qg_Q1*1000000000 -> 16 | C39: nC | D39: Gate Charge Of Top FET | G39: 30 | H39: 60 | I39: 1 | J39: 7.5 | K39: 7.5 | L39: 0.4584722222 | M39: 0.0561264888 | N39: 3.210123346 | O39: 9.105061673 | P39: 5.894938327 | Q39: 0 | R39: 7.557032552 | S39: 0.228434964 | T39: 0.2 | U39: 0.4364102732 | V39: 0.9266827889 | W39: 0.0008587409912 | X39: 0.0008587409912 | Y39: 1.739370616 | Z39: 0.003025410141 | AA39: 0.003025410141 | AB39: 1.790338826 | AC39: 0.01987294129 | AD39: 1.040249418 | AE39: 0.41364 | AF39: 0 | AG39: 1.478699224 | AH39: 7.341895387 | AI39: 0.177881312 | AJ39: 0.0441 | AK39: 0.2286013976 | AL39: 0.0441 | AM39: 0.3942 | AN39: 0.08566311149 | AO39: 0.000132 | AP39: 0.846 | AQ39: 0.8046593407 | AR39: 0.7755 | AS39: 0.846132 | AT39: 3.517690158 | AU39: 24.7575 | AV39: 0.8755909284 | AW39: 73.03259142 | AX39: 14.59857708 | AZ39: 87.55909284 | BA39: 0.4364102732 | BB39: 2.101500622 | BC39: 1.738871224 | BD39: 0.3586873976 | BE39: 0.08566311149
A40: QgdTop | B40: =Qgd_Q1*1000000000 -> 5.5 | C40: nC | D40: Gate to Drain Charge | G40: 31 | H40: 60 | I40: 1 | J40: 7.75 | K40: 7.75 | L40: 0.4737546296 | M40: 0.05616348956 | N40: 3.21209492 | O40: 9.35604746 | P40: 6.14395254 | Q40: 0 | R40: 7.805273611 | S40: 0.2436891846 | T40: 0.2 | U40: 0.4525109465 | V40: 0.9272519334 | W40: 0.000859796148 | X40: 0.000859796148 | Y40: 1.797064066 | Z40: 0.003229439257 | AA40: 0.003229439257 | AB40: 1.849759104 | AC40: 0.02121397421 | AD40: 1.074924398 | AE40: 0.41364 | AF40: 0 | AG40: 1.515178389 | AH40: 7.58292077 | AI40: 0.1897522684 | AJ40: 0.04557 | AK40: 0.2428234914 | AL40: 0.04557 | AM40: 0.40734 | AN40: 0.09138344422 | AO40: 0.000132 | AP40: 0.846 | AQ40: 0.8046593407 | AR40: 0.7755 | AS40: 0.846132 | AT40: 3.605027507 | AU40: 25.58275 | AV40: 0.8764884546 | AW40: 74.92895714 | AX40: 15.35389964 | AZ40: 87.64884546 | BA40: 0.4525109465 | BB40: 2.16534188 | BC40: 1.784022789 | BD40: 0.3772456914 | BE40: 0.09138344422
A41: QgsTop | B41: =Qgs_Q1*1000000000 -> 6.3 | C41: nC | G41: 32 | H41: =Vin -> 60 | I41: =MODE -> 1 | J41: 8 | K41: =Iout*G41/100/Number_of_Phases -> 8 | L41: =Vout*K41/(Vin*Efficiency) -> 0.489037037 | M41: =(Vout+(Rdson2+Rs+Rdcr)*K41)/(Vin+(Rs+Rdson2-Rdson1)*K41) -> 0.05620049076 | N41: =(Vin-(Rdson1+Rdcr)*K41-Vout)*M41/(Fsw*Lf) -> 3.214066329 | O41: 9.607033164 | P41: 6.392966836 | Q41: =IF(MIN(Vin, -P41/(Coss_Q1+Coss_Q2)*0.00000002)<0, 0, MIN(Vin, -P41/(Coss_Q1+Coss_Q2)*0.00000002)) -> 0 | R41: 8.053623524 | S41: =R41^2*Rdcr -> 0.2594434075 | T41: =Core_Loss_Ch1 -> 0.2 | U41: =(T41+S41*(1+Ltc*(Ta-25)))/(1-S41*Ltc*ThetaCa) -> 0.469181491 | V41: 0.92782103 | W41: 0.0008608518638 | X41: 0.0008608518638 | Y41: 1.854817786 | Z41: 0.003440349019 | AA41: 0.003440349019 | AB41: 1.909243752 | AC41: =Rdson1*AB41^2 -> 0.02260031258 | AD41: =(Vin*K41/2)*Fsw*(Tr_buck+Tf_buck) -> 1.109599379 | AE41: =(0.5*Coss_Q1*(Vin-Q41)^2-0.5*Coss_Q2*(Vin-Q41)^2+(Qoss_Q2*(Vin-Q41)/Vin)*Vin)*Fsw -> 0.41364 | AF41: =IF(K41>N41/2,0,ABS(K41-N41/2)*Vsd_Q1*Deadtime*Fsw) -> 0 | AG41: =(AF41+AE41+AD41+AC41*(1+RdsonTopTc*Ta-RdsonTopTc*25))/(1-AC41*RdsonTopTc*ThetaJA_Q1) -> 1.551731387 | AH41: =SQRT((1-M41))*SQRT(K41^2+(N41^2)/12) -> 7.824042444 | AI41: =Rdson2*AH41^2 -> 0.2020116125 | AJ41: =IF(K41<N41/2,Deadtime*Fsw*IF(VfdSky_Q2>0,0,Vsd_Q2)*(K41+N41/2),2*Deadtime*Fsw*IF(VfdSky_Q2>0,0,Vsd_Q2)*K41) -> 0.04704 | AK41: =(AJ41+AI41*(1+RdsonBotTc*Ta-RdsonBotTc*25))/(1-AI41*RdsonBotTc*ThetaJA_Q2) -> 0.2575208263 | AL41: =2*Deadtime*Fsw*IF(VfdSky_Q2>0,VfdSky_Q2,Vsd_Q2)*K41 -> 0.04704 | AM41: =IF(QrrSky_Q2>0,QrrSky_Q2,Qrr_Q2*K41/(Iout/Number_of_Phases))*Fsw*Vin -> 0.42048 | AN41: =Rs*R41^2 -> 0.0972912778 | AO41: =Iq*Vin -> 0.000132 | AP41: =IF(Ext_VCC=1, (Qg_Q1+Qg_Q2)*Fsw*VCC, (Qg_Q1+Qg_Q2)*Fsw*Vin) -> 0.846 | AQ41: 0.8046593407 | AR41: =(Qg_Q1+Qg_Q2)*Fsw*(Vin-VCC) -> 0.7755 | AS41: =SUM(AO41:AP41) -> 0.846132 | AT41: =SUM(U41,X41,AA41,AG41,AK41,AL41,AM41,AS41,AN41) -> 3.693678183 | AU41: =Vout*K41 -> 26.408 | AV41: 0.8772932805 | AW41: =ThetaJA_Q1*BC41 -> 76.82842384 | AX41: =ThetaJA_Q2*BD41 -> 16.12856451 | AZ41: 87.72932805 | BA41: =U41 -> 0.469181491 | BB41: =AG41+AK41+AM41 -> 2.229732213 | BC41: =AG41+AM41*0.66 -> 1.829248187 | BD41: =AK41+AM41*0.33 -> 0.3962792263 | BE41: =AN41 -> 0.0972912778
A42: RGateTop | B42: =Rgate1 -> 1.2 | C42: W | D42: Gate Resistance | G42: 33 | H42: 60 | I42: 1 | J42: =Iout*G42/100 -> 8.25 | K42: 8.25 | L42: 0.5043194444 | M42: 0.05623749238 | N42: 3.216037571 | O42: 9.858018786 | P42: 6.641981214 | Q42: 0 | R42: 8.302072521 | S42: 0.2756976326 | T42: 0.2 | U42: 0.4864261557 | V42: 0.9283900788 | W42: 0.0008619081384 | X42: 0.0008619081384 | Y42: 1.912629529 | Z42: 0.003658151716 | AA42: 0.003658151716 | AB42: 1.968790461 | AC42: 0.02403204244 | AD42: 1.144274359 | AE42: 0.41364 | AF42: 0 | AG42: 1.588359217 | AH42: 8.065250911 | AI42: 0.2146592985 | AJ42: 0.04851 | AK42: 0.2726991899 | AL42: 0.04851 | AM42: =IF(QrrSky_Q2>0,QrrSky_Q2,Qrr_Q2*K42/(Iout/Number_of_Phases))*Fsw*Vin -> 0.43362 | AN42: 0.1033866122 | AO42: 0.000132 | AP42: 0.846 | AQ42: 0.8046593407 | AR42: 0.7755 | AS42: 0.846132 | AT42: 3.783653234 | AU42: 27.23325 | AV42: 0.8780131851 | AW42: 78.7310335 | AX42: 16.92280725 | AZ42: 87.80131851 | BA42: 0.4864261557 | BB42: 2.294678407 | BC42: 1.874548417 | BD42: 0.4157937899 | BE42: 0.1033866122
A43: GfsTop | B43: =Gfs_Q1 -> 99 | C43: S | D43: Transconductance of Top FET | G43: 34 | H43: 60 | I43: 1 | J43: 8.5 | K43: 8.5 | L43: 0.5196018519 | M43: 0.05627449444 | N43: 3.218008648 | O43: 10.10900432 | P43: 6.890995676 | Q43: 0 | R43: 8.550611965 | S43: 0.2924518599 | T43: 0.2 | U43: 0.5042493528 | V43: 0.9289590796 | W43: 0.0008629649716 | X43: 0.0008629649716 | Y43: 1.970497306 | Z43: 0.003882859634 | AA43: 0.003882859634 | AB43: 2.028397185 | AC43: 0.02550924987 | AD43: 1.17894934 | AE43: 0.41364 | AF43: 0 | AG43: 1.625062885 | AH43: 8.306537776 | AI43: 0.2276952804 | AJ43: 0.04998 | AK43: 0.288364608 | AL43: 0.04998 | AM43: 0.44676 | AN43: 0.1096694475 | AO43: 0.000132 | AP43: 0.846 | AQ43: 0.8046593407 | AR43: 0.7755 | AS43: 0.846132 | AT43: 3.874964117 | AU43: 28.0585 | AV43: 0.8786550653 | AW43: 80.63682836 | AX43: 17.73687311 | AZ43: 87.86550653 | BA43: 0.5042493528 | BB43: 2.360187493 | BC43: 1.919924485 | BD43: 0.435795408 | BE43: 0.1096694475
A44: VthTop | B44: =Vth_Q1 -> 3 | C44: V | D44: Threshold Voltage of Top FET | G44: 35 | H44: 60 | I44: 1 | J44: 8.75 | K44: 8.75 | L44: 0.5348842593 | M44: 0.05631149693 | N44: 3.219979559 | O44: 10.35998978 | P44: 7.140010221 | Q44: 0 | R44: 8.799234192 | S44: 0.3097060895 | T44: 0.2 | U44: 0.5226556607 | V44: 0.9295280326 | W44: 0.0008640223633 | X44: 0.0008640223633 | Y44: 2.02841935 | Z44: 0.00411448506 | AA44: 0.00411448506 | AB44: 2.08806211 | AC44: 0.02703202093 | AD44: 1.213624321 | AE44: 0.41364 | AF44: 0 | AG44: 1.661843403 | AH44: 8.547895588 | AI44: 0.2411195127 | AJ44: 0.05145 | AK44: 0.3045233504 | AL44: 0.05145 | AM44: 0.4599 | AN44: 0.1161397835 | AO44: 0.000132 | AP44: 0.846 | AQ44: 0.8046593407 | AR44: 0.7755 | AS44: 0.846132 | AT44: 3.967622705 | AU44: 28.88375 | AV44: 0.8792250558 | AW44: 82.54585093 | AX44: 18.57101726 | AZ44: 87.92250558 | BA44: 0.5226556607 | BB44: 2.426266754 | BC44: 1.965377403 | BD44: 0.4562903504 | BE44: 0.1161397835
A45: VspTop | B45: =Vsp_Q1 -> 3.252525253 | C45: V | G45: 36 | H45: 60 | I45: 1 | J45: 9 | K45: 9 | L45: 0.5501666667 | M45: 0.05634849985 | N45: 3.221950304 | O45: 10.61097515 | P45: 7.389024848 | Q45: 0 | R45: 9.047932378 | S45: 0.3274603213 | T45: 0.2 | U45: 0.5416498274 | V45: 0.9300969376 | W45: 0.0008650803134 | X45: 0.0008650803134 | Y45: 2.086394084 | Z45: 0.004353040275 | AA45: 0.004353040275 | AB45: 2.147783617 | AC45: 0.02860044169 | AD45: 1.248299301 | AE45: 0.41364 | AF45: 0 | AG45: 1.698701791 | AH45: 8.789317712 | AI45: 0.2549319493 | AJ45: 0.05292 | AK45: 0.321181938 | AL45: 0.05292 | AM45: 0.47304 | AN45: 0.1227976205 | AO45: 0.000132 | AP45: 0.846 | AQ45: 0.8046593407 | AR45: 0.7755 | AS45: 0.846132 | AT45: 4.061641298 | AU45: 29.709 | AV45: 0.8797286299 | AW45: 84.45814404 | AX45: 19.42550512 | AZ45: 87.97286299 | BA45: 0.5416498274 | BB45: 2.492923729 | BC45: 2.010908191 | BD45: 0.477285138 | BE45: 0.1227976205
A46: VsdTop | B46: =Vsd_Q1 -> 0.7 | C46: V | G46: 37 | H46: 60 | I46: 1 | J46: 9.25 | K46: 9.25 | L46: 0.5654490741 | M46: 0.0563855032 | N46: 3.223920883 | O46: 10.86196044 | P46: 7.638039559 | Q46: 0 | R46: 9.296700427 | S46: 0.3457145553 | T46: 0.2 | U46: 0.561236773 | V46: 0.9306657948 | W46: 0.0008661388215 | X46: 0.0008661388215 | Y46: 2.144420099 | Z46: 0.004598537562 | AA46: 0.004598537562 | AB46: 2.207560258 | AC46: 0.03021459821 | AD46: 1.282974282 | AE46: 0.41364 | AF46: 0 | AG46: 1.735639075 | AH46: 9.030798222 | AI46: 0.2691325446 | AJ46: 0.05439 | AK46: 0.3383471499 | AL46: 0.05439 | AM46: 0.48618 | AN46: 0.1296429582 | AO46: 0.000132 | AP46: 0.846 | AQ46: 0.8046593407 | AR46: 0.7755 | AS46: 0.846132 | AT46: 4.157032633 | AU46: 30.53425 | AV46: 0.880170685 | AW46: 86.37375075 | AX46: 20.30061258 | AZ46: 88.0170685 | BA46: 0.561236773 | BB46: 2.560166225 | BC46: 2.056517875 | BD46: 0.4987865499 | BE46: 0.1296429582
A47: θJATop | B47: =ThetaJA_Q1 -> 42 | C47: °C/W | D47: Junction to Ambient Resistance | G47: 38 | H47: 60 | I47: 1 | J47: 9.5 | K47: 9.5 | L47: 0.5807314815 | M47: 0.05642250699 | N47: 3.225891296 | O47: 11.11294565 | P47: 7.887054352 | Q47: 0 | R47: 9.545532876 | S47: 0.3644687916 | T47: 0.2 | U47: 0.5814215936 | V47: 0.931234604 | W47: 0.0008671978877 | X47: 0.0008671978877 | Y47: 2.202496129 | Z47: 0.004850989199 | AA47: 0.004850989199 | AB47: 2.267390733 | AC47: 0.03187457655 | AD47: 1.317649262 | AE47: 0.41364 | AF47: 0 | AG47: 1.772656287 | AH47: 9.272331808 | AI47: 0.2837212526 | AJ47: 0.05586 | AK47: 0.3560260309 | AL47: 0.05586 | AM47: 0.49932 | AN47: 0.1366757968 | AO47: 0.000132 | AP47: 0.846 | AQ47: 0.8046593407 | AR47: 0.7755 | AS47: 0.846132 | AT47: 4.253809896 | AU47: 31.3595 | AV47: 0.8805556151 | AW47: 88.29271447 | AX47: 21.19662638 | AZ47: 88.05556151 | BA47: 0.5814215936 | BB47: 2.628002318 | BC47: 2.102207487 | BD47: 0.5208016309 | BE47: 0.1366757968
A48: Low-side FET | B48: Input Value | C48: Units | D48: Description | G48: 39 | H48: 60 | I48: 1 | J48: 9.75 | K48: 9.75 | L48: 0.5960138889 | M48: 0.05645951121 | N48: 3.227861543 | O48: 11.36393077 | P48: 8.136069229 | Q48: 0 | R48: 9.794424818 | S48: 0.38372303 | T48: 0.2 | U48: 0.6022095643 | V48: 0.9318033653 | W48: 0.0008682575117 | X48: 0.0008682575117 | Y48: 2.260621036 | Z48: 0.005110407466 | AA48: 0.005110407466 | AB48: 2.327273873 | AC48: 0.03358046281 | AD48: 1.352324243 | AE48: 0.41364 | AF48: 0 | AG48: 1.809754468 | AH48: 9.513913697 | AI48: 0.2986980276 | AJ48: 0.05733 | AK48: 0.3742258992 | AL48: 0.05733 | AM48: 0.51246 | AN48: 0.1438961363 | AO48: 0.000132 | AP48: 0.846 | AQ48: 0.8046593407 | AR48: 0.7755 | AS48: 0.846132 | AT48: 4.351986733 | AU48: 32.18475 | AV48: 0.8808873719 | AW48: 90.21507885 | AX48: 22.11384436 | AZ48: 88.08873719 | BA48: 0.6022095643 | BB48: 2.696440367 | BC48: 2.147978068 | BD48: 0.5433376992 | BE48: 0.1438961363
A49: RdsonBot | B49: =Rdson2*1000 -> 3.3 | C49: mW | D49: Drain-Source Resistance of Low-side FET | G49: 40 | H49: 60 | I49: 1 | J49: 10 | K49: 10 | L49: 0.6112962963 | M49: 0.05649651585 | N49: 3.229831624 | O49: 11.61491581 | P49: 8.385084188 | Q49: 0 | R49: 10.04337183 | S49: 0.4034772708 | T49: 0.2 | U49: 0.6236061431 | V49: 0.9323720788 | W49: 0.0008693176933 | X49: 0.0008693176933 | Y49: 2.31879379 | Z49: 0.005376804639 | AA49: 0.005376804639 | AB49: 2.387208622 | AC49: 0.03533234304 | AD49: 1.386999224 | AE49: 0.41364 | AF49: 0 | AG49: 1.846934664 | AH49: 9.75553959 | AI49: 0.3140628239 | AJ49: 0.0588 | AK49: 0.3929543552 | AL49: 0.0588 | AM49: 0.5256 | AN49: 0.1513039765 | AO49: 0.000132 | AP49: 0.846 | AQ49: 0.8046593407 | AR49: 0.7755 | AS49: 0.846132 | AT49: 4.451577261 | AU49: 33.01 | AV49: 0.8811695186 | AW49: 92.14088787 | AX49: 23.05257586 | AZ49: 88.11695186 | BA49: 0.6236061431 | BB49: 2.765489019 | BC49: 2.193830664 | BD49: 0.5664023552 | BE49: 0.1513039765
A50: RdsonBotTc | B50: =RdsonBotTc*1000000 -> 4000 | C50: ppm | D50: Drain To Source Resitance Temp Co | G50: 41 | H50: 60 | I50: 1 | J50: 10.25 | K50: 10.25 | L50: 0.6265787037 | M50: 0.05653352093 | N50: 3.231801539 | O50: 11.86590077 | P50: 8.63409923 | Q50: 0 | R50: 10.29236991 | S50: 0.4237315137 | T50: 0.2 | U50: 0.6456169744 | V50: 0.9329407443 | W50: 0.0008703784324 | X50: 0.0008703784324 | Y50: 2.37701346 | Z50: 0.005650192991 | AA50: 0.005650192991 | AB50: 2.447194026 | AC50: 0.03713030332 | AD50: 1.421674204 | AE50: 0.41364 | AF50: 0 | AG50: 1.884197929 | AH50: 9.997205601 | AI50: 0.3298155954 | AJ50: 0.06027 | AK50: 0.4122192893 | AL50: 0.06027 | AM50: 0.53874 | AN50: 0.1588993176 | AO50: 0.000132 | AP50: 0.846 | AQ50: 0.8046593407 | AR50: 0.7755 | AS50: 0.846132 | AT50: 4.552596081 | AU50: 33.83525 | AV50: 0.8814052742 | AW50: 94.07018581 | AX50: 24.01314201 | AZ50: 88.14052742 | BA50: 0.6456169744 | BB50: 2.835157218 | BC50: 2.239766329 | BD50: 0.5900034893 | BE50: 0.1588993176
A51: QgBot | B51: =Qg_Q2*1000000000 -> 31 | C51: nC | D51: Gate Charge Of Top FET | G51: 42 | H51: 60 | I51: 1 | J51: 10.5 | K51: 10.5 | L51: 0.6418611111 | M51: 0.05657052645 | N51: 3.233771288 | O51: 12.11688564 | P51: 8.883114356 | Q51: 0 | R51: 10.54141545 | S51: 0.4444857589 | T51: 0.2 | U51: 0.6682478927 | V51: 0.9335093619 | W51: 0.0008714397288 | X51: 0.0008714397288 | Y51: 2.435279203 | Z51: 0.005930584795 | AA51: 0.005930584795 | AB51: 2.507229217 | AC51: 0.03897442974 | AD51: 1.456349185 | AE51: 0.41364 | AF51: 0 | AG51: 1.921545325 | AH51: 10.23890821 | AI51: 0.3459562966 | AJ51: 0.06174 | AK51: 0.4320288918 | AL51: 0.06174 | AM51: 0.55188 | AN51: 0.1666821596 | AO51: 0.000132 | AP51: 0.846 | AQ51: 0.8046593407 | AR51: 0.7755 | AS51: 0.846132 | AT51: 4.655058293 | AU51: 34.6605 | AV51: 0.8815975533 | AW51: 96.00301725 | AX51: 24.99587617 | AZ51: 88.15975533 | BA51: 0.6682478927 | BB51: 2.905454217 | BC51: 2.285786125 | BD51: 0.6141492918 | BE51: 0.1666821596
A52: RGateBot | B52: =Rgate2 -> 1 | C52: W | D52: Gate Resistance | G52: 43 | H52: 60 | I52: 1 | J52: 10.75 | K52: 10.75 | L52: 0.6571435185 | M52: 0.05660753239 | N52: 3.235740872 | O52: 12.36787044 | P52: 9.132129564 | Q52: 0 | R52: 10.79050516 | S52: 0.4657400063 | T52: 0.2 | U52: 0.6915049271 | V52: 0.9340779317 | W52: 0.0008725015824 | X52: 0.0008725015824 | Y52: 2.493590248 | Z52: 0.006217992323 | AA52: 0.006217992323 | AB52: 2.567313406 | AC52: 0.04086480836 | AD52: 1.491024165 | AE52: 0.41364 | AF52: 0 | AG52: 1.958977921 | AH52: 10.48064423 | AI52: 0.3624848814 | AJ52: 0.06321 | AK52: 0.4523916619 | AL52: 0.06321 | AM52: 0.56502 | AN52: 0.1746525024 | AO52: 0.000132 | AP52: 0.846 | AQ52: 0.8046593407 | AR52: 0.7755 | AS52: 0.846132 | AT52: 4.758979506 | AU52: 35.48575 | AV52: 0.8817490001 | AW52: 97.93942708 | AX52: 26.00112426 | AZ52: 88.17490001 | BA52: 0.6915049271 | BB52: 2.976389583 | BC52: 2.331891121 | BD52: 0.6388482619 | BE52: 0.1746525024
A53: VsdBot | B53: =Vsd_Q2 -> 0.7 | C53: V | D53: Diode Forward Voltage of Bottom FET Body Diode | G53: 44 | H53: 60 | I53: 1 | J53: 11 | K53: 11 | L53: 0.6724259259 | M53: 0.05664453876 | N53: 3.237710289 | O53: 12.61885514 | P53: 9.381144855 | Q53: 0 | R53: 11.03963604 | S53: 0.487494256 | T53: 0.2 | U53: 0.7153943051 | V53: 0.9346464535 | W53: 0.000873563993 | X53: 0.000873563993 | Y53: 2.551945893 | Z53: 0.006512427843 | AA53: 0.006512427843 | AB53: 2.627445874 | AC53: 0.04280152528 | AD53: 1.525699146 | AE53: 0.41364 | AF53: 0 | AG53: 1.996496793 | AH53: 10.72241074 | AI53: 0.3794013042 | AJ53: 0.06468 | AK53: 0.473316418 | AL53: 0.06468 | AM53: 0.57816 | AN53: 0.182810346 | AO53: 0.000132 | AP53: 0.846 | AQ53: 0.8046593407 | AR53: 0.7755 | AS53: 0.846132 | AT53: 4.864375854 | AU53: 36.311 | AV53: 0.881862017 | AW53: 99.87946052 | AX53: 27.02924517 | AZ53: 88.1862017 | BA53: 0.7153943051 | BB53: 3.047973211 | BC53: 2.378082393 | BD53: 0.664109218 | BE53: 0.182810346
A54: QrrBot | B54: =Qrr_Q2*1000000000 -> 73 | C54: nC | D54: Reverse Recovery Charge of Body Diode | G54: 45 | H54: 60 | I54: 1 | J54: 11.25 | K54: 11.25 | L54: 0.6877083333 | M54: 0.05668154557 | N54: 3.23967954 | O54: 12.86983977 | P54: 9.63016023 | Q54: 0 | R54: 11.28880538 | S54: 0.5097485078 | T54: 0.2 | U54: 0.7399224573 | V54: 0.9352149274 | W54: 0.0008746269604 | X54: 0.0008746269604 | Y54: 2.610345499 | Z54: 0.006813903623 | AA54: 0.006813903623 | AB54: 2.687625963 | AC54: 0.04478466658 | AD54: 1.560374127 | AE54: 0.41364 | AF54: 0 | AG54: 2.034103026 | AH54: 10.96420511 | AI54: 0.396705519 | AJ54: 0.06615 | AK54: 0.4948123081 | AL54: 0.06615 | AM54: 0.5913 | AN54: 0.1911556904 | AO54: 0.000132 | AP54: 0.846 | AQ54: 0.8046593407 | AR54: 0.7755 | AS54: 0.846132 | AT54: 4.971264013 | AU54: 37.13625 | AV54: 0.881938791 | AW54: 101.8231631 | AX54: 28.08061124 | AZ54: 88.1938791 | BA54: 0.7399224573 | BB54: 3.120215334 | BC54: 2.424361026 | BD54: 0.6899413081 | BE54: 0.1911556904
A55: TrrBot | B55: =Trr_Q2*1000000000 -> 40 | C55: ns | D55: Reverse Recovery Time of Body Diode | G55: 46 | H55: 60 | I55: 1 | J55: 11.5 | K55: 11.5 | L55: 0.7029907407 | M55: 0.05671855281 | N55: 3.241648626 | O55: 13.12082431 | P55: 9.879175687 | Q55: 0 | R55: 11.53801068 | S55: 0.5325027619 | T55: 0.2 | U55: 0.7650960215 | V55: 0.9357833534 | W55: 0.0008756904845 | X55: 0.0008756904845 | Y55: 2.668788476 | Z55: 0.007122431928 | AA55: 0.007122431928 | AB55: 2.747853072 | AC55: 0.04681431834 | AD55: 1.595049107 | AE55: 0.41364 | AF55: 0 | AG55: 2.071797711 | AH55: 11.2060249 | AI55: 0.4143974801 | AJ55: 0.06762 | AK55: 0.5168888209 | AL55: 0.06762 | AM55: 0.60444 | AN55: 0.1996885357 | AO55: 0.000132 | AP55: 0.846 | AQ55: 0.8046593407 | AR55: 0.7755 | AS55: 0.846132 | AT55: 5.079661212 | AU55: 37.9615 | AV55: 0.8819813158 | AW55: 103.7705807 | AX55: 29.15560865 | AZ55: 88.19813158 | BA55: 0.7650960215 | BB55: 3.193126532 | BC55: 2.470728111 | BD55: 0.7163540209 | BE55: 0.1996885357
A56: θJABot | B56: =ThetaJA_Q2 -> 40.7 | C56: °C/W | D56: Junction to Ambient Resistance | G56: 47 | H56: 60 | I56: 1 | J56: 11.75 | K56: 11.75 | L56: 0.7182731481 | M56: 0.05675556048 | N56: 3.243617545 | O56: 13.37180877 | P56: 10.12819123 | Q56: 0 | R56: 11.78724966 | S56: 0.5557570183 | T56: 0.2 | U56: 0.7909218477 | V56: 0.9363517315 | W56: 0.000876754565 | X56: 0.000876754565 | Y56: 2.727274284 | Z56: 0.007438025022 | AA56: 0.007438025022 | AB56: 2.808126647 | AC56: 0.04889056665 | AD56: 1.629724088 | AE56: 0.41364 | AF56: 0 | AG56: 2.109581949 | AH56: 11.44786789 | AI56: 0.4324771417 | AJ56: 0.06909 | AK56: 0.539555797 | AL56: 0.06909 | AM56: 0.61758 | AN56: 0.2084088818 | AO56: 0.000132 | AP56: 0.846 | AQ56: 0.8046593407 | AR56: 0.7755 | AS56: 0.846132 | AT56: 5.189585255 | AU56: 38.78675 | AV56: 0.8819914114 | AW56: 105.7217594 | AX56: 30.25463792 | AZ56: 88.19914114 | BA56: 0.7909218477 | BB56: 3.266717746 | BC56: 2.517184749 | BD56: 0.743357197 | BE56: 0.2084088818
A57: Bottom Schottky | B57: Input Value | C57: Units | D57: Std Units | G57: 48 | H57: 60 | I57: 1 | J57: 12 | K57: 12 | L57: 0.7335555556 | M57: 0.05679256859 | N57: 3.245586299 | O57: 13.62279315 | P57: 10.37720685 | Q57: 0 | R57: 12.03652023 | S57: 0.5795112768 | T57: 0.2 | U57: 0.8174070029 | V57: 0.9369200617 | W57: 0.0008778192019 | X57: 0.0008778192019 | Y57: 2.785802428 | Z57: 0.007760695167 | AA57: 0.007760695167 | AB57: 2.868446179 | AC57: 0.0510134976 | AD57: 1.664399068 | AE57: 0.41364 | AF57: 0 | AG57: 2.147456846 | AH57: 11.68973206 | AI57: 0.4509444579 | AJ57: 0.07056 | AK57: 0.5628234417 | AL57: 0.07056 | AM57: 0.63072 | AN57: 0.2173167288 | AO57: 0.000132 | AP57: 0.846 | AQ57: 0.8046593407 | AR57: 0.7755 | AS57: 0.846132 | AT57: 5.301054533 | AU57: 39.612 | AV57: 0.8819707413 | AW57: 107.6767459 | AX57: 31.3781144 | AZ57: 88.19707413 | BA57: 0.8174070029 | BB57: 3.341000287 | BC57: 2.563732046 | BD57: 0.7709610417 | BE57: 0.2173167288
A58: VfdSky | B58: =VfdSky_Q2 -> 0 | C58: V | D58: Diode Forward Voltage | G58: 49 | H58: 60 | I58: 1 | J58: 12.25 | K58: 12.25 | L58: 0.748837963 | M58: 0.05682957712 | N58: 3.247554886 | O58: 13.87377744 | P58: 10.62622256 | Q58: 0 | R58: 12.28582046 | S58: 0.6037655376 | T58: 0.2 | U58: 0.8445587763 | V58: 0.9374883439 | W58: 0.000878884395 | X58: 0.000878884395 | Y58: 2.844372448 | Z58: 0.008090454624 | AA58: 0.008090454624 | AB58: 2.9288112 | AC58: 0.05318319728 | AD58: 1.699074049 | AE58: 0.41364 | AF58: 0 | AG58: 2.185423518 | AH58: 11.93161554 | AI58: 0.4697993829 | AJ58: 0.07203 | AK58: 0.5867023369 | AL58: 0.07203 | AM58: 0.64386 | AN58: 0.2264120766 | AO58: 0.000132 | AP58: 0.846 | AQ58: 0.8046593407 | AR58: 0.7755 | AS58: 0.846132 | AT58: 5.414088047 | AU58: 40.43725 | AV58: 0.8819208277 | AW58: 109.635587 | AX58: 32.52646877 | AZ58: 88.19208277 | BA58: 0.8445587763 | BB58: 3.415985855 | BC58: 2.610371118 | BD58: 0.7991761369 | BE58: 0.2264120766
A59: QrrSky | B59: =QrrSky_Q2*1000000000 -> 0 | C59: nC | D59: Diode Reverse Recovery Charge | G59: 50 | H59: 60 | I59: 1 | J59: 12.5 | K59: 12.5 | L59: 0.7641203704 | M59: 0.05686658609 | N59: 3.249523308 | O59: 14.12476165 | P59: 10.87523835 | Q59: 0 | R59: 12.53514859 | S59: 0.6285198006 | T59: 0.2 | U59: 0.8723846844 | V59: 0.9380565783 | W59: 0.0008799501441 | X59: 0.0008799501441 | Y59: 2.902983922 | Z59: 0.008427315651 | AA59: 0.008427315651 | AB59: 2.989221276 | AC59: 0.05539975179 | AD59: 1.73374903 | AE59: 0.41364 | AF59: 0 | AG59: 2.22348309 | AH59: 12.1735166 | AI59: 0.4890418708 | AJ59: 0.0735 | AK59: 0.6112034552 | AL59: 0.0735 | AM59: 0.657 | AN59: 0.2356949252 | AO59: 0.000132 | AP59: 0.846 | AQ59: 0.8046593407 | AR59: 0.7755 | AS59: 0.846132 | AT59: 5.528705421 | AU59: 41.2625 | AV59: 0.8818430649 | AW59: 111.5983298 | AX59: 33.70014763 | AZ59: 88.18430649 | BA59: 0.8723846844 | BB59: 3.491686546 | BC59: 2.65710309 | BD59: 0.8280134552 | BE59: 0.2356949252
A60: Ireverse | B60: =Ireverse -> 0 | C60: mA | D60: Reverse Leakage Current | G60: 51 | H60: 60 | I60: 1 | J60: 12.75 | K60: 12.75 | L60: 0.7794027778 | M60: 0.05690359549 | N60: 3.251491564 | O60: 14.37574578 | P60: 11.12425422 | Q60: 0 | R60: 12.78450298 | S60: 0.6537740658 | T60: 0.2 | U60: 0.9008924768 | V60: 0.9386247647 | W60: 0.000881016449 | X60: 0.000881016449 | Y60: 2.961636457 | Z60: 0.008771290504 | AA60: 0.008771290504 | AB60: 3.049676007 | AC60: 0.05766324722 | AD60: 1.76842401 | AE60: 0.41364 | AF60: 0 | AG60: 2.261636694 | AH60: 12.41543365 | AI60: 0.5086718759 | AJ60: 0.07497 | AK60: 0.6363381737 | AL60: 0.07497 | AM60: 0.67014 | AN60: 0.2451652747 | AO60: 0.000132 | AP60: 0.846 | AQ60: 0.8046593407 | AR60: 0.7755 | AS60: 0.846132 | AT60: 5.644926926 | AU60: 42.08775 | AV60: 0.8817387314 | AW60: 113.565022 | AX60: 34.89961401 | AZ60: 88.17387314 | BA60: 0.9008924768 | BB60: 3.568114868 | BC60: 2.703929094 | BD60: 0.8574843737 | BE60: 0.2451652747
A61: Controller | B61: Input Value | C61: Units | D61: Std Units | G61: 52 | H61: 60 | I61: 1 | J61: 13 | K61: 13 | L61: 0.7946851852 | M61: 0.05694060532 | N61: 3.253459653 | O61: 14.62672983 | P61: 11.37327017 | Q61: 0 | R61: 13.03388213 | S61: 0.6795283332 | T61: 0.2 | U61: 0.9300901415 | V61: 0.9391929033 | W61: 0.0008820833095 | X61: 0.0008820833095 | Y61: 3.02032969 | Z61: 0.009122391439 | AA61: 0.009122391439 | AB61: 3.11017502 | AC61: 0.05997376967 | AD61: 1.803098991 | AE61: 0.41364 | AF61: 0 | AG61: 2.299885471 | AH61: 12.65736523 | AI61: 0.5286893524 | AJ61: 0.07644 | AK61: 0.6621182883 | AL61: 0.07644 | AM61: 0.68328 | AN61: 0.254823125 | AO61: 0.000132 | AP61: 0.846 | AQ61: 0.8046593407 | AR61: 0.7755 | AS61: 0.846132 | AT61: 5.762773501 | AU61: 42.913 | AV61: 0.881609 | AW61: 115.5357114 | AX61: 36.12534801 | AZ61: 88.1609 | BA61: 0.9300901415 | BB61: 3.645283759 | BC61: 2.750850271 | BD61: 0.8876006883 | BE61: 0.254823125
A62: θJA | B62: 30 | C62: °C/W | D62: Junction to Ambient Resistance | G62: 53 | H62: 60 | I62: 1 | J62: 13.25 | K62: 13.25 | L62: 0.8099675926 | M62: 0.05697761558 | N62: 3.255427577 | O62: 14.87771379 | P62: 11.62228621 | Q62: 0 | R62: 13.28328464 | S62: 0.7057826029 | T62: 0.2 | U62: 0.9599859113 | V62: 0.9397609939 | W62: 0.0008831507256 | X62: 0.0008831507256 | Y62: 3.079063284 | Z62: 0.009480630708 | AA62: 0.009480630708 | AB62: 3.170717972 | AC62: 0.06233140524 | AD62: 1.837773971 | AE62: 0.41364 | AF62: 0 | AG62: 2.33823057 | AH62: 12.89930999 | AI62: 0.5490942543 | AJ62: 0.07791 | AK62: 0.6885560299 | AL62: 0.07791 | AM62: 0.69642 | AN62: 0.2646684761 | AO62: 0.000132 | AP62: 0.846 | AQ62: 0.8046593407 | AR62: 0.7755 | AS62: 0.846132 | AT62: 5.882266768 | AU62: 43.73825 | AV62: 0.8814549474 | AW62: 117.5104463 | AX62: 37.37784744 | AZ62: 88.14549474 | BA62: 0.9599859113 | BB62: 3.7232066 | BC62: 2.79786777 | BD62: 0.9183746299 | BE62: 0.2646684761
A63: Theta Ja | B63: 2 | C63: °C/W | D63: Junction to Ambient Resistance | G63: 54 | H63: 60 | I63: 1 | J63: 13.5 | K63: 13.5 | L63: 0.82525 | M63: 0.05701462627 | N63: 3.257395334 | O63: 15.12869767 | P63: 11.87130233 | Q63: 0 | R63: 13.53270921 | S63: 0.7325368748 | T63: 0.2 | U63: 0.9905882696 | V63: 0.9403290366 | W63: 0.0008842186971 | X63: 0.0008842186971 | Y63: 3.137836924 | Z63: 0.009846020564 | AA63: 0.009846020564 | AB63: 3.231304541 | AC63: 0.06473624003 | AD63: 1.872448952 | AE63: 0.41364 | AF63: 0 | AG63: 2.376673148 | AH63: 13.14126667 | AI63: 0.5698865359 | AJ63: 0.07938 | AK63: 0.7156640801 | AL63: 0.07938 | AM63: 0.70956 | AN63: 0.274701328 | AO63: 0.000132 | AP63: 0.846 | AQ63: 0.8046593407 | AR63: 0.7755 | AS63: 0.846132 | AT63: 6.003429065 | AU63: 44.5635 | AV63: 0.8812775627 | AW63: 119.4892754 | AX63: 38.65762842 | AZ63: 88.12775627 | BA63: 0.9905882696 | BB63: 3.801897228 | BC63: 2.844982748 | BD63: 0.9498188801 | BE63: 0.274701328
G64: 55 | H64: 60 | I64: 1 | J64: 13.75 | K64: 13.75 | L64: 0.8405324074 | M64: 0.0570516374 | N64: 3.259362926 | O64: 15.37968146 | P64: 12.12031854 | Q64: 0 | R64: 13.78215467 | S64: 0.7597911489 | T64: 0.2 | U64: 1.021905957 | V64: 0.9408970314 | W64: 0.0008852872237 | X64: 0.0008852872237 | Y64: 3.196650318 | Z64: 0.01021857326 | AA64: 0.01021857326 | AB64: 3.291934429 | AC64: 0.06718836015 | AD64: 1.907123932 | AE64: 0.41364 | AF64: 0 | AG64: 2.415214374 | AH64: 13.3832341 | AI64: 0.5910661513 | AJ64: 0.08085 | AK64: 0.7434555887 | AL64: 0.08085 | AM64: 0.7227 | AN64: 0.2849216808 | AO64: 0.000132 | AP64: 0.846 | AQ64: 0.8046593407 | AR64: 0.7755 | AS64: 0.846132 | AT64: 6.126283461 | AU64: 45.38875 | AV64: 0.8810777544 | AW64: 121.4722477 | AX64: 39.96522616 | AZ64: 88.10777544 | BA64: 1.021905957 | BB64: 3.881369963 | BC64: 2.892196374 | BD64: 0.9819465887 | BE64: 0.2849216808
G65: 56 | H65: 60 | I65: 1 | J65: 14 | K65: 14 | L65: 0.8558148148 | M65: 0.05708864896 | N65: 3.261330352 | O65: 15.63066518 | P65: 12.36933482 | Q65: 0 | R65: 14.03161987 | S65: 0.7875454252 | T65: 0.2 | U65: 1.053947978 | V65: 0.9414649783 | W65: 0.0008863563053 | X65: 0.0008863563053 | Y65: 3.255503192 | Z65: 0.01059830103 | AA65: 0.01059830103 | AB65: 3.352607355 | AC65: 0.0696878517 | AD65: 1.941798913 | AE65: 0.41364 | AF65: 0 | AG65: 2.453855422 | AH65: 13.6252112 | AI65: 0.6126330547 | AJ65: 0.08232 | AK65: 0.7719441911 | AL65: 0.08232 | AM65: 0.73584 | AN65: 0.2953295345 | AO65: 0.000132 | AP65: 0.846 | AQ65: 0.8046593407 | AR65: 0.7755 | AS65: 0.846132 | AT65: 6.250853783 | AU65: 46.214 | AV65: 0.8808563575 | AW65: 123.4594125 | AX65: 41.30119562 | AZ65: 88.08563575 | BA65: 1.053947978 | BB65: 3.961639613 | BC65: 2.939509822 | BD65: 1.014771391 | BE65: 0.2953295345
A66: Outputs | G66: 57 | H66: 60 | I66: 1 | J66: 14.25 | K66: 14.25 | L66: 0.8710972222 | M66: 0.05712566095 | N66: 3.263297611 | O66: 15.88164881 | P66: 12.61835119 | Q66: 0 | R66: 14.28110381 | S66: 0.8157997038 | T66: 0.2 | U66: 1.086723608 | V66: 0.9420328772 | W66: 0.0008874259417 | X66: 0.0008874259417 | Y66: 3.31439529 | Z66: 0.01098521614 | AA66: 0.01098521614 | AB66: 3.413323061 | AC66: 0.07223480078 | AD66: 1.976473894 | AE66: 0.41364 | AF66: 0 | AG66: 2.492597478 | AH66: 13.86719696 | AI66: 0.6345872004 | AJ66: 0.08379 | AK66: 0.8011440277 | AL66: 0.08379 | AM66: 0.74898 | AN66: 0.3059248889 | AO66: 0.000132 | AP66: 0.846 | AQ66: 0.8046593407 | AR66: 0.7755 | AS66: 0.846132 | AT66: 6.377164644 | AU66: 47.03925 | AV66: 0.8806141392 | AW66: 125.4508197 | AX66: 42.66611231 | AZ66: 88.06141392 | BA66: 1.086723608 | BB66: 4.042721506 | BC66: 2.986924278 | BD66: 1.048307428 | BE66: 0.3059248889
A67: Design | B67: Value | C67: Units | G67: 58 | H67: 60 | I67: 1 | J67: 14.5 | K67: 14.5 | L67: 0.8863796296 | M67: 0.05716267337 | N67: 3.265264705 | O67: 16.13263235 | P67: 12.86736765 | Q67: 0 | R67: 14.5306055 | S67: 0.8445539845 | T67: 0.2 | U67: 1.120242399 | V67: 0.9426007282 | W67: 0.0008884961329 | X67: 0.0008884961329 | Y67: 3.373326373 | Z67: 0.01137933082 | AA67: 0.01137933082 | AB67: 3.474081302 | AC67: 0.07482929352 | AD67: 2.011148874 | AE67: 0.41364 | AF67: 0 | AG67: 2.531441735 | AH67: 14.10919045 | AI67: 0.6569285423 | AJ67: 0.08526 | AK67: 0.8310697637 | AL67: 0.08526 | AM67: 0.76212 | AN67: 0.3167077442 | AO67: 0.000132 | AP67: 0.846 | AQ67: 0.8046593407 | AR67: 0.7755 | AS67: 0.846132 | AT67: 6.505241469 | AU67: 47.8645 | AV67: 0.8803518043 | AW67: 127.4465193 | AX67: 44.0605731 | AZ67: 88.03518043 | BA67: 1.120242399 | BB67: 4.124631499 | BC67: 3.034440935 | BD67: 1.082569364 | BE67: 0.3167077442
A68: Dmax | B68: =D1_Vinmin -> 0.06602 | C68: index | G68: 59 | H68: 60 | I68: 1 | J68: 14.75 | K68: 14.75 | L68: 0.901662037 | M68: 0.05719968623 | N68: 3.267231633 | O68: 16.38361582 | P68: 13.11638418 | Q68: 0 | R68: 14.78012405 | S68: 0.8738082675 | T68: 0.2 | U68: 1.154514191 | V68: 0.9431685314 | W68: 0.0008895668785 | X68: 0.0008895668785 | Y68: 3.432296216 | Z68: 0.01178065731 | AA68: 0.01178065731 | AB68: 3.534881848 | AC68: 0.07747141602 | AD68: 2.045823855 | AE68: 0.41364 | AF68: 0 | AG68: 2.570389398 | AH68: 14.35119079 | AI68: 0.6796570348 | AJ68: 0.08673 | AK68: 0.8617366095 | AL68: 0.08673 | AM68: 0.77526 | AN68: 0.3276781003 | AO68: 0.000132 | AP68: 0.846 | AQ68: 0.8046593407 | AR68: 0.7755 | AS68: 0.846132 | AT68: 6.635110523 | AU68: 48.68975 | AV68: 0.88007 | AW68: 129.4465619 | AX68: 45.48519707 | AZ68: 88.007 | BA68: 1.154514191 | BB68: 4.207386007 | BC68: 3.082060998 | BD68: 1.11757241 | BE68: 0.3276781003
A69: Dprime | B69: =1-B68 -> 0.93398 | C69: index | G69: 60 | H69: 60 | I69: 1 | J69: 15 | K69: 15 | L69: 0.9169444444 | M69: 0.05723669951 | N69: 3.269198395 | O69: 16.6345992 | P69: 13.3654008 | Q69: 0 | R69: 15.02965862 | S69: 0.9035625527 | T69: 0.2 | U69: 1.189549116 | V69: 0.9437362866 | W69: 0.0008906381786 | X69: 0.0008906381786 | Y69: 3.491304608 | Z69: 0.01218920787 | AA69: 0.01218920787 | AB69: 3.595724486 | AC69: 0.0801612544 | AD69: 2.080498835 | AE69: 0.41364 | AF69: 0 | AG69: 2.609441678 | AH69: 14.59319717 | AI69: 0.7027726319 | AJ69: 0.0882 | AK69: 0.8931603433 | AL69: 0.0882 | AM69: 0.7884 | AN69: 0.3388359573 | AO69: 0.000132 | AP69: 0.846 | AQ69: 0.8046593407 | AR69: 0.7755 | AS69: 0.846132 | AT69: 6.76679894 | AU69: 49.515 | AV69: 0.8797693203 | AW69: 131.4509985 | AX69: 46.94062637 | AZ69: 87.97693203 | BA69: 1.189549116 | BB69: 4.291002021 | BC69: 3.129785678 | BD69: 1.153332343 | BE69: 0.3388359573
A70: Ipp | B70: =Iripple_Vinnom -> 3.280096598 | C70: A | G70: 61 | H70: 60 | I70: 1 | J70: 15.25 | K70: 15.25 | L70: 0.9322268519 | M70: 0.05727371323 | N70: 3.27116499 | O70: 16.8855825 | P70: 13.6144175 | Q70: 0 | R70: 15.27920842 | S70: 0.9338168401 | T70: 0.2 | U70: 1.225357606 | V70: 0.9443039938 | W70: 0.0008917100328 | X70: 0.0008917100328 | Y70: 3.550351351 | Z70: 0.01260499472 | AA70: 0.01260499472 | AB70: 3.656609014 | AC70: 0.08289889476 | AD70: 2.115173816 | AE70: 0.41364 | AF70: 0 | AG70: 2.648599798 | AH70: 14.83520881 | AI70: 0.7262752878 | AJ70: 0.08967 | AK70: 0.9253573337 | AL70: 0.08967 | AM70: 0.80154 | AN70: 0.350181315 | AO70: 0.000132 | AP70: 0.846 | AQ70: 0.8046593407 | AR70: 0.7755 | AS70: 0.846132 | AT70: 6.900334757 | AU70: 50.34025 | AV70: 0.8794503098 | AW70: 133.4598803 | AX70: 48.42752722 | AZ70: 87.94503098 | BA70: 1.225357606 | BB70: 4.375497132 | BC70: 3.177616198 | BD70: 1.189865534 | BE70: 0.350181315
A71: Top FET | B71: Value | C71: Units | G71: 62 | H71: 60 | I71: 1 | J71: 15.5 | K71: 15.5 | L71: 0.9475092593 | M71: 0.05731072738 | N71: 3.27313142 | O71: 17.13656571 | P71: 13.86343429 | Q71: 0 | R71: 15.52877273 | S71: 0.9645711298 | T71: 0.2 | U71: 1.261950404 | V71: 0.9448716532 | W71: 0.000892782441 | X71: 0.000892782441 | Y71: 3.609436258 | Z71: 0.0130280301 | AA71: 0.0130280301 | AB71: 3.71753524 | AC71: 0.08568442324 | AD71: 2.149848797 | AE71: 0.41364 | AF71: 0 | AG71: 2.687864991 | AH71: 15.07722502 | AI71: 0.7501649568 | AJ71: 0.09114 | AK71: 0.9583445644 | AL71: 0.09114 | AM71: 0.81468 | AN71: 0.3617141737 | AO71: 0.000132 | AP71: 0.846 | AQ71: 0.8046593407 | AR71: 0.7755 | AS71: 0.846132 | AT71: 7.035746945 | AU71: 51.1655 | AV71: 0.8791134672 | AW71: 135.4732592 | AX71: 49.94659085 | AZ71: 87.91134672 | BA71: 1.261950404 | BB71: 4.460889555 | BC71: 3.225553791 | BD71: 1.227188964 | BE71: 0.3617141737
A72: Tr | B72: =(Qgd_Q1+Qgs_Q1/2)*(RdsonDRT+Rgate1)/(VCC-Vsp_Q1)*1000000000 -> 10.89 | C72: ns | D72: Turn on of MOSFET -> Rise time of current | G72: 63 | H72: 60 | I72: 1 | J72: 15.75 | K72: 15.75 | L72: 0.9627916667 | M72: 0.05734774196 | N72: 3.275097684 | O72: 17.38754884 | P72: 14.11245116 | Q72: 0 | R72: 15.77835085 | S72: 0.9958254216 | T72: 0.2 | U72: 1.299338572 | V72: 0.9454392646 | W72: 0.0008938554031 | X72: 0.0008938554031 | Y72: 3.668559152 | Z72: 0.01345832625 | AA72: 0.01345832625 | AB72: 3.778502988 | AC72: 0.08851792594 | AD72: 2.184523777 | AE72: 0.41364 | AF72: 0 | AG72: 2.727238498 | AH72: 15.3192451 | AI72: 0.7744415929 | AJ72: 0.09261 | AK72: 0.9921396596 | AL72: 0.09261 | AM72: 0.82782 | AN72: 0.3734345331 | AO72: 0.000132 | AP72: 0.846 | AQ72: 0.8046593407 | AR72: 0.7755 | AS72: 0.846132 | AT72: 7.173065445 | AU72: 51.99075 | AV72: 0.8787592485 | AW72: 137.4911873 | AX72: 51.49853457 | AZ72: 87.87592485 | BA72: 1.299338572 | BB72: 4.547198158 | BC72: 3.273599698 | BD72: 1.26532026 | BE72: 0.3734345331
A73: Tf | B73: =(Qgd_Q1+Qgs_Q1/2)*(RdsonDRT2+Rgate1)/(Vsp_Q1)*1000000000 -> 4.521102484 | C73: ns | D73: Turn off of MOSFET -> Fall time of current | G73: 64 | H73: =Vin -> 60 | I73: =MODE -> 1 | J73: 16 | K73: =Iout*G73/100/Number_of_Phases -> 16 | L73: =Vout*K73/(Vin*Efficiency) -> 0.9780740741 | M73: =(Vout+(Rdson2+Rs+Rdcr)*K73)/(Vin+(Rs+Rdson2-Rdson1)*K73) -> 0.05738475698 | N73: =(Vin-(Rdson1+Rdcr)*K73-Vout)*M73/(Fsw*Lf) -> 3.277063781 | O73: 17.63853189 | P73: 14.36146811 | Q73: =IF(MIN(Vin, -P73/(Coss_Q1+Coss_Q2)*0.00000002)<0, 0, MIN(Vin, -P73/(Coss_Q1+Coss_Q2)*0.00000002)) -> 0 | R73: 16.02794213 | S73: =R73^2*Rdcr -> 1.027579716 | T73: =Core_Loss_Ch1 -> 0.2 | U73: =(T73+S73*(1+Ltc*(Ta-25)))/(1-S73*Ltc*ThetaCa) -> 1.337533499 | V73: 0.9460068281 | W73: 0.0008949289189 | X73: 0.0008949289189 | Y73: 3.727719867 | Z73: 0.01389589541 | AA73: 0.01389589541 | AB73: 3.839512087 | AC73: =Rdson1*AB73^2 -> 0.091399489 | AD73: =(Vin*K73/2)*Fsw*(Tr_buck+Tf_buck) -> 2.219198758 | AE73: =(0.5*Coss_Q1*(Vin-Q73)^2-0.5*Coss_Q2*(Vin-Q73)^2+(Qoss_Q2*(Vin-Q73)/Vin)*Vin)*Fsw -> 0.41364 | AF73: =IF(K73>N73/2,0,ABS(K73-N73/2)*Vsd_Q1*Deadtime*Fsw) -> 0 | AG73: =(AF73+AE73+AD73+AC73*(1+RdsonTopTc*Ta-RdsonTopTc*25))/(1-AC73*RdsonTopTc*ThetaJA_Q1) -> 2.766721572 | AH73: =SQRT((1-M73))*SQRT(K73^2+(N73^2)/12) -> 15.56126845 | AI73: =Rdson2*AH73^2 -> 0.7991051503 | AJ73: =IF(K73<N73/2,Deadtime*Fsw*IF(VfdSky_Q2>0,0,Vsd_Q2)*(K73+N73/2),2*Deadtime*Fsw*IF(VfdSky_Q2>0,0,Vsd_Q2)*K73) -> 0.09408 | AK73: =(AJ73+AI73*(1+RdsonBotTc*Ta-RdsonBotTc*25))/(1-AI73*RdsonBotTc*ThetaJA_Q2) -> 1.026760911 | AL73: =2*Deadtime*Fsw*IF(VfdSky_Q2>0,VfdSky_Q2,Vsd_Q2)*K73 -> 0.09408 | AM73: =IF(QrrSky_Q2>0,QrrSky_Q2,Qrr_Q2*K73/(Iout/Number_of_Phases))*Fsw*Vin -> 0.84096 | AN73: =Rs*R73^2 -> 0.3853423934 | AO73: =Iq*Vin -> 0.000132 | AP73: =IF(Ext_VCC=1, (Qg_Q1+Qg_Q2)*Fsw*VCC, (Qg_Q1+Qg_Q2)*Fsw*Vin) -> 0.846 | AQ73: =(Vin-VCC)*Fsw*(Qg_Q1+Qg_Q2)+(RdsonDRT+RdsonDRT2)*Fsw*Qg_Q1*VCC/(RdsonDRT+2*Rgate1+RdsonDRT2)+(RdsonDRB+RdsonDRB2)*Fsw*Qg_Q2*VCC/(RdsonDRB+2*Rgate2+RdsonDRB2) -> 0.8046593407 | AR73: =(Qg_Q1+Qg_Q2)*Fsw*(Vin-VCC) -> 0.7755 | AS73: 0.846132 | AT73: =SUM(U73,X73,AA73,AG73,AK73,AL73,AM73,AS73,AN73) -> 7.3123212 | AU73: =Vout*K73 -> 52.816 | AV73: 0.8783880698 | AW73: =ThetaJA_Q1*BC73 -> 139.5137172 | AX73: =ThetaJA_Q2*BD73 -> 53.08410285 | AZ73: 87.83880698 | BA73: =U73 -> 1.337533499 | BB73: 4.634442484 | BC73: 3.321755172 | BD73: 1.304277711 | BE73: 0.3853423934
A74: Part Power | B74: Value | C74: Units | G74: 65 | H74: 60 | I74: 1 | J74: =Iout*G74/100 -> 16.25 | K74: 16.25 | L74: 0.9933564815 | M74: 0.05742177242 | N74: 3.279029713 | O74: =K74+N74/2 -> 17.88951486 | P74: =K74-N74/2 -> 14.61048514 | Q74: 0 | R74: =SQRT(K74^2+(N74^2)/12) -> 16.27754598 | S74: 1.059834012 | T74: 0.2 | U74: 1.376546911 | V74: =N74/SQRT(12) -> 0.9465743437 | W74: =RCoutEsr*V74^2 -> 0.0008960029882 | X74: =W74 -> 0.0008960029882 | Y74: =SQRT(M74*(1-M74))*SQRT(K74^2+(N74^2)/12) -> 3.786918246 | Z74: =RCinEsr*Y74^2 -> 0.0143407498 | AA74: =Z74 -> 0.0143407498 | AB74: =SQRT(M74)*SQRT(K74^2+(N74^2)/12) -> 3.900562377 | AC74: 0.09432919853 | AD74: 2.253873738 | AE74: 0.41364 | AF74: 0 | AG74: 2.806315475 | AH74: 15.80329447 | AI74: 0.8241555832 | AJ74: 0.09555 | AK74: 1.062227307 | AL74: 0.09555 | AM74: 0.8541 | AN74: 0.3974377545 | AO74: 0.000132 | AP74: 0.846 | AQ74: 0.8046593407 | AR74: 0.7755 | AS74: 0.846132 | AT74: 7.453546201 | AU74: 53.64125 | AV74: =AU74/(AU74+AT74) -> 0.8780003099 | AW74: 141.540902 | AX74: 54.70406851 | AZ74: =AV74*100 -> 87.80003099 | BA74: 1.376546911 | BB74: =AG74+AK74+AM74 -> 4.722642783 | BC74: =AG74+AM74*0.66 -> 3.370021475 | BD74: =AK74+AM74*0.33 -> 1.344080307 | BE74: =AN74 -> 0.3974377545
A75: Power Dis | B75: =AS9 -> 0.846132 | C75: W | G75: 66 | H75: 60 | I75: 1 | J75: 16.5 | K75: 16.5 | L75: 1.008638889 | M75: 0.0574587883 | N75: 3.280995479 | O75: 18.14049774 | P75: 14.85950226 | Q75: 0 | R75: 16.52716181 | S75: 1.09258831 | T75: 0.2 | U75: 1.41639088 | V75: 0.9471418114 | W75: 0.0008970776109 | X75: 0.0008970776109 | Y75: 3.846154138 | Z75: 0.01479290166 | AA75: 0.01479290166 | AB75: 3.961653709 | AC75: 0.09730714066 | AD75: 2.288548719 | AE75: 0.41364 | AF75: 0 | AG75: 2.846021479 | AH75: 16.04532261 | AI75: 0.8495928458 | AJ75: 0.09702 | AK75: 1.098558562 | AL75: 0.09702 | AM75: 0.86724 | AN75: 0.4097206164 | AO75: 0.000132 | AP75: 0.846 | AQ75: 0.8046593407 | AR75: 0.7755 | AS75: =SUM(AO75:AP75) -> 0.846132 | AT75: 7.596773517 | AU75: 54.4665 | AV75: 0.8775963128 | AW75: 143.5727949 | AX75: 56.35923391 | AZ75: 87.75963128 | BA75: 1.41639088 | BB75: 4.811820041 | BC75: 3.418399879 | BD75: 1.384747762 | BE75: 0.4097206164
A76: Temp rise | B76: =B75*B62 -> 25.38396 | C76: °C | G76: 67 | H76: 60 | I76: 1 | J76: 16.75 | K76: 16.75 | L76: 1.023921296 | M76: 0.05749580461 | N76: 3.282961078 | O76: 18.39148054 | P76: 15.10851946 | Q76: 0 | R76: 16.77678911 | S76: 1.125842611 | T76: 0.2 | U76: 1.457077836 | V76: 0.9477092311 | W76: 0.0008981527867 | X76: 0.0008981527867 | Y76: 3.905427404 | Z76: 0.01525236321 | AA76: 0.01525236321 | AB76: 4.022785937 | AC76: 0.1003334015 | AD76: 2.3232237 | AE76: 0.41364 | AF76: 0 | AG76: 2.885840868 | AH76: 16.28735234 | AI76: 0.8754168921 | AJ76: 0.09849 | AK76: 1.135775147 | AL76: 0.09849 | AM76: 0.88038 | AN76: 0.4221909792 | AO76: 0.000132 | AP76: 0.846 | AQ76: 0.8046593407 | AR76: 0.7755 | AS76: 0.846132 | AT76: 7.742037346 | AU76: 55.29175 | AV76: 0.8771763895 | AW76: 145.60945 | AX76: 58.05043226 | AZ76: 87.71763895 | BA76: 1.457077836 | BB76: 4.901996015 | BC76: 3.466891668 | BD76: 1.426300547 | BE76: 0.4221909792
A77: Current (switching) | B77: =(Qg_Q1+Qg_Q2)*Fsw+Iq -> 0.0141022 | C77: A | G77: 68 | H77: 60 | I77: 1 | J77: 17 | K77: 17 | L77: 1.039203704 | M77: 0.05753282135 | N77: 3.284926512 | O77: 18.64246326 | P77: 15.35753674 | Q77: 0 | R77: 17.02642736 | S77: 1.159596914 | T77: 0.2 | U77: 1.498620578 | V77: 0.9482766029 | W77: 0.0008992285156 | X77: 0.0008992285156 | Y77: 3.964737908 | Z77: 0.01571914668 | AA77: 0.01571914668 | AB77: 4.083958928 | AC77: 0.1034080673 | AD77: 2.35789868 | AE77: 0.41364 | AF77: 0 | AG77: 2.925774934 | AH77: 16.52938317 | AI77: 0.9016276764 | AJ77: 0.09996 | AK77: 1.173898325 | AL77: 0.09996 | AM77: 0.89352 | AN77: 0.4348488428 | AO77: 0.000132 | AP77: 0.846 | AQ77: 0.8046593407 | AR77: 0.7755 | AS77: 0.846132 | AT77: 7.889373055 | AU77: 56.117 | AV77: 0.87674082 | AW77: 147.6509216 | AX77: 59.77852896 | AZ77: 87.674082 | BA77: 1.498620578 | BB77: 4.993193259 | BC77: 3.515498134 | BD77: 1.468759925 | BE77: 0.4348488428
A78: Qrr Current | B78: =Qrr_Q2*Fsw -> 0.0219 | C78: A | G78: 69 | H78: 60 | I78: 1 | J78: 17.25 | K78: 17.25 | L78: 1.054486111 | M78: 0.05756983853 | N78: 3.286891779 | O78: 18.89344589 | P78: 15.60655411 | Q78: 0 | R78: 17.27607608 | S78: 1.193851219 | T78: 0.2 | U78: 1.541032281 | V78: 0.9488439268 | W78: 0.0009003047974 | X78: 0.0009003047974 | Y78: 4.024085522 | Z78: 0.01619326429 | AA78: 0.01619326429 | AB78: 4.145172551 | AC78: 0.106531224 | AD78: 2.392573661 | AE78: 0.41364 | AF78: 0 | AG78: 2.965824983 | AH78: 16.77141465 | AI78: 0.9282251528 | AJ78: 0.10143 | AK78: 1.212950187 | AL78: 0.10143 | AM78: 0.90666 | AN78: 0.4476942072 | AO78: 0.000132 | AP78: 0.846 | AQ78: 0.8046593407 | AR78: 0.7755 | AS78: 0.846132 | AT78: 8.038817226 | AU78: 56.94225 | AV78: 0.8762898553 | AW78: 149.6972645 | AX78: 61.54442306 | AZ78: 87.62898553 | BA78: 1.541032281 | BB78: 5.08543517 | BC78: 3.564220583 | BD78: 1.512147987 | BE78: 0.4476942072
A79: Diode Current | B79: =Deadtime*Fsw*(Iripple_Vinnom/2)*(Vsd_Q2)/Vin -> 8.036236665e-05 | G79: 70 | H79: 60 | I79: 1 | J79: 17.5 | K79: 17.5 | L79: 1.069768519 | M79: 0.05760685613 | N79: 3.288856881 | O79: 19.14442844 | P79: 15.85557156 | Q79: 0 | R79: 17.52573484 | S79: 1.228605527 | T79: 0.2 | U79: 1.584326511 | V79: 0.9494112027 | W79: 0.0009013816319 | X79: 0.0009013816319 | Y79: 4.083470127 | Z79: 0.01667472827 | AA79: 0.01667472827 | AB79: 4.206426685 | AC79: 0.1097029578 | AD79: 2.427248641 | AE79: 0.41364 | AF79: 0 | AG79: 3.005992329 | AH79: 17.01344633 | AI79: 0.9552092754 | AJ79: 0.1029 | AK79: 1.252953685 | AL79: 0.1029 | AM79: 0.9198 | AN79: 0.4607270724 | AO79: 0.000132 | AP79: 0.846 | AQ79: 0.8046593407 | AR79: 0.7755 | AS79: 0.846132 | AT79: 8.190407707 | AU79: 57.7675 | AV79: 0.8758237186 | AW79: 151.7485338 | AX79: 63.34904877 | AZ79: 87.58237186 | BA79: 1.584326511 | BB79: 5.178746014 | BC79: 3.613060329 | BD79: 1.556487685 | BE79: 0.4607270724
A80: Total | B80: =SUM(B77:B79) -> 0.03608256237 | C80: A | G80: 71 | H80: 60 | I80: 1 | J80: 17.75 | K80: 17.75 | L80: 1.085050926 | M80: 0.05764387417 | N80: 3.290821816 | O80: 19.39541091 | P80: 16.10458909 | Q80: 0 | R80: 17.7754032 | S80: 1.263859836 | T80: 0.2 | U80: 1.628517238 | V80: 0.9499784308 | W80: 0.0009024590189 | X80: 0.0009024590189 | Y80: 4.142891604 | Z80: 0.01716355085 | AA80: 0.01716355085 | AB80: 4.267721212 | AC80: 0.1129233549 | AD80: 2.461923622 | AE80: 0.41364 | AF80: 0 | AG80: 3.046278299 | AH80: 17.25547782 | AI80: 0.9825799984 | AJ80: 0.10437 | AK80: 1.293932676 | AL80: 0.10437 | AM80: 0.93294 | AN80: 0.4739474385 | AO80: 0.000132 | AP80: 0.846 | AQ80: 0.8046593407 | AR80: 0.7755 | AS80: 0.846132 | AT80: 8.344183662 | AU80: 58.59275 | AV80: 0.8753426068 | AW80: 153.8047854 | AX80: 65.19337704 | AZ80: 87.53426068 | BA80: 1.628517238 | BB80: 5.273150975 | BC80: 3.662018699 | BD80: 1.601802876 | BE80: 0.4739474385
G81: 72 | H81: 60 | I81: 1 | J81: 18 | K81: 18 | L81: 1.100333333 | M81: 0.05768089264 | N81: 3.292786586 | O81: 19.64639329 | P81: 16.35360671 | Q81: 0 | R81: 18.02508078 | S81: 1.299614148 | T81: 0.2 | U81: 1.673618846 | V81: 0.9505456109 | W81: 0.0009035369583 | X81: 0.0009035369583 | Y81: 4.202349846 | Z81: 0.01765974423 | AA81: 0.01765974423 | AB81: 4.329056021 | AC81: 0.1161925014 | AD81: 2.496598602 | AE81: 0.41364 | AF81: 0 | AG81: 3.08668423 | AH81: 17.49750871 | AI81: 1.010337276 | AJ81: 0.10584 | AK81: 1.335911961 | AL81: 0.10584 | AM81: 0.94608 | AN81: 0.4873553054 | AO81: 0.000132 | AP81: 0.846 | AQ81: 0.8046593407 | AR81: 0.7755 | AS81: 0.846132 | AT81: 8.500185624 | AU81: 59.418 | AV81: 0.8748466917 | AW81: 155.8660753 | AX81: 67.07841729 | AZ81: 87.48466917 | BA81: 1.673618846 | BB81: 5.368676191 | BC81: 3.71109703 | BD81: 1.648118361 | BE81: 0.4873553054
G82: 73 | H82: 60 | I82: 1 | J82: 18.25 | K82: 18.25 | L82: 1.115615741 | M82: 0.05771791154 | N82: 3.294751189 | O82: 19.89737559 | P82: 16.60262441 | Q82: 0 | R82: 18.27476718 | S82: 1.335868462 | T82: 0.2 | U82: 1.719646146 | V82: 0.951112743 | W82: 0.0009046154499 | X82: 0.0009046154499 | Y82: 4.261844746 | Z82: 0.01816332064 | AA82: 0.01816332064 | AB82: 4.390431007 | AC82: 0.1195104835 | AD82: 2.531273583 | AE82: 0.41364 | AF82: 0 | AG82: 3.127211472 | AH82: 17.73953864 | AI82: 1.038481062 | AJ82: 0.10731 | AK82: 1.378917331 | AL82: 0.10731 | AM82: 0.95922 | AN82: 0.5009506732 | AO82: 0.000132 | AP82: 0.846 | AQ82: 0.8046593407 | AR82: 0.7755 | AS82: 0.846132 | AT82: 8.658455558 | AU82: 60.24325 | AV82: 0.8743361215 | AW82: 157.9324602 | AX82: 69.00521917 | AZ82: 87.43361215 | BA82: 1.719646146 | BB82: 5.465348802 | BC82: 3.760296672 | BD82: 1.695459931 | BE82: 0.5009506732
G83: 74 | H83: 60 | I83: 1 | J83: 18.5 | K83: 18.5 | L83: 1.130898148 | M83: 0.05775493088 | N83: 3.296715627 | O83: 20.14835781 | P83: 16.85164219 | Q83: 0 | R83: 18.52446206 | S83: 1.372622778 | T83: 0.2 | U83: 1.76661439 | V83: 0.9516798273 | W83: 0.0009056944936 | X83: 0.0009056944936 | Y83: 4.321376203 | Z83: 0.01867429229 | AA83: 0.01867429229 | AB83: 4.451846068 | AC83: 0.1228773872 | AD83: 2.565948564 | AE83: 0.41364 | AF83: 0 | AG83: 3.167861384 | AH83: 17.98156726 | AI83: 1.067011312 | AJ83: 0.10878 | AK83: 1.42297561 | AL83: 0.10878 | AM83: 0.97236 | AN83: 0.5147335417 | AO83: 0.000132 | AP83: 0.846 | AQ83: 0.8046593407 | AR83: 0.7755 | AS83: 0.846132 | AT83: 8.819036913 | AU83: 61.0685 | AV83: 0.8738110212 | AW83: 160.0039973 | AX83: 70.97487449 | AZ83: 87.38110212 | BA83: 1.76661439 | BB83: 5.563196994 | BC83: 3.809618984 | BD83: 1.74385441 | BE83: 0.5147335417
G84: 75 | H84: 60 | I84: 1 | J84: 18.75 | K84: 18.75 | L84: 1.146180556 | M84: 0.05779195065 | N84: 3.298679898 | O84: 20.39933995 | P84: 17.10066005 | Q84: 0 | R84: 18.77416507 | S84: 1.409877096 | T84: 0.2 | U84: 1.814539287 | V84: 0.9522468636 | W84: 0.0009067740891 | X84: 0.0009067740891 | Y84: 4.380944121 | Z84: 0.01919267139 | AA84: 0.01919267139 | AB84: 4.513301108 | AC84: 0.1262932987 | AD84: 2.600623544 | AE84: 0.41364 | AF84: 0 | AG84: 3.208635339 | AH84: 18.22359424 | AI84: 1.095927978 | AJ84: 0.11025 | AK84: 1.46811471 | AL84: 0.11025 | AM84: 0.9855 | AN84: 0.5287039111 | AO84: 0.000132 | AP84: 0.846 | AQ84: 0.8046593407 | AR84: 0.7755 | AS84: 0.846132 | AT84: 8.981974692 | AU84: 61.89375 | AV84: 0.8732714941 | AW84: 162.0807442 | AX84: 72.98851918 | AZ84: 87.32714941 | BA84: 1.814539287 | BB84: 5.662250048 | BC84: 3.859065339 | BD84: 1.79332971 | BE84: 0.5287039111
G85: 76 | H85: 60 | I85: 1 | J85: 19 | K85: 19 | L85: 1.161462963 | M85: 0.05782897084 | N85: 3.300644003 | O85: 20.650322 | P85: 17.349678 | Q85: 0 | R85: 19.0238759 | S85: 1.447631417 | T85: 0.2 | U85: 1.863437014 | V85: 0.9528138519 | W85: 0.0009078542364 | X85: 0.0009078542364 | Y85: 4.440548409 | Z85: 0.01971847017 | AA85: 0.01971847017 | AB85: 4.574796034 | AC85: 0.1297583043 | AD85: 2.635298525 | AE85: 0.41364 | AF85: 0 | AG85: 3.24953472 | AH85: 18.46561928 | AI85: 1.125231015 | AJ85: 0.11172 | AK85: 1.514363677 | AL85: 0.11172 | AM85: 0.99864 | AN85: 0.5428617814 | AO85: 0.000132 | AP85: 0.846 | AQ85: 0.8046593407 | AR85: 0.7755 | AS85: 0.846132 | AT85: 9.147315517 | AU85: 62.719 | AV85: 0.8727176223 | AW85: 164.1627591 | AX85: 75.04733548 | AZ85: 87.27176223 | BA85: 1.863437014 | BB85: 5.762538397 | BC85: 3.90863712 | BD85: 1.843914877 | BE85: 0.5428617814
G86: 77 | H86: 60 | I86: 1 | J86: 19.25 | K86: 19.25 | L86: 1.17674537 | M86: 0.05786599147 | N86: 3.302607943 | O86: 20.90130397 | P86: 17.59869603 | Q86: 0 | R86: 19.27359424 | S86: 1.48588574 | T86: 0.2 | U86: 1.913324236 | V86: 0.9533807923 | W86: 0.0009089349352 | X86: 0.0009089349352 | Y86: 4.500188977 | Z86: 0.02025170083 | AA86: 0.02025170083 | AB86: 4.636330757 | AC86: 0.1332724899 | AD86: 2.669973505 | AE86: 0.41364 | AF86: 0 | AG86: 3.290560925 | AH86: 18.70764208 | AI86: 1.154920378 | AJ86: 0.11319 | AK86: 1.56175275 | AL86: 0.11319 | AM86: 1.01178 | AN86: 0.5572071524 | AO86: 0.000132 | AP86: 0.846 | AQ86: 0.8046593407 | AR86: 0.7755 | AS86: 0.846132 | AT86: 9.315107699 | AU86: 63.54425 | AV86: 0.8721494672 | AW86: 166.2501004 | AX86: 77.15255411 | AZ86: 87.21494672 | BA86: 1.913324236 | BB86: 5.864093675 | BC86: 3.958335725 | BD86: 1.89564015 | BE86: 0.5572071524
G87: 78 | H87: 60 | I87: 1 | J87: 19.5 | K87: 19.5 | L87: 1.192027778 | M87: 0.05790301254 | N87: 3.304571716 | O87: 21.15228586 | P87: 17.84771414 | Q87: 0 | R87: 19.5233198 | S87: 1.524640065 | T87: 0.2 | U87: 1.964218116 | V87: 0.9539476848 | W87: 0.0009100161854 | X87: 0.0009100161854 | Y87: 4.559865741 | Z87: 0.02079237557 | AA87: 0.02079237557 | AB87: 4.697905192 | AC87: 0.1368359418 | AD87: 2.704648486 | AE87: 0.41364 | AF87: 0 | AG87: 3.331715361 | AH87: 18.94966234 | AI87: 1.18499602 | AJ87: 0.11466 | AK87: 1.610313421 | AL87: 0.11466 | AM87: 1.02492 | AN87: 0.5717400243 | AO87: 0.000132 | AP87: 0.846 | AQ87: 0.8046593407 | AR87: 0.7755 | AS87: 0.846132 | AT87: 9.485401313 | AU87: 64.3695 | AV87: 0.8715670708 | AW87: 168.3428275 | AX87: 79.30545675 | AZ87: 87.15670708 | BA87: 1.964218116 | BB87: 5.966948782 | BC87: 4.008162561 | BD87: 1.948537021 | BE87: 0.5717400243
G88: 79 | H88: 60 | I88: 1 | J88: 19.75 | K88: 19.75 | L88: 1.207310185 | M88: 0.05794003403 | N88: 3.306535323 | O88: 21.40326766 | P88: 18.09673234 | Q88: 0 | R88: 19.77305232 | S88: 1.563894392 | T88: 0.2 | U88: 2.016136337 | V88: 0.9545145294 | W88: 0.0009110979868 | X88: 0.0009110979868 | Y88: 4.619578619 | Z88: 0.02134050662 | AA88: 0.02134050662 | AB88: 4.759519259 | AC88: 0.1404487462 | AD88: 2.739323467 | AE88: 0.41364 | AF88: 0 | AG88: 3.372999448 | AH88: 19.19167982 | AI88: 1.215457896 | AJ88: 0.11613 | AK88: 1.660078493 | AL88: 0.11613 | AM88: 1.03806 | AN88: 0.586460397 | AO88: 0.000132 | AP88: 0.846 | AQ88: 0.8046593407 | AR88: 0.7755 | AS88: 0.846132 | AT88: 9.658248279 | AU88: 65.19475 | AV88: 0.8709704554 | AW88: 170.441 | AX88: 81.50737852 | AZ88: 87.09704554 | BA88: 2.016136337 | BB88: 6.071137941 | BC88: 4.058119048 | BD88: 2.002638293 | BE88: 0.586460397
G89: 80 | H89: 60 | I89: 1 | J89: 20 | K89: 20 | L89: 1.222592593 | M89: 0.05797705596 | N89: 3.308498764 | O89: 21.65424938 | P89: 18.34575062 | Q89: 0 | R89: 20.02279152 | S89: 1.603648721 | T89: 0.2 | U89: 2.069097117 | V89: 0.955081326 | W89: 0.0009121803393 | X89: 0.0009121803393 | Y89: 4.679327533 | Z89: 0.02189610616 | AA89: 0.02189610616 | AB89: 4.821172877 | AC89: 0.1441109891 | AD89: 2.773998447 | AE89: 0.41364 | AF89: 0 | AG89: 3.414414621 | AH89: 19.43369426 | AI89: 1.246305959 | AJ89: 0.1176 | AK89: 1.711082149 | AL89: 0.1176 | AM89: 1.0512 | AN89: 0.6013682705 | AO89: 0.000132 | AP89: 0.846 | AQ89: 0.8046593407 | AR89: 0.7755 | AS89: 0.846132 | AT89: 9.833702443 | AU89: 66.02 | AV89: 0.8703596248 | AW89: 172.5446781 | AX89: 83.75971066 | AZ89: 87.03596248 | BA89: 2.069097117 | BB89: 6.176696769 | BC89: 4.108206621 | BD89: 2.057978149 | BE89: 0.6013682705
G90: 81 | H90: 60 | I90: 1 | J90: 20.25 | K90: 20.25 | L90: 1.237875 | M90: 0.05801407832 | N90: 3.310462039 | O90: 21.90523102 | P90: 18.59476898 | Q90: 0 | R90: 20.27253717 | S90: 1.643903053 | T90: 0.2 | U90: 2.123119227 | V90: 0.9556480747 | W90: 0.0009132632427 | X90: 0.0009132632427 | Y90: 4.739112407 | Z90: 0.02245918641 | AA90: 0.02245918641 | AB90: 4.882865974 | AC90: 0.1478227567 | AD90: 2.808673428 | AE90: 0.41364 | AF90: 0 | AG90: 3.455962324 | AH90: 19.6757054 | AI90: 1.277540164 | AJ90: 0.11907 | AK90: 1.763360022 | AL90: 0.11907 | AM90: 1.06434 | AN90: 0.6164636449 | AO90: 0.000132 | AP90: 0.846 | AQ90: 0.8046593407 | AR90: 0.7755 | AS90: 0.846132 | AT90: 10.01181967 | AU90: 66.84525 | AV90: 0.8697345643 | AW90: 174.6539224 | AX90: 86.06390342 | AZ90: 86.97345643 | BA90: 2.123119227 | BB90: 6.283662346 | BC90: 4.158426724 | BD90: 2.114592222 | BE90: 0.6164636449
G91: 82 | H91: 60 | I91: 1 | J91: 20.5 | K91: 20.5 | L91: 1.253157407 | M91: 0.05805110111 | N91: 3.312425148 | O91: 22.15621257 | P91: 18.84378743 | Q91: 0 | R91: 20.52228902 | S91: 1.684657387 | T91: 0.2 | U91: 2.178222011 | V91: 0.9562147755 | W91: 0.0009143466968 | X91: 0.0009143466968 | Y91: 4.798933169 | Z91: 0.02302975956 | AA91: 0.02302975956 | AB91: 4.944598475 | AC91: 0.1515841353 | AD91: 2.843348408 | AE91: 0.41364 | AF91: 0 | AG91: 3.497644017 | AH91: 19.91771304 | AI91: 1.309160466 | AJ91: 0.12054 | AK91: 1.816949269 | AL91: 0.12054 | AM91: 1.07748 | AN91: 0.63174652 | AO91: 0.000132 | AP91: 0.846 | AQ91: 0.8046593407 | AR91: 0.7755 | AS91: 0.846132 | AT91: 10.19265792 | AU91: 67.6705 | AV91: 0.869095241 | AW91: 176.7687943 | AX91: 88.42146911 | AZ91: 86.9095241 | BA91: 2.178222011 | BB91: 6.392073286 | BC91: 4.208780817 | BD91: 2.172517669 | BE91: 0.63174652
G92: 83 | H92: 60 | I92: 1 | J92: 20.75 | K92: 20.75 | L92: 1.268439815 | M92: 0.05808812433 | N92: 3.314388091 | O92: 22.40719405 | P92: 19.09280595 | Q92: 0 | R92: 20.77204686 | S92: 1.725911723 | T92: 0.2 | U92: 2.234425402 | V92: 0.9567814283 | W92: 0.0009154307015 | X92: 0.0009154307015 | Y92: 4.858789749 | Z92: 0.02360783783 | AA92: 0.02360783783 | AB92: 5.00637031 | AC92: 0.1553952109 | AD92: 2.878023389 | AE92: 0.41364 | AF92: 0 | AG92: 3.539461173 | AH92: 20.15971694 | AI92: 1.341166817 | AJ92: 0.12201 | AK92: 1.87188865 | AL92: 0.12201 | AM92: 1.09062 | AN92: 0.6472168961 | AO92: 0.000132 | AP92: 0.846 | AQ92: 0.8046593407 | AR92: 0.7755 | AS92: 0.846132 | AT92: 10.37627739 | AU92: 68.49575 | AV92: 0.8684416043 | AW92: 178.8893557 | AX92: 90.83398527 | AZ92: 86.84416043 | BA92: 2.234425402 | BB92: 6.501969823 | BC92: 4.259270373 | BD92: 2.23179325 | BE92: 0.6472168961
G93: 84 | H93: 60 | I93: 1 | J93: 21 | K93: 21 | L93: 1.283722222 | M93: 0.05812514799 | N93: 3.316350868 | O93: 22.65817543 | P93: 19.34182457 | Q93: 0 | R93: 21.02181047 | S93: 1.767666061 | T93: 0.2 | U93: 2.29174995 | V93: 0.9573480331 | W93: 0.0009165152565 | X93: 0.0009165152565 | Y93: 4.918682079 | Z93: 0.02419343339 | AA93: 0.02419343339 | AB93: 5.068181414 | AC93: 0.1592560697 | AD93: 2.91269837 | AE93: 0.41364 | AF93: 0 | AG93: 3.581415275 | AH93: 20.4017169 | AI93: 1.373559173 | AJ93: 0.12348 | AK93: 1.928218614 | AL93: 0.12348 | AM93: 1.10376 | AN93: 0.6628747729 | AO93: 0.000132 | AP93: 0.846 | AQ93: 0.8046593407 | AR93: 0.7755 | AS93: 0.846132 | AT93: 10.56274056 | AU93: 69.321 | AV93: 0.8677735859 | AW93: 181.0156688 | AX93: 93.30309815 | AZ93: 86.77735859 | BA93: 2.29174995 | BB93: 6.613393889 | BC93: 4.309896875 | BD93: 2.292459414 | BE93: 0.6628747729
G94: 85 | H94: 60 | I94: 1 | J94: 21.25 | K94: 21.25 | L94: 1.29900463 | M94: 0.05816217208 | N94: 3.318313479 | O94: 22.90915674 | P94: 19.59084326 | Q94: 0 | R94: 21.27157964 | S94: 1.809920401 | T94: 0.2 | U94: 2.350216833 | V94: 0.9579145901 | W94: 0.0009176003618 | X94: 0.0009176003618 | Y94: 4.978610093 | Z94: 0.02478655846 | AA94: 0.02478655846 | AB94: 5.130031721 | AC94: 0.1631667978 | AD94: 2.94737335 | AE94: 0.41364 | AF94: 0 | AG94: 3.623507824 | AH94: 20.64371272 | AI94: 1.406337487 | AJ94: 0.12495 | AK94: 1.985981387 | AL94: 0.12495 | AM94: 1.1169 | AN94: 0.6787201505 | AO94: 0.000132 | AP94: 0.846 | AQ94: 0.8046593407 | AR94: 0.7755 | AS94: 0.846132 | AT94: 10.75211235 | AU94: 70.14625 | AV94: 0.8670911 | AW94: 183.1477966 | AX94: 95.83052636 | AZ94: 86.70911 | BA94: 2.350216833 | BB94: 6.726389211 | BC94: 4.360661824 | BD94: 2.354558387 | BE94: 0.6787201505
G95: 86 | H95: 60 | I95: 1 | J95: 21.5 | K95: 21.5 | L95: 1.314287037 | M95: 0.0581991966 | N95: 3.320275923 | O95: 23.16013796 | P95: 19.83986204 | Q95: 0 | R95: 21.52135419 | S95: 1.852674744 | T95: 0.2 | U95: 2.40984789 | V95: 0.958481099 | W95: 0.0009186860172 | X95: 0.0009186860172 | Y95: 5.03857373 | Z95: 0.02538722523 | AA95: 0.02538722523 | AB95: 5.191921168 | AC95: 0.1671274816 | AD95: 2.982048331 | AE95: 0.41364 | AF95: 0 | AG95: 3.665740332 | AH95: 20.88570422 | AI95: 1.439501714 | AJ95: 0.12642 | AK95: 2.045221069 | AL95: 0.12642 | AM95: 1.13004 | AN95: 0.694753029 | AO95: 0.000132 | AP95: 0.846 | AQ95: 0.8046593407 | AR95: 0.7755 | AS95: 0.846132 | AT95: 10.94446023 | AU95: 70.9715 | AV95: 0.8663940434 | AW95: 185.2858027 | AX95: 98.41806477 | AZ95: 86.63940434 | BA95: 2.40984789 | BB95: 6.841001401 | BC95: 4.411566732 | BD95: 2.418134269 | BE95: 0.694753029
G96: 87 | H96: 60 | I96: 1 | J96: 21.75 | K96: 21.75 | L96: 1.329569444 | M96: 0.05823622155 | N96: 3.322238202 | O96: 23.4111191 | P96: 20.0888809 | Q96: 0 | R96: 21.77113392 | S96: 1.895929089 | T96: 0.2 | U96: 2.470665637 | V96: 0.9590475601 | W96: 0.0009197722225 | X96: 0.0009197722225 | Y96: 5.098572926 | Z96: 0.02599544588 | AA96: 0.02599544588 | AB96: 5.253849695 | AC96: 0.171138207 | AD96: 3.016723311 | AE96: 0.41364 | AF96: 0 | AG96: 3.708114325 | AH96: 21.1276912 | AI96: 1.473051808 | AJ96: 0.12789 | AK96: 2.105983736 | AL96: 0.12789 | AM96: 1.14318 | AN96: 0.7109734083 | AO96: 0.000132 | AP96: 0.846 | AQ96: 0.8046593407 | AR96: 0.7755 | AS96: 0.846132 | AT96: 11.13985432 | AU96: 71.79675 | AV96: 0.8656822954 | AW96: 187.4297512 | AX96: 101.0675886 | AZ96: 86.56822954 | BA96: 2.470665637 | BB96: 6.957278061 | BC96: 4.462613125 | BD96: 2.483233136 | BE96: 0.7109734083
G97: 88 | H97: 60 | I97: 1 | J97: 22 | K97: 22 | L97: 1.344851852 | M97: 0.05827324693 | N97: 3.324200314 | O97: 23.66210016 | P97: 20.33789984 | Q97: 0 | R97: 22.02091867 | S97: 1.939683436 | T97: 0.2 | U97: 2.532693294 | V97: 0.9596139732 | W97: 0.0009208589775 | X97: 0.0009208589775 | Y97: 5.158607624 | Z97: 0.02661123262 | AA97: 0.02661123262 | AB97: 5.315817243 | AC97: 0.1751990603 | AD97: 3.051398292 | AE97: 0.41364 | AF97: 0 | AG97: 3.750631343 | AH97: 21.36967351 | AI97: 1.506987722 | AJ97: 0.12936 | AK97: 2.168317547 | AL97: 0.12936 | AM97: 1.15632 | AN97: 0.7273812885 | AO97: 0.000132 | AP97: 0.846 | AQ97: 0.8046593407 | AR97: 0.7755 | AS97: 0.846132 | AT97: 11.33836756 | AU97: 72.622 | AV97: 0.8649557179 | AW97: 189.5797068 | AX97: 103.7810581 | AZ97: 86.49557179 | BA97: 2.532693294 | BB97: 7.07526889 | BC97: 4.513802543 | BD97: 2.549903147 | BE97: 0.7273812885
G98: 89 | H98: 60 | I98: 1 | J98: 22.25 | K98: 22.25 | L98: 1.360134259 | M98: 0.05831027275 | N98: 3.326162261 | O98: 23.91308113 | P98: 20.58691887 | Q98: 0 | R98: 22.27070826 | S98: 1.983937785 | T98: 0.2 | U98: 2.595954812 | V98: 0.9601803383 | W98: 0.0009219462821 | X98: 0.0009219462821 | Y98: 5.218677766 | Z98: 0.02723459762 | AA98: 0.02723459762 | AB98: 5.377823755 | AC98: 0.1793101277 | AD98: 3.086073273 | AE98: 0.41364 | AF98: 0 | AG98: 3.793292942 | AH98: 21.61165098 | AI98: 1.541309411 | AJ98: 0.13083 | AK98: 2.232272864 | AL98: 0.13083 | AM98: 1.16946 | AN98: 0.7439766694 | AO98: 0.000132 | AP98: 0.846 | AQ98: 0.8046593407 | AR98: 0.7755 | AS98: 0.846132 | AT98: 11.54007583 | AU98: 73.44725 | AV98: 0.8642141552 | AW98: 191.7357348 | AX98: 106.5605228 | AZ98: 86.42141552 | BA98: 2.595954812 | BB98: 7.195025805 | BC98: 4.565136542 | BD98: 2.618194664 | BE98: 0.7439766694
G99: 90 | H99: 60 | I99: 1 | J99: 22.5 | K99: 22.5 | L99: 1.375416667 | M99: 0.058347299 | N99: 3.328124041 | O99: 24.16406202 | P99: 20.83593798 | Q99: 0 | R99: 22.52050253 | S99: 2.028692137 | T99: 0.2 | U99: 2.660474897 | V99: 0.9607466555 | W99: 0.0009230341361 | X99: 0.0009230341361 | Y99: 5.278783296 | Z99: 0.02786555309 | AA99: 0.02786555309 | AB99: 5.439869177 | AC99: 0.1834714953 | AD99: 3.120748253 | AE99: 0.41364 | AF99: 0 | AG99: 3.83610069 | AH99: 21.85362344 | AI99: 1.57601683 | AJ99: 0.1323 | AK99: 2.297902371 | AL99: 0.1323 | AM99: 1.1826 | AN99: 0.7607595512 | AO99: 0.000132 | AP99: 0.846 | AQ99: 0.8046593407 | AR99: 0.7755 | AS99: 0.846132 | AT99: 11.7450581 | AU99: 74.2725 | AV99: 0.8634574341 | AW99: 193.897901 | AX99: 109.4081271 | AZ99: 86.34574341 | BA99: 2.660474897 | BB99: 7.316603061 | BC99: 4.61661669 | BD99: 2.688160371 | BE99: 0.7607595512
G100: 91 | H100: 60 | I100: 1 | J100: 22.75 | K100: 22.75 | L100: 1.390699074 | M100: 0.05838432568 | N100: 3.330085655 | O100: 24.41504283 | P100: 21.08495717 | Q100: 0 | R100: 22.77030133 | S100: 2.07394649 | T100: 0.2 | U100: 2.726279037 | V100: 0.9613129248 | W100: 0.0009241225394 | X100: 0.0009241225394 | Y100: 5.338924161 | Z100: 0.02850411119 | AA100: 0.02850411119 | AB100: 5.501953456 | AC100: 0.1876832494 | AD100: 3.155423234 | AE100: 0.41364 | AF100: 0 | AG100: 3.879056173 | AH100: 22.09559075 | AI100: 1.611109931 | AJ100: 0.13377 | AK100: 2.365261212 | AL100: 0.13377 | AM100: 1.19574 | AN100: 0.7777299338 | AO100: 0.000132 | AP100: 0.846 | AQ100: 0.8046593407 | AR100: 0.7755 | AS100: 0.846132 | AT100: 11.95339659 | AU100: 75.09775 | AV100: 0.8626853631 | AW100: 196.0662721 | AX100: 112.3261153 | AZ100: 86.26853631 | BA100: 2.726279037 | BB100: 7.440057385 | BC100: 4.668244573 | BD100: 2.759855412 | BE100: 0.7777299338
G101: 92 | H101: 60 | I101: 1 | J101: 23 | K101: 23 | L101: 1.405981481 | M101: 0.05842135279 | N101: 3.332047104 | O101: 24.66602355 | P101: 21.33397645 | Q101: 0 | R101: 23.02010451 | S101: 2.119700846 | T101: 0.2 | U101: 2.793393538 | V101: 0.9618791461 | W101: 0.0009252114918 | X101: 0.0009252114918 | Y101: 5.399100307 | Z101: 0.02915028413 | AA101: 0.02915028413 | AB101: 5.564076539 | AC101: 0.191945476 | AD101: 3.190098214 | AE101: 0.41364 | AF101: 0 | AG101: 3.922160988 | AH101: 22.33755277 | AI101: 1.64658867 | AJ101: 0.13524 | AK101: 2.434407131 | AL101: 0.13524 | AM101: 1.20888 | AN101: 0.7948878172 | AO101: 0.000132 | AP101: 0.846 | AQ101: 0.8046593407 | AR101: 0.7755 | AS101: 0.846132 | AT101: 12.16517697 | AU101: 75.923 | AV101: 0.8618977326 | AW101: 198.2409151 | AX101: 115.3168375 | AZ101: 86.18977326 | BA101: 2.793393538 | BB101: 7.565448119 | BC101: 4.720021788 | BD101: 2.833337531 | BE101: 0.7948878172
G102: 93 | H102: 60 | I102: 1 | J102: 23.25 | K102: 23.25 | L102: 1.421263889 | M102: 0.05845838034 | N102: 3.334008386 | O102: 24.91700419 | P102: 21.58299581 | Q102: 0 | R102: 23.26991192 | S102: 2.165955204 | T102: 0.2 | U102: 2.861845544 | V102: 0.9624453195 | W102: 0.000926300993 | X102: 0.000926300993 | Y102: 5.459311685 | Z102: 0.02980408407 | AA102: 0.02980408407 | AB102: 5.626238377 | AC102: 0.1962582613 | AD102: 3.224773195 | AE102: 0.41364 | AF102: 0 | AG102: 3.96541675 | AH102: 22.57950936 | AI102: 1.682453001 | AJ102: 0.13671 | AK102: 2.50540062 | AL102: 0.13671 | AM102: 1.22202 | AN102: 0.8122332015 | AO102: 0.000132 | AP102: 0.846 | AQ102: 0.8046593407 | AR102: 0.7755 | AS102: 0.846132 | AT102: 12.3804885 | AU102: 76.74825 | AV102: 0.8610943147 | AW102: 200.4218979 | AX102: 118.3827559 | AZ102: 86.10943147 | BA102: 2.861845544 | BB102: 7.69283737 | BC102: 4.77194995 | BD102: 2.90866722 | BE102: 0.8122332015
G103: 94 | H103: 60 | I103: 1 | J103: 23.5 | K103: 23.5 | L103: 1.436546296 | M103: 0.05849540832 | N103: 3.335969502 | O103: 25.16798475 | P103: 21.83201525 | Q103: 0 | R103: 23.51972345 | S103: 2.212709564 | T103: 0.2 | U103: 2.931663079 | V103: 0.9630114449 | W103: 0.000927391043 | X103: 0.000927391043 | Y103: 5.519558244 | Z103: 0.0304655232 | AA103: 0.0304655232 | AB103: 5.688438921 | AC103: 0.2006216916 | AD103: 3.259448175 | AE103: 0.41364 | AF103: 0 | AG103: 4.008825089 | AH103: 22.82146038 | AI103: 1.718702877 | AJ103: 0.13818 | AK103: 2.578305091 | AL103: 0.13818 | AM103: 1.23516 | AN103: 0.8297660866 | AO103: 0.000132 | AP103: 0.846 | AQ103: 0.8046593407 | AR103: 0.7755 | AS103: 0.846132 | AT103: 12.59942426 | AU103: 77.5735 | AV103: 0.8602748623 | AW103: 202.6092889 | AX103: 121.5264511 | AZ103: 86.02748623 | BA103: 2.931663079 | BB103: 7.822290179 | BC103: 4.824030689 | BD103: 2.985907891 | BE103: 0.8297660866
G104: 95 | H104: 60 | I104: 1 | J104: 23.75 | K104: 23.75 | L104: 1.451828704 | M104: 0.05853243673 | N104: 3.337930452 | O104: 25.41896523 | P104: 22.08103477 | Q104: 0 | R104: 23.76953894 | S104: 2.259963927 | T104: 0.2 | U104: 3.002875074 | V104: 0.9635775224 | W104: 0.0009284816416 | X104: 0.0009284816416 | Y104: 5.579839936 | Z104: 0.03113461371 | AA104: 0.03113461371 | AB104: 5.750678124 | AC104: 0.2050358531 | AD104: 3.294123156 | AE104: 0.41364 | AF104: 0 | AG104: 4.052387649 | AH104: 23.06340571 | AI104: 1.755338253 | AJ104: 0.13965 | AK104: 2.65318704 | AL104: 0.13965 | AM104: 1.2483 | AN104: 0.8474864725 | AO104: 0.000132 | AP104: 0.846 | AQ104: 0.8046593407 | AR104: 0.7755 | AS104: 0.846132 | AT104: 12.82208133 | AU104: 78.39875 | AV104: 0.859439109 | AW104: 204.8031572 | AX104: 124.7506298 | AZ104: 85.9439109 | BA104: 3.002875074 | BB104: 7.953874688 | BC104: 4.876265649 | BD104: 3.06512604 | BE104: 0.8474864725
G105: 96 | H105: 60 | I105: 1 | J105: 24 | K105: 24 | L105: =Vout*K105/(Vin*Efficiency) -> 1.467111111 | M105: 0.05856946557 | N105: =(Vin-(Rdson1+Rdcr)*K105-Vout)*M105/(Fsw*Lf) -> 3.339891235 | O105: 25.66994562 | P105: 22.33005438 | Q105: =IF(MIN(Vin, -P105/(Coss_Q1+Coss_Q2)*0.00000002)<0, 0, MIN(Vin, -P105/(Coss_Q1+Coss_Q2)*0.00000002)) -> 0 | R105: 24.01935829 | S105: =R105^2*Rdcr -> 2.307718291 | T105: 0.2 | U105: =(T105+S105*(1+Ltc*(Ta-25)))/(1-S105*Ltc*ThetaCa) -> 3.075511405 | V105: 0.9641435519 | W105: 0.0009295727887 | X105: 0.0009295727887 | Y105: 5.640156714 | Z105: 0.03181136776 | AA105: 0.03181136776 | AB105: 5.812955939 | AC105: =Rdson1*AB105^2 -> 0.2095008318 | AD105: 3.328798137 | AE105: 0.41364 | AF105: 0 | AG105: =(AF105+AE105+AD105+AC105*(1+RdsonTopTc*Ta-RdsonTopTc*25))/(1-AC105*RdsonTopTc*ThetaJA_Q1) -> 4.096106091 | AH105: 23.30534522 | AI105: =Rdson2*AH105^2 -> 1.792359083 | AJ105: 0.14112 | AK105: =(AJ105+AI105*(1+RdsonBotTc*Ta-RdsonBotTc*25))/(1-AI105*RdsonBotTc*ThetaJA_Q2) -> 2.730116242 | AL105: 0.14112 | AM105: 1.26144 | AN105: 0.8653943592 | AO105: 0.000132 | AP105: 0.846 | AQ105: 0.8046593407 | AR105: 0.7755 | AS105: 0.846132 | AT105: =SUM(U105,X105,AA105,AG105,AK105,AL105,AM105,AS105,AN105) -> 13.04856104 | AU105: 79.224 | AV105: 0.8585867685 | AW105: 207.0035726 | AX105: 128.0581317 | AZ105: 85.85867685 | BA105: 3.075511405 | BB105: 8.087662333 | BC105: 4.928656491 | BD105: 3.146391442 | BE105: 0.8653943592
G106: 97 | H106: 60 | I106: 1 | J106: 24.25 | K106: 24.25 | L106: =Vout*K106/(Vin*Efficiency) -> 1.482393519 | M106: 0.05860649484 | N106: =(Vin-(Rdson1+Rdcr)*K106-Vout)*M106/(Fsw*Lf) -> 3.341851853 | O106: 25.92092593 | P106: 22.57907407 | Q106: =IF(MIN(Vin, -P106/(Coss_Q1+Coss_Q2)*0.00000002)<0, 0, MIN(Vin, -P106/(Coss_Q1+Coss_Q2)*0.00000002)) -> 0 | R106: 24.26918137 | S106: =R106^2*Rdcr -> 2.355972658 | T106: 0.2 | U106: =(T106+S106*(1+Ltc*(Ta-25)))/(1-S106*Ltc*ThetaCa) -> 3.149602929 | V106: 0.9647095335 | W106: 0.000930664484 | X106: 0.000930664484 | Y106: 5.700508532 | Z106: 0.03249579753 | AA106: 0.03249579753 | AB106: 5.875272322 | AC106: =Rdson1*AB106^2 -> 0.2140167141 | AD106: 3.363473117 | AE106: 0.41364 | AF106: 0 | AG106: =(AF106+AE106+AD106+AC106*(1+RdsonTopTc*Ta-RdsonTopTc*25))/(1-AC106*RdsonTopTc*ThetaJA_Q1) -> 4.139982092 | AH106: 23.54727882 | AI106: =Rdson2*AH106^2 -> 1.829765321 | AJ106: 0.14259 | AK106: =(AJ106+AI106*(1+RdsonBotTc*Ta-RdsonBotTc*25))/(1-AI106*RdsonBotTc*ThetaJA_Q2) -> 2.809165951 | AL106: 0.14259 | AM106: 1.27458 | AN106: 0.8834897467 | AO106: 0.000132 | AP106: 0.846 | AQ106: 0.8046593407 | AR106: 0.7755 | AS106: 0.846132 | AT106: =SUM(U106,X106,AA106,AG106,AK106,AL106,AM106,AS106,AN106) -> 13.27896918 | AU106: 80.04925 | AV106: 0.8577175339 | AW106: 209.2106055 | AX106: 131.4519382 | AZ106: 85.77175339 | BA106: 3.149602929 | BB106: 8.223728044 | BC106: 4.981204892 | BD106: 3.229777351 | BE106: 0.8834897467
G107: 98 | H107: 60 | I107: 1 | J107: 24.5 | K107: 24.5 | L107: =Vout*K107/(Vin*Efficiency) -> 1.497675926 | M107: 0.05864352455 | N107: =(Vin-(Rdson1+Rdcr)*K107-Vout)*M107/(Fsw*Lf) -> 3.343812305 | O107: 26.17190615 | P107: 22.82809385 | Q107: =IF(MIN(Vin, -P107/(Coss_Q1+Coss_Q2)*0.00000002)<0, 0, MIN(Vin, -P107/(Coss_Q1+Coss_Q2)*0.00000002)) -> 0 | R107: 24.51900807 | S107: =R107^2*Rdcr -> 2.404727027 | T107: 0.2 | U107: =(T107+S107*(1+Ltc*(Ta-25)))/(1-S107*Ltc*ThetaCa) -> 3.22518152 | V107: 0.9652754671 | W107: 0.0009317567274 | X107: 0.0009317567274 | Y107: 5.760895346 | Z107: 0.03318791519 | AA107: 0.03318791519 | AB107: 5.937627229 | AC107: =Rdson1*AB107^2 -> 0.2185835861 | AD107: 3.398148098 | AE107: 0.41364 | AF107: 0 | AG107: =(AF107+AE107+AD107+AC107*(1+RdsonTopTc*Ta-RdsonTopTc*25))/(1-AC107*RdsonTopTc*ThetaJA_Q1) -> 4.184017347 | AH107: 23.78920637 | AI107: =Rdson2*AH107^2 -> 1.867556921 | AJ107: 0.14406 | AK107: =(AJ107+AI107*(1+RdsonBotTc*Ta-RdsonBotTc*25))/(1-AI107*RdsonBotTc*ThetaJA_Q2) -> 2.890413114 | AL107: 0.14406 | AM107: 1.28772 | AN107: 0.9017726351 | AO107: 0.000132 | AP107: 0.846 | AQ107: 0.8046593407 | AR107: 0.7755 | AS107: 0.846132 | AT107: =SUM(U107,X107,AA107,AG107,AK107,AL107,AM107,AS107,AN107) -> 13.51341629 | AU107: 80.8745 | AV107: 0.8568310773 | AW107: 211.424327 | AX107: 134.9351811 | AZ107: 85.68310773 | BA107: 3.22518152 | BB107: 8.36215046 | BC107: 5.033912547 | BD107: 3.315360714 | BE107: 0.9017726351
G108: 99 | H108: 60 | I108: 1 | J108: 24.75 | K108: 24.75 | L108: =Vout*K108/(Vin*Efficiency) -> 1.512958333 | M108: 0.05868055469 | N108: =(Vin-(Rdson1+Rdcr)*K108-Vout)*M108/(Fsw*Lf) -> 3.34577259 | O108: 26.4228863 | P108: 23.0771137 | Q108: =IF(MIN(Vin, -P108/(Coss_Q1+Coss_Q2)*0.00000002)<0, 0, MIN(Vin, -P108/(Coss_Q1+Coss_Q2)*0.00000002)) -> 0 | R108: 24.76883828 | S108: =R108^2*Rdcr -> 2.453981398 | T108: 0.2 | U108: =(T108+S108*(1+Ltc*(Ta-25)))/(1-S108*Ltc*ThetaCa) -> 3.302280116 | V108: 0.9658413528 | W108: 0.0009328495187 | X108: 0.0009328495187 | Y108: 5.821317112 | Z108: 0.03388773292 | AA108: 0.03388773292 | AB108: 6.000020617 | AC108: =Rdson1*AB108^2 -> 0.2232015339 | AD108: 3.432823078 | AE108: 0.41364 | AF108: 0 | AG108: =(AF108+AE108+AD108+AC108*(1+RdsonTopTc*Ta-RdsonTopTc*25))/(1-AC108*RdsonTopTc*ThetaJA_Q1) -> 4.228213563 | AH108: 24.03112777 | AI108: =Rdson2*AH108^2 -> 1.905733837 | AJ108: 0.14553 | AK108: =(AJ108+AI108*(1+RdsonBotTc*Ta-RdsonBotTc*25))/(1-AI108*RdsonBotTc*ThetaJA_Q2) -> 2.973938605 | AL108: 0.14553 | AM108: 1.30086 | AN108: 0.9202430243 | AO108: 0.000132 | AP108: 0.846 | AQ108: 0.8046593407 | AR108: 0.7755 | AS108: 0.846132 | AT108: =SUM(U108,X108,AA108,AG108,AK108,AL108,AM108,AS108,AN108) -> 13.75201789 | AU108: 81.69975 | AV108: 0.8559270489 | AW108: 213.6448088 | AX108: 138.5111519 | AZ108: 85.59270489 | BA108: 3.302280116 | BB108: 8.503012167 | BC108: 5.086781163 | BD108: 3.403222405 | BE108: 0.9202430243
G109: 100 | H109: 60 | I109: 1 | J109: 25 | K109: 25 | L109: =Vout*K109/(Vin*Efficiency) -> 1.528240741 | M109: 0.05871758526 | N109: =(Vin-(Rdson1+Rdcr)*K109-Vout)*M109/(Fsw*Lf) -> 3.347732709 | O109: 26.67386635 | P109: 23.32613365 | Q109: =IF(MIN(Vin, -P109/(Coss_Q1+Coss_Q2)*0.00000002)<0, 0, MIN(Vin, -P109/(Coss_Q1+Coss_Q2)*0.00000002)) -> 0 | R109: 25.01867188 | S109: =R109^2*Rdcr -> 2.503735771 | T109: 0.2 | U109: =(T109+S109*(1+Ltc*(Ta-25)))/(1-S109*Ltc*ThetaCa) -> 3.380932753 | V109: 0.9664071905 | W109: 0.0009339428578 | X109: 0.0009339428578 | Y109: 5.881773788 | Z109: 0.03459526289 | AA109: 0.03459526289 | AB109: 6.062452446 | AC109: =Rdson1*AB109^2 -> 0.2278706439 | AD109: 3.467498059 | AE109: 0.41364 | AF109: 0 | AG109: =(AF109+AE109+AD109+AC109*(1+RdsonTopTc*Ta-RdsonTopTc*25))/(1-AC109*RdsonTopTc*ThetaJA_Q1) -> 4.272572468 | AH109: 24.27304293 | AI109: =Rdson2*AH109^2 -> 1.944296024 | AJ109: 0.147 | AK109: =(AJ109+AI109*(1+RdsonBotTc*Ta-RdsonBotTc*25))/(1-AI109*RdsonBotTc*ThetaJA_Q2) -> 3.059827476 | AL109: 0.147 | AM109: 1.314 | AN109: 0.9389009143 | AO109: 0.000132 | AP109: 0.846 | AQ109: 0.8046593407 | AR109: 0.7755 | AS109: 0.846132 | AT109: =SUM(U109,X109,AA109,AG109,AK109,AL109,AM109,AS109,AN109) -> 13.99489482 | AU109: 82.525 | AV109: 0.855005076 | AW109: 215.8721237 | AX109: 142.1833123 | AZ109: 85.5005076 | BA109: 3.380932753 | BB109: 8.646399944 | BC109: 5.139812468 | BD109: 3.493447476 | BE109: 0.9389009143

Sheet Efficiency Plot Management (hidden)
A2: =IF(PLOT_TYPE=1, "EFF_Ch1", "EFF_Ch2") -> EFF_Ch1

Sheet Input Filter Calculations (hidden)
AD2: AEF comparison Values
D3: =L_infilter*0.000001 -> 6.8e-07 | L3: Lfilter Passive | M3: ='Input Filters'!O9*0.000001 -> 6.8e-07 | AD3: Lfilter | AE3: ='Input Filters'!G9*0.000001 -> 1e-06
L4: Cfilter Passive | M4: ='Input Filters'!O10*0.000001 -> 4.7e-07 | AD4: Cinj | AE4: ='Input Filters'!G10*0.000001 -> 1e-06
L5: Cdamp passive | M5: ='Input Filters'!O11*0.000001 -> 1e-06 | AD5: Cdamp | AE5: ='Input Filters'!G11*0.000001 -> 1e-06
L6: Rdamp passive | M6: ='Input Filters'!O12 -> 0.35 | AD6: Rdamp | AE6: ='Input Filters'!G12 -> 10
A10: Freq (Hz) | B10: (kHz) | W10: AEF | AA10: Passive | AD10: AEFCompare
I11: AEF Numerator | L11: AEF Denominator | Q11: Passive | W11: Magnitude | X11: Phase | AA11: Magnitude | AB11: Phase | AD11: AEF Numerator | AF11: AEF Denominator
C12: jω | D12: -ω^2 | E12: -jω^3 | G12: Gop | Q12: Numerator | R12: Denominator | AM12: Magnitude | AN12: Phase
A13: 1 | B13: =A13/1000 -> 0.001 | C13: =COMPLEX(0,2*Pi*A13) -> 6.2831853i | D13: =COMPLEX(-POWER(2*Pi*A13,2),0) -> -39.4784175141361 | E13: =COMPLEX(0,-POWER(2*Pi*A13,3)) -> -248.050212592082i | G13: =IMSUM(IMPRODUCT(C13,Rcomp_AEF*Csen_AEF),Csen_AEF/Ccomp_AEF) -> 100+0.00062831853i | I13: =IMPRODUCT((RdampSel*CdampSel+RdampSel*CinjSel),C13) ->  | J13: =IMSUM(1,I13) ->  | L13: =IMPRODUCT(G13,L_infilterStd*RdampSel*CinjSel*CdampSel,E13) ->  | M13: =IMPRODUCT(G13,L_infilterStd*CinjSel,D13) ->  | N13: =J13 ->  | O13: =IMSUM(L13:N13) ->  | P13: 0 | Q13: =IMSUM(IMPRODUCT(C13,RdampPssv*CdampPssv),1) -> 1+0.000002199114855i | R13: =IMPRODUCT(RdampPssv*CdampPssv*CfilterPssv*LinfilterPssv,E13) -> -2.77468967805503E-17i | S13: =IMPRODUCT(D13,LinfilterPssv*(CfilterPssv+CdampPssv)) -> -3.94626261471304E-11 | T13: =IMSUM(S13,R13,Q13) -> 0.999999999960537+2.19911485497225E-06i | U13: 1 | V13: =CHOOSE(INFILTER_TYPE,U13,IMDIV(J13,O13)) -> 1 | W13: =20*LOG10(IMABS(V13)) -> 0 | X13: =IMARGUMENT(V13)*180/Pi -> 0 | Z13: =IMDIV(Q13,T13) -> 1.00000000003946-5.9033537744459E-17i | AA13: =20*LOG10(IMABS(Z13)) -> 3.427451255e-10 | AB13: =IMARGUMENT(Z13)*180/Pi -> -3.382372566e-15 | AD13: =IMPRODUCT((RdampCom*CdampCom+RdampCom*CinjCom),C13) -> 0.000125663706i | AE13: =IMSUM(1,AD13) -> 1+0.000125663706i | AF13: =IMPRODUCT(G13,L_infilterStd*RdampSel*CinjSel*CdampSel,E13) ->  | AG13: =IMPRODUCT(G13,LAEFCom*CinjCom,D13) -> -3.94784175141361E-09-2.48050212592082E-14i | AH13: =AE13 -> 1+0.000125663706i | AI13: =IMSUM(AF13:AH13) ->  | AK13: =IMDIV(AE13,AI13) ->  | AM13: =20*LOG10(IMABS(AK13)) ->  | AN13: =IMARGUMENT(AK13)*180/Pi -> 
A14: 2 | B14: =A14/1000 -> 0.002 | C14: 12.5663706i | D14: -157.913670056544 | E14: -1984.40170073666i | G14: 100+0.00125663706i | J14: =IMSUM(1,I14) ->  | N14: =J14 ->  | O14: =IMSUM(L14:N14) ->  | P14: 0 | Q14: 1+0.00000439822971i | R14: -2.21975174244403E-16i | S14: -1.57850504588521E-10 | T14: =IMSUM(S14,R14,Q14) -> 0.999999999842149+4.39822970977802E-06i | U14: 1 | V14: =CHOOSE(INFILTER_TYPE,U14,IMDIV(J14,O14),IMDIV(Q14,T14)) -> 1 | W14: =20*LOG10(IMABS(V14)) -> 0 | X14: 0 | Z14: 1.00000000015785-4.72284395630731E-16i | AA14: =20*LOG10(IMABS(Z14)) -> 1.371067291e-09 | AB14: -2.705990263e-14 | AD14: 0.000251327412i | AE14: =IMSUM(1,AD14) -> 1+0.000251327412i | AG14: -1.57913670056544E-08-1.98440170073665E-13i | AH14: =AE14 -> 1+0.000251327412i | AI14: =IMSUM(AF14:AH14) ->  | AK14: =IMDIV(AE14,AI14) ->  | AM14: =20*LOG10(IMABS(AK14)) -> 
A15: 3 | B15: 0.003 | C15: 18.8495559i | D15: -355.305757627225 | E15: -6697.35573998623i | G15: 100+0.00188495559i | P15: 0 | Q15: 1+0.000006597344565i | R15: -7.4916621307486E-16i | S15: -3.55163635324174E-10 | T15: 0.999999999644836+6.59734456425083E-06i | U15: 1 | V15: 1 | W15: 0 | X15: 0 | Z15: 1.00000000035516-1.59396947052946E-15i | AA15: 3.084879708e-09 | AB15: -9.132772341e-14 | AD15: 0.000376991118i | AE15: 1+0.000376991118i | AG15: -3.55305757627225E-08-6.69735573998623E-13i | AH15: 1+0.000376991118i
A16: 4 | B16: 0.004 | C16: 25.1327412i | D16: -631.654680226178 | E16: -15875.2136058933i | G16: 100+0.00251327412i | P16: 0 | Q16: 1+0.00000879645942i | R16: -1.77580139395522E-15i | S16: -6.31402018354088E-10 | T16: 0.999999999368598+0.0000087964594182242i | U16: 1 | V16: 1 | W16: 0 | X16: 0 | Z16: 1.0000000006314-3.77830227167012E-15i | AA16: 5.484271092e-09 | AB16: -2.16480774e-13 | AD16: 0.000502654824i | AE16: 1+0.000502654824i | AG16: -6.31654680226178E-08-1.58752136058933E-12i | AH16: 1+0.000502654824i
A17: 5 | B17: 0.005 | C17: 31.4159265i | D17: -986.960437853402 | E17: -31006.2765740103i | G17: 100+0.00314159265i | P17: 0 | Q17: 1+0.000010995574275i | R17: -3.46836209756879E-15i | S17: -9.86565653678261E-10 | T17: 0.999999999013434+0.0000109955742715316i | U17: 1 | V17: 1 | W17: 0 | X17: 0 | Z17: 1.00000000098657-7.37945946308484E-15i | AA17: 8.569237588e-09 | AB17: -4.228118824e-13 | AD17: 0.00062831853i | AE17: 1+0.00062831853i | AG17: -9.86960437853402E-08-3.10062765740103E-12i | AH17: 1+0.00062831853i
A18: 6 | B18: 0.006 | C18: 37.6991118i | D18: -1421.2230305089 | E18: -53578.8459198898i | G18: 100+0.00376991118i | P18: 0 | Q18: 1+0.00001319468913i | R18: -5.99332970459887E-15i | S18: -1.4206545412967E-09 | T18: 0.999999998579345+0.0000131946891240067i | U18: 1 | V18: 1 | W18: 0 | X18: 0 | Z18: 1.00000000142066-1.27518015159367E-14i | AA18: 1.233969626e-08 | AB18: -7.306244078e-13 | AD18: 0.000753982236i | AE18: 1+0.000753982236i | AG18: -1.4212230305089E-07-5.35788459198898E-12i | AH18: 1+0.000753982236i
A19: 7 | B19: 0.007 | C19: 43.9822971i | D19: -1934.44245819267 | E19: -85081.2229190843i | G19: 100+0.00439822971i | P19: 0 | Q19: 1+0.000015393803985i | R19: -9.51718559572877E-15i | S19: -1.93366868120939E-09 | T19: 0.999999998066331+0.0000153938039754828i | U19: 1 | V19: 1 | W19: 0 | X19: 0 | Z19: 1.00000000193367-2.02493221373488E-14i | AA19: 1.679564325e-08 | AB19: -1.160200696e-12 | AD19: 0.000879645942i | AE19: 1+0.000879645942i | AG19: -1.93444245819267E-07-8.50812229190843E-12i | AH19: 1+0.000879645942i
A20: 8 | B20: 0.008 | C20: 50.2654824i | D20: -2526.61872090471 | E20: -127001.708847146i | G20: 100+0.00502654824i | P20: 0 | Q20: 1+0.00001759291884i | R20: -1.42064111516417E-14i | S20: -2.52560807341635E-09 | T20: 0.999999997474392+0.0000175929188257936i | U20: 1 | V20: 1 | W20: 0 | X20: 0 | Z20: 1.00000000252561-3.02264148354676E-14i | AA20: 2.193716921e-08 | AB20: -1.731845997e-12 | AD20: 0.001005309648i | AE20: 1+0.001005309648i | AG20: -2.52661872090471E-07-1.27001708847146E-11i | AH20: 1+0.001005309648i
A21: 9 | B21: 0.009 | C21: 56.5486677i | D21: -3197.75181864502 | E21: -180828.604979628i | G21: 100+0.00565486677i | P21: 0 | Q21: 1+0.000019792033695i | R21: -2.02274877530212E-14i | S21: -3.19647271791756E-09 | T21: 0.999999996803527+0.0000197920336747725i | U21: 1 | V21: 1 | W21: 0 | X21: 0 | Z21: 1.00000000319647-4.30372020696133E-14i | AA21: 2.776418541e-08 | AB21: -2.465850036e-12 | AD21: 0.001130973354i | AE21: 1+0.001130973354i | AG21: -3.19775181864502E-07-1.80828604979628E-11i | AH21: 1+0.001130973354i
A22: 10 | B22: 0.01 | C22: 62.831853i | D22: -3947.84175141361 | E22: -248050.212592082i | G22: 100+0.0062831853i | P22: 0 | Q22: 1+0.00002199114855i | R22: -2.77468967805503E-14i | S22: -3.94626261471304E-09 | T22: 0.999999996053737+0.0000219911485222531i | U22: 1 | V22: 1 | W22: 0 | X22: 0 | Z22: 1.00000000394626-5.90359570729332E-14i | AA22: 3.427677865e-08 | AB22: -3.38251117e-12 | AD22: 0.00125663706i | AE22: 1+0.00125663706i | AG22: -3.94784175141361E-07-2.48050212592082E-11i | AH22: 1+0.00125663706i
A23: 20 | B23: 0.02 | C23: 125.663706i | D23: -15791.3670056544 | E23: -1984401.70073666i | G23: 100+0.0125663706i | P23: 0 | Q23: 1+0.0000439822971i | R23: -2.21975174244403E-13i | S23: -1.57850504588521E-08 | T23: 0.99999998421495+0.0000439822968780248i | U23: 1 | V23: 1 | W23: 0 | X23: 0 | Z23: 1.00000001578505-4.72287580174405E-13i | AA23: 1.371072006e-07 | AB23: -2.706008466e-11 | AD23: 0.00251327412i | AE23: 1+0.00251327412i | AG23: -1.57913670056544E-06-1.98440170073665E-10i | AH23: 1+0.00251327412i
A24: 30 | B24: 0.03 | C24: 188.495559i | D24: -35530.5757627225 | E24: -6697355.73998623i | G24: 100+0.0188495559i | P24: 0 | Q24: 1+0.00006597344565i | R24: -7.4916621307486E-13i | S24: -3.55163635324174E-08 | T24: 0.999999964483636+0.0000659734449008338i | U24: 1 | V24: 1 | W24: 0 | X24: 0 | Z24: 1.00000003551637-1.59397081397336E-12i | AA24: 3.084912653e-07 | AB24: -9.132779717e-11 | AD24: 0.00376991118i | AE24: 1+0.00376991118i | AG24: -3.55305757627225E-06-6.69735573998623E-10i | AH24: 1+0.00376991118i
A25: 40 | B25: 0.04 | C25: 251.327412i | D25: -63165.4680226178 | E25: -15875213.6058933i | G25: 100+0.0251327412i | P25: 0 | Q25: 1+0.0000879645942i | R25: -1.77580139395522E-12i | S25: -6.31402018354088E-08 | T25: 0.999999936859798+0.0000879645924241986i | U25: 1 | V25: 1 | W25: 0 | X25: 0 | Z25: 1.00000006314021-3.77830129983406E-12i | AA25: 5.48428878e-07 | AB25: -2.164807048e-10 | AD25: 0.00502654824i | AE25: 1+0.00502654824i | AG25: -6.31654680226178E-06-1.58752136058933E-09i | AH25: 1+0.00502654824i
A26: 50 | B26: 0.05 | C26: 314.159265i | D26: -98696.0437853402 | E26: -31006276.5740103i | G26: 100+0.0314159265i | P26: 0 | Q26: 1+0.00010995574275i | R26: -3.46836209756879E-12i | S26: -9.86565653678261E-08 | T26: 0.999999901343435+0.000109955739281638i | U26: 1 | V26: 1 | W26: 0 | X26: 0 | Z26: 1.00000009865657-7.37949525076775E-12i | AA26: 8.56920037e-07 | AB26: -4.228138916e-10 | AD26: 0.0062831853i | AE26: 1+0.0062831853i | AG26: -9.86960437853402E-06-3.10062765740103E-09i | AH26: 1+0.0062831853i
A27: 60 | B27: 0.06 | C27: 376.991118i | D27: -142122.30305089 | E27: -53578845.9198898i | G27: 100+0.0376991118i | P27: 0 | Q27: 1+0.0001319468913i | R27: -5.99332970459887E-12i | S27: -1.4206545412967E-07 | T27: 0.999999857934546+0.00013194688530667i | U27: 1 | V27: 1 | W27: 0 | X27: 0 | Z27: 1.00000014206547-1.27517683815965E-11i | AA27: 1.233964907e-06 | AB27: -7.306224066e-10 | AD27: 0.00753982236i | AE27: 1+0.00753982236i | AG27: -0.000014212230305089-5.35788459198898E-09i | AH27: 1+0.00753982236i
A28: 70 | B28: 0.07 | C28: 439.822971i | D28: -193444.245819267 | E28: -85081222.9190843i | G28: 100+0.0439822971i | P28: 0 | Q28: 1+0.00015393803985i | R28: -9.51718559572877E-12i | S28: -1.93366868120939E-07 | T28: 0.999999806633132+0.000153938030332814i | U28: 1 | V28: 1 | W28: 0 | X28: 0 | Z28: 1.0000001933669-2.02493379799158E-11i | AA28: 1.679563391e-06 | AB28: -1.160201381e-09 | AD28: 0.00879645942i | AE28: 1+0.00879645942i | AG28: -0.0000193444245819267-8.50812229190843E-09i | AH28: 1+0.00879645942i
A29: 80 | B29: 0.08 | C29: 502.654824i | D29: -252661.872090471 | E29: -127001708.847146i | G29: 100+0.0502654824i | P29: 0 | Q29: 1+0.0001759291884i | R29: -1.42064111516417E-11i | S29: -2.52560807341635E-07 | T29: 0.999999747439193+0.000175929174193589i | U29: 1 | V29: 1 | W29: 0 | X29: 0 | Z29: 1.00000025256087-3.02264211687963E-11i | AA29: 2.193715567e-06 | AB29: -1.731845927e-09 | AD29: 0.01005309648i | AE29: 1+0.01005309648i | AG29: -0.0000252661872090471-1.27001708847146E-08i | AH29: 1+0.01005309648i
A30: 90 | B30: 0.09 | C30: 565.486677i | D30: -319775.181864502 | E30: -180828604.979628i | G30: 100+0.0565486677i | P30: 0 | Q30: 1+0.00019792033695i | R30: -2.02274877530212E-11i | S30: -3.19647271791756E-07 | T30: 0.999999680352728+0.000197920316722512i | U30: 1 | V30: 1 | W30: 0 | X30: 0 | Z30: 1.00000031964737-4.30372335896138E-11i | AA30: 2.776421334e-06 | AB30: -2.465851061e-09 | AD30: 0.01130973354i | AE30: 1+0.01130973354i | AG30: -0.0000319775181864502-1.80828604979628E-08i | AH30: 1+0.01130973354i
A31: 100 | B31: 0.1 | C31: 628.31853i | D31: -394784.175141361 | E31: -248050212.592082i | G31: 100+0.062831853i | P31: 0 | Q31: 1+0.0002199114855i | R31: -2.77468967805503E-11i | S31: -3.94626261471305E-07 | T31: 0.999999605373739+0.000219911457753103i | U31: 1 | V31: 1 | W31: 0 | X31: 0 | Z31: 1.0000003946264-5.90359940073355E-11i | AA31: 3.427680682e-06 | AB31: -3.382511965e-09 | AD31: 0.0125663706i | AE31: 1+0.0125663706i | AG31: -0.0000394784175141361-2.48050212592082E-08i | AH31: 1+0.0125663706i
A32: 200 | B32: 0.2 | C32: 1256.63706i | D32: -1579136.70056544 | E32: -1984401700.73666i | G32: 100+0.125663706i | P32: 0 | Q32: 1+0.000439822971i | R32: -2.21975174244403E-10i | S32: -1.57850504588521E-06 | T32: 0.999998421494954+0.000439822749024826i | U32: 1 | V32: 1 | W32: 0 | X32: 0 | Z32: 1.00000157850733-4.72289004721146E-10i | AA32: 1.371072964e-05 | AB32: -2.7060124e-08 | AD32: 0.0251327412i | AE32: 1+0.0251327412i | AG32: -0.000157913670056544-1.98440170073665E-07i | AH32: 1+0.0251327412i
A33: 300 | B33: 0.3 | C33: 1884.95559i | D33: -3553057.57627225 | E33: -6697355739.98623i | G33: 100+0.188495559i | P33: 0 | Q33: 1+0.0006597344565i | R33: -7.4916621307486E-10i | S33: -3.55163635324174E-06 | T33: 0.999996448363647+0.000659733707333787i | U33: 1 | V33: 1 | W33: 0 | X33: 0 | Z33: 1.00000355164792-1.59398129480179E-09i | AA33: 3.084916708e-05 | AB33: -9.132807655e-08 | AD33: 0.0376991118i | AE33: 1+0.0376991118i | AG33: -0.000355305757627225-6.69735573998623E-07i | AH33: 1+0.0376991118i
A34: 400 | B34: 0.4 | C34: 2513.27412i | D34: -6316546.80226177 | E34: -15875213605.8933i | G34: 100+0.251327412i | P34: 0 | Q34: 1+0.000879645942i | R34: -1.77580139395522E-09i | S34: -6.31402018354087E-06 | T34: 0.999993685979816+0.000879644166198606i | U34: 1 | V34: 1 | W34: 0 | X34: 0 | Z34: 1.00000631405673-3.77834562794476E-09i | AA34: 5.484302678e-05 | AB34: -2.164818914e-07 | AD34: 0.0502654824i | AE34: 1+0.0502654824i | AG34: -0.000631654680226177-1.58752136058933E-06i | AH34: 1+0.0502654824i
A35: 500 | B35: 0.5 | C35: 3141.59265i | D35: -9869604.37853402 | E35: -31006276574.0103i | G35: 100+0.314159265i | P35: 0 | Q35: 1+0.0010995574275i | R35: -3.46836209756879E-09i | S35: -9.86565653678261E-06 | T35: 0.999990134343463+0.0010995539591379i | U35: 1 | V35: 1 | W35: 0 | X35: 0 | Z35: 1.00000986574575-7.37963050952798E-09i | AA35: 8.569235607e-05 | AB35: -4.228175116e-07 | AD35: 0.062831853i | AE35: 1+0.062831853i | AG35: -0.000986960437853402-3.10062765740103E-06i | AH35: 1+0.062831853i
A36: 600 | B36: 0.6 | C36: 3769.91118i | D36: -14212230.305089 | E36: -53578845919.8898i | G36: 100+0.376991118i | P36: 0 | Q36: 1+0.001319468913i | R36: -5.99332970459887E-09i | S36: -0.000014206545412967 | T36: 0.999985793454587+0.0013194629196703i | U36: 1 | V36: 1 | W36: 0 | X36: 0 | Z36: 1.00001420673042-1.27521054564846E-08i | AA36: 0.000123397216 | AB36: -7.306314435e-07 | AD36: 0.0753982236i | AE36: 1+0.0753982236i | AG36: -0.0014212230305089-5.35788459198898E-06i | AH36: 1+0.0753982236i
A37: 700 | B37: 0.7 | C37: 4398.22971i | D37: -19344424.5819267 | E37: -85081222919.0843i | G37: 100+0.439822971i | P37: 0 | Q37: 1+0.0015393803985i | R37: -9.51718559572877E-09i | S37: -0.0000193366868120939 | T37: 0.999980663313188+0.0015393708813144i | U37: 1 | V37: 1 | W37: 0 | X37: 0 | Z37: 1.00001933702955-2.02500661951286E-08i | AA37: 0.0001679576807 | AB37: -1.160220894e-06 | AD37: 0.0879645942i | AE37: 1+0.0879645942i | AG37: -0.00193444245819267-8.50812229190843E-06i | AH37: 1+0.0879645942i
A38: 800 | B38: 0.8 | C38: 5026.54824i | D38: -25266187.2090471 | E38: -127001708847.146i | G38: 100+0.502654824i | P38: 0 | Q38: 1+0.001759291884i | R38: -1.42064111516417E-08i | S38: -0.0000252560807341635 | T38: 0.999974743919266+0.00175927767758885i | U38: 1 | V38: 1 | W38: 0 | X38: 0 | Z38: 1.00002525666544-3.02278400042037E-08i | AA38: 0.0002193738383 | AB38: -1.731883916e-06 | AD38: 0.1005309648i | AE38: 1+0.1005309648i | AG38: -0.00252661872090471-0.0000127001708847146i | AH38: 1+0.1005309648i
A39: 900 | B39: 0.9 | C39: 5654.86677i | D39: -31977518.1864502 | E39: -180828604979.628i | G39: 100+0.565486677i | P39: 0 | Q39: 1+0.0019792033695i | R39: -2.02274877530212E-08i | S39: -0.0000319647271791756 | T39: 0.999968035272821+0.00197918314201225i | U39: 1 | V39: 1 | W39: 0 | X39: 0 | Z39: 1.00003196566377-4.30397908600739E-08i | AA39: 0.0002776457902 | AB39: -2.465919545e-06 | AD39: 0.1130973354i | AE39: 1+0.1130973354i | AG39: -0.00319775181864502-0.0000180828604979628i | AH39: 1+0.1130973354i
A40: 1000 | B40: 1 | C40: 6283.1853i | D40: -39478417.5141361 | E40: -248050212592.082i | G40: 100+0.62831853i | P40: 0 | Q40: 1+0.002199114855i | R40: -2.77468967805503E-08i | S40: -0.0000394626261471304 | T40: 0.999960537373853+0.00219908710810322i | U40: 1 | V40: 1 | W40: 0 | X40: 0 | Z40: 1.00003946405367-5.90403247598128E-08i | AA40: 0.0003427736513 | AB40: -3.382627941e-06 | AD40: 0.125663706i | AE40: 1+0.125663706i | AG40: -0.00394784175141361-0.0000248050212592082i | AH40: 1+0.125663706i
A41: 2000 | B41: 2 | C41: 12566.3706i | D41: -157913670.056544 | E41: -1984401700736.66i | G41: 100+1.25663706i | P41: 0 | Q41: 1+0.00439822971i | R41: -2.21975174244403E-07i | S41: -0.000157850504588521 | T41: 0.999842149495412+0.00439800773482576i | U41: 1 | V41: 1 | W41: 0 | X41: 0 | Z41: 1.00015787334724-4.72427600959129E-07i | AA41: 0.00137116224 | AB41: -2.706383503e-05 | AD41: 0.251327412i | AE41: 1+0.251327412i | AG41: -0.0157913670056544-0.000198440170073665i | AH41: 1+0.251327412i
A42: 3000 | B42: 3 | C42: 18849.5559i | D42: -355305757.627225 | E42: -6697355739986.23i | G42: 100+1.88495559i | P42: 0 | Q42: 1+0.006597344565i | R42: -7.4916621307486E-07i | S42: -0.000355163635324174 | T42: 0.999644836364676+0.00659659539878692i | U42: 1 | V42: 1 | W42: 0 | X42: 0 | Z42: 1.00035527929582-1.59503405307709E-06i | AA42: 0.003085368714 | AB42: -9.135626254e-05 | AD42: 0.376991118i | AE42: 1+0.376991118i | AG42: -0.0355305757627225-0.000669735573998623i | AH42: 1+0.376991118i
A43: 4000 | B43: 4 | C43: 25132.7412i | D43: -631654680.226177 | E43: -15875213605893.3i | G43: 100+2.51327412i | P43: 0 | Q43: 1+0.00879645942i | R43: -1.77580139395522E-06i | S43: -0.000631402018354087 | T43: 0.999368597981646+0.00879468361860604i | U43: 1 | V43: 1 | W43: 0 | X43: 0 | Z43: 1.00063176764934-3.78278365967147E-06i | AA43: 0.00548573147 | AB43: -0.0002166006974 | AD43: 0.502654824i | AE43: 1+0.502654824i | AG43: -0.0631654680226177-0.00158752136058933i | AH43: 1+0.502654824i
A44: 5000 | B44: 5 | C44: 31415.9265i | D44: -986960437.853402 | E44: -31006276574010.3i | G44: 100+3.14159265i | P44: 0 | Q44: 1+0.010995574275i | R44: -3.46836209756879E-06i | S44: -0.000986565653678261 | T44: 0.999013434346322+0.0109921059129024i | U44: 1 | V44: 1 | W44: 0 | X44: 0 | Z44: 1.00098745857977-7.39318105431537E-06i | AA44: 0.008572724574 | AB44: -0.0004231801991 | AD44: 0.62831853i | AE44: 1+0.62831853i | AG44: -0.0986960437853402-0.00310062765740103i | AH44: 1+0.62831853i
A45: 6000 | B45: 6 | C45: =COMPLEX(0,2*Pi*A45) -> 37699.1118i | D45: =COMPLEX(-POWER(2*Pi*A45,2),0) -> -1421223030.5089 | E45: =COMPLEX(0,-POWER(2*Pi*A45,3)) -> -53578845919889.8i | G45: =IMSUM(IMPRODUCT(C45,Rcomp_AEF*Csen_AEF),Csen_AEF/Ccomp_AEF) -> 100+3.76991118i | I45: =IMPRODUCT((RdampSel*CdampSel+RdampSel*CinjSel),C45) ->  | L45: =IMPRODUCT(G45,L_infilterStd*RdampSel*CinjSel*CdampSel,E45) ->  | M45: =IMPRODUCT(G45,L_infilterStd*CinjSel,D45) ->  | P45: 0 | Q45: =IMSUM(IMPRODUCT(C45,RdampPssv*CdampPssv),1) -> 1+0.01319468913i | R45: =IMPRODUCT(RdampPssv*CdampPssv*CfilterPssv*LinfilterPssv,E45) -> -5.99332970459887E-06i | S45: =IMPRODUCT(D45,LinfilterPssv*(CfilterPssv+CdampPssv)) -> -0.0014206545412967 | T45: 0.998579345458703+0.0131886958002954i | U45: 1 | V45: =CHOOSE(INFILTER_TYPE,U45,IMDIV(J45,O45),IMDIV(Q45,T45)) -> 1 | W45: 0 | X45: =IMARGUMENT(V45)*180/Pi -> 0 | Z45: =IMDIV(Q45,T45) -> 1.00142250680344-0.000012785844067251i | AA45: 0.01234695808 | AB45: =IMARGUMENT(Z45)*180/Pi -> -0.0007315342909 | AD45: =IMPRODUCT((RdampCom*CdampCom+RdampCom*CinjCom),C45) -> 0.753982236i | AE45: 1+0.753982236i | AF45: =IMPRODUCT(G45,L_infilterStd*RdampSel*CinjSel*CdampSel,E45) ->  | AG45: =IMPRODUCT(G45,LAEFCom*CinjCom,D45) -> -0.14212230305089-0.00535788459198898i | AH45: 1+0.753982236i | AN45: =IMARGUMENT(AK45)*180/Pi -> 
A46: 7000 | B46: 7 | C46: 43982.2971i | D46: -1934442458.19267 | E46: -85081222919084.3i | G46: 100+4.39822971i | P46: 0 | Q46: 1+0.015393803985i | R46: -9.51718559572877E-06i | S46: -0.00193366868120939 | T46: 0.998066331318791+0.0153842867994043i | U46: 1 | V46: 1 | W46: 0 | X46: 0 | Z46: 1.00193710173868-0.0000203230411399365i | AA46: 0.01680917842 | AB46: -0.001162173238 | AD46: 0.879645942i | AE46: 1+0.879645942i | AG46: -0.193444245819267-0.00850812229190843i | AH46: 1+0.879645942i
A47: 8000 | B47: 8 | C47: 50265.4824i | D47: -2526618720.90471 | E47: -127001708847146i | G47: 100+5.02654824i | P47: 0 | Q47: 1+0.01759291884i | R47: -0.0000142064111516418i | S47: -0.00252560807341635 | T47: 0.997474391926584+0.0175787124288484i | U47: 1 | V47: 1 | W47: 0 | X47: 0 | Z47: 1.00253146769905-0.0000303702348632679i | AA47: 0.0219602689 | AB47: -0.001735692433 | AD47: 1.005309648i | AE47: 1+1.005309648i | AG47: -0.252661872090471-0.0127001708847146i | AH47: 1+1.005309648i
A48: 9000 | B48: 9 | C48: 56548.6677i | D48: -3197751818.64502 | E48: -180828604979628i | G48: 100+5.65486677i | P48: 0 | Q48: 1+0.019792033695i | R48: -0.0000202274877530212i | S48: -0.00319647271791756 | T48: 0.996803527282082+0.019771806207247i | U48: 1 | V48: 1 | W48: 0 | X48: 0 | Z48: 1.00320586412249-0.0000432966329094656i | AA48: 0.02780125032 | AB48: -0.002472786915 | AD48: 1.130973354i | AE48: 1+1.130973354i | AG48: -0.319775181864502-0.0180828604979628i | AH48: 1+1.130973354i
A49: 10000 | B49: 10 | C49: 62831.853i | D49: -3947841751.41361 | E49: -248050212592082i | G49: 100+6.2831853i | P49: 0 | Q49: 1+0.02199114855i | R49: -0.0000277468967805503i | S49: -0.00394626261471305 | T49: 0.996053737385287+0.0219634016532194i | U49: 1 | V49: 1 | W49: 0 | X49: 0 | Z49: 1.0039605858368-0.0000594757476545141i | AA49: 0.03433328159 | AB49: -0.003394266042 | AD49: 1.25663706i | AE49: 1+1.25663706i | AG49: -0.394784175141361-0.0248050212592082i | AH49: 1+1.25663706i
A50: 11000 | B50: 11 | C50: 69115.0383i | D50: -4776888519.21047 | E50: -330154832960062i | G50: 100+6.91150383i | N50: =J50 ->  | O50: =IMSUM(L50:N50) ->  | P50: 0 | Q50: 1+0.024190263405i | R50: -0.0000369311196149125i | S50: -0.00477497776380279 | T50: =IMSUM(S50,R50,Q50) -> 0.995225022236197+0.0241533322853851i | U50: 1 | V50: 1 | W50: 0 | X50: 0 | Z50: 1.00479596336193-0.0000792859658181959i | AA50: 0.04155766053 | AB50: -0.004521068334 | AD50: 1.382300766i | AE50: 1+1.382300766i | AG50: -0.477688851921047-0.0330154832960062i | AH50: 1+1.382300766i
A51: 12000 | B51: 12 | C51: 75398.2236i | D51: -5684892122.0356 | E51: -428630767359119i | G51: 100+7.53982236i | N51: =J51 ->  | O51: =IMSUM(L51:N51) ->  | P51: 0 | Q51: 1+0.02638937826i | R51: -0.000047946637636791i | S51: -0.00568261816518679 | T51: =IMSUM(S51,R51,Q51) -> 0.994317381834813+0.0263414316223632i | U51: 1 | V51: 1 | W51: 0 | X51: 0 | Z51: 1.00571236324959-0.000103111129481765i | AA51: 0.04947582475 | AB51: -0.005874276525 | AD51: 1.507964472i | AE51: 1+1.507964472i | AG51: -0.56848921220356-0.0428630767359119i | AH51: 1+1.507964472i
A52: 13000 | B52: 13 | C52: 81681.4089i | D52: -6671852559.889 | E52: -544966317064805i | G52: 100+8.16814089i | N52: =J52 ->  | O52: =IMSUM(L52:N52) ->  | P52: 0 | Q52: 1+0.028588493115i | R52: -0.0000609599322268691i | S52: -0.00666918381886504 | T52: =IMSUM(S52,R52,Q52) -> 0.993330816181135+0.0285275331827731i | U52: 1 | V52: 1 | W52: 0 | X52: 0 | Z52: 1.00671018846073-0.00013134112988737i | AA52: 0.05808935257 | AB52: -0.007475132835 | AD52: 1.633628178i | AE52: 1+1.633628178i | AG52: -0.6671852559889-0.0544966317064805i | AH52: 1+1.633628178i
A53: 15000 | B53: 15 | C53: 94247.7795i | D53: -8882643940.68062 | E53: -837169467498278i | G53: 100+9.42477795i | N53: =J53 ->  | O53: =IMSUM(L53:N53) ->  | P53: 0 | Q53: 1+0.032986722825i | R53: -0.0000936457766343574i | S53: -0.00887909088310435 | T53: =IMSUM(S53,R53,Q53) -> 0.991120909116896+0.0328930770483656i | U53: 1 | V53: 1 | W53: 0 | X53: 0 | Z53: 1.00895191127968-0.00020260911556929i | AA53: 0.07740952239 | AB53: -0.01150564952 | AD53: 1.88495559i | AE53: 1+1.88495559i | AG53: -0.888264394068062-0.0837169467498278i | AH53: 1+1.88495559i
A54: 16000 | B54: 16 | C54: 100530.9648i | D54: -10106474883.6188 | E54: -1016013670777170i | G54: 100+10.05309648i | N54: =J54 ->  | O54: =IMSUM(L54:N54) ->  | P54: 0 | Q54: 1+0.03518583768i | R54: -0.000113651289213134i | S54: -0.0101024322936654 | T54: =IMSUM(S54,R54,Q54) -> 0.989897567706335+0.0350721863907869i | U54: 1 | V54: 1 | W54: 0 | X54: 0 | Z54: 1.01019680079824-0.000246462681525396i | AA54: 0.08812003465 | AB54: -0.01397873284 | AD54: 2.010619296i | AE54: 1+2.010619296i | AG54: -1.01064748836188-0.101601367077717i | AH54: 1+2.010619296i
A55: 17500 | B55: 17.5 | C55: 109955.74275i | D55: -12090265363.7042 | E55: -1329394108110690i | G55: 100+10.995574275i | P55: 0 | Q55: 1+0.0384845099625i | R55: -0.000148706024933262i | S55: -0.0120854292575587 | T55: 0.987914570742441+0.0383358039375667i | U55: 1 | V55: 1 | W55: 0 | X55: 0 | Z55: 1.01222071263725-0.000323696833892721i | AA55: 0.105504841 | AB55: -0.01832254723 | AD55: 2.199114855i | AE55: 1+2.199114855i | AG55: -1.20902653637042-0.132939410811069i | AH55: 1+2.199114855i
A56: 19000 | B56: 19 | C56: 119380.5207i | D56: -14251708722.6031 | E56: -1701376408169090i | G56: 100+11.93805207i | P56: 0 | Q56: 1+0.041783182245i | R56: -0.000190315965017794i | S56: -0.0142460080391141 | T56: 0.985753991960886+0.0415928662799822i | U56: 1 | V56: 1 | W56: 0 | X56: 0 | Z56: 1.01443433812182-0.000415975520938413i | AA56: 0.1244795592 | AB56: -0.02349451268 | AD56: 2.387610414i | AE56: 1+2.387610414i | AG56: -1.42517087226031-0.170137640816909i | AH56: 1+2.387610414i
A57: 20000 | B57: 20 | C57: 125663.706i | D57: -15791367005.6544 | E57: -1984401700736660i | G57: 100+12.5663706i | P57: 0 | Q57: 1+0.0439822971i | R57: -0.000221975174244403i | S57: -0.0157850504588521 | T57: 0.984214949541148+0.0437603219257556i | U57: 1 | V57: 1 | W57: 0 | X57: 0 | Z57: 1.01601657935512-0.000486596443905099i | AA57: 0.1380168926 | AB57: -0.02744041882 | AD57: 2.51327412i | AE57: 1+2.51327412i | AG57: -1.57913670056544-0.198440170073665i | AH57: 1+2.51327412i
A58: 25000 | B58: 25 | C58: 157079.6325i | D58: -24674010946.3351 | E58: -3875784571751290i | G58: 100+15.70796325i | P58: 0 | Q58: 1+0.054977871375i | R58: -0.000433545262196099i | S58: -0.0246641413419566 | T58: 0.975335858658043+0.0545443261128039i | U58: 1 | V58: 1 | W58: 0 | X58: 0 | Z58: 1.02523378537434-0.000966656304033977i | AA58: 0.2164620491 | AB58: -0.05402212734 | AD58: 3.14159265i | AE58: 1+3.14159265i | AG58: -2.46740109463351-0.387578457175129i | AH58: 1+3.14159265i
A59: 30000 | B59: 30 | C59: 188495.559i | D59: -35530575762.7225 | E59: -6697355739986230i | G59: 100+18.8495559i | P59: 0 | Q59: 1+0.06597344565i | R59: -0.00074916621307486i | S59: -0.0355163635324174 | T59: 0.964483636467583+0.0652242794369251i | U59: 1 | V59: 1 | W59: 0 | X59: 0 | Z59: 1.03670887459481-0.00170572482425677i | AA59: 0.3131480821 | AB59: -0.09427019268 | AD59: 3.76991118i | AE59: 1+3.76991118i | AG59: -3.55305757627225-0.669735573998623i | AH59: 1+3.76991118i
A60: 35000 | B60: 35 | C60: 219911.4855i | D60: -48361061454.8167 | E60: -10635152864885500i | G60: 100+21.99114855i | P60: 0 | Q60: 1+0.076969019925i | R60: -0.00118964819946609i | S60: -0.0483417170302348 | T60: 0.951658282969765+0.0757793717255339i | U60: 1 | V60: 1 | W60: 0 | X60: 0 | Z60: 1.05057619978726-0.00277724104542023i | AA60: 0.4285815074 | AB60: -0.151463378 | AD60: 4.39822971i | AE60: 1+4.39822971i | AG60: -4.83610614548167-1.06351528648855i | AH60: 1+4.39822971i
A61: 40000 | B61: 40 | C61: 251327.412i | D61: -63165468022.6178 | E61: -15875213605893300i | G61: 100+25.1327412i | P61: 0 | Q61: 1+0.0879645942i | R61: -0.00177580139395522i | S61: -0.0631402018354088 | T61: 0.936859798164591+0.0861887928060448i | U61: 1 | V61: 1 | W61: 0 | X61: 0 | Z61: 1.06700286965865-0.00426861635465528i | AA61: 0.5633812551 | AB61: -0.229214376 | AD61: 5.02654824i | AE61: 1+5.02654824i | AG61: -6.31654680226178-1.58752136058933i | AH61: 1+5.02654824i
A62: 45000 | B62: 45 | C62: 282743.3385i | D62: -79943795466.1256 | E62: -22603575622453500i | G62: 100+28.27433385i | P62: 0 | Q62: 1+0.098960168475i | R62: -0.00252843596912765i | S62: -0.0799118179479392 | T62: 0.920088182052061+0.0964317325058724i | U62: 1 | V62: 1 | W62: 0 | X62: 0 | Z62: 1.08619356566251-0.00628565719175738i | AA62: 0.7182899496 | AB62: -0.3315593282 | AD62: 5.65486677i | AE62: 1+5.65486677i | AG62: -7.99437954661256-2.26035756224535i | AH62: 1+5.65486677i
A63: 50000 | B63: 50 | C63: 314159.265i | D63: -98696043785.3402 | E63: -31006276574010300i | G63: 100+31.4159265i | P63: 0 | Q63: 1+0.10995574275i | R63: -0.00346836209756879i | S63: -0.0986565653678261 | T63: 0.901343434632174+0.106487380652431i | U63: 1 | V63: 1 | W63: 0 | X63: 0 | Z63: 1.10839666057698-0.00895831050462997i | AA63: 0.8941878551 | AB63: -0.4630672635 | AD63: 6.2831853i | AE63: 1+6.2831853i | AG63: -9.86960437853402-3.10062765740103i | AH63: 1+6.2831853i
A64: 55000 | B64: 55 | C64: 345575.1915i | D64: -119422212980.262 | E64: -41269354120007700i | G64: 100+34.55751915i | P64: 0 | Q64: 1+0.120951317025i | R64: -0.00461638995186406i | S64: -0.11937444409507 | T64: 0.88062555590493+0.116334927073136i | U64: 1 | V64: 1 | W64: 0 | X64: 0 | Z64: 1.1339119415625-0.0124482487823856i | AA64: 1.092109959 | AB64: -0.628976062 | AD64: 6.91150383i | AE64: 1+6.91150383i | AG64: -11.9422212980262-4.12693541200078i | AH64: 1+6.91150383i
A65: 60000 | B65: 60 | C65: 376991.118i | D65: -142122303050.89 | E65: -53578845919889800i | G65: 100+37.6991118i | P65: 0 | Q65: 1+0.1319468913i | R65: -0.00599332970459887i | S65: -0.14206545412967 | T65: 0.85793454587033+0.125953561595401i | U65: 1 | V65: 1 | W65: 0 | X65: 0 | Z65: 1.1631003258263-0.0169590294511739i | AA65: 1.313266769 | AB65: -0.8353638461 | AD65: 7.53982236i | AE65: 1+7.53982236i | AG65: -14.212230305089-5.35788459198898i | AH65: 1+7.53982236i
A66: 65000 | B66: 65 | C66: 408407.0445i | D66: -166796313997.225 | E66: -68120789633100600i | G66: 100+40.84070445i | P66: 0 | Q66: 1+0.142942465575i | R66: -0.00761999152835863i | S66: -0.166729595471626 | T66: 0.833270404528374+0.135322474046641i | U66: 1 | V66: 1 | W66: 0 | X66: 0 | Z66: 1.19639605981863-0.0227498889631618i | AA66: 1.559069535 | AB66: -1.089367975 | AD66: 8.16814089i | AE66: 1+8.16814089i | AG66: -16.6796313997225-6.81207896331006i | AH66: 1+8.16814089i
A67: 70000 | B67: 70 | C67: 439822.971i | D67: -193444245819.267 | E67: -85081222919084300i | G67: 100+43.9822971i | P67: 0 | Q67: 1+0.15393803985i | R67: -0.00951718559572877i | S67: -0.193366868120939 | T67: 0.806633131879061+0.144420854254271i | U67: 1 | V67: 1 | W67: 0 | X67: 0 | Z67: 1.23432201043572-0.0301547238275632i | AA67: 1.831160713 | AB67: -1.399468529 | AD67: 8.79645942i | AE67: 1+8.79645942i | AG67: -19.3444245819267-8.50812229190843i | AH67: 1+8.79645942i
A68: 75000 | B68: 75 | C68: 471238.8975i | D68: -222066098517.016 | E68: -104646183437285000i | G68: 100+47.12388975i | P68: 0 | Q68: 1+0.164933614125i | R68: -0.0117057220792947i | S68: -0.221977272077609 | T68: 0.778022727922391+0.153227892045705i | U68: 1 | V68: 1 | W68: 0 | X68: 0 | Z68: 1.27750877655212-0.0396085636961541i | AA68: 2.131450634 | AB68: -1.775860031 | AD68: 9.42477795i | AE68: 1+9.42477795i | AG68: -22.2066098517016-10.4646183437285i | AH68: 1+9.42477795i
A69: 80000 | B69: 80 | C69: 502654.824i | D69: -252661872090.471 | E69: -127001708847146000i | G69: 100+50.2654824i | P69: 0 | Q69: 1+0.1759291884i | R69: -0.0142064111516417i | S69: -0.252560807341635 | T69: 0.747439192658365+0.161722777248358i | U69: 1 | V69: 1 | W69: 0 | X69: 0 | Z69: 1.32671843606306-0.0516850094110243i | AA69: 2.462161357 | AB69: -2.23094524 | AD69: 10.05309648i | AE69: 1+10.05309648i | AG69: -25.2661872090471-12.7001708847146i | AH69: 1+10.05309648i
A70: 90000 | B70: 90 | C70: 565486.677i | D70: -319775181864.502 | E70: -180828604979628000i | G70: 100+56.5486677i | P70: 0 | Q70: 1+0.19792033695i | R70: -0.0202274877530212i | S70: -0.319647271791756 | T70: 0.680352728208244+0.177692849196979i | U70: 1 | V70: 1 | W70: 0 | X70: 0 | Z70: 1.44709298035524-0.0870397594174791i | AA70: 3.225612215 | AB70: -3.442080077 | AD70: 11.30973354i | AE70: 1+11.30973354i | AG70: -31.9775181864502-18.0828604979628i | AH70: 1+11.30973354i
A71: 100000 | B71: 100 | C71: 628318.53i | D71: -394784175141.361 | E71: -248050212592082000i | G71: 100+62.831853i | P71: 0 | Q71: 1+0.2199114855i | R71: -0.0277468967805503i | S71: -0.394626261471305 | T71: 0.605373738528695+0.19216458871945i | U71: 1 | V71: 1 | W71: 0 | X71: 0 | Z71: 1.60541786286688-0.146344269997555i | AA71: 4.147700439 | AB71: -5.208487783 | AD71: 12.5663706i | AE71: 1+12.5663706i | AG71: -39.4784175141361-24.8050212592082i | AH71: 1+12.5663706i
A72: 110000 | B72: 110 | C72: 691150.383i | D72: -477688851921.047 | E72: -330154832960062000i | G72: 100+69.1150383i | N72: =J72 ->  | O72: =IMSUM(L72:N72) ->  | P72: 1 | Q72: 1+0.24190263405i | R72: -0.0369311196149125i | S72: -0.477497776380279 | T72: =IMSUM(S72,R72,Q72) -> 0.522502223619721+0.204971514435088i | U72: 1 | V72: 1 | W72: 0 | X72: 0 | Z72: 1.81601781079008-0.249432980334241i | AA72: 5.263570496 | AB72: -7.820732309 | AD72: 13.82300766i | AE72: 1+13.82300766i | AG72: -47.7688851921047-33.0154832960062i | AH72: 1+13.82300766i
A73: 120000 | B73: 120 | C73: 753982.236i | D73: -568489212203.56 | E73: -428630767359118000i | G73: 100+75.3982236i | P73: 2 | Q73: 1+0.2638937826i | R73: -0.0479466376367909i | S73: -0.568261816518679 | T73: 0.431738183481321+0.215947144963209i | U73: 1 | V73: 1 | W73: 0 | X73: 0 | Z73: 2.09725415352119-0.43777055480966i | AA73: 6.618238543 | AB73: -11.79034914 | AD73: 15.07964472i | AE73: 1+15.07964472i | AG73: -56.848921220356-42.8630767359119i | AH73: 1+15.07964472i
A74: 130000 | B74: 130 | C74: 816814.089i | D74: -667185255988.9 | E74: -544966317064805000i | G74: 100+81.6814089i | P74: 3 | Q74: 1+0.28588493115i | R74: -0.0609599322268691i | S74: -0.666918381886505 | T74: 0.333081618113495+0.224924998923131i | U74: 1 | V74: 1 | W74: 0 | X74: 0 | Z74: 2.4600564712321-0.802936137717432i | AA74: 8.258533392 | AB74: -18.0761292 | AD74: 16.33628178i | AE74: 1+16.33628178i | AG74: -66.71852559889-54.4966317064805i | AH74: 1+16.33628178i
A75: 150000 | B75: 150 | C75: 942477.795i | D75: -888264394068.062 | E75: -837169467498278000i | G75: 100+94.2477795i | P75: 4 | Q75: 1+0.32986722825i | R75: -0.0936457766343574i | S75: -0.887909088310435 | T75: 0.112090911689565+0.236221451615643i | U75: 1 | V75: 1 | W75: 0 | X75: 0 | Z75: 2.77938675294686-2.91445167327342i | AA75: 12.1002459 | AB75: -46.35887228 | AD75: 18.8495559i | AE75: 1+18.8495559i | AG75: -88.8264394068062-83.7169467498278i | AH75: 1+18.8495559i
A76: 160000 | B76: 160 | C76: 1005309.648i | D76: -1010647488361.88 | E76: -1016013670777170000i | G76: 100+100.5309648i | P76: 5 | Q76: 1+0.3518583768i | R76: -0.113651289213134i | S76: -1.01024322936654 | T76: -0.01024322936654+0.238207087586866i | U76: 1 | V76: 1 | W76: 0 | X76: 0 | Z76: 1.29419724044521-4.25368014631354i | AA76: 12.95979018 | AB76: -73.0774314 | AD76: 20.10619296i | AE76: 1+20.10619296i | AG76: -101.064748836188-101.601367077717i | AH76: 1+20.10619296i
A77: 175000 | B77: 175 | C77: =COMPLEX(0,2*Pi*A77) -> 1099557.4275i | D77: =COMPLEX(-POWER(2*Pi*A77,2),0) -> -1209026536370.42 | E77: =COMPLEX(0,-POWER(2*Pi*A77,3)) -> -1329394108110690000i | G77: 100+109.95574275i | I77: =IMPRODUCT((RdampSel*CdampSel+RdampSel*CinjSel),C77) ->  | L77: =IMPRODUCT(G77,L_infilterStd*RdampSel*CinjSel*CdampSel,E77) ->  | M77: =IMPRODUCT(G77,L_infilterStd*CinjSel,D77) ->  | P77: 6 | Q77: =IMSUM(IMPRODUCT(C77,RdampPssv*CdampPssv),1) -> 1+0.384845099625i | R77: =IMPRODUCT(RdampPssv*CdampPssv*CfilterPssv*LinfilterPssv,E77) -> -0.148706024933262i | S77: =IMPRODUCT(D77,LinfilterPssv*(CfilterPssv+CdampPssv)) -> -1.20854292575587 | T77: -0.20854292575587+0.236139074691738i | U77: 1 | V77: 1 | W77: 0 | X77: 0 | Z77: =IMDIV(Q77,T77) -> -1.18552956082797-3.18780870043445i | AA77: 10.63243437 | AB77: =IMARGUMENT(Z77)*180/Pi -> -110.3999075 | AD77: =IMPRODUCT((RdampCom*CdampCom+RdampCom*CinjCom),C77) -> 21.99114855i | AE77: 1+21.99114855i | AF77: =IMPRODUCT(G77,L_infilterStd*RdampSel*CinjSel*CdampSel,E77) ->  | AG77: =IMPRODUCT(G77,LAEFCom*CinjCom,D77) -> -120.902653637042-132.939410811069i | AH77: 1+21.99114855i | AN77: =IMARGUMENT(AK77)*180/Pi -> 
A78: 190000 | B78: 190 | C78: 1193805.207i | D78: -1425170872260.31 | E78: -1701376408169090000i | G78: 100+119.3805207i | P78: 7 | Q78: 1+0.41783182245i | R78: -0.190315965017794i | S78: -1.42460080391141 | T78: -0.42460080391141+0.227515857432206i | U78: 1 | V78: 1 | W78: 0 | X78: 0 | Z78: -1.42011816933091-1.74500664759685i | AA78: =20*LOG10(IMABS(Z78)) -> 7.043035928 | AB78: -129.1393238 | AD78: 23.87610414i | AE78: =IMSUM(1,AD78) -> 1+23.87610414i | AG78: -142.517087226031-170.137640816909i | AH78: =AE78 -> 1+23.87610414i | AI78: =IMSUM(AF78:AH78) ->  | AK78: =IMDIV(AE78,AI78) ->  | AM78: =20*LOG10(IMABS(AK78)) -> 
A79: 200000 | B79: 200 | C79: 1256637.06i | D79: -1579136700565.44 | E79: -1984401700736660000i | G79: 100+125.663706i | P79: 0 | Q79: 1+0.439822971i | R79: -0.221975174244403i | S79: -1.57850504588521 | T79: -0.57850504588521+0.217847796755597i | U79: 1 | V79: 1 | W79: 0 | X79: 0 | Z79: -1.26317208366406-1.23594812428182i | AA79: 4.9459583 | AB79: -135.6241223 | AD79: 25.1327412i | AE79: 1+25.1327412i | AG79: -157.913670056544-198.440170073665i | AH79: 1+25.1327412i
A80: 300000 | B80: 300 | C80: 1884955.59i | D80: -3553057576272.25 | E80: -6697355739986230000i | G80: 100+188.495559i | P80: 0 | Q80: 1+0.6597344565i | R80: -0.74916621307486i | S80: -3.55163635324174 | T80: -2.55163635324174-0.08943175657486i | U80: 1 | V80: 1 | W80: 0 | X80: 0 | Z80: -0.400475408867723-0.244517302172491i | AA80: -6.57243309 | AB80: -148.5931141 | AD80: 37.6991118i | AE80: 1+37.6991118i | AG80: -355.305757627225-669.735573998623i | AH80: 1+37.6991118i
A81: 400000 | B81: 400 | C81: 2513274.12i | D81: -6316546802261.78 | E81: -15875213605893300000i | G81: 100+251.327412i | P81: 0 | Q81: 1+0.879645942i | R81: -1.77580139395522i | S81: -6.31402018354088 | T81: -5.31402018354088-0.89615545195522i | U81: 1 | V81: 1 | W81: 0 | X81: 0 | Z81: -0.210121191022436-0.130098243366712i | AA81: -12.14126087 | AB81: -148.2359428 | AD81: 50.2654824i | AE81: 1+50.2654824i | AG81: -631.654680226178-1587.52136058933i | AH81: 1+50.2654824i
A82: 500000 | B82: 500 | C82: 3141592.65i | D82: -9869604378534.03 | E82: -31006276574010300000i | G82: 100+314.159265i | P82: 0 | Q82: 1+1.0995574275i | R82: -3.46836209756879i | S82: -9.86565653678262 | T82: -8.86565653678262-2.36880467006879i | U82: 1 | V82: 1 | W82: 0 | X82: 0 | Z82: -0.136208802833546-0.0876308907321328i | AA82: -15.81168415 | AB82: -147.2445124 | AD82: 62.831853i | AE82: 1+62.831853i | AG82: -986.960437853403-3100.62765740103i | AH82: 1+62.831853i
A83: 600000 | B83: 600 | C83: 3769911.18i | D83: -14212230305089 | E83: -53578845919889800000i | G83: =IMSUM(IMPRODUCT(C83,Rcomp_AEF*Csen_AEF),Csen_AEF/Ccomp_AEF) -> 100+376.991118i | P83: 0 | Q83: 1+1.319468913i | R83: -5.99332970459887i | S83: -14.206545412967 | T83: -13.206545412967-4.67386079159887i | U83: 1 | V83: =CHOOSE(INFILTER_TYPE,U83,IMDIV(J83,O83),IMDIV(Q83,T83)) -> 1 | W83: 0 | X83: =IMARGUMENT(V83)*180/Pi -> 0 | Z83: -0.0987148424567274-0.0649745603002369i | AA83: -18.5491821 | AB83: -146.646905 | AD83: 75.3982236i | AE83: 1+75.3982236i | AG83: -1421.2230305089-5357.88459198898i | AH83: 1+75.3982236i
A84: 700000 | B84: 700 | C84: 4398229.71i | D84: -19344424581926.7 | E84: -85081222919084300000i | G84: 100+439.822971i | P84: 0 | Q84: 1+1.5393803985i | R84: -9.51718559572877i | S84: -19.3366868120939 | T84: -18.3366868120939-7.97780519722877i | U84: 1 | V84: 1 | W84: 0 | X84: 0 | Z84: -0.0765669830392885-0.050638587700621i | AA84: -20.74338888 | AB84: -146.5208154 | AD84: 87.9645942i | AE84: 1+87.9645942i | AG84: -1934.44245819267-8508.12229190843i | AH84: 1+87.9645942i
A85: 800000 | B85: 800 | C85: 5026548.24i | D85: -25266187209047.1 | E85: -127001708847146000000i | G85: 100+502.654824i | P85: 0 | Q85: 1+1.759291884i | R85: -14.2064111516417i | S85: -25.2560807341635 | T85: -24.2560807341635-12.4471192676417i | U85: 1 | V85: 1 | W85: 0 | X85: 0 | Z85: -0.0620946151681225-0.040665794855093i | AA85: -22.58891903 | AB85: -146.7791907 | AD85: 100.5309648i | AE85: 1+100.5309648i | AG85: -2526.61872090471-12700.1708847146i | AH85: 1+100.5309648i
A86: 900000 | B86: 900 | C86: 5654866.77i | D86: -31977518186450.2 | E86: -180828604979628000000i | G86: 100+565.486677i | P86: 0 | Q86: 1+1.9792033695i | R86: -20.2274877530212i | S86: -31.9647271791756 | T86: -30.9647271791756-18.2482843835212i | U86: 1 | V86: 1 | W86: 0 | X86: 0 | Z86: -0.0519283597315569-0.033315323192724i | AA86: -24.19478124 | AB86: -147.3172642 | AD86: 113.0973354i | AE86: 1+113.0973354i | AG86: -3197.75181864502-18082.8604979628i | AH86: 1+113.0973354i
A87: 1000000 | B87: 1000 | C87: 6283185.3i | D87: -39478417514136.1 | E87: -248050212592083000000i | G87: 100+628.31853i | P87: 0 | Q87: 1+2.199114855i | R87: -27.7468967805504i | S87: -39.4626261471305 | T87: -38.4626261471305-25.5477819255504i | U87: 1 | V87: 1 | W87: 0 | X87: 0 | Z87: -0.044391344457259-0.0276895930961649i | AA87: -25.62676805 | AB87: -148.0456906 | AD87: 125.663706i | AE87: 1+125.663706i | AG87: -3947.84175141361-24805.0212592082i | AH87: 1+125.663706i
A88: 2000000 | B88: 2000 | C88: 12566370.6i | D88: -157913670056544 | E88: -1.98440170073666E+21i | G88: 100+1256.63706i | P88: 0 | Q88: 1+4.39822971i | R88: -221.975174244403i | S88: -157.850504588521 | T88: -156.850504588521-217.576944534403i | U88: 1 | V88: 1 | W88: 0 | X88: 0 | Z88: -0.0154820114155727-0.00656485596685991i | AA88: -35.48535935 | AB88: -157.0215402 | AD88: 251.327412i | AE88: 1+251.327412i | AG88: -15791.3670056544-198440.170073666i | AH88: 1+251.327412i
A89: 3000000 | B89: 3000 | C89: 18849555.9i | D89: -355305757627225 | E89: -6.69735573998623E+21i | G89: 100+1884.95559i | P89: 0 | Q89: 1+6.597344565i | R89: -749.16621307486i | S89: -355.163635324174 | T89: -354.163635324174-742.56886850986i | U89: 1 | V89: 1 | W89: 0 | X89: 0 | Z89: -0.00776127767315144-0.00235501700871593i | AA89: -41.81882784 | AB89: -163.1205442 | AD89: 376.991118i | AE89: 1+376.991118i | AG89: -35530.5757627225-669735.573998623i | AH89: 1+376.991118i
A90: 4000000 | B90: 4000 | C90: 25132741.2i | D90: -631654680226178 | E90: -1.58752136058933E+22i | G90: 100+2513.27412i | P90: 0 | Q90: 1+8.79645942i | R90: -1775.80139395522i | S90: -631.402018354088 | T90: -630.402018354088-1767.00493453522i | U90: 1 | V90: 1 | W90: 0 | X90: 0 | Z90: -0.00459520096124435-0.00107346840047734i | AA90: -46.52314764 | AB90: -166.8511405 | AD90: 502.654824i | AE90: 1+502.654824i | AG90: -63165.4680226178-1587521.36058933i | AH90: 1+502.654824i
A91: 5000000 | B91: 5000 | C91: 31415926.5i | D91: -986960437853403 | E91: -3.10062765740103E+22i | G91: 100+3141.59265i | P91: 0 | Q91: 1+10.995574275i | R91: -3468.36209756879i | S91: -986.565653678262 | T91: -985.565653678262-3457.36652329379i | U91: 1 | V91: 1 | W91: 0 | X91: 0 | Z91: -0.00301757308495533-0.000570959537178404i | AA91: -50.25408082 | AB91: -169.2856429 | AD91: 628.31853i | AE91: 1+628.31853i | AG91: -98696.0437853403-3100627.65740103i | AH91: 1+628.31853i
A92: 6000000 | B92: 6000 | C92: 37699111.8i | D92: -1421223030508900 | E92: -5.35788459198898E+22i | G92: 100+3769.91118i | P92: 0 | Q92: 1+13.19468913i | R92: -5993.32970459887i | S92: -1420.6545412967 | T92: -1419.6545412967-5980.13501546887i | U92: 1 | V92: 1 | W92: 0 | X92: 0 | Z92: -0.00212628728062533-0.000337549802608077i | AA92: -53.33946751 | AB92: -170.9795243 | AD92: 753.982236i | AE92: 1+753.982236i | AG92: -142122.30305089-5357884.59198898i | AH92: 1+753.982236i
A93: 7000000 | B93: 7000 | C93: 43982297.1i | D93: -1934442458192670 | E93: -8.50812229190843E+22i | G93: 100+4398.22971i | P93: 0 | Q93: 1+15.393803985i | R93: -9517.18559572877i | S93: -1933.66868120939 | T93: -1932.66868120939-9501.79179174377i | U93: 1 | V93: 1 | W93: 0 | X93: 0 | Z93: -0.00157628762603077-0.000215374297002146i | AA93: -55.96696055 | AB93: -172.2196335 | AD93: 879.645942i | AE93: 1+879.645942i | AG93: -193444.245819267-8508122.29190843i | AH93: 1+879.645942i
A94: 8000000 | B94: 8000 | C94: 50265482.4i | D94: -2526618720904710 | E94: -1.27001708847146E+23i | G94: 100+5026.54824i | P94: 0 | Q94: 1+17.59291884i | R94: -14206.4111516417i | S94: -2525.60807341635 | T94: -2524.60807341635-14188.8182328017i | U94: 1 | V94: 1 | W94: 0 | X94: 0 | Z94: -0.00121401992445827-0.000145531817287078i | AA94: -58.25351868 | AB94: -173.1642323 | AD94: 1005.309648i | AE94: 1+1005.309648i | AG94: -252661.872090471-12700170.8847146i | AH94: 1+1005.309648i
A95: 9000000 | B95: 9000 | C95: 56548667.7i | D95: -3197751818645020 | E95: -1.80828604979628E+23i | G95: 100+5654.86677i | P95: 0 | Q95: 1+19.792033695i | R95: -20227.4877530212i | S95: -3196.47271791756 | T95: -3195.47271791756-20207.6957193262i | U95: 1 | V95: 1 | W95: 0 | X95: 0 | Z95: -0.000963171180292813-0.000102821581350465i | AA95: -60.27671707 | AB95: -173.9065713 | AD95: 1130.973354i | AE95: 1+1130.973354i | AG95: -319775.181864502-18082860.4979628i | AH95: 1+1130.973354i
A96: 10000000 | B96: 10000 | C96: 62831853i | D96: -3947841751413610 | E96: -2.48050212592082E+23i | G96: 100+6283.1853i | P96: 0 | Q96: 1+21.99114855i | R96: -27746.8967805503i | S96: -3946.26261471304 | T96: -3945.26261471304-27724.9056320003i | U96: 1 | V96: 1 | W96: 0 | X96: 0 | Z96: -0.000782478973720499-0.0000752783461022707i | AA96: -62.09053569 | AB96: -174.5047748 | AD96: 1256.63706i | AE96: 1+1256.63706i | AG96: -394784.175141361-24805021.2592083i | AH96: 1+1256.63706i
A97: =Fsw -> 300000 | B97: =A97/1000 -> 300 | C97: 1884955.59i | D97: -3553057576272.25 | E97: -6697355739986230000i | G97: 100+188.495559i | J97: =IMSUM(1,I97) ->  | N97: =J97 ->  | O97: =IMSUM(L97:N97) ->  | P97: 2 | Q97: 1+0.6597344565i | R97: -0.74916621307486i | S97: -3.55163635324174 | T97: =IMSUM(S97,R97,Q97) -> -2.55163635324174-0.08943175657486i | U97: 1 | V97: 1 | W97: =20*LOG10(IMABS(V97)) -> 0 | X97: 0 | Z97: -0.400475408867723-0.244517302172491i | AA97: -6.57243309 | AB97: -148.5931141 | AD97: 37.6991118i | AE97: 1+37.6991118i | AG97: -355.305757627225-669.735573998623i | AH97: 1+37.6991118i

Sheet Standard Value Calculator (hidden)
A2: Capacitors | B2: Css | C2: Cc1ea | D2: Cc2ea | E2: Cout | F2: Cin | G2: Cres | H2: Cdither | I2: Cc3ea | J2: Cc4ea | K2: Cin_Passive | L2: Cdamp_Pssv | M2: Cinj_AEF | N2: Cdamp_AEF
A3: Inputs | B3: =Css -> 0 | C3: =Cc1ea -> 1.364181681e-08 | D3: =Cc2ea -> 5.138416836e-10 | E3: =Cout -> 0.0001 | F3: =Cin -> 0.0002 | G3: =Cres -> 5e-07 | H3: =Cdither_init -> 2.022653722e-09 | I3: =Cc3ea -> 0 | J3: =Cc4ea -> 0 | K3: ='Variable Management'!B291*0.000001 -> 9.851462624e-05 | L3: =K3*4 -> 0.000394058505 | M3: =Cinj_AEF*0.000001 -> 9.851462624e-07 | N3: ='Variable Management'!B294*0.000001 -> 3.283820875e-07 | Q3: Resistors | R3: inputs | S3: Standard Result
A4: Standard Result | B4: =SUM(B6:B158)/1000000000000 -> 0 | C4: =IF(C3="OPEN","OPEN",SUM(C6:C158)/1000000000000) -> 1.5e-08 | D4: =SUM(D6:D158)/1000000000000 -> 4.7e-10 | E4: =SUM(E6:E158)/1000000000000 -> 0.0001 | F4: =SUM(F6:F158)/1000000000000 -> 0.00022 | G4: =SUM(G6:G158)/1000000000000 -> 4.7e-07 | H4: =IF(H3="OPEN","OPEN",SUM(H6:H158)/1000000000000) -> 2.2e-09 | I4: 0 | J4: 0 | K4: 0.0001 | L4: 0.00039 | M4: 1e-06 | N4: 3.3e-07 | Q4: Rt | R4: =Rfadj -> 73.2 | S4: =IF(R4>(INT(0.5+100*POWER(10,IF(96*(LOG(R4)-INT(LOG(R4)))-ROUND(96*(LOG(R4)-INT(LOG(R4))),0)<0,ROUND(96*(LOG(R4)-INT(LOG(R4))),0)-1,ROUND(96*(LOG(R4)-INT(LOG(R4))),0))/96))*POWER(10,INT(LOG(R4))-2)+INT(0.5+100*POWER(10,(IF(96*(LOG(R4)-INT(LOG(R4)))-ROUND(96*(LOG(R4)-INT(LOG(R4))),0)<0,ROUND(96*(LOG(R4)-INT(LOG(R4))),0)-1,ROUND(96*(LOG(R4)-INT(LOG(R4))),0))+1)/96))*POWER(10,INT(LOG(R4))-2))/2,INT(0.5+100*POWER(10,(IF(96*(LOG(R4)-INT(LOG(R4)))-ROUND(96*(LOG(R4)-INT(LOG(R4))),0)<0,ROUND(96*(LOG(R4)-INT(LOG(R4))),0)-1,ROUND(96*(LOG(R4)-INT(LOG(R4))),0))+1)/96))*POWER(10,INT(LOG(R4))-2),INT(0.5+100*POWER(10,IF(96*(LOG(R4)-INT(LOG(R4)))-ROUND(96*(LOG(R4)-INT(LOG(R4))),0)<0,ROUND(96*(LOG(R4)-INT(LOG(R4))),0)-1,ROUND(96*(LOG(R4)-INT(LOG(R4))),0))/96))*POWER(10,INT(LOG(R4))-2)) -> 73.2 | T4: Ω
A5: (pF)
A6: 0.47 | B6: =IF(IF((B$3*10^12-$A7)*(B$3*10^12-$A6)*-1<0,0,1)*IF(ABS(B$3*10^12-$A7)>(B$3*10^12-$A6),$A6,$A7)=B7,0,IF((B$3*10^12-$A7)*(B$3*10^12-$A6)*-1<0,0,1)*IF(ABS(B$3*10^12-$A7)>(B$3*10^12-$A6),$A6,$A7)) -> 0 | C6: 0 | D6: 0 | E6: 0 | F6: 0 | G6: 0 | H6: 0 | I6: 0 | J6: 0 | K6: 0 | L6: 0 | M6: 0 | N6: 0
